Workbook

Sheet __

Sheet Intro
G2: Electricity Transmission Network Service Provider
H3: Post-Tax Revenue Model
L4: Version: 02
L5: Date: August 2010
B8: Introduction | J8: Envestra Ltd - 2011-12 to 2015-16 South Australian Access Arrangement
C14: This Post-Tax Revenue Model (PTRM) is used by the Australian Energy Regulator to determine the maximum allowed
C15: revenue for a transmission network service provider.
C17: Before using the PTRM, Excel’s iteration mode of calculation needs to be selected.
C18: To do so, select Options from the Tools menu in Excel, then select the Calculation tab.
C19: Make sure that Manual (rather than Automatic) is selected and tick the iteration box.
C21: To run the 'Fix_Te' and ‘Smooth’ macros manually, select Macro from the Tools menu, and then select Macros.
C22: To operate 'Fix_Te', highlight it and click on Run. To operate ‘Smooth’, highlight it and click on Run.

Sheet WACC
B2: Cost of Capital Parameters
F6: Input Data & Calculated Inputs | G6: Basic Building Block Model
B7: Nominal Risk Free Rate - debt | D7: Rf | F7: =Rf -> 0
B8: Nominal Risk Free Rate equity | F8: =Input!G184 -> 0
B9: Real Risk Free Rate | D9: Rrf | F9: =(1+F7)/(1+F10)-1 -> -0.0243902439
B10: Inflation Rate | D10: f | F10: =f -> 0.025
B11: Cost of Debt Margin | D11: DRP | F11: =Drp -> 0
B12: Nominal Pre-tax Cost of Debt | D12: Rd | F12: 0.0544
B13: Real Pre-tax Cost of Debt | D13: Rrd | F13: =(1+F12)/(1+F10)-1 -> 0.02868292683
B14: Market Risk Premium | D14: MRP | F14: =Mrp -> 0
B15: Corporate Tax Rate | D15: T | F15: 0.3
B16: Effective Tax Rate for Equity (from relevant cashflows) | D16: Te | F16: 0.1599877501 | G16: =Analysis!$D$56 -> 0.1636811764
B17: Effective Tax Rate for Debt (effective debt shield) | D17: Td | F17: =Td -> 0.3 | G17: =Analysis!$D$66 -> 0.3
B18: Utilisation of Imputation (franking) Credits | D18: g | F18: =g -> 0.25
B19: Proportion of Equity Funding | D19: E/V | F19: =1-F20 -> 0.4
B20: Proportion of Debt Funding | D20: D/V | F20: =Dv -> 0.6
B21: Equity Beta | D21: βe | F21: =Be -> 0
B23: WACC Analysis
F25: Formula Approximation
B26: Post-tax Nominal Return on Equity (pre-imp) | F26: 0.0991 | G26: =Analysis!$E$58 -> 0.09982944905
B27: Post-tax Real Return on Equity (pre-imp) | F27: =(1+F26)/(1+F10)-1 -> 0.07229268293 | G27: =Analysis!$E$62 -> 0.07300434053
B28: Nominal Vanilla WACC | F28: =F19*F26+F20*F12 -> 0.07228 | G28: =Analysis!$E$72 -> 0.07228
B29: Real Vanilla WACC | F29: =F19*F27+F20*F13 -> 0.04612682927 | G29: =Analysis!$E$73 -> 0.04612682927
B30: Post-tax Nominal WACC | F30: =F26*((1-F16)/(1-F16*(1-F18)))*F19+F12*F20*(1-F17) -> 0.06068633858 | G30: =Analysis!$E$69 -> 0.06996882467
B31: Post-tax Real WACC | F31: =(1+F30)/(1+F10)-1 -> 0.03481594008 | G31: =Analysis!$E$71 -> 0.04387202407
B32: Pre-tax Nominal WACC | F32: =F26*(1/(1-F16*(1-F18)))*F19+F12*F20 -> 0.07768498427 | G32: =Analysis!$E$68 -> 0.07879559428
B33: Pre-tax Real WACC | F33: =(1+F32)/(1+F10)-1 -> 0.05139998465 | G33: =Analysis!$E$70 -> 0.05248350661
B34: Nominal Tax Allowance | F34: =F32-F28 -> 0.005404984266 | G34: =G32-$F$28 -> 0.006515594279
B35: Real Tax Allowance | F35: =F33-F29 -> 0.005273155382 | G35: =G33-$F$29 -> 0.006356677345
F38: Numbers in White cells are calculated on this sheet from input parameters.
F39: Numbers in Orange cells are transferred from relevant sheets

Sheet Input
E2: Input Variables | G2: Input cells are in blue
E5: ="Opening Regulatory Asset Base for "&Q7&" ($m Nominal)" -> Opening Regulatory Asset Base for 2016-17 ($m Nominal)
G6: Asset Class Name | J6: Opening Asset Value (Partially As Incurred) | K6: Opening Asset Value (As Commissioned) | L6: Average Remaining Life (Year) | M6: Standard Life (Year) | N6: Opening Tax Value | O6: Average Tax Remaining Life (Year) | P6: Tax Standard Life (Year) | Q6: Base Financial Year | R6: Length of Regulatory Control Period (Year)
E7: Asset Class 1 | G7: Mains | J7: 1006.635694 | K7: =A1value -> 1006.635694 | L7: 49.14610236 | M7: 60 | N7: 419.8928812 | O7: 18.97286822 | P7: 20 | Q7: 2016-17 | R7: 5
E8: Asset Class 2 | G8: Inlets | J8: 123.096865 | K8: =A2value -> 123.096865 | L8: 51.05061362 | M8: 60 | N8: 97.75185067 | O8: 14.79878514 | P8: 20
E9: Asset Class 3 | G9: Meters | J9: 60.15199712 | K9: =A3value -> 60.15199712 | L9: 7.43752144 | M9: 15 | N9: 55.25902664 | O9: 10.75243562 | P9: 15
E10: Asset Class 4 | G10: Telemetry | J10: 4.444257656 | K10: =A4value -> 4.444257656 | L10: 12.74153429 | M10: 20 | N10: 1.808323081 | O10: 6.754656591 | P10: 10
E11: Asset Class 5 | G11: IT system | J11: 18.48788155 | K11: =A5value -> 18.48788155 | L11: 3.721014803 | M11: 5 | N11: 15.24908124 | O11: 2.295901063 | P11: 4
E12: Asset Class 6 | G12: Other distribution system equipment | J12: 210.1672644 | K12: =A6value -> 210.1672644 | L12: 23.65414344 | M12: 40 | N12: 18.62247369 | O12: 17.23539442 | P12: 20
E13: Asset Class 7 | G13: Other | J13: 5.863890709 | K13: =A7value -> 5.863890709 | L13: 7.185344969 | M13: 10 | N13: 7.017260317 | O13: 7.712064412 | P13: 10
E14: Asset Class 8 | L14: n/a | M14: n/a | O14: n/a | P14: n/a
E15: Asset Class 9 | L15: n/a | M15: n/a | O15: n/a | P15: n/a
E16: Asset Class 10 | L16: n/a | M16: n/a | O16: n/a | P16: n/a
E17: Asset Class 11 | L17: n/a | M17: n/a | O17: n/a | P17: n/a
E18: Asset Class 12 | L18: n/a | M18: n/a | O18: n/a | P18: n/a
E19: Asset Class 13 | L19: n/a | M19: n/a | O19: n/a | P19: n/a
E20: Asset Class 14 | L20: n/a | M20: n/a | O20: n/a | P20: n/a
E21: Asset Class 15 | L21: n/a | M21: n/a | O21: n/a | P21: n/a
E22: Asset Class 16 | L22: n/a | M22: n/a | O22: n/a | P22: n/a
E23: Asset Class 17 | L23: n/a | M23: n/a | O23: n/a | P23: n/a
E24: Asset Class 18 | L24: n/a | M24: n/a | O24: n/a | P24: n/a
E25: Asset Class 19 | L25: n/a | M25: n/a | O25: n/a | P25: n/a
E26: Asset Class 20 | G26: Equity Raising Costs | L26: =SUMPRODUCT($J$7:$J$25,$M$7:$M$25)/SUM($J$7:$J$25) -> 54.12254882 | M26: n/a | O26: n/a | P26: n/a
E27: Total | J27: =SUM(J7:J26) -> 1428.84785 | K27: =SUM(K7:K26) -> 1428.84785 | N27: =SUM(N7:N26) -> 615.6008969
E29: ="Forecast Net Capital Expenditure – As Incurred ($m Real "&CONCATENATE(LEFT(Q7, 4)-1 &"-" &IF(Q7>"2009-10",,"0") &RIGHT(Q7,2)-1)&")" -> Forecast Net Capital Expenditure – As Incurred ($m Real 2015-16)
E30: Year | G30: =Q7 -> 2016-17 | H30: =CONCATENATE(LEFT(G30, 4)+1 &"-" &IF(G30>"2007-08",,"0") &RIGHT(G30,2)+1) -> 2017-18 | I30: =CONCATENATE(LEFT(H30, 4)+1 &"-" &IF(H30>"2007-08",,"0") &RIGHT(H30,2)+1) -> 2018-19 | J30: 2019-20 | K30: 2020-21 | L30: 2021-22 | M30: 2022-23 | N30: 2023-24 | O30: 2024-25 | P30: 2025-26 | R30: Year
E31: =Asset1 -> Mains | G31: ='NMF inputs and outputs'!D17 -> 90.261692 | H31: ='NMF inputs and outputs'!E17 -> 97.90624261 | I31: ='NMF inputs and outputs'!F17 -> 93.49869171 | J31: ='NMF inputs and outputs'!G17 -> 100.697851 | K31: ='NMF inputs and outputs'!H17 -> 89.30691709
E32: =Asset2 -> Inlets | G32: ='NMF inputs and outputs'!D18 -> 12.92341389 | H32: ='NMF inputs and outputs'!E18 -> 12.81005189 | I32: ='NMF inputs and outputs'!F18 -> 13.13216368 | J32: ='NMF inputs and outputs'!G18 -> 13.47912253 | K32: ='NMF inputs and outputs'!H18 -> 13.4026558
E33: =Asset3 -> Meters | G33: ='NMF inputs and outputs'!D19 -> 8.417973662 | H33: ='NMF inputs and outputs'!E19 -> 8.408428637 | I33: ='NMF inputs and outputs'!F19 -> 8.274259472 | J33: ='NMF inputs and outputs'!G19 -> 7.726280975 | K33: ='NMF inputs and outputs'!H19 -> 6.782708517
E34: =Asset4 -> Telemetry | G34: ='NMF inputs and outputs'!D20 -> 0.3461245268 | H34: ='NMF inputs and outputs'!E20 -> 0.2681853027 | I34: ='NMF inputs and outputs'!F20 -> 0.2340877973 | J34: ='NMF inputs and outputs'!G20 -> 0.2447151123 | K34: ='NMF inputs and outputs'!H20 -> 0.1620153263
E35: =Asset5 -> IT system | G35: ='NMF inputs and outputs'!D21 -> 12.24498911 | H35: ='NMF inputs and outputs'!E21 -> 20.35963077 | I35: ='NMF inputs and outputs'!F21 -> 16.41467251 | J35: ='NMF inputs and outputs'!G21 -> 9.708351388 | K35: ='NMF inputs and outputs'!H21 -> 8.828659604
E36: =Asset6 -> Other distribution system equipment | G36: ='NMF inputs and outputs'!D22 -> 12.85576771 | H36: ='NMF inputs and outputs'!E22 -> 11.35007935 | I36: ='NMF inputs and outputs'!F22 -> 11.39180792 | J36: ='NMF inputs and outputs'!G22 -> 10.94608379 | K36: ='NMF inputs and outputs'!H22 -> 10.40527324
E37: =Asset7 -> Other | G37: ='NMF inputs and outputs'!D23 -> 1.498276853 | H37: ='NMF inputs and outputs'!E23 -> 1.166506424 | I37: ='NMF inputs and outputs'!F23 -> 0.9823325121 | J37: ='NMF inputs and outputs'!G23 -> 0.9846100152 | K37: ='NMF inputs and outputs'!H23 -> 0.9879331835
E38: =Asset8 -> 0
E39: =Asset9 -> 0
E40: =Asset10 -> 0
E41: =Asset11 -> 0
E42: =Asset12 -> 0
E43: =Asset13 -> 0
E44: =Asset14 -> 0
E45: =Asset15 -> 0
E46: =Asset16 -> 0
E47: =Asset17 -> 0
E48: =Asset18 -> 0
E49: =Asset19 -> 0
E50: =Asset20 -> Equity Raising Costs | G50: 0.07248324058
E51: Total | G51: =SUM(G31:G50) -> 138.620721 | H51: 152.269125 | I51: 143.9280156 | J51: 143.7870148 | K51: 129.8761628 | L51: 0 | M51: 0 | N51: 0 | O51: 0 | P51: 0
Q52: =SUM(G51:P51) -> 708.4810391
E53: ="Forecast Asset Disposal – As Incurred ($m Real "&CONCATENATE(LEFT(Q7, 4)-1 &"-" &IF(Q7>"2009-10",,"0") &RIGHT(Q7,2)-1)&")" -> Forecast Asset Disposal – As Incurred ($m Real 2015-16)
E54: Year | G54: =G30 -> 2016-17 | H54: =H30 -> 2017-18 | I54: 2018-19 | J54: 2019-20 | K54: 2020-21 | L54: 2021-22 | M54: 2022-23 | N54: 2023-24 | O54: 2024-25 | P54: 2025-26
E55: =Asset1 -> Mains
E56: =Asset2 -> Inlets
E57: =Asset3 -> Meters
E58: =Asset4 -> Telemetry
E59: =Asset5 -> IT system
E60: =Asset6 -> Other distribution system equipment
E61: =Asset7 -> Other
E62: =Asset8 -> 0
E63: =Asset9 -> 0
E64: =Asset10 -> 0
E65: =Asset11 -> 0
E66: =Asset12 -> 0
E67: =Asset13 -> 0
E68: =Asset14 -> 0
E69: =Asset15 -> 0
E70: =Asset16 -> 0
E71: =Asset17 -> 0
E72: =Asset18 -> 0
E73: =Asset19 -> 0
E74: =Asset20 -> Equity Raising Costs
E75: Total | G75: =SUM(G55:G74) -> 0 | H75: 0 | I75: 0 | J75: 0 | K75: 0 | L75: 0 | M75: 0 | N75: 0 | O75: 0 | P75: 0
Q76: =SUM(G75:P75) -> 0
E77: ="Forecast Net Capital Expenditure – As Incurred ($m Real "&CONCATENATE(LEFT(Q7, 4)-1 &"-" &IF(Q7>"2009-10",,"0") &RIGHT(Q7,2)-1)&")" -> Forecast Net Capital Expenditure – As Incurred ($m Real 2015-16)
E78: Year | G78: =G30 -> 2016-17 | H78: =H30 -> 2017-18 | I78: 2018-19 | J78: 2019-20 | K78: 2020-21 | L78: 2021-22 | M78: 2022-23 | N78: 2023-24 | O78: 2024-25 | P78: 2025-26
E79: =Asset1 -> Mains | G79: =G31-G55 -> 90.261692 | H79: 97.90624261 | I79: 93.49869171 | J79: 100.697851 | K79: 89.30691709 | L79: 0 | M79: 0 | N79: 0 | O79: 0 | P79: 0
E80: =Asset2 -> Inlets | G80: =G32-G56 -> 12.92341389 | H80: 12.81005189 | I80: 13.13216368 | J80: 13.47912253 | K80: 13.4026558 | L80: =L32-L56 -> 0 | M80: 0 | N80: 0 | O80: 0 | P80: 0
E81: =Asset3 -> Meters | G81: 8.417973662 | H81: 8.408428637 | I81: 8.274259472 | J81: 7.726280975 | K81: 6.782708517 | L81: 0 | M81: 0 | N81: 0 | O81: 0 | P81: 0
E82: =Asset4 -> Telemetry | G82: 0.3461245268 | H82: 0.2681853027 | I82: 0.2340877973 | J82: 0.2447151123 | K82: 0.1620153263 | L82: 0 | M82: 0 | N82: 0 | O82: 0 | P82: 0
E83: =Asset5 -> IT system | G83: 12.24498911 | H83: 20.35963077 | I83: 16.41467251 | J83: 9.708351388 | K83: 8.828659604 | L83: 0 | M83: 0 | N83: 0 | O83: 0 | P83: 0
E84: =Asset6 -> Other distribution system equipment | G84: 12.85576771 | H84: 11.35007935 | I84: 11.39180792 | J84: 10.94608379 | K84: 10.40527324 | L84: 0 | M84: 0 | N84: 0 | O84: 0 | P84: 0
E85: =Asset7 -> Other | G85: 1.498276853 | H85: 1.166506424 | I85: 0.9823325121 | J85: 0.9846100152 | K85: 0.9879331835 | L85: 0 | M85: 0 | N85: 0 | O85: 0 | P85: 0
E86: =Asset8 -> 0 | G86: 0 | H86: 0 | I86: 0 | J86: 0 | K86: 0 | L86: 0 | M86: 0 | N86: 0 | O86: 0 | P86: 0
E87: =Asset9 -> 0 | G87: 0 | H87: 0 | I87: =I39-I63 -> 0 | J87: 0 | K87: 0 | L87: 0 | M87: 0 | N87: 0 | O87: 0 | P87: 0
E88: =Asset10 -> 0 | G88: 0 | H88: 0 | I88: 0 | J88: 0 | K88: 0 | L88: 0 | M88: 0 | N88: 0 | O88: 0 | P88: 0
E89: =Asset11 -> 0 | G89: 0 | H89: 0 | I89: 0 | J89: 0 | K89: 0 | L89: 0 | M89: 0 | N89: 0 | O89: 0 | P89: 0
E90: =Asset12 -> 0 | G90: 0 | H90: 0 | I90: 0 | J90: 0 | K90: 0 | L90: =L42-L66 -> 0 | M90: 0 | N90: 0 | O90: 0 | P90: 0
E91: =Asset13 -> 0 | G91: 0 | H91: 0 | I91: 0 | J91: 0 | K91: 0 | L91: 0 | M91: 0 | N91: 0 | O91: 0 | P91: 0
E92: =Asset14 -> 0 | G92: 0 | H92: 0 | I92: 0 | J92: 0 | K92: 0 | L92: 0 | M92: 0 | N92: 0 | O92: 0 | P92: 0
E93: =Asset15 -> 0 | G93: 0 | H93: 0 | I93: 0 | J93: 0 | K93: 0 | L93: 0 | M93: 0 | N93: 0 | O93: 0 | P93: 0
E94: =Asset16 -> 0 | G94: 0 | H94: 0 | I94: 0 | J94: 0 | K94: 0 | L94: 0 | M94: 0 | N94: 0 | O94: 0 | P94: 0
E95: =Asset17 -> 0 | G95: 0 | H95: 0 | I95: 0 | J95: 0 | K95: 0 | L95: 0 | M95: 0 | N95: 0 | O95: 0 | P95: 0
E96: =Asset18 -> 0 | G96: 0 | H96: 0 | I96: 0 | J96: 0 | K96: 0 | L96: 0 | M96: 0 | N96: 0 | O96: 0 | P96: 0
E97: =Asset19 -> 0 | G97: 0 | H97: 0 | I97: 0 | J97: 0 | K97: 0 | L97: 0 | M97: 0 | N97: 0 | O97: 0 | P97: 0
E98: =Asset20 -> Equity Raising Costs | G98: 0.07274058725 | H98: 0 | I98: 0 | J98: 0 | K98: 0 | L98: 0 | M98: 0 | N98: 0 | O98: 0 | P98: 0
E99: Total | G99: =SUM(G79:G98) -> 138.6209783 | H99: 152.269125 | I99: 143.9280156 | J99: 143.7870148 | K99: 129.8761628 | L99: 0 | M99: 0 | N99: 0 | O99: 0 | P99: 0
Q100: =SUM(G99:P99) -> 708.4812964
E101: ="Forecast Capital Expenditure – As Commissioned ($m Real "&CONCATENATE(LEFT(Q7, 4)-1 &"-" &IF(Q7>"2009-10",,"0") &RIGHT(Q7,2)-1)&")" -> Forecast Capital Expenditure – As Commissioned ($m Real 2015-16)
E102: Year | G102: =G30 -> 2016-17 | H102: =H30 -> 2017-18 | I102: 2018-19 | J102: 2019-20 | K102: 2020-21 | L102: 2021-22 | M102: 2022-23 | N102: 2023-24 | O102: 2024-25 | P102: 2025-26
E103: =Asset1 -> Mains | G103: =G31 -> 90.261692 | H103: =H31 -> 97.90624261 | I103: =I31 -> 93.49869171 | J103: =J31 -> 100.697851 | K103: =K31 -> 89.30691709
E104: =Asset2 -> Inlets | G104: =G32 -> 12.92341389 | H104: 12.81005189 | I104: 13.13216368 | J104: 13.47912253 | K104: 13.4026558
E105: =Asset3 -> Meters | G105: 8.417973662 | H105: 8.408428637 | I105: 8.274259472 | J105: 7.726280975 | K105: 6.782708517
E106: =Asset4 -> Telemetry | G106: 0.3461245268 | H106: 0.2681853027 | I106: 0.2340877973 | J106: 0.2447151123 | K106: 0.1620153263
E107: =Asset5 -> IT system | G107: 12.24498911 | H107: 20.35963077 | I107: 16.41467251 | J107: 9.708351388 | K107: 8.828659604
E108: =Asset6 -> Other distribution system equipment | G108: 12.85576771 | H108: 11.35007935 | I108: 11.39180792 | J108: 10.94608379 | K108: 10.40527324
E109: =Asset7 -> Other | G109: 1.498276853 | H109: 1.166506424 | I109: 0.9823325121 | J109: 0.9846100152 | K109: 0.9879331835
E110: =Asset8 -> 0
E111: =Asset9 -> 0
E112: =Asset10 -> 0
E113: =Asset11 -> 0
E114: =Asset12 -> 0
E115: =Asset13 -> 0
E116: =Asset14 -> 0
E117: =Asset15 -> 0
E118: =Asset16 -> 0
E119: =Asset17 -> 0
E120: =Asset18 -> 0
E121: =Asset19 -> 0
E122: =Asset20 -> Equity Raising Costs
E123: Total | G123: =SUM(G103:G122) -> 138.5482377 | H123: 152.269125 | I123: 143.9280156 | J123: 143.7870148 | K123: 129.8761628 | L123: 0 | M123: 0 | N123: 0 | O123: 0 | P123: 0
Q124: =SUM(G123:P123) -> 708.4085559
E125: ="Forecast Asset Disposal – As De-Commissioned ($m Real "&CONCATENATE(LEFT(Q7, 4)-1 &"-" &IF(Q7>"2009-10",,"0") &RIGHT(Q7,2)-1)&")" -> Forecast Asset Disposal – As De-Commissioned ($m Real 2015-16)
E126: Year | G126: =G30 -> 2016-17 | H126: =H30 -> 2017-18 | I126: 2018-19 | J126: 2019-20 | K126: 2020-21 | L126: 2021-22 | M126: 2022-23 | N126: 2023-24 | O126: 2024-25 | P126: 2025-26
E127: =Asset1 -> Mains
E128: =Asset2 -> Inlets
E129: =Asset3 -> Meters
E130: =Asset4 -> Telemetry
E131: =Asset5 -> IT system
E132: =Asset6 -> Other distribution system equipment
E133: =Asset7 -> Other
E134: =Asset8 -> 0
E135: =Asset9 -> 0
E136: =Asset10 -> 0
E137: =Asset11 -> 0
E138: =Asset12 -> 0
E139: =Asset13 -> 0
E140: =Asset14 -> 0
E141: =Asset15 -> 0
E142: =Asset16 -> 0
E143: =Asset17 -> 0
E144: =Asset18 -> 0
E145: =Asset19 -> 0
E146: =Asset20 -> Equity Raising Costs
E147: Total | G147: =SUM(G127:G146) -> 0 | H147: 0 | I147: 0 | J147: 0 | K147: 0 | L147: 0 | M147: 0 | N147: 0 | O147: 0 | P147: 0
Q148: =SUM(G147:P147) -> 0
E149: ="Forecast Net Capital Expenditure – As Commissioned ($m Real "&CONCATENATE(LEFT(Q7, 4)-1 &"-" &IF(Q7>"2009-10",,"0") &RIGHT(Q7,2)-1)&")" -> Forecast Net Capital Expenditure – As Commissioned ($m Real 2015-16)
E150: Year | G150: =G30 -> 2016-17 | H150: =H30 -> 2017-18 | I150: 2018-19 | J150: 2019-20 | K150: 2020-21 | L150: 2021-22 | M150: 2022-23 | N150: 2023-24 | O150: 2024-25 | P150: 2025-26
E151: =Asset1 -> Mains | G151: =G103-G127 -> 90.261692 | H151: =H103-H127 -> 97.90624261 | I151: 93.49869171 | J151: 100.697851 | K151: 89.30691709 | L151: 0 | M151: 0 | N151: 0 | O151: 0 | P151: 0
E152: =Asset2 -> Inlets | G152: =G104-G128 -> 12.92341389 | H152: 12.81005189 | I152: 13.13216368 | J152: 13.47912253 | K152: 13.4026558 | L152: 0 | M152: 0 | N152: 0 | O152: 0 | P152: 0
E153: =Asset3 -> Meters | G153: 8.417973662 | H153: 8.408428637 | I153: 8.274259472 | J153: 7.726280975 | K153: 6.782708517 | L153: 0 | M153: 0 | N153: 0 | O153: 0 | P153: 0
E154: =Asset4 -> Telemetry | G154: 0.3461245268 | H154: 0.2681853027 | I154: 0.2340877973 | J154: 0.2447151123 | K154: 0.1620153263 | L154: 0 | M154: 0 | N154: 0 | O154: 0 | P154: 0
E155: =Asset5 -> IT system | G155: 12.24498911 | H155: 20.35963077 | I155: 16.41467251 | J155: 9.708351388 | K155: 8.828659604 | L155: 0 | M155: 0 | N155: 0 | O155: 0 | P155: 0
E156: =Asset6 -> Other distribution system equipment | G156: 12.85576771 | H156: 11.35007935 | I156: 11.39180792 | J156: 10.94608379 | K156: 10.40527324 | L156: 0 | M156: 0 | N156: 0 | O156: 0 | P156: 0
E157: =Asset7 -> Other | G157: 1.498276853 | H157: 1.166506424 | I157: 0.9823325121 | J157: 0.9846100152 | K157: 0.9879331835 | L157: 0 | M157: 0 | N157: 0 | O157: 0 | P157: 0
E158: =Asset8 -> 0 | G158: 0 | H158: 0 | I158: 0 | J158: 0 | K158: 0 | L158: 0 | M158: 0 | N158: 0 | O158: 0 | P158: 0
E159: =Asset9 -> 0 | G159: 0 | H159: 0 | I159: 0 | J159: 0 | K159: 0 | L159: 0 | M159: 0 | N159: 0 | O159: 0 | P159: 0
E160: =Asset10 -> 0 | G160: 0 | H160: 0 | I160: 0 | J160: 0 | K160: 0 | L160: 0 | M160: 0 | N160: 0 | O160: 0 | P160: 0
E161: =Asset11 -> 0 | G161: 0 | H161: 0 | I161: 0 | J161: 0 | K161: 0 | L161: 0 | M161: 0 | N161: 0 | O161: 0 | P161: 0
E162: =Asset12 -> 0 | G162: 0 | H162: 0 | I162: 0 | J162: 0 | K162: 0 | L162: 0 | M162: 0 | N162: 0 | O162: 0 | P162: 0
E163: =Asset13 -> 0 | G163: 0 | H163: 0 | I163: 0 | J163: 0 | K163: 0 | L163: 0 | M163: 0 | N163: 0 | O163: 0 | P163: 0
E164: =Asset14 -> 0 | G164: 0 | H164: 0 | I164: 0 | J164: 0 | K164: 0 | L164: 0 | M164: 0 | N164: 0 | O164: 0 | P164: 0
E165: =Asset15 -> 0 | G165: 0 | H165: 0 | I165: 0 | J165: 0 | K165: 0 | L165: 0 | M165: 0 | N165: 0 | O165: 0 | P165: 0
E166: =Asset16 -> 0 | G166: 0 | H166: 0 | I166: 0 | J166: 0 | K166: 0 | L166: 0 | M166: 0 | N166: 0 | O166: 0 | P166: 0
E167: =Asset17 -> 0 | G167: 0 | H167: 0 | I167: 0 | J167: 0 | K167: 0 | L167: 0 | M167: 0 | N167: 0 | O167: 0 | P167: 0
E168: =Asset18 -> 0 | G168: 0 | H168: 0 | I168: 0 | J168: 0 | K168: 0 | L168: 0 | M168: 0 | N168: 0 | O168: 0 | P168: 0
E169: =Asset19 -> 0 | G169: 0 | H169: 0 | I169: 0 | J169: 0 | K169: 0 | L169: 0 | M169: 0 | N169: 0 | O169: 0 | P169: 0
E170: =Asset20 -> Equity Raising Costs | G170: 0 | H170: 0 | I170: 0 | J170: 0 | K170: 0 | L170: 0 | M170: 0 | N170: 0 | O170: 0 | P170: 0
E171: Total | G171: =SUM(G151:G170) -> 138.5482377 | H171: 152.269125 | I171: 143.9280156 | J171: 143.7870148 | K171: 129.8761628 | L171: 0 | M171: 0 | N171: 0 | O171: 0 | P171: 0
Q172: =SUM(G171:P171) -> 708.4085559
E173: ="Forecast Operating Expenditure ($m Real "&CONCATENATE(LEFT(Q7, 4)-1 &"-" &IF(Q7>"2009-10",,"0") &RIGHT(Q7,2)-1)&")" -> Forecast Operating Expenditure ($m Real 2015-16)
E174: Year | G174: =G30 -> 2016-17 | H174: =H30 -> 2017-18 | I174: 2018-19 | J174: 2019-20 | K174: 2020-21 | L174: 2021-22 | M174: 2022-23 | N174: 2023-24 | O174: 2024-25 | P174: 2025-26
E175: Controllable opex | G175: 68.38538553 | H175: 70.58147776 | I175: 72.43921708 | J175: 72.639224 | K175: 73.38795874
E176: R&D
E177: Efficiency carryover | G177: ='Efficiency Carryover'!G21 -> 7.171556041 | H177: ='Efficiency Carryover'!H21 -> -1.458256302 | I177: ='Efficiency Carryover'!I21 -> -1.620139304 | J177: ='Efficiency Carryover'!J21 -> 1.600739303 | K177: ='Efficiency Carryover'!K21 -> 0
E178: Debt raising costs | G178: =(Dr*Dv*Assets!F324)/Assets!G7 -> 1.492135355 | H178: =(Dr*Dv*Assets!G324)/Assets!H7 -> 1.592159986 | I178: =(Dr*Dv*Assets!H324)/Assets!I7 -> 1.701188399 | J178: =(Dr*Dv*Assets!I324)/Assets!J7 -> 1.793946693 | K178: =(Dr*Dv*Assets!J324)/Assets!K7 -> 1.881586376 | L178: =IF(L175=0,0,(Dr*Dv*Assets!K324)/Assets!L7) -> 0 | M178: =IF(M175=0,0,(Dr*Dv*Assets!L324)/Assets!M7) -> 0 | N178: =IF(N175=0,0,(Dr*Dv*Assets!M324)/Assets!N7) -> 0 | O178: =IF(O175=0,0,(Dr*Dv*Assets!N324)/Assets!O7) -> 0 | P178: =IF(P175=0,0,(Dr*Dv*Assets!O324)/Assets!P7) -> 0
E179: Total | G179: =SUM(G175:G178) -> 77.04907693 | H179: =SUM(H175:H178) -> 70.71538145 | I179: 72.52026617 | J179: 76.03391 | K179: 75.26954511 | L179: 0 | M179: 0 | N179: 0 | O179: 0 | P179: 0
Q180: =SUM(G179:P179) -> 371.5881797
E181: Cost of Capital
G182: Value
E183: Nominal Risk Free Rate Debt Rfd
E184: Nominal Risk Free Rate Equity Rfe
E185: Inflation Rate f | G185: 0.025
E186: Debt Risk Premium DRP
E187: Market Risk Premium MRP
E188: Utilisation of Imputation (Franking) Credits g | G188: 0.25
E189: Proportion of Debt Funding D/V | G189: 0.6
E190: Equity Beta βe
E191: Debt Raising Cost Benchmark Dr | F191: Dr | G191: 0.001784
E193: Expected Taxation Rate (per cent) | G193: 1 | H193: 2 | I193: 3 | J193: 4 | K193: 5 | L193: 6 | M193: 7 | N193: 8 | O193: 9 | P193: 10
E194: Year | G194: =G47 -> 0 | H194: =H47 -> 0 | I194: 0 | J194: 0 | K194: 0 | L194: =L46 -> 0 | M194: 0 | N194: 0 | O194: 0 | P194: 0
E195: Corporate Tax Rate | F195: 0.3 | G195: 0.3 | H195: 0.3 | I195: 0.3 | J195: 0.3 | K195: 0.3
E197: Transaction Cost of Financing (per cent)
G198: Value
E199: Dividend/Imputation Payout Ratio PR | G199: 0.7
E200: Subsequent Equity Raising Cost SEO | G200: 0.03
E201: Dividend Reinvestment Plan Cost DRPC | G201: 0.01
E202: Dividend Reinvestment Plan Take Up DRPT | G202: 0.3
E203: Debt Raising Cost DRC | F203: Dr | G203: =Dr -> 0.001784
E205: ="Maximum Allowed Revenue for "&CONCATENATE(LEFT(Q7, 4)-1 &"-" &IF(Q7>"2009-10",,"0") &RIGHT(Q7,2)-1)& " ($m Nominal)" -> Maximum Allowed Revenue for 2015-16 ($m Nominal)
G206: Value
E207: Current Maximum Allowed Revenue | G207: 0
... 3 more rows

Sheet Equity raising costs
F2: AGN - Equity Raising Costs
F4: Year | G4: 2016-17 | H4: 2017-18 | I4: 2018-19 | J4: 2019-20 | K4: 2020-21 | L4: 2021-22 | M4: 2022-23 | N4: 2023-24 | O4: 2024-25 | P4: 2025-26 | Q4: Total
F5: RAB and Capex ($m Nominal)
F7: Opening RAB | G7: =Assets!G325 -> 1464.569047 | H7: =Assets!H325 -> 1601.814427 | I7: =Assets!I325 -> 1754.291559 | J7: =Assets!J325 -> 1896.193967 | K7: =Assets!K325 -> 2038.549454 | L7: 0 | M7: 0 | N7: 0 | O7: 0 | P7: 0 | Q7: =SUM(G7:P7) -> 8755.418454
F8: Capex | G8: =Assets!G31 -> 145.3265605 | H8: =Assets!H31 -> 163.6257887 | I8: =Assets!I31 -> 158.5291401 | J8: =Assets!J31 -> 162.333181 | K8: =Assets!K31 -> 150.2937587 | L8: 0 | M8: 0 | N8: 0 | O8: 0 | P8: 0 | Q8: =SUM(G8:P8) -> 780.108429
F9: Capex Rate | G9: =IFERROR(G8/G7,0) -> 0.099228207 | H9: =IFERROR(H8/H7,0) -> 0.1021502778 | I9: 0.09036647261 | J9: 0.08561000815 | K9: 0.07372583401 | L9: 0 | M9: 0 | N9: 0 | O9: 0 | P9: 0 | Q9: =IFERROR(Q8/Q7,0) -> 0.08910007365
F11: Dividend Assessment ($m Nominal)
F13: Tax Payable | G13: =Analysis!G24 -> 12.63607524 | H13: =Analysis!H24 -> 8.770766078 | I13: =Analysis!I24 -> 9.96351823 | J13: =Analysis!J24 -> 11.0581085 | K13: =Analysis!K24 -> 8.409054813 | L13: 0 | M13: 0 | N13: 0 | O13: 0 | P13: 0 | Q13: =SUM(G13:P13) -> 50.83752286
F14: Dividends | G14: =(G13/Input!G195)*(1-Input!G195)*Input!$G$199 -> 20.6389229 | H14: =(H13/Input!H195)*(1-Input!H195)*Input!$G$199 -> 14.32558459 | I14: =(I13/Input!I195)*(1-Input!I195)*Input!$G$199 -> 16.27374644 | J14: =(J13/Input!J195)*(1-Input!J195)*Input!$G$199 -> 18.06157721 | K14: =(K13/Input!K195)*(1-Input!K195)*Input!$G$199 -> 13.73478953 | L14: 0 | M14: 0 | N14: 0 | O14: 0 | P14: 0 | Q14: =SUM(G14:P14) -> 83.03462068
F15: Dividend Reinvestment | G15: =G14*Input!$G$202 -> 6.191676869 | H15: =H14*Input!$G$202 -> 4.297675378 | I15: =I14*Input!$G$202 -> 4.882123933 | J15: =J14*Input!$G$202 -> 5.418473164 | K15: =K14*Input!$G$202 -> 4.120436859 | L15: 0 | M15: 0 | N15: 0 | O15: 0 | P15: 0 | Q15: =SUM(G15:P15) -> 24.9103862
F17: Benchmark Cash Flows ($m Nominal)
F19: Revenue (smoothed) | G19: =Smoothing!G8+Smoothing!G11 -> 203.7947834 | H19: =Smoothing!H8+Smoothing!H11 -> 215.0284446 | I19: =Smoothing!I8+Smoothing!I11 -> 228.2576655 | J19: =Smoothing!J8+Smoothing!J11 -> 242.5846662 | K19: =Smoothing!K8+Smoothing!K11 -> 258.2858482 | L19: 0 | M19: 0 | N19: 0 | O19: 0 | P19: 0 | Q19: =SUM(G19:P19) -> 1147.951408
F20: Opex | G20: =Analysis!G107 -> 71.62445891 | H20: =Analysis!H107 -> 75.82742816 | I20: =Analysis!I107 -> 79.84110759 | J20: =Analysis!J107 -> 82.1602933 | K20: =Analysis!K107 -> 85.16058152 | L20: 0 | M20: 0 | N20: 0 | O20: 0 | P20: 0 | Q20: 394.6138695
F21: Interest Payment | G21: =Analysis!G52 -> 46.63759384 | H21: =Analysis!H52 -> 51.00802233 | I21: =Analysis!I52 -> 55.86348925 | J21: =Analysis!J52 -> 60.38221569 | K21: =Analysis!K52 -> 64.91536994 | L21: 0 | M21: 0 | N21: 0 | O21: 0 | P21: 0 | Q21: 278.8066911
F22: Revenue Adjustments | G22: =Analysis!G108 -> 7.350844942 | H22: =Analysis!H108 -> -1.532080528 | I22: =Analysis!I108 -> -1.744712827 | J22: =Analysis!J108 -> 1.766916677 | K22: =Analysis!K108 -> 0 | L22: 0 | M22: 0 | N22: 0 | O22: 0 | P22: 0 | Q22: 5.840968264
F23: Tax Payable | G23: =Analysis!G24 -> 12.63607524 | H23: =Analysis!H24 -> 8.770766078 | I23: =Analysis!I24 -> 9.96351823 | J23: =Analysis!J24 -> 11.0581085 | K23: =Analysis!K24 -> 8.409054813 | L23: 0 | M23: 0 | N23: 0 | O23: 0 | P23: 0 | Q23: 50.83752286
F24: Internal Cash Flow | G24: =G19-G20-G21-G22-G23 -> 65.54581049 | H24: =H19-H20-H21-H22-H23 -> 80.9543086 | I24: =I19-I20-I21-I22-I23 -> 84.3342633 | J24: 87.21713204 | K24: 99.8008419 | L24: 0 | M24: 0 | N24: 0 | O24: 0 | P24: 0 | Q24: 417.8523563
F25: Dividends | G25: =G14 -> 20.6389229 | H25: 14.32558459 | I25: 16.27374644 | J25: 18.06157721 | K25: 13.73478953 | L25: 0 | M25: 0 | N25: 0 | O25: 0 | P25: 0 | Q25: 83.03462068
F26: Retained Cash Flow (excl. dividend reinvestment) | G26: =G24-G25 -> 44.9068876 | H26: =H24-H25 -> 66.62872401 | I26: 68.06051685 | J26: 69.15555483 | K26: 86.06605237 | L26: 0 | M26: 0 | N26: 0 | O26: 0 | P26: 0 | Q26: 334.8177357
F28: Benchmark Capex Funding ($m Nominal)
F30: Capex Funding Requirement | G30: =G8/(1+vanilla)^0.5 -> 140.3430441 | H30: 158.0147579 | I30: 153.0928828 | J30: 156.7664761 | K30: 145.1399079 | L30: 0 | M30: 0 | N30: 0 | O30: 0 | P30: 0 | Q30: =SUM(G30:P30) -> 753.3570688
F31: Debt Component | G31: =-Analysis!G53 -> 80.33875904 | H31: =-Analysis!H53 -> 89.25490673 | I31: =-Analysis!I53 -> 83.06482424 | J31: =-Analysis!J53 -> 83.33004136 | K31: =-Analysis!K53 -> 76.28211879 | L31: 0 | M31: 0 | N31: 0 | O31: 0 | P31: 0 | Q31: =SUM(G31:P31) -> 412.2706502
F32: Equity Component | G32: =G30-G31 -> 60.00428506 | H32: =H30-H31 -> 68.75985118 | I32: 70.02805858 | J32: 73.43643473 | K32: 68.85778907 | L32: =L30-L31 -> 0 | M32: 0 | N32: 0 | O32: 0 | P32: 0 | Q32: =SUM(G32:P32) -> 341.0864186
F33: Retained Cash Flow (excl. dividend reinvestment) | G33: =G26 -> 44.9068876 | H33: =H26 -> 66.62872401 | I33: 68.06051685 | J33: 69.15555483 | K33: 86.06605237 | L33: 0 | M33: 0 | N33: 0 | O33: 0 | P33: 0 | Q33: =SUM(G33:P33) -> 334.8177357
F34: Equity Requirement (SEO) | G34: =G32-G33 -> 15.09739746 | H34: =H32-H33 -> 2.131127172 | I34: 1.967541722 | J34: 4.2808799 | K34: -17.2082633 | L34: 0 | M34: 0 | N34: 0 | O34: 0 | P34: 0 | Q34: =SUM(G34:P34) -> 6.268682951
F36: Benchmark Capex Funding ($m Real 2015-16)
F38: Equity Component | G38: =G32/Analysis!G8 -> 58.54076591 | H38: =H32/Analysis!H8 -> 65.44661623 | I38: =I32/Analysis!I8 -> 65.02801394 | J38: =J32/Analysis!J8 -> 66.52978539 | K38: =K32/Analysis!K8 -> 60.8602521 | L38: =L32/Analysis!L8 -> 0 | M38: =M32/Analysis!M8 -> 0 | N38: =N32/Analysis!N8 -> 0 | O38: =O32/Analysis!O8 -> 0 | P38: =P32/Analysis!P8 -> 0 | Q38: =SUM(G38:P38) -> 316.4054336
F39: Retained Cash Flow (excl. dividend reinvestment) | G39: =G33/Analysis!G8 -> 43.81159766 | H39: =H33/Analysis!H8 -> 63.41817871 | I39: =I33/Analysis!I8 -> 63.20095586 | J39: =J33/Analysis!J8 -> 62.65151949 | K39: =K33/Analysis!K8 -> 76.06984941 | L39: =L33/Analysis!L8 -> 0 | M39: =M33/Analysis!M8 -> 0 | N39: =N33/Analysis!N8 -> 0 | O39: =O33/Analysis!O8 -> 0 | P39: =P33/Analysis!P8 -> 0 | Q39: =SUM(G39:P39) -> 309.1521011
F40: Equity Requirement | G40: =G38-G39 -> 14.72916825 | H40: =H38-H39 -> 2.028437522 | I40: 1.827058084 | J40: 3.878265906 | K40: -15.2095973 | L40: =L38-L39 -> 0 | M40: =M38-M39 -> 0 | N40: =N38-N39 -> 0 | O40: =O38-O39 -> 0 | P40: =P38-P39 -> 0 | Q40: =SUM(G40:P40) -> 7.253332463
F42: Dividend Reinvestment | G42: =G15/Analysis!G8 -> 6.04066036 | H42: =H15/Analysis!H8 -> 4.090589295 | I42: =I15/Analysis!I8 -> 4.533537408 | J42: =J15/Analysis!J8 -> 4.908869257 | K42: =K15/Analysis!K8 -> 3.641865784 | L42: =L15/Analysis!L8 -> 0 | M42: =M15/Analysis!M8 -> 0 | N42: =N15/Analysis!N8 -> 0 | O42: =O15/Analysis!O8 -> 0 | P42: =P15/Analysis!P8 -> 0 | Q42: =SUM(G42:P42) -> 23.2155221
F44: Equity Raising Costs ($m Real 2015-16)
F46: Dividend Reinvestment Plan Requirement | Q46: =IF(Q40>0,MIN(Q40,Q42),0) -> 7.253332463
F47: External Equity (SEO) Requirement | Q47: =IF((Q40-Q42)>0,(Q40-Q42),0) -> 0
F48: Total Equity Requirement | Q48: =SUM(Q46:Q47) -> 7.253332463
F50: Dividend Reinvestment Plan Costs | Q50: =Q46*Input!G201 -> 0.07253332463
F51: External Equity Raising (SEO) Costs | Q51: =Q47*Input!G200 -> 0
F52: Total Equity Raising Costs | Q52: =SUM(Q50:Q51) -> 0.07253332463

Sheet Efficiency Carryover
A3: EFFICIENCY CARRYOVER - SA
B4: =B8/B11-1 -> 0.1262979252 | C4: =C8/C11-1 -> 0.1313504986 | D4: 0.08030737811 | E4: 0.1085199055
A5: Operating and Maintenance Expenditure
B6: 2011/12 | C6: 2012/13 | D6: 2013/14 | E6: 2014/15 | F6: 2015/16 | G6: 2016/17 | H6: 2017/18 | I6: 2018/19 | J6: 2019/20 | K6: 2020/21
A7: O&M Benchmark ($m Real 2010/11) | B7: 68.6 | C7: 67.5 | D7: 66.8 | E7: 65.3 | F7: 62.9
A8: O&M Benchmark ($m Real 2015/16) | B8: =B7*$B$29 -> 76.95882353 | C8: =C7*$B$29 -> 75.72478992 | D8: =D7*$B$29 -> 74.9394958 | E8: =E7*$B$29 -> 73.25672269 | F8: =F7*$B$29 -> 70.56428571
A10: O&M Actual $m (MOD) | B10: 62.89084082 | C10: 62.60876543 | D10: 66.51079341 | E10: 65.21888169
A11: O&M Actual ($m Real 2015/16) | B11: =B10*C$29 -> 68.32901119 | C11: =C10*D$29 -> 66.93309457 | D11: 69.36867906 | E11: 66.08516665 | F11: =E11+(F8-E8) -> 63.39272967
A13: O&M Underspend ($m Real 2015/16) | B13: =B8-B11 -> 8.629812343 | C13: =C8-C11 -> 8.791695345 | D13: 5.570816738 | E13: 7.171556041 | F13: 7.171556041
A14: O&M Incremental Gain ($m Real 2015/16) | B14: =B13 -> 8.629812343 | C14: =C13-B13 -> 0.1618830015 | D14: =D13-C13 -> -3.220878607 | E14: =E13-D13 -> 1.600739303 | F14: =F13-E13 -> 0
A16: Carry-Over - Year 2016/17 | C16: =$B$14 -> 8.629812343 | D16: =$B$14 -> 8.629812343 | E16: =$B$14 -> 8.629812343 | F16: =$B$14 -> 8.629812343 | G16: =$B$14 -> 8.629812343
A17: Carry-Over - Year 2017/18 | D17: =$C$14 -> 0.1618830015 | E17: =$C$14 -> 0.1618830015 | F17: =$C$14 -> 0.1618830015 | G17: =$C$14 -> 0.1618830015 | H17: =$C$14 -> 0.1618830015
A18: Carry-Over - Year 2018/19 | E18: =$D$14 -> -3.220878607 | F18: =$D$14 -> -3.220878607 | G18: =$D$14 -> -3.220878607 | H18: =$D$14 -> -3.220878607 | I18: =$D$14 -> -3.220878607
A19: Carry-Over - Year 2019/20 | F19: =$E$14 -> 1.600739303 | G19: =$E$14 -> 1.600739303 | H19: =$E$14 -> 1.600739303 | I19: =$E$14 -> 1.600739303 | J19: =$E$14 -> 1.600739303
A20: Carry-Over - Year 2020/21 | G20: =$F$14 -> 0 | H20: =$F$14 -> 0 | I20: =$F$14 -> 0 | J20: =$F$14 -> 0 | K20: =$F$14 -> 0
A21: O&M Efficiency Carry-Over ($m Real 2015/16) | G21: =SUM(G16:G20) -> 7.171556041 | H21: =SUM(H16:H20) -> -1.458256302 | I21: =SUM(I16:I20) -> -1.620139304 | J21: =SUM(J16:J20) -> 1.600739303 | K21: =SUM(K16:K20) -> 0
F22: Idexation | G22: 1.025 | H22: =G22*1.025 -> 1.050625 | I22: =H22*1.025 -> 1.076890625 | J22: 1.103812891 | K22: 1.131408213
F23: Nominal $ | G23: =G21*G22 -> 7.350844942 | H23: =H21*H22 -> -1.532080528 | I23: -1.744712827 | J23: 1.766916677 | L23: =SUM(G23:K23) -> 5.840968264
A24: CPI | B24: All groups – weighted average of eight capital cities
B25: 2010/11 | C25: 2011/12 | D25: 2012/13 | E25: 2013/14 | F25: 2014/15 | G25: 2015/16 | H25: 2016/17
B26: 2010-03-01 | C26: 2011-03-01 | D26: 2012-03-01 | E26: 2013-03-01 | F26: 2014-03-01 | G26: 2015-03-01 | H26: 2016-03-01
A27: CPI Index | B27: 95.2 | C27: 98.3 | D27: 99.9 | E27: 102.4 | F27: 105.4 | G27: 106.8 | H27: =G27*1.025 -> 109.47
A28: Actual CPI (lagged) | C28: =C27/B27-1 -> 0.03256302521 | D28: 0.01627670397 | E28: 0.02502502503 | F28: 0.029296875 | G28: 0.01328273245 | H28: 0.025
A29: Convert from $Nominal to $Real 2015/16 | B29: =$G$27/B27 -> 1.121848739 | C29: =$G$27/C27 -> 1.08646999 | D29: =$G$27/D27 -> 1.069069069 | E29: 1.04296875 | F29: 1.013282732 | G29: 1 | H29: 0.9756097561

Sheet Assets
B2: Asset Roll Forward
F3: 0 | G3: =F3+1 -> 1 | H3: 2 | I3: 3 | J3: 4 | K3: 5 | L3: 6 | M3: 7 | N3: 8 | O3: 9 | P3: 10 | Q3: 11 | R3: 12 | S3: 13 | T3: 14 | U3: 15 | V3: 16 | W3: 17 | X3: 18 | Y3: 19 | Z3: 20 | AA3: 21 | AB3: 22 | AC3: 23 | AD3: 24 | AE3: 25 | AF3: 26 | AG3: 27 | AH3: 28 | AI3: 29 | AJ3: 30 | AK3: 31 | AL3: 32 | AM3: =AL3+1 -> 33 | AN3: 34 | AO3: 35 | AP3: 36 | AQ3: 37 | AR3: 38 | AS3: 39 | AT3: 40 | AU3: 41 | AV3: 42 | AW3: 43 | AX3: 44 | AY3: 45 | AZ3: 46 | BA3: 47 | BB3: 48 | BC3: 49 | BD3: 50 | BE3: 51 | BF3: 52 | BG3: 53 | BH3: 54 | BI3: 55
B4: Year | F4: =Input!F210 -> 2015-16 | G4: =Input!G210 -> 2016-17 | H4: =Input!H210 -> 2017-18 | I4: =Input!I210 -> 2018-19 | J4: =Input!J210 -> 2019-20 | K4: =Input!K210 -> 2020-21 | L4: =Input!L210 -> 2021-22 | M4: =Input!M210 -> 2022-23 | N4: =Input!N210 -> 2023-24 | O4: =Input!O210 -> 2024-25 | P4: =Input!P210 -> 2025-26 | Q4: =CONCATENATE(LEFT(P4, 4)+1 &"-" &IF(P4>"2007-08",,"0") &RIGHT(P4,2)+1) -> 2026-27 | R4: =CONCATENATE(LEFT(Q4, 4)+1 &"-" &IF(Q4>"2007-08",,"0") &RIGHT(Q4,2)+1) -> 2027-28 | S4: 2028-29 | T4: 2029-30 | U4: 2030-31 | V4: 2031-32 | W4: 2032-33 | X4: 2033-34 | Y4: 2034-35 | Z4: 2035-36 | AA4: 2036-37 | AB4: 2037-38 | AC4: 2038-39 | AD4: 2039-40 | AE4: 2040-41 | AF4: 2041-42 | AG4: 2042-43 | AH4: 2043-44 | AI4: 2044-45 | AJ4: 2045-46 | AK4: 2046-47 | AL4: 2047-48 | AM4: 2048-49 | AN4: 2049-50 | AO4: 2050-51 | AP4: 2051-52 | AQ4: 2052-53 | AR4: 2053-54 | AS4: 2054-55 | AT4: 2055-56 | AU4: 2056-57 | AV4: 2057-58 | AW4: 2058-59 | AX4: 2059-60 | AY4: 2060-61 | AZ4: 2061-62 | BA4: 2062-63 | BB4: 2063-64 | BC4: 2064-65 | BD4: 2065-66 | BE4: 2066-67 | BF4: 2067-68 | BG4: 2068-69 | BH4: 2069-70 | BI4: 2070-71
B6: Inflation Assumption (CPI % increase) | D6: =f -> 0.025 | G6: =$D$6 -> 0.025 | H6: =$D$6 -> 0.025 | I6: 0.025 | J6: 0.025 | K6: 0.025 | L6: 0.025 | M6: 0.025 | N6: 0.025 | O6: 0.025 | P6: 0.025 | Q6: 0.025 | R6: 0.025 | S6: 0.025 | T6: 0.025 | U6: 0.025 | V6: 0.025 | W6: 0.025 | X6: 0.025 | Y6: 0.025 | Z6: 0.025 | AA6: 0.025 | AB6: 0.025 | AC6: 0.025 | AD6: 0.025 | AE6: 0.025 | AF6: 0.025 | AG6: 0.025 | AH6: 0.025 | AI6: 0.025 | AJ6: 0.025 | AK6: 0.025 | AL6: 0.025 | AM6: 0.025 | AN6: 0.025 | AO6: 0.025 | AP6: 0.025 | AQ6: 0.025 | AR6: 0.025 | AS6: 0.025 | AT6: 0.025 | AU6: 0.025 | AV6: 0.025 | AW6: 0.025 | AX6: 0.025 | AY6: 0.025 | AZ6: 0.025 | BA6: 0.025 | BB6: 0.025 | BC6: 0.025 | BD6: 0.025 | BE6: 0.025 | BF6: 0.025 | BG6: 0.025 | BH6: 0.025 | BI6: 0.025
B7: Cumulative Inflation Index (CPI end period) | F7: 1 | G7: =F7*(1+G6) -> 1.025 | H7: 1.050625 | I7: 1.076890625 | J7: 1.103812891 | K7: 1.131408213 | L7: 1.159693418 | M7: 1.188685754 | N7: 1.218402898 | O7: 1.24886297 | P7: =O7*(1+P6) -> 1.280084544 | Q7: 1.312086658 | R7: 1.344888824 | S7: 1.378511045 | T7: 1.412973821 | U7: 1.448298166 | V7: 1.484505621 | W7: 1.521618261 | X7: 1.559658718 | Y7: 1.598650186 | Z7: 1.63861644 | AA7: 1.679581851 | AB7: 1.721571398 | AC7: 1.764610683 | AD7: 1.80872595 | AE7: 1.853944098 | AF7: 1.900292701 | AG7: 1.947800018 | AH7: 1.996495019 | AI7: 2.046407394 | AJ7: 2.097567579 | AK7: 2.150006769 | AL7: 2.203756938 | AM7: 2.258850861 | AN7: 2.315322133 | AO7: 2.373205186 | AP7: 2.432535316 | AQ7: 2.493348699 | AR7: 2.555682416 | AS7: 2.619574476 | AT7: 2.685063838 | AU7: 2.752190434 | AV7: 2.820995195 | AW7: 2.891520075 | AX7: 2.963808077 | AY7: 3.037903279 | AZ7: 3.113850861 | BA7: 3.191697132 | BB7: 3.271489561 | BC7: 3.3532768 | BD7: 3.43710872 | BE7: 3.523036438 | BF7: 3.611112349 | BG7: 3.701390157 | BH7: 3.793924911 | BI7: 3.888773034
B9: Opening Regulatory Asset Base (RAB) | F9: =RAB -> 1428.84785
B10: Real Net Capital Expenditure (capex) | G10: =SUM(G11:G30) -> 141.7820103 | H10: =SUM(H11:H30) -> 155.7413813 | I10: =SUM(I11:I30) -> 147.2100661 | J10: 147.06585 | K10: 132.837783 | L10: 0 | M10: 0 | N10: 0 | O10: 0 | P10: 0
C11: =Asset1 -> Mains | G11: =Input!G79*(1+rvanilla)^0.5 -> 92.31996698 | H11: =Input!H79*(1+rvanilla)^0.5 -> 100.1388395 | I11: =Input!I79*(1+rvanilla)^0.5 -> 95.63078134 | J11: =Input!J79*(1+rvanilla)^0.5 -> 102.994106 | K11: =Input!K79*(1+rvanilla)^0.5 -> 91.34341993 | L11: =Input!L79*(1+rvanilla)^0.5 -> 0 | M11: =Input!M79*(1+rvanilla)^0.5 -> 0 | N11: =Input!N79*(1+rvanilla)^0.5 -> 0 | O11: =Input!O79*(1+rvanilla)^0.5 -> 0 | P11: =Input!P79*(1+rvanilla)^0.5 -> 0
C12: =Asset2 -> Inlets | G12: =Input!G80*(1+rvanilla)^0.5 -> 13.21811188 | H12: =Input!H80*(1+rvanilla)^0.5 -> 13.10216484 | I12: =Input!I80*(1+rvanilla)^0.5 -> 13.43162188 | J12: =Input!J80*(1+rvanilla)^0.5 -> 13.78649257 | K12: =Input!K80*(1+rvanilla)^0.5 -> 13.70828215 | L12: =Input!L80*(1+rvanilla)^0.5 -> 0 | M12: =Input!M80*(1+rvanilla)^0.5 -> 0 | N12: =Input!N80*(1+rvanilla)^0.5 -> 0 | O12: =Input!O80*(1+rvanilla)^0.5 -> 0 | P12: =Input!P80*(1+rvanilla)^0.5 -> 0
C13: =Asset3 -> Meters | G13: =Input!G81*(1+rvanilla)^0.5 -> 8.609932224 | H13: =Input!H81*(1+rvanilla)^0.5 -> 8.600169539 | I13: =Input!I81*(1+rvanilla)^0.5 -> 8.462940859 | J13: =Input!J81*(1+rvanilla)^0.5 -> 7.90246658 | K13: =Input!K81*(1+rvanilla)^0.5 -> 6.937377446 | L13: =Input!L81*(1+rvanilla)^0.5 -> 0 | M13: =Input!M81*(1+rvanilla)^0.5 -> 0 | N13: =Input!N81*(1+rvanilla)^0.5 -> 0 | O13: =Input!O81*(1+rvanilla)^0.5 -> 0 | P13: =Input!P81*(1+rvanilla)^0.5 -> 0
C14: =Asset4 -> Telemetry | G14: =Input!G82*(1+rvanilla)^0.5 -> 0.3540173487 | H14: =Input!H82*(1+rvanilla)^0.5 -> 0.2743008439 | I14: =Input!I82*(1+rvanilla)^0.5 -> 0.2394257989 | J14: =Input!J82*(1+rvanilla)^0.5 -> 0.250295453 | K14: =Input!K82*(1+rvanilla)^0.5 -> 0.1657098293 | L14: =Input!L82*(1+rvanilla)^0.5 -> 0 | M14: =Input!M82*(1+rvanilla)^0.5 -> 0 | N14: =Input!N82*(1+rvanilla)^0.5 -> 0 | O14: =Input!O82*(1+rvanilla)^0.5 -> 0 | P14: =Input!P82*(1+rvanilla)^0.5 -> 0
C15: =Asset5 -> IT system | G15: =Input!G83*(1+rvanilla)^0.5 -> 12.5242167 | H15: =Input!H83*(1+rvanilla)^0.5 -> 20.82389991 | I15: =Input!I83*(1+rvanilla)^0.5 -> 16.78898313 | J15: =Input!J83*(1+rvanilla)^0.5 -> 9.929734971 | K15: =Input!K83*(1+rvanilla)^0.5 -> 9.029983208 | L15: =Input!L83*(1+rvanilla)^0.5 -> 0 | M15: =Input!M83*(1+rvanilla)^0.5 -> 0 | N15: =Input!N83*(1+rvanilla)^0.5 -> 0 | O15: =Input!O83*(1+rvanilla)^0.5 -> 0 | P15: =Input!P83*(1+rvanilla)^0.5 -> 0
C16: =Asset6 -> Other distribution system equipment | G16: =Input!G84*(1+rvanilla)^0.5 -> 13.14892314 | H16: =Input!H84*(1+rvanilla)^0.5 -> 11.60889994 | I16: =Input!I84*(1+rvanilla)^0.5 -> 11.65158006 | J16: =Input!J84*(1+rvanilla)^0.5 -> 11.1956919 | K16: =Input!K84*(1+rvanilla)^0.5 -> 10.64254902 | L16: =Input!L84*(1+rvanilla)^0.5 -> 0 | M16: =Input!M84*(1+rvanilla)^0.5 -> 0 | N16: =Input!N84*(1+rvanilla)^0.5 -> 0 | O16: =Input!O84*(1+rvanilla)^0.5 -> 0 | P16: =Input!P84*(1+rvanilla)^0.5 -> 0
C17: =Asset7 -> Other | G17: =Input!G85*(1+rvanilla)^0.5 -> 1.532442684 | H17: =Input!H85*(1+rvanilla)^0.5 -> 1.193106756 | I17: =Input!I85*(1+rvanilla)^0.5 -> 1.00473305 | J17: =Input!J85*(1+rvanilla)^0.5 -> 1.007062488 | K17: =Input!K85*(1+rvanilla)^0.5 -> 1.010461436 | L17: =Input!L85*(1+rvanilla)^0.5 -> 0 | M17: =Input!M85*(1+rvanilla)^0.5 -> 0 | N17: =Input!N85*(1+rvanilla)^0.5 -> 0 | O17: =Input!O85*(1+rvanilla)^0.5 -> 0 | P17: =Input!P85*(1+rvanilla)^0.5 -> 0
C18: =Asset8 -> 0 | G18: =Input!G86*(1+rvanilla)^0.5 -> 0 | H18: =Input!H86*(1+rvanilla)^0.5 -> 0 | I18: =Input!I86*(1+rvanilla)^0.5 -> 0 | J18: =Input!J86*(1+rvanilla)^0.5 -> 0 | K18: =Input!K86*(1+rvanilla)^0.5 -> 0 | L18: =Input!L86*(1+rvanilla)^0.5 -> 0 | M18: =Input!M86*(1+rvanilla)^0.5 -> 0 | N18: =Input!N86*(1+rvanilla)^0.5 -> 0 | O18: =Input!O86*(1+rvanilla)^0.5 -> 0 | P18: =Input!P86*(1+rvanilla)^0.5 -> 0
C19: =Asset9 -> 0 | G19: =Input!G87*(1+rvanilla)^0.5 -> 0 | H19: =Input!H87*(1+rvanilla)^0.5 -> 0 | I19: =Input!I87*(1+rvanilla)^0.5 -> 0 | J19: =Input!J87*(1+rvanilla)^0.5 -> 0 | K19: =Input!K87*(1+rvanilla)^0.5 -> 0 | L19: =Input!L87*(1+rvanilla)^0.5 -> 0 | M19: =Input!M87*(1+rvanilla)^0.5 -> 0 | N19: =Input!N87*(1+rvanilla)^0.5 -> 0 | O19: =Input!O87*(1+rvanilla)^0.5 -> 0 | P19: =Input!P87*(1+rvanilla)^0.5 -> 0
C20: =Asset10 -> 0 | G20: =Input!G88*(1+rvanilla)^0.5 -> 0 | H20: =Input!H88*(1+rvanilla)^0.5 -> 0 | I20: =Input!I88*(1+rvanilla)^0.5 -> 0 | J20: =Input!J88*(1+rvanilla)^0.5 -> 0 | K20: =Input!K88*(1+rvanilla)^0.5 -> 0 | L20: =Input!L88*(1+rvanilla)^0.5 -> 0 | M20: =Input!M88*(1+rvanilla)^0.5 -> 0 | N20: =Input!N88*(1+rvanilla)^0.5 -> 0 | O20: =Input!O88*(1+rvanilla)^0.5 -> 0 | P20: =Input!P88*(1+rvanilla)^0.5 -> 0
C21: =Asset11 -> 0 | G21: =Input!G89*(1+rvanilla)^0.5 -> 0 | H21: =Input!H89*(1+rvanilla)^0.5 -> 0 | I21: =Input!I89*(1+rvanilla)^0.5 -> 0 | J21: =Input!J89*(1+rvanilla)^0.5 -> 0 | K21: =Input!K89*(1+rvanilla)^0.5 -> 0 | L21: =Input!L89*(1+rvanilla)^0.5 -> 0 | M21: =Input!M89*(1+rvanilla)^0.5 -> 0 | N21: =Input!N89*(1+rvanilla)^0.5 -> 0 | O21: =Input!O89*(1+rvanilla)^0.5 -> 0 | P21: =Input!P89*(1+rvanilla)^0.5 -> 0
C22: =Asset12 -> 0 | G22: =Input!G90*(1+rvanilla)^0.5 -> 0 | H22: =Input!H90*(1+rvanilla)^0.5 -> 0 | I22: =Input!I90*(1+rvanilla)^0.5 -> 0 | J22: =Input!J90*(1+rvanilla)^0.5 -> 0 | K22: =Input!K90*(1+rvanilla)^0.5 -> 0 | L22: =Input!L90*(1+rvanilla)^0.5 -> 0 | M22: =Input!M90*(1+rvanilla)^0.5 -> 0 | N22: =Input!N90*(1+rvanilla)^0.5 -> 0 | O22: =Input!O90*(1+rvanilla)^0.5 -> 0 | P22: =Input!P90*(1+rvanilla)^0.5 -> 0
C23: =Asset13 -> 0 | G23: =Input!G91*(1+rvanilla)^0.5 -> 0 | H23: =Input!H91*(1+rvanilla)^0.5 -> 0 | I23: =Input!I91*(1+rvanilla)^0.5 -> 0 | J23: =Input!J91*(1+rvanilla)^0.5 -> 0 | K23: =Input!K91*(1+rvanilla)^0.5 -> 0 | L23: =Input!L91*(1+rvanilla)^0.5 -> 0 | M23: =Input!M91*(1+rvanilla)^0.5 -> 0 | N23: =Input!N91*(1+rvanilla)^0.5 -> 0 | O23: =Input!O91*(1+rvanilla)^0.5 -> 0 | P23: =Input!P91*(1+rvanilla)^0.5 -> 0
C24: =Asset14 -> 0 | G24: =Input!G92*(1+rvanilla)^0.5 -> 0 | H24: =Input!H92*(1+rvanilla)^0.5 -> 0 | I24: =Input!I92*(1+rvanilla)^0.5 -> 0 | J24: =Input!J92*(1+rvanilla)^0.5 -> 0 | K24: =Input!K92*(1+rvanilla)^0.5 -> 0 | L24: =Input!L92*(1+rvanilla)^0.5 -> 0 | M24: =Input!M92*(1+rvanilla)^0.5 -> 0 | N24: =Input!N92*(1+rvanilla)^0.5 -> 0 | O24: =Input!O92*(1+rvanilla)^0.5 -> 0 | P24: =Input!P92*(1+rvanilla)^0.5 -> 0
C25: =Asset15 -> 0 | G25: =Input!G93*(1+rvanilla)^0.5 -> 0 | H25: =Input!H93*(1+rvanilla)^0.5 -> 0 | I25: =Input!I93*(1+rvanilla)^0.5 -> 0 | J25: =Input!J93*(1+rvanilla)^0.5 -> 0 | K25: =Input!K93*(1+rvanilla)^0.5 -> 0 | L25: =Input!L93*(1+rvanilla)^0.5 -> 0 | M25: =Input!M93*(1+rvanilla)^0.5 -> 0 | N25: =Input!N93*(1+rvanilla)^0.5 -> 0 | O25: =Input!O93*(1+rvanilla)^0.5 -> 0 | P25: =Input!P93*(1+rvanilla)^0.5 -> 0
C26: =Asset16 -> 0 | G26: =Input!G94*(1+rvanilla)^0.5 -> 0 | H26: =Input!H94*(1+rvanilla)^0.5 -> 0 | I26: =Input!I94*(1+rvanilla)^0.5 -> 0 | J26: =Input!J94*(1+rvanilla)^0.5 -> 0 | K26: =Input!K94*(1+rvanilla)^0.5 -> 0 | L26: =Input!L94*(1+rvanilla)^0.5 -> 0 | M26: =Input!M94*(1+rvanilla)^0.5 -> 0 | N26: =Input!N94*(1+rvanilla)^0.5 -> 0 | O26: =Input!O94*(1+rvanilla)^0.5 -> 0 | P26: =Input!P94*(1+rvanilla)^0.5 -> 0
C27: =Asset17 -> 0 | G27: =Input!G95*(1+rvanilla)^0.5 -> 0 | H27: =Input!H95*(1+rvanilla)^0.5 -> 0 | I27: =Input!I95*(1+rvanilla)^0.5 -> 0 | J27: =Input!J95*(1+rvanilla)^0.5 -> 0 | K27: =Input!K95*(1+rvanilla)^0.5 -> 0 | L27: =Input!L95*(1+rvanilla)^0.5 -> 0 | M27: =Input!M95*(1+rvanilla)^0.5 -> 0 | N27: =Input!N95*(1+rvanilla)^0.5 -> 0 | O27: =Input!O95*(1+rvanilla)^0.5 -> 0 | P27: =Input!P95*(1+rvanilla)^0.5 -> 0
C28: =Asset18 -> 0 | G28: =Input!G96*(1+rvanilla)^0.5 -> 0 | H28: =Input!H96*(1+rvanilla)^0.5 -> 0 | I28: =Input!I96*(1+rvanilla)^0.5 -> 0 | J28: =Input!J96*(1+rvanilla)^0.5 -> 0 | K28: =Input!K96*(1+rvanilla)^0.5 -> 0 | L28: =Input!L96*(1+rvanilla)^0.5 -> 0 | M28: =Input!M96*(1+rvanilla)^0.5 -> 0 | N28: =Input!N96*(1+rvanilla)^0.5 -> 0 | O28: =Input!O96*(1+rvanilla)^0.5 -> 0 | P28: =Input!P96*(1+rvanilla)^0.5 -> 0
C29: =Asset19 -> 0 | G29: =Input!G97*(1+rvanilla)^0.5 -> 0 | H29: =Input!H97*(1+rvanilla)^0.5 -> 0 | I29: =Input!I97*(1+rvanilla)^0.5 -> 0 | J29: =Input!J97*(1+rvanilla)^0.5 -> 0 | K29: =Input!K97*(1+rvanilla)^0.5 -> 0 | L29: =Input!L97*(1+rvanilla)^0.5 -> 0 | M29: =Input!M97*(1+rvanilla)^0.5 -> 0 | N29: =Input!N97*(1+rvanilla)^0.5 -> 0 | O29: =Input!O97*(1+rvanilla)^0.5 -> 0 | P29: =Input!P97*(1+rvanilla)^0.5 -> 0
C30: =Asset20 -> Equity Raising Costs | G30: =Input!G98*(1+rvanilla)^0.5 -> 0.07439932118 | H30: =Input!H98*(1+rvanilla)^0.5 -> 0 | I30: =Input!I98*(1+rvanilla)^0.5 -> 0 | J30: =Input!J98*(1+rvanilla)^0.5 -> 0 | K30: =Input!K98*(1+rvanilla)^0.5 -> 0 | L30: =Input!L98*(1+rvanilla)^0.5 -> 0 | M30: =Input!M98*(1+rvanilla)^0.5 -> 0 | N30: =Input!N98*(1+rvanilla)^0.5 -> 0 | O30: =Input!O98*(1+rvanilla)^0.5 -> 0 | P30: =Input!P98*(1+rvanilla)^0.5 -> 0
B31: Nominal Net Capex | G31: =SUM(G32:G51) -> 145.3265605 | H31: =SUM(H32:H51) -> 163.6257887 | I31: 158.5291401 | J31: 162.333181 | K31: 150.2937587 | L31: 0 | M31: 0 | N31: 0 | O31: 0 | P31: 0
C32: =Asset1 -> Mains | G32: =G11*G$7 -> 94.62796615 | H32: =H11*H$7 -> 105.2083682 | I32: 102.9838919 | J32: 113.6862219 | K32: 103.3466955 | L32: 0 | M32: 0 | N32: 0 | O32: 0 | P32: 0
C33: =Asset2 -> Inlets | G33: =G12*G$7 -> 13.54856467 | H33: =H12*H$7 -> 13.76546193 | I33: 14.46438768 | J33: 15.21770822 | K33: 15.50966301 | L33: 0 | M33: 0 | N33: 0 | O33: 0 | P33: 0
C34: =Asset3 -> Meters | G34: =G13*G$7 -> 8.825180529 | H34: 9.035553122 | I34: 9.113661671 | J34: 8.722844479 | K34: =K13*K$7 -> 7.849005818 | L34: 0 | M34: 0 | N34: 0 | O34: 0 | P34: 0
C35: =Asset4 -> Telemetry | G35: 0.3628677824 | H35: 0.2881873241 | I35: 0.2578353982 | J35: 0.2762793475 | K35: 0.1874854618 | L35: 0 | M35: 0 | N35: 0 | O35: 0 | P35: 0
C36: =Asset5 -> IT system | G36: 12.83732212 | H36: 21.87810985 | I36: 18.07989854 | J36: 10.96056946 | K36: 10.21659716 | L36: 0 | M36: 0 | N36: 0 | O36: 0 | P36: 0
C37: =Asset6 -> Other distribution system equipment | G37: 13.47764622 | H37: =H16*H$7 -> 12.1966005 | I37: 12.54747734 | J37: 12.35794904 | K37: 12.04106737 | L37: 0 | M37: 0 | N37: 0 | O37: 0 | P37: 0
C38: =Asset7 -> Other | G38: 1.570753751 | H38: 1.253507785 | I38: 1.081987602 | J38: 1.111608556 | K38: 1.143244367 | L38: 0 | M38: 0 | N38: 0 | O38: 0 | P38: 0
C39: =Asset8 -> 0 | G39: 0 | H39: 0 | I39: 0 | J39: 0 | K39: 0 | L39: 0 | M39: 0 | N39: 0 | O39: 0 | P39: 0
C40: =Asset9 -> 0 | G40: 0 | H40: 0 | I40: 0 | J40: 0 | K40: 0 | L40: 0 | M40: 0 | N40: 0 | O40: 0 | P40: 0
C41: =Asset10 -> 0 | G41: 0 | H41: 0 | I41: 0 | J41: 0 | K41: 0 | L41: 0 | M41: 0 | N41: 0 | O41: 0 | P41: 0
C42: =Asset11 -> 0 | G42: 0 | H42: 0 | I42: 0 | J42: 0 | K42: 0 | L42: 0 | M42: 0 | N42: 0 | O42: 0 | P42: 0
C43: =Asset12 -> 0 | G43: 0 | H43: 0 | I43: 0 | J43: 0 | K43: 0 | L43: 0 | M43: 0 | N43: 0 | O43: 0 | P43: 0
C44: =Asset13 -> 0 | G44: 0 | H44: 0 | I44: 0 | J44: 0 | K44: 0 | L44: 0 | M44: 0 | N44: 0 | O44: 0 | P44: 0
C45: =Asset14 -> 0 | G45: 0 | H45: 0 | I45: 0 | J45: 0 | K45: 0 | L45: 0 | M45: 0 | N45: 0 | O45: 0 | P45: 0
C46: =Asset15 -> 0 | G46: 0 | H46: 0 | I46: 0 | J46: 0 | K46: 0 | L46: 0 | M46: 0 | N46: 0 | O46: 0 | P46: 0
C47: =Asset16 -> 0 | G47: 0 | H47: 0 | I47: 0 | J47: 0 | K47: 0 | L47: 0 | M47: 0 | N47: 0 | O47: 0 | P47: 0
C48: =Asset17 -> 0 | G48: 0 | H48: 0 | I48: 0 | J48: 0 | K48: 0 | L48: 0 | M48: 0 | N48: 0 | O48: 0 | P48: 0
C49: =Asset18 -> 0 | G49: 0 | H49: 0 | I49: 0 | J49: 0 | K49: 0 | L49: 0 | M49: 0 | N49: 0 | O49: 0 | P49: 0
C50: =Asset19 -> 0 | G50: 0 | H50: 0 | I50: 0 | J50: 0 | K50: 0 | L50: 0 | M50: 0 | N50: 0 | O50: 0 | P50: 0
C51: =Asset20 -> Equity Raising Costs | G51: 0.07625930421 | H51: 0 | I51: 0 | J51: 0 | K51: 0 | L51: 0 | M51: 0 | N51: 0 | O51: 0 | P51: 0
B53: ="Asset Values ($m Real)" -> Asset Values ($m Real)
B55: Real Straight-line Depreciation | G55: =G68+G81+G94+G107+G120+G133+G146+G159+G172+G185+G198+G211+G224+G237+G250+G263+G276+G289+G302+G315 -> 45.99982933 | H55: =H68+H81+H94+H107+H120+H133+H146+H159+H172+H185+H198+H211+H224+H237+H250+H263+H276+H289+H302+H315 -> 51.33730435 | I55: =I68+I81+I94+I107+I120+I133+I146+I159+I172+I185+I198+I211+I224+I237+I250+I263+I276+I289+I302+I315 -> 58.38602725 | J55: 63.14332134 | K55: 64.41319024 | L55: 68.80793577 | M55: 66.30309243 | N55: 56.92435614 | O55: 49.87678531 | P55: 47.89083831 | Q55: 46.08484167 | R55: 45.9315974 | S55: 45.72213367 | T55: 45.3630126 | U55: 45.26230635 | V55: 45.16126021 | W55: 44.58726472 | X55: 44.01392009 | Y55: 43.44972403 | Z55: 42.92289292 | AA55: 42.4604011 | AB55: 42.44270023 | AC55: 42.42898519 | AD55: 39.34407541 | AE55: 33.51949067 | AF55: 33.51120518 | AG55: 33.51120518 | AH55: 33.51120518 | AI55: 33.51120518 | AJ55: 33.51120518 | AK55: 33.51120518 | AL55: 33.51120518 | AM55: 33.51120518 | AN55: 33.51120518 | AO55: 33.51120518 | AP55: 33.51120518 | AQ55: 33.51120518 | AR55: 33.51120518 | AS55: 33.51120518 | AT55: 33.51120518 | AU55: 33.51120518 | AV55: 33.1824821 | AW55: 32.8922596 | AX55: 32.6009701 | AY55: 32.3210778 | AZ55: 32.05501408 | BA55: 32.05501408 | BB55: 32.05501408 | BC55: 32.05501408 | BD55: 14.56504423 | BE55: 11.5725008 | BF55: 9.283272943 | BG55: 9.161229784 | BH55: 9.161229784 | BI55: 9.161229784
B56: =C68 -> Mains | D56: Initial Asset Base | G56: =IF(G$3>A1remlife,A1acvalue-SUM($F56:F56),IF(A1remlife="N/A","n/a",A1acvalue/A1remlife)) -> 20.48251327 | H56: =IF(H$3>A1remlife,A1acvalue-SUM($F56:G56),IF(A1remlife="N/A","n/a",A1acvalue/A1remlife)) -> 20.48251327 | I56: =IF(I$3>A1remlife,A1acvalue-SUM($F56:H56),IF(A1remlife="N/A","n/a",A1acvalue/A1remlife)) -> 20.48251327 | J56: =IF(J$3>A1remlife,A1acvalue-SUM($F56:I56),IF(A1remlife="N/A","n/a",A1acvalue/A1remlife)) -> 20.48251327 | K56: =IF(K$3>A1remlife,A1acvalue-SUM($F56:J56),IF(A1remlife="N/A","n/a",A1acvalue/A1remlife)) -> 20.48251327 | L56: =IF(L$3>A1remlife,A1acvalue-SUM($F56:K56),IF(A1remlife="N/A","n/a",A1acvalue/A1remlife)) -> 20.48251327 | M56: =IF(M$3>A1remlife,A1acvalue-SUM($F56:L56),IF(A1remlife="N/A","n/a",A1acvalue/A1remlife)) -> 20.48251327 | N56: =IF(N$3>A1remlife,A1acvalue-SUM($F56:M56),IF(A1remlife="N/A","n/a",A1acvalue/A1remlife)) -> 20.48251327 | O56: =IF(O$3>A1remlife,A1acvalue-SUM($F56:N56),IF(A1remlife="N/A","n/a",A1acvalue/A1remlife)) -> 20.48251327 | P56: =IF(P$3>A1remlife,A1acvalue-SUM($F56:O56),IF(A1remlife="N/A","n/a",A1acvalue/A1remlife)) -> 20.48251327 | Q56: =IF(Q$3>A1remlife,A1acvalue-SUM($F56:P56),IF(A1remlife="N/A","n/a",A1acvalue/A1remlife)) -> 20.48251327 | R56: =IF(R$3>A1remlife,A1acvalue-SUM($F56:Q56),IF(A1remlife="N/A","n/a",A1acvalue/A1remlife)) -> 20.48251327 | S56: =IF(S$3>A1remlife,A1acvalue-SUM($F56:R56),IF(A1remlife="N/A","n/a",A1acvalue/A1remlife)) -> 20.48251327 | T56: =IF(T$3>A1remlife,A1acvalue-SUM($F56:S56),IF(A1remlife="N/A","n/a",A1acvalue/A1remlife)) -> 20.48251327 | U56: =IF(U$3>A1remlife,A1acvalue-SUM($F56:T56),IF(A1remlife="N/A","n/a",A1acvalue/A1remlife)) -> 20.48251327 | V56: =IF(V$3>A1remlife,A1acvalue-SUM($F56:U56),IF(A1remlife="N/A","n/a",A1acvalue/A1remlife)) -> 20.48251327 | W56: =IF(W$3>A1remlife,A1acvalue-SUM($F56:V56),IF(A1remlife="N/A","n/a",A1acvalue/A1remlife)) -> 20.48251327 | X56: =IF(X$3>A1remlife,A1acvalue-SUM($F56:W56),IF(A1remlife="N/A","n/a",A1acvalue/A1remlife)) -> 20.48251327 | Y56: =IF(Y$3>A1remlife,A1acvalue-SUM($F56:X56),IF(A1remlife="N/A","n/a",A1acvalue/A1remlife)) -> 20.48251327 | Z56: =IF(Z$3>A1remlife,A1acvalue-SUM($F56:Y56),IF(A1remlife="N/A","n/a",A1acvalue/A1remlife)) -> 20.48251327 | AA56: =IF(AA$3>A1remlife,A1acvalue-SUM($F56:Z56),IF(A1remlife="N/A","n/a",A1acvalue/A1remlife)) -> 20.48251327 | AB56: =IF(AB$3>A1remlife,A1acvalue-SUM($F56:AA56),IF(A1remlife="N/A","n/a",A1acvalue/A1remlife)) -> 20.48251327 | AC56: =IF(AC$3>A1remlife,A1acvalue-SUM($F56:AB56),IF(A1remlife="N/A","n/a",A1acvalue/A1remlife)) -> 20.48251327 | AD56: =IF(AD$3>A1remlife,A1acvalue-SUM($F56:AC56),IF(A1remlife="N/A","n/a",A1acvalue/A1remlife)) -> 20.48251327 | AE56: =IF(AE$3>A1remlife,A1acvalue-SUM($F56:AD56),IF(A1remlife="N/A","n/a",A1acvalue/A1remlife)) -> 20.48251327 | AF56: =IF(AF$3>A1remlife,A1acvalue-SUM($F56:AE56),IF(A1remlife="N/A","n/a",A1acvalue/A1remlife)) -> 20.48251327 | AG56: =IF(AG$3>A1remlife,A1acvalue-SUM($F56:AF56),IF(A1remlife="N/A","n/a",A1acvalue/A1remlife)) -> 20.48251327 | AH56: =IF(AH$3>A1remlife,A1acvalue-SUM($F56:AG56),IF(A1remlife="N/A","n/a",A1acvalue/A1remlife)) -> 20.48251327 | AI56: =IF(AI$3>A1remlife,A1acvalue-SUM($F56:AH56),IF(A1remlife="N/A","n/a",A1acvalue/A1remlife)) -> 20.48251327 | AJ56: =IF(AJ$3>A1remlife,A1acvalue-SUM($F56:AI56),IF(A1remlife="N/A","n/a",A1acvalue/A1remlife)) -> 20.48251327 | AK56: =IF(AK$3>A1remlife,A1acvalue-SUM($F56:AJ56),IF(A1remlife="N/A","n/a",A1acvalue/A1remlife)) -> 20.48251327 | AL56: =IF(AL$3>A1remlife,A1acvalue-SUM($F56:AK56),IF(A1remlife="N/A","n/a",A1acvalue/A1remlife)) -> 20.48251327 | AM56: =IF(AM$3>A1remlife,A1acvalue-SUM($F56:AL56),IF(A1remlife="N/A","n/a",A1acvalue/A1remlife)) -> 20.48251327 | AN56: =IF(AN$3>A1remlife,A1acvalue-SUM($F56:AM56),IF(A1remlife="N/A","n/a",A1acvalue/A1remlife)) -> 20.48251327 | AO56: =IF(AO$3>A1remlife,A1acvalue-SUM($F56:AN56),IF(A1remlife="N/A","n/a",A1acvalue/A1remlife)) -> 20.48251327 | AP56: =IF(AP$3>A1remlife,A1acvalue-SUM($F56:AO56),IF(A1remlife="N/A","n/a",A1acvalue/A1remlife)) -> 20.48251327 | AQ56: =IF(AQ$3>A1remlife,A1acvalue-SUM($F56:AP56),IF(A1remlife="N/A","n/a",A1acvalue/A1remlife)) -> 20.48251327 | AR56: =IF(AR$3>A1remlife,A1acvalue-SUM($F56:AQ56),IF(A1remlife="N/A","n/a",A1acvalue/A1remlife)) -> 20.48251327 | AS56: =IF(AS$3>A1remlife,A1acvalue-SUM($F56:AR56),IF(A1remlife="N/A","n/a",A1acvalue/A1remlife)) -> 20.48251327 | AT56: =IF(AT$3>A1remlife,A1acvalue-SUM($F56:AS56),IF(A1remlife="N/A","n/a",A1acvalue/A1remlife)) -> 20.48251327 | AU56: =IF(AU$3>A1remlife,A1acvalue-SUM($F56:AT56),IF(A1remlife="N/A","n/a",A1acvalue/A1remlife)) -> 20.48251327 | AV56: =IF(AV$3>A1remlife,A1acvalue-SUM($F56:AU56),IF(A1remlife="N/A","n/a",A1acvalue/A1remlife)) -> 20.48251327 | AW56: =IF(AW$3>A1remlife,A1acvalue-SUM($F56:AV56),IF(A1remlife="N/A","n/a",A1acvalue/A1remlife)) -> 20.48251327 | AX56: =IF(AX$3>A1remlife,A1acvalue-SUM($F56:AW56),IF(A1remlife="N/A","n/a",A1acvalue/A1remlife)) -> 20.48251327 | AY56: =IF(AY$3>A1remlife,A1acvalue-SUM($F56:AX56),IF(A1remlife="N/A","n/a",A1acvalue/A1remlife)) -> 20.48251327 | AZ56: =IF(AZ$3>A1remlife,A1acvalue-SUM($F56:AY56),IF(A1remlife="N/A","n/a",A1acvalue/A1remlife)) -> 20.48251327 | BA56: =IF(BA$3>A1remlife,A1acvalue-SUM($F56:AZ56),IF(A1remlife="N/A","n/a",A1acvalue/A1remlife)) -> 20.48251327 | BB56: =IF(BB$3>A1remlife,A1acvalue-SUM($F56:BA56),IF(A1remlife="N/A","n/a",A1acvalue/A1remlife)) -> 20.48251327 | BC56: =IF(BC$3>A1remlife,A1acvalue-SUM($F56:BB56),IF(A1remlife="N/A","n/a",A1acvalue/A1remlife)) -> 20.48251327 | BD56: =IF(BD$3>A1remlife,A1acvalue-SUM($F56:BC56),IF(A1remlife="N/A","n/a",A1acvalue/A1remlife)) -> 2.992543428 | BE56: =IF(BE$3>A1remlife,A1acvalue-SUM($F56:BD56),IF(A1remlife="N/A","n/a",A1acvalue/A1remlife)) -> 0 | BF56: =IF(BF$3>A1remlife,A1acvalue-SUM($F56:BE56),IF(A1remlife="N/A","n/a",A1acvalue/A1remlife)) -> 0 | BG56: =IF(BG$3>A1remlife,A1acvalue-SUM($F56:BF56),IF(A1remlife="N/A","n/a",A1acvalue/A1remlife)) -> 0 | BH56: =IF(BH$3>A1remlife,A1acvalue-SUM($F56:BG56),IF(A1remlife="N/A","n/a",A1acvalue/A1remlife)) -> 0 | BI56: =IF(BI$3>A1remlife,A1acvalue-SUM($F56:BH56),IF(A1remlife="N/A","n/a",A1acvalue/A1remlife)) -> 0
D57: Capex in year | E57: 0
E58: 1 | H58: =IF(A1stdlife="n/a","n/a",IF(H$3>(A1stdlife+$E58),(Input!$G$151*(1+rvanilla)^0.5)-SUM($G58:G58),(Input!$G$151*(1+rvanilla)^0.5)/A1stdlife)) -> 1.538666116 | I58: =IF(A1stdlife="n/a","n/a",IF(I$3>(A1stdlife+$E58),(Input!$G$151*(1+rvanilla)^0.5)-SUM($G58:H58),(Input!$G$151*(1+rvanilla)^0.5)/A1stdlife)) -> 1.538666116 | J58: =IF(A1stdlife="n/a","n/a",IF(J$3>(A1stdlife+$E58),(Input!$G$151*(1+rvanilla)^0.5)-SUM($G58:I58),(Input!$G$151*(1+rvanilla)^0.5)/A1stdlife)) -> 1.538666116 | K58: =IF(A1stdlife="n/a","n/a",IF(K$3>(A1stdlife+$E58),(Input!$G$151*(1+rvanilla)^0.5)-SUM($G58:J58),(Input!$G$151*(1+rvanilla)^0.5)/A1stdlife)) -> 1.538666116 | L58: =IF(A1stdlife="n/a","n/a",IF(L$3>(A1stdlife+$E58),(Input!$G$151*(1+rvanilla)^0.5)-SUM($G58:K58),(Input!$G$151*(1+rvanilla)^0.5)/A1stdlife)) -> 1.538666116 | M58: =IF(A1stdlife="n/a","n/a",IF(M$3>(A1stdlife+$E58),(Input!$G$151*(1+rvanilla)^0.5)-SUM($G58:L58),(Input!$G$151*(1+rvanilla)^0.5)/A1stdlife)) -> 1.538666116 | N58: =IF(A1stdlife="n/a","n/a",IF(N$3>(A1stdlife+$E58),(Input!$G$151*(1+rvanilla)^0.5)-SUM($G58:M58),(Input!$G$151*(1+rvanilla)^0.5)/A1stdlife)) -> 1.538666116 | O58: =IF(A1stdlife="n/a","n/a",IF(O$3>(A1stdlife+$E58),(Input!$G$151*(1+rvanilla)^0.5)-SUM($G58:N58),(Input!$G$151*(1+rvanilla)^0.5)/A1stdlife)) -> 1.538666116 | P58: =IF(A1stdlife="n/a","n/a",IF(P$3>(A1stdlife+$E58),(Input!$G$151*(1+rvanilla)^0.5)-SUM($G58:O58),(Input!$G$151*(1+rvanilla)^0.5)/A1stdlife)) -> 1.538666116 | Q58: =IF(A1stdlife="n/a","n/a",IF(Q$3>(A1stdlife+$E58),(Input!$G$151*(1+rvanilla)^0.5)-SUM($G58:P58),(Input!$G$151*(1+rvanilla)^0.5)/A1stdlife)) -> 1.538666116 | R58: =IF(A1stdlife="n/a","n/a",IF(R$3>(A1stdlife+$E58),(Input!$G$151*(1+rvanilla)^0.5)-SUM($G58:Q58),(Input!$G$151*(1+rvanilla)^0.5)/A1stdlife)) -> 1.538666116 | S58: =IF(A1stdlife="n/a","n/a",IF(S$3>(A1stdlife+$E58),(Input!$G$151*(1+rvanilla)^0.5)-SUM($G58:R58),(Input!$G$151*(1+rvanilla)^0.5)/A1stdlife)) -> 1.538666116 | T58: =IF(A1stdlife="n/a","n/a",IF(T$3>(A1stdlife+$E58),(Input!$G$151*(1+rvanilla)^0.5)-SUM($G58:S58),(Input!$G$151*(1+rvanilla)^0.5)/A1stdlife)) -> 1.538666116 | U58: =IF(A1stdlife="n/a","n/a",IF(U$3>(A1stdlife+$E58),(Input!$G$151*(1+rvanilla)^0.5)-SUM($G58:T58),(Input!$G$151*(1+rvanilla)^0.5)/A1stdlife)) -> 1.538666116 | V58: =IF(A1stdlife="n/a","n/a",IF(V$3>(A1stdlife+$E58),(Input!$G$151*(1+rvanilla)^0.5)-SUM($G58:U58),(Input!$G$151*(1+rvanilla)^0.5)/A1stdlife)) -> 1.538666116 | W58: =IF(A1stdlife="n/a","n/a",IF(W$3>(A1stdlife+$E58),(Input!$G$151*(1+rvanilla)^0.5)-SUM($G58:V58),(Input!$G$151*(1+rvanilla)^0.5)/A1stdlife)) -> 1.538666116 | X58: =IF(A1stdlife="n/a","n/a",IF(X$3>(A1stdlife+$E58),(Input!$G$151*(1+rvanilla)^0.5)-SUM($G58:W58),(Input!$G$151*(1+rvanilla)^0.5)/A1stdlife)) -> 1.538666116 | Y58: =IF(A1stdlife="n/a","n/a",IF(Y$3>(A1stdlife+$E58),(Input!$G$151*(1+rvanilla)^0.5)-SUM($G58:X58),(Input!$G$151*(1+rvanilla)^0.5)/A1stdlife)) -> 1.538666116 | Z58: =IF(A1stdlife="n/a","n/a",IF(Z$3>(A1stdlife+$E58),(Input!$G$151*(1+rvanilla)^0.5)-SUM($G58:Y58),(Input!$G$151*(1+rvanilla)^0.5)/A1stdlife)) -> 1.538666116 | AA58: =IF(A1stdlife="n/a","n/a",IF(AA$3>(A1stdlife+$E58),(Input!$G$151*(1+rvanilla)^0.5)-SUM($G58:Z58),(Input!$G$151*(1+rvanilla)^0.5)/A1stdlife)) -> 1.538666116 | AB58: =IF(A1stdlife="n/a","n/a",IF(AB$3>(A1stdlife+$E58),(Input!$G$151*(1+rvanilla)^0.5)-SUM($G58:AA58),(Input!$G$151*(1+rvanilla)^0.5)/A1stdlife)) -> 1.538666116 | AC58: =IF(A1stdlife="n/a","n/a",IF(AC$3>(A1stdlife+$E58),(Input!$G$151*(1+rvanilla)^0.5)-SUM($G58:AB58),(Input!$G$151*(1+rvanilla)^0.5)/A1stdlife)) -> 1.538666116 | AD58: =IF(A1stdlife="n/a","n/a",IF(AD$3>(A1stdlife+$E58),(Input!$G$151*(1+rvanilla)^0.5)-SUM($G58:AC58),(Input!$G$151*(1+rvanilla)^0.5)/A1stdlife)) -> 1.538666116 | AE58: =IF(A1stdlife="n/a","n/a",IF(AE$3>(A1stdlife+$E58),(Input!$G$151*(1+rvanilla)^0.5)-SUM($G58:AD58),(Input!$G$151*(1+rvanilla)^0.5)/A1stdlife)) -> 1.538666116 | AF58: =IF(A1stdlife="n/a","n/a",IF(AF$3>(A1stdlife+$E58),(Input!$G$151*(1+rvanilla)^0.5)-SUM($G58:AE58),(Input!$G$151*(1+rvanilla)^0.5)/A1stdlife)) -> 1.538666116 | AG58: =IF(A1stdlife="n/a","n/a",IF(AG$3>(A1stdlife+$E58),(Input!$G$151*(1+rvanilla)^0.5)-SUM($G58:AF58),(Input!$G$151*(1+rvanilla)^0.5)/A1stdlife)) -> 1.538666116 | AH58: =IF(A1stdlife="n/a","n/a",IF(AH$3>(A1stdlife+$E58),(Input!$G$151*(1+rvanilla)^0.5)-SUM($G58:AG58),(Input!$G$151*(1+rvanilla)^0.5)/A1stdlife)) -> 1.538666116 | AI58: =IF(A1stdlife="n/a","n/a",IF(AI$3>(A1stdlife+$E58),(Input!$G$151*(1+rvanilla)^0.5)-SUM($G58:AH58),(Input!$G$151*(1+rvanilla)^0.5)/A1stdlife)) -> 1.538666116 | AJ58: =IF(A1stdlife="n/a","n/a",IF(AJ$3>(A1stdlife+$E58),(Input!$G$151*(1+rvanilla)^0.5)-SUM($G58:AI58),(Input!$G$151*(1+rvanilla)^0.5)/A1stdlife)) -> 1.538666116 | AK58: =IF(A1stdlife="n/a","n/a",IF(AK$3>(A1stdlife+$E58),(Input!$G$151*(1+rvanilla)^0.5)-SUM($G58:AJ58),(Input!$G$151*(1+rvanilla)^0.5)/A1stdlife)) -> 1.538666116 | AL58: =IF(A1stdlife="n/a","n/a",IF(AL$3>(A1stdlife+$E58),(Input!$G$151*(1+rvanilla)^0.5)-SUM($G58:AK58),(Input!$G$151*(1+rvanilla)^0.5)/A1stdlife)) -> 1.538666116 | AM58: =IF(A1stdlife="n/a","n/a",IF(AM$3>(A1stdlife+$E58),(Input!$G$151*(1+rvanilla)^0.5)-SUM($G58:AL58),(Input!$G$151*(1+rvanilla)^0.5)/A1stdlife)) -> 1.538666116 | AN58: =IF(A1stdlife="n/a","n/a",IF(AN$3>(A1stdlife+$E58),(Input!$G$151*(1+rvanilla)^0.5)-SUM($G58:AM58),(Input!$G$151*(1+rvanilla)^0.5)/A1stdlife)) -> 1.538666116 | AO58: =IF(A1stdlife="n/a","n/a",IF(AO$3>(A1stdlife+$E58),(Input!$G$151*(1+rvanilla)^0.5)-SUM($G58:AN58),(Input!$G$151*(1+rvanilla)^0.5)/A1stdlife)) -> 1.538666116 | AP58: =IF(A1stdlife="n/a","n/a",IF(AP$3>(A1stdlife+$E58),(Input!$G$151*(1+rvanilla)^0.5)-SUM($G58:AO58),(Input!$G$151*(1+rvanilla)^0.5)/A1stdlife)) -> 1.538666116 | AQ58: =IF(A1stdlife="n/a","n/a",IF(AQ$3>(A1stdlife+$E58),(Input!$G$151*(1+rvanilla)^0.5)-SUM($G58:AP58),(Input!$G$151*(1+rvanilla)^0.5)/A1stdlife)) -> 1.538666116 | AR58: =IF(A1stdlife="n/a","n/a",IF(AR$3>(A1stdlife+$E58),(Input!$G$151*(1+rvanilla)^0.5)-SUM($G58:AQ58),(Input!$G$151*(1+rvanilla)^0.5)/A1stdlife)) -> 1.538666116 | AS58: =IF(A1stdlife="n/a","n/a",IF(AS$3>(A1stdlife+$E58),(Input!$G$151*(1+rvanilla)^0.5)-SUM($G58:AR58),(Input!$G$151*(1+rvanilla)^0.5)/A1stdlife)) -> 1.538666116 | AT58: =IF(A1stdlife="n/a","n/a",IF(AT$3>(A1stdlife+$E58),(Input!$G$151*(1+rvanilla)^0.5)-SUM($G58:AS58),(Input!$G$151*(1+rvanilla)^0.5)/A1stdlife)) -> 1.538666116 | AU58: =IF(A1stdlife="n/a","n/a",IF(AU$3>(A1stdlife+$E58),(Input!$G$151*(1+rvanilla)^0.5)-SUM($G58:AT58),(Input!$G$151*(1+rvanilla)^0.5)/A1stdlife)) -> 1.538666116 | AV58: =IF(A1stdlife="n/a","n/a",IF(AV$3>(A1stdlife+$E58),(Input!$G$151*(1+rvanilla)^0.5)-SUM($G58:AU58),(Input!$G$151*(1+rvanilla)^0.5)/A1stdlife)) -> 1.538666116 | AW58: =IF(A1stdlife="n/a","n/a",IF(AW$3>(A1stdlife+$E58),(Input!$G$151*(1+rvanilla)^0.5)-SUM($G58:AV58),(Input!$G$151*(1+rvanilla)^0.5)/A1stdlife)) -> 1.538666116 | AX58: =IF(A1stdlife="n/a","n/a",IF(AX$3>(A1stdlife+$E58),(Input!$G$151*(1+rvanilla)^0.5)-SUM($G58:AW58),(Input!$G$151*(1+rvanilla)^0.5)/A1stdlife)) -> 1.538666116 | AY58: =IF(A1stdlife="n/a","n/a",IF(AY$3>(A1stdlife+$E58),(Input!$G$151*(1+rvanilla)^0.5)-SUM($G58:AX58),(Input!$G$151*(1+rvanilla)^0.5)/A1stdlife)) -> 1.538666116 | AZ58: =IF(A1stdlife="n/a","n/a",IF(AZ$3>(A1stdlife+$E58),(Input!$G$151*(1+rvanilla)^0.5)-SUM($G58:AY58),(Input!$G$151*(1+rvanilla)^0.5)/A1stdlife)) -> 1.538666116 | BA58: =IF(A1stdlife="n/a","n/a",IF(BA$3>(A1stdlife+$E58),(Input!$G$151*(1+rvanilla)^0.5)-SUM($G58:AZ58),(Input!$G$151*(1+rvanilla)^0.5)/A1stdlife)) -> 1.538666116 | BB58: =IF(A1stdlife="n/a","n/a",IF(BB$3>(A1stdlife+$E58),(Input!$G$151*(1+rvanilla)^0.5)-SUM($G58:BA58),(Input!$G$151*(1+rvanilla)^0.5)/A1stdlife)) -> 1.538666116 | BC58: =IF(A1stdlife="n/a","n/a",IF(BC$3>(A1stdlife+$E58),(Input!$G$151*(1+rvanilla)^0.5)-SUM($G58:BB58),(Input!$G$151*(1+rvanilla)^0.5)/A1stdlife)) -> 1.538666116 | BD58: =IF(A1stdlife="n/a","n/a",IF(BD$3>(A1stdlife+$E58),(Input!$G$151*(1+rvanilla)^0.5)-SUM($G58:BC58),(Input!$G$151*(1+rvanilla)^0.5)/A1stdlife)) -> 1.538666116 | BE58: =IF(A1stdlife="n/a","n/a",IF(BE$3>(A1stdlife+$E58),(Input!$G$151*(1+rvanilla)^0.5)-SUM($G58:BD58),(Input!$G$151*(1+rvanilla)^0.5)/A1stdlife)) -> 1.538666116 | BF58: =IF(A1stdlife="n/a","n/a",IF(BF$3>(A1stdlife+$E58),(Input!$G$151*(1+rvanilla)^0.5)-SUM($G58:BE58),(Input!$G$151*(1+rvanilla)^0.5)/A1stdlife)) -> 1.538666116 | BG58: =IF(A1stdlife="n/a","n/a",IF(BG$3>(A1stdlife+$E58),(Input!$G$151*(1+rvanilla)^0.5)-SUM($G58:BF58),(Input!$G$151*(1+rvanilla)^0.5)/A1stdlife)) -> 1.538666116 | BH58: =IF(A1stdlife="n/a","n/a",IF(BH$3>(A1stdlife+$E58),(Input!$G$151*(1+rvanilla)^0.5)-SUM($G58:BG58),(Input!$G$151*(1+rvanilla)^0.5)/A1stdlife)) -> 1.538666116 | BI58: =IF(A1stdlife="n/a","n/a",IF(BI$3>(A1stdlife+$E58),(Input!$G$151*(1+rvanilla)^0.5)-SUM($G58:BH58),(Input!$G$151*(1+rvanilla)^0.5)/A1stdlife)) -> 1.538666116
E59: 2 | I59: =IF(A1stdlife="n/a","n/a",IF(I$3>(A1stdlife+$E59),(Input!$H$151*(1+rvanilla)^0.5)-SUM($H59:H59),(Input!$H$151*(1+rvanilla)^0.5)/A1stdlife)) -> 1.668980658 | J59: =IF(A1stdlife="n/a","n/a",IF(J$3>(A1stdlife+$E59),(Input!$H$151*(1+rvanilla)^0.5)-SUM($H59:I59),(Input!$H$151*(1+rvanilla)^0.5)/A1stdlife)) -> 1.668980658 | K59: =IF(A1stdlife="n/a","n/a",IF(K$3>(A1stdlife+$E59),(Input!$H$151*(1+rvanilla)^0.5)-SUM($H59:J59),(Input!$H$151*(1+rvanilla)^0.5)/A1stdlife)) -> 1.668980658 | L59: =IF(A1stdlife="n/a","n/a",IF(L$3>(A1stdlife+$E59),(Input!$H$151*(1+rvanilla)^0.5)-SUM($H59:K59),(Input!$H$151*(1+rvanilla)^0.5)/A1stdlife)) -> 1.668980658 | M59: =IF(A1stdlife="n/a","n/a",IF(M$3>(A1stdlife+$E59),(Input!$H$151*(1+rvanilla)^0.5)-SUM($H59:L59),(Input!$H$151*(1+rvanilla)^0.5)/A1stdlife)) -> 1.668980658 | N59: =IF(A1stdlife="n/a","n/a",IF(N$3>(A1stdlife+$E59),(Input!$H$151*(1+rvanilla)^0.5)-SUM($H59:M59),(Input!$H$151*(1+rvanilla)^0.5)/A1stdlife)) -> 1.668980658 | O59: =IF(A1stdlife="n/a","n/a",IF(O$3>(A1stdlife+$E59),(Input!$H$151*(1+rvanilla)^0.5)-SUM($H59:N59),(Input!$H$151*(1+rvanilla)^0.5)/A1stdlife)) -> 1.668980658 | P59: =IF(A1stdlife="n/a","n/a",IF(P$3>(A1stdlife+$E59),(Input!$H$151*(1+rvanilla)^0.5)-SUM($H59:O59),(Input!$H$151*(1+rvanilla)^0.5)/A1stdlife)) -> 1.668980658 | Q59: =IF(A1stdlife="n/a","n/a",IF(Q$3>(A1stdlife+$E59),(Input!$H$151*(1+rvanilla)^0.5)-SUM($H59:P59),(Input!$H$151*(1+rvanilla)^0.5)/A1stdlife)) -> 1.668980658 | R59: =IF(A1stdlife="n/a","n/a",IF(R$3>(A1stdlife+$E59),(Input!$H$151*(1+rvanilla)^0.5)-SUM($H59:Q59),(Input!$H$151*(1+rvanilla)^0.5)/A1stdlife)) -> 1.668980658 | S59: =IF(A1stdlife="n/a","n/a",IF(S$3>(A1stdlife+$E59),(Input!$H$151*(1+rvanilla)^0.5)-SUM($H59:R59),(Input!$H$151*(1+rvanilla)^0.5)/A1stdlife)) -> 1.668980658 | T59: =IF(A1stdlife="n/a","n/a",IF(T$3>(A1stdlife+$E59),(Input!$H$151*(1+rvanilla)^0.5)-SUM($H59:S59),(Input!$H$151*(1+rvanilla)^0.5)/A1stdlife)) -> 1.668980658 | U59: =IF(A1stdlife="n/a","n/a",IF(U$3>(A1stdlife+$E59),(Input!$H$151*(1+rvanilla)^0.5)-SUM($H59:T59),(Input!$H$151*(1+rvanilla)^0.5)/A1stdlife)) -> 1.668980658 | V59: =IF(A1stdlife="n/a","n/a",IF(V$3>(A1stdlife+$E59),(Input!$H$151*(1+rvanilla)^0.5)-SUM($H59:U59),(Input!$H$151*(1+rvanilla)^0.5)/A1stdlife)) -> 1.668980658 | W59: =IF(A1stdlife="n/a","n/a",IF(W$3>(A1stdlife+$E59),(Input!$H$151*(1+rvanilla)^0.5)-SUM($H59:V59),(Input!$H$151*(1+rvanilla)^0.5)/A1stdlife)) -> 1.668980658 | X59: =IF(A1stdlife="n/a","n/a",IF(X$3>(A1stdlife+$E59),(Input!$H$151*(1+rvanilla)^0.5)-SUM($H59:W59),(Input!$H$151*(1+rvanilla)^0.5)/A1stdlife)) -> 1.668980658 | Y59: =IF(A1stdlife="n/a","n/a",IF(Y$3>(A1stdlife+$E59),(Input!$H$151*(1+rvanilla)^0.5)-SUM($H59:X59),(Input!$H$151*(1+rvanilla)^0.5)/A1stdlife)) -> 1.668980658 | Z59: =IF(A1stdlife="n/a","n/a",IF(Z$3>(A1stdlife+$E59),(Input!$H$151*(1+rvanilla)^0.5)-SUM($H59:Y59),(Input!$H$151*(1+rvanilla)^0.5)/A1stdlife)) -> 1.668980658 | AA59: =IF(A1stdlife="n/a","n/a",IF(AA$3>(A1stdlife+$E59),(Input!$H$151*(1+rvanilla)^0.5)-SUM($H59:Z59),(Input!$H$151*(1+rvanilla)^0.5)/A1stdlife)) -> 1.668980658 | AB59: =IF(A1stdlife="n/a","n/a",IF(AB$3>(A1stdlife+$E59),(Input!$H$151*(1+rvanilla)^0.5)-SUM($H59:AA59),(Input!$H$151*(1+rvanilla)^0.5)/A1stdlife)) -> 1.668980658 | AC59: =IF(A1stdlife="n/a","n/a",IF(AC$3>(A1stdlife+$E59),(Input!$H$151*(1+rvanilla)^0.5)-SUM($H59:AB59),(Input!$H$151*(1+rvanilla)^0.5)/A1stdlife)) -> 1.668980658 | AD59: =IF(A1stdlife="n/a","n/a",IF(AD$3>(A1stdlife+$E59),(Input!$H$151*(1+rvanilla)^0.5)-SUM($H59:AC59),(Input!$H$151*(1+rvanilla)^0.5)/A1stdlife)) -> 1.668980658 | AE59: =IF(A1stdlife="n/a","n/a",IF(AE$3>(A1stdlife+$E59),(Input!$H$151*(1+rvanilla)^0.5)-SUM($H59:AD59),(Input!$H$151*(1+rvanilla)^0.5)/A1stdlife)) -> 1.668980658 | AF59: =IF(A1stdlife="n/a","n/a",IF(AF$3>(A1stdlife+$E59),(Input!$H$151*(1+rvanilla)^0.5)-SUM($H59:AE59),(Input!$H$151*(1+rvanilla)^0.5)/A1stdlife)) -> 1.668980658 | AG59: =IF(A1stdlife="n/a","n/a",IF(AG$3>(A1stdlife+$E59),(Input!$H$151*(1+rvanilla)^0.5)-SUM($H59:AF59),(Input!$H$151*(1+rvanilla)^0.5)/A1stdlife)) -> 1.668980658 | AH59: =IF(A1stdlife="n/a","n/a",IF(AH$3>(A1stdlife+$E59),(Input!$H$151*(1+rvanilla)^0.5)-SUM($H59:AG59),(Input!$H$151*(1+rvanilla)^0.5)/A1stdlife)) -> 1.668980658 | AI59: =IF(A1stdlife="n/a","n/a",IF(AI$3>(A1stdlife+$E59),(Input!$H$151*(1+rvanilla)^0.5)-SUM($H59:AH59),(Input!$H$151*(1+rvanilla)^0.5)/A1stdlife)) -> 1.668980658 | AJ59: =IF(A1stdlife="n/a","n/a",IF(AJ$3>(A1stdlife+$E59),(Input!$H$151*(1+rvanilla)^0.5)-SUM($H59:AI59),(Input!$H$151*(1+rvanilla)^0.5)/A1stdlife)) -> 1.668980658 | AK59: =IF(A1stdlife="n/a","n/a",IF(AK$3>(A1stdlife+$E59),(Input!$H$151*(1+rvanilla)^0.5)-SUM($H59:AJ59),(Input!$H$151*(1+rvanilla)^0.5)/A1stdlife)) -> 1.668980658 | AL59: =IF(A1stdlife="n/a","n/a",IF(AL$3>(A1stdlife+$E59),(Input!$H$151*(1+rvanilla)^0.5)-SUM($H59:AK59),(Input!$H$151*(1+rvanilla)^0.5)/A1stdlife)) -> 1.668980658 | AM59: =IF(A1stdlife="n/a","n/a",IF(AM$3>(A1stdlife+$E59),(Input!$H$151*(1+rvanilla)^0.5)-SUM($H59:AL59),(Input!$H$151*(1+rvanilla)^0.5)/A1stdlife)) -> 1.668980658 | AN59: =IF(A1stdlife="n/a","n/a",IF(AN$3>(A1stdlife+$E59),(Input!$H$151*(1+rvanilla)^0.5)-SUM($H59:AM59),(Input!$H$151*(1+rvanilla)^0.5)/A1stdlife)) -> 1.668980658 | AO59: =IF(A1stdlife="n/a","n/a",IF(AO$3>(A1stdlife+$E59),(Input!$H$151*(1+rvanilla)^0.5)-SUM($H59:AN59),(Input!$H$151*(1+rvanilla)^0.5)/A1stdlife)) -> 1.668980658 | AP59: =IF(A1stdlife="n/a","n/a",IF(AP$3>(A1stdlife+$E59),(Input!$H$151*(1+rvanilla)^0.5)-SUM($H59:AO59),(Input!$H$151*(1+rvanilla)^0.5)/A1stdlife)) -> 1.668980658 | AQ59: =IF(A1stdlife="n/a","n/a",IF(AQ$3>(A1stdlife+$E59),(Input!$H$151*(1+rvanilla)^0.5)-SUM($H59:AP59),(Input!$H$151*(1+rvanilla)^0.5)/A1stdlife)) -> 1.668980658 | AR59: =IF(A1stdlife="n/a","n/a",IF(AR$3>(A1stdlife+$E59),(Input!$H$151*(1+rvanilla)^0.5)-SUM($H59:AQ59),(Input!$H$151*(1+rvanilla)^0.5)/A1stdlife)) -> 1.668980658 | AS59: =IF(A1stdlife="n/a","n/a",IF(AS$3>(A1stdlife+$E59),(Input!$H$151*(1+rvanilla)^0.5)-SUM($H59:AR59),(Input!$H$151*(1+rvanilla)^0.5)/A1stdlife)) -> 1.668980658 | AT59: =IF(A1stdlife="n/a","n/a",IF(AT$3>(A1stdlife+$E59),(Input!$H$151*(1+rvanilla)^0.5)-SUM($H59:AS59),(Input!$H$151*(1+rvanilla)^0.5)/A1stdlife)) -> 1.668980658 | AU59: =IF(A1stdlife="n/a","n/a",IF(AU$3>(A1stdlife+$E59),(Input!$H$151*(1+rvanilla)^0.5)-SUM($H59:AT59),(Input!$H$151*(1+rvanilla)^0.5)/A1stdlife)) -> 1.668980658 | AV59: =IF(A1stdlife="n/a","n/a",IF(AV$3>(A1stdlife+$E59),(Input!$H$151*(1+rvanilla)^0.5)-SUM($H59:AU59),(Input!$H$151*(1+rvanilla)^0.5)/A1stdlife)) -> 1.668980658 | AW59: =IF(A1stdlife="n/a","n/a",IF(AW$3>(A1stdlife+$E59),(Input!$H$151*(1+rvanilla)^0.5)-SUM($H59:AV59),(Input!$H$151*(1+rvanilla)^0.5)/A1stdlife)) -> 1.668980658 | AX59: =IF(A1stdlife="n/a","n/a",IF(AX$3>(A1stdlife+$E59),(Input!$H$151*(1+rvanilla)^0.5)-SUM($H59:AW59),(Input!$H$151*(1+rvanilla)^0.5)/A1stdlife)) -> 1.668980658 | AY59: =IF(A1stdlife="n/a","n/a",IF(AY$3>(A1stdlife+$E59),(Input!$H$151*(1+rvanilla)^0.5)-SUM($H59:AX59),(Input!$H$151*(1+rvanilla)^0.5)/A1stdlife)) -> 1.668980658 | AZ59: =IF(A1stdlife="n/a","n/a",IF(AZ$3>(A1stdlife+$E59),(Input!$H$151*(1+rvanilla)^0.5)-SUM($H59:AY59),(Input!$H$151*(1+rvanilla)^0.5)/A1stdlife)) -> 1.668980658 | BA59: =IF(A1stdlife="n/a","n/a",IF(BA$3>(A1stdlife+$E59),(Input!$H$151*(1+rvanilla)^0.5)-SUM($H59:AZ59),(Input!$H$151*(1+rvanilla)^0.5)/A1stdlife)) -> 1.668980658 | BB59: =IF(A1stdlife="n/a","n/a",IF(BB$3>(A1stdlife+$E59),(Input!$H$151*(1+rvanilla)^0.5)-SUM($H59:BA59),(Input!$H$151*(1+rvanilla)^0.5)/A1stdlife)) -> 1.668980658 | BC59: =IF(A1stdlife="n/a","n/a",IF(BC$3>(A1stdlife+$E59),(Input!$H$151*(1+rvanilla)^0.5)-SUM($H59:BB59),(Input!$H$151*(1+rvanilla)^0.5)/A1stdlife)) -> 1.668980658 | BD59: =IF(A1stdlife="n/a","n/a",IF(BD$3>(A1stdlife+$E59),(Input!$H$151*(1+rvanilla)^0.5)-SUM($H59:BC59),(Input!$H$151*(1+rvanilla)^0.5)/A1stdlife)) -> 1.668980658 | BE59: =IF(A1stdlife="n/a","n/a",IF(BE$3>(A1stdlife+$E59),(Input!$H$151*(1+rvanilla)^0.5)-SUM($H59:BD59),(Input!$H$151*(1+rvanilla)^0.5)/A1stdlife)) -> 1.668980658 | BF59: =IF(A1stdlife="n/a","n/a",IF(BF$3>(A1stdlife+$E59),(Input!$H$151*(1+rvanilla)^0.5)-SUM($H59:BE59),(Input!$H$151*(1+rvanilla)^0.5)/A1stdlife)) -> 1.668980658 | BG59: =IF(A1stdlife="n/a","n/a",IF(BG$3>(A1stdlife+$E59),(Input!$H$151*(1+rvanilla)^0.5)-SUM($H59:BF59),(Input!$H$151*(1+rvanilla)^0.5)/A1stdlife)) -> 1.668980658 | BH59: =IF(A1stdlife="n/a","n/a",IF(BH$3>(A1stdlife+$E59),(Input!$H$151*(1+rvanilla)^0.5)-SUM($H59:BG59),(Input!$H$151*(1+rvanilla)^0.5)/A1stdlife)) -> 1.668980658 | BI59: =IF(A1stdlife="n/a","n/a",IF(BI$3>(A1stdlife+$E59),(Input!$H$151*(1+rvanilla)^0.5)-SUM($H59:BH59),(Input!$H$151*(1+rvanilla)^0.5)/A1stdlife)) -> 1.668980658
E60: 3 | J60: =IF(A1stdlife="n/a","n/a",IF(J$3>(A1stdlife+$E60),(Input!$I$151*(1+rvanilla)^0.5)-SUM($I60:I60),(Input!$I$151*(1+rvanilla)^0.5)/A1stdlife)) -> 1.593846356 | K60: =IF(A1stdlife="n/a","n/a",IF(K$3>(A1stdlife+$E60),(Input!$I$151*(1+rvanilla)^0.5)-SUM($I60:J60),(Input!$I$151*(1+rvanilla)^0.5)/A1stdlife)) -> 1.593846356 | L60: =IF(A1stdlife="n/a","n/a",IF(L$3>(A1stdlife+$E60),(Input!$I$151*(1+rvanilla)^0.5)-SUM($I60:K60),(Input!$I$151*(1+rvanilla)^0.5)/A1stdlife)) -> 1.593846356 | M60: =IF(A1stdlife="n/a","n/a",IF(M$3>(A1stdlife+$E60),(Input!$I$151*(1+rvanilla)^0.5)-SUM($I60:L60),(Input!$I$151*(1+rvanilla)^0.5)/A1stdlife)) -> 1.593846356 | N60: =IF(A1stdlife="n/a","n/a",IF(N$3>(A1stdlife+$E60),(Input!$I$151*(1+rvanilla)^0.5)-SUM($I60:M60),(Input!$I$151*(1+rvanilla)^0.5)/A1stdlife)) -> 1.593846356 | O60: =IF(A1stdlife="n/a","n/a",IF(O$3>(A1stdlife+$E60),(Input!$I$151*(1+rvanilla)^0.5)-SUM($I60:N60),(Input!$I$151*(1+rvanilla)^0.5)/A1stdlife)) -> 1.593846356 | P60: =IF(A1stdlife="n/a","n/a",IF(P$3>(A1stdlife+$E60),(Input!$I$151*(1+rvanilla)^0.5)-SUM($I60:O60),(Input!$I$151*(1+rvanilla)^0.5)/A1stdlife)) -> 1.593846356 | Q60: =IF(A1stdlife="n/a","n/a",IF(Q$3>(A1stdlife+$E60),(Input!$I$151*(1+rvanilla)^0.5)-SUM($I60:P60),(Input!$I$151*(1+rvanilla)^0.5)/A1stdlife)) -> 1.593846356 | R60: =IF(A1stdlife="n/a","n/a",IF(R$3>(A1stdlife+$E60),(Input!$I$151*(1+rvanilla)^0.5)-SUM($I60:Q60),(Input!$I$151*(1+rvanilla)^0.5)/A1stdlife)) -> 1.593846356 | S60: =IF(A1stdlife="n/a","n/a",IF(S$3>(A1stdlife+$E60),(Input!$I$151*(1+rvanilla)^0.5)-SUM($I60:R60),(Input!$I$151*(1+rvanilla)^0.5)/A1stdlife)) -> 1.593846356 | T60: =IF(A1stdlife="n/a","n/a",IF(T$3>(A1stdlife+$E60),(Input!$I$151*(1+rvanilla)^0.5)-SUM($I60:S60),(Input!$I$151*(1+rvanilla)^0.5)/A1stdlife)) -> 1.593846356 | U60: =IF(A1stdlife="n/a","n/a",IF(U$3>(A1stdlife+$E60),(Input!$I$151*(1+rvanilla)^0.5)-SUM($I60:T60),(Input!$I$151*(1+rvanilla)^0.5)/A1stdlife)) -> 1.593846356 | V60: =IF(A1stdlife="n/a","n/a",IF(V$3>(A1stdlife+$E60),(Input!$I$151*(1+rvanilla)^0.5)-SUM($I60:U60),(Input!$I$151*(1+rvanilla)^0.5)/A1stdlife)) -> 1.593846356 | W60: =IF(A1stdlife="n/a","n/a",IF(W$3>(A1stdlife+$E60),(Input!$I$151*(1+rvanilla)^0.5)-SUM($I60:V60),(Input!$I$151*(1+rvanilla)^0.5)/A1stdlife)) -> 1.593846356 | X60: =IF(A1stdlife="n/a","n/a",IF(X$3>(A1stdlife+$E60),(Input!$I$151*(1+rvanilla)^0.5)-SUM($I60:W60),(Input!$I$151*(1+rvanilla)^0.5)/A1stdlife)) -> 1.593846356 | Y60: =IF(A1stdlife="n/a","n/a",IF(Y$3>(A1stdlife+$E60),(Input!$I$151*(1+rvanilla)^0.5)-SUM($I60:X60),(Input!$I$151*(1+rvanilla)^0.5)/A1stdlife)) -> 1.593846356 | Z60: =IF(A1stdlife="n/a","n/a",IF(Z$3>(A1stdlife+$E60),(Input!$I$151*(1+rvanilla)^0.5)-SUM($I60:Y60),(Input!$I$151*(1+rvanilla)^0.5)/A1stdlife)) -> 1.593846356 | AA60: =IF(A1stdlife="n/a","n/a",IF(AA$3>(A1stdlife+$E60),(Input!$I$151*(1+rvanilla)^0.5)-SUM($I60:Z60),(Input!$I$151*(1+rvanilla)^0.5)/A1stdlife)) -> 1.593846356 | AB60: =IF(A1stdlife="n/a","n/a",IF(AB$3>(A1stdlife+$E60),(Input!$I$151*(1+rvanilla)^0.5)-SUM($I60:AA60),(Input!$I$151*(1+rvanilla)^0.5)/A1stdlife)) -> 1.593846356 | AC60: =IF(A1stdlife="n/a","n/a",IF(AC$3>(A1stdlife+$E60),(Input!$I$151*(1+rvanilla)^0.5)-SUM($I60:AB60),(Input!$I$151*(1+rvanilla)^0.5)/A1stdlife)) -> 1.593846356 | AD60: =IF(A1stdlife="n/a","n/a",IF(AD$3>(A1stdlife+$E60),(Input!$I$151*(1+rvanilla)^0.5)-SUM($I60:AC60),(Input!$I$151*(1+rvanilla)^0.5)/A1stdlife)) -> 1.593846356 | AE60: =IF(A1stdlife="n/a","n/a",IF(AE$3>(A1stdlife+$E60),(Input!$I$151*(1+rvanilla)^0.5)-SUM($I60:AD60),(Input!$I$151*(1+rvanilla)^0.5)/A1stdlife)) -> 1.593846356 | AF60: =IF(A1stdlife="n/a","n/a",IF(AF$3>(A1stdlife+$E60),(Input!$I$151*(1+rvanilla)^0.5)-SUM($I60:AE60),(Input!$I$151*(1+rvanilla)^0.5)/A1stdlife)) -> 1.593846356 | AG60: =IF(A1stdlife="n/a","n/a",IF(AG$3>(A1stdlife+$E60),(Input!$I$151*(1+rvanilla)^0.5)-SUM($I60:AF60),(Input!$I$151*(1+rvanilla)^0.5)/A1stdlife)) -> 1.593846356 | AH60: =IF(A1stdlife="n/a","n/a",IF(AH$3>(A1stdlife+$E60),(Input!$I$151*(1+rvanilla)^0.5)-SUM($I60:AG60),(Input!$I$151*(1+rvanilla)^0.5)/A1stdlife)) -> 1.593846356 | AI60: =IF(A1stdlife="n/a","n/a",IF(AI$3>(A1stdlife+$E60),(Input!$I$151*(1+rvanilla)^0.5)-SUM($I60:AH60),(Input!$I$151*(1+rvanilla)^0.5)/A1stdlife)) -> 1.593846356 | AJ60: =IF(A1stdlife="n/a","n/a",IF(AJ$3>(A1stdlife+$E60),(Input!$I$151*(1+rvanilla)^0.5)-SUM($I60:AI60),(Input!$I$151*(1+rvanilla)^0.5)/A1stdlife)) -> 1.593846356 | AK60: =IF(A1stdlife="n/a","n/a",IF(AK$3>(A1stdlife+$E60),(Input!$I$151*(1+rvanilla)^0.5)-SUM($I60:AJ60),(Input!$I$151*(1+rvanilla)^0.5)/A1stdlife)) -> 1.593846356 | AL60: =IF(A1stdlife="n/a","n/a",IF(AL$3>(A1stdlife+$E60),(Input!$I$151*(1+rvanilla)^0.5)-SUM($I60:AK60),(Input!$I$151*(1+rvanilla)^0.5)/A1stdlife)) -> 1.593846356 | AM60: =IF(A1stdlife="n/a","n/a",IF(AM$3>(A1stdlife+$E60),(Input!$I$151*(1+rvanilla)^0.5)-SUM($I60:AL60),(Input!$I$151*(1+rvanilla)^0.5)/A1stdlife)) -> 1.593846356 | AN60: =IF(A1stdlife="n/a","n/a",IF(AN$3>(A1stdlife+$E60),(Input!$I$151*(1+rvanilla)^0.5)-SUM($I60:AM60),(Input!$I$151*(1+rvanilla)^0.5)/A1stdlife)) -> 1.593846356 | AO60: =IF(A1stdlife="n/a","n/a",IF(AO$3>(A1stdlife+$E60),(Input!$I$151*(1+rvanilla)^0.5)-SUM($I60:AN60),(Input!$I$151*(1+rvanilla)^0.5)/A1stdlife)) -> 1.593846356 | AP60: =IF(A1stdlife="n/a","n/a",IF(AP$3>(A1stdlife+$E60),(Input!$I$151*(1+rvanilla)^0.5)-SUM($I60:AO60),(Input!$I$151*(1+rvanilla)^0.5)/A1stdlife)) -> 1.593846356 | AQ60: =IF(A1stdlife="n/a","n/a",IF(AQ$3>(A1stdlife+$E60),(Input!$I$151*(1+rvanilla)^0.5)-SUM($I60:AP60),(Input!$I$151*(1+rvanilla)^0.5)/A1stdlife)) -> 1.593846356 | AR60: =IF(A1stdlife="n/a","n/a",IF(AR$3>(A1stdlife+$E60),(Input!$I$151*(1+rvanilla)^0.5)-SUM($I60:AQ60),(Input!$I$151*(1+rvanilla)^0.5)/A1stdlife)) -> 1.593846356 | AS60: =IF(A1stdlife="n/a","n/a",IF(AS$3>(A1stdlife+$E60),(Input!$I$151*(1+rvanilla)^0.5)-SUM($I60:AR60),(Input!$I$151*(1+rvanilla)^0.5)/A1stdlife)) -> 1.593846356 | AT60: =IF(A1stdlife="n/a","n/a",IF(AT$3>(A1stdlife+$E60),(Input!$I$151*(1+rvanilla)^0.5)-SUM($I60:AS60),(Input!$I$151*(1+rvanilla)^0.5)/A1stdlife)) -> 1.593846356 | AU60: =IF(A1stdlife="n/a","n/a",IF(AU$3>(A1stdlife+$E60),(Input!$I$151*(1+rvanilla)^0.5)-SUM($I60:AT60),(Input!$I$151*(1+rvanilla)^0.5)/A1stdlife)) -> 1.593846356 | AV60: =IF(A1stdlife="n/a","n/a",IF(AV$3>(A1stdlife+$E60),(Input!$I$151*(1+rvanilla)^0.5)-SUM($I60:AU60),(Input!$I$151*(1+rvanilla)^0.5)/A1stdlife)) -> 1.593846356 | AW60: =IF(A1stdlife="n/a","n/a",IF(AW$3>(A1stdlife+$E60),(Input!$I$151*(1+rvanilla)^0.5)-SUM($I60:AV60),(Input!$I$151*(1+rvanilla)^0.5)/A1stdlife)) -> 1.593846356 | AX60: =IF(A1stdlife="n/a","n/a",IF(AX$3>(A1stdlife+$E60),(Input!$I$151*(1+rvanilla)^0.5)-SUM($I60:AW60),(Input!$I$151*(1+rvanilla)^0.5)/A1stdlife)) -> 1.593846356 | AY60: =IF(A1stdlife="n/a","n/a",IF(AY$3>(A1stdlife+$E60),(Input!$I$151*(1+rvanilla)^0.5)-SUM($I60:AX60),(Input!$I$151*(1+rvanilla)^0.5)/A1stdlife)) -> 1.593846356 | AZ60: =IF(A1stdlife="n/a","n/a",IF(AZ$3>(A1stdlife+$E60),(Input!$I$151*(1+rvanilla)^0.5)-SUM($I60:AY60),(Input!$I$151*(1+rvanilla)^0.5)/A1stdlife)) -> 1.593846356 | BA60: =IF(A1stdlife="n/a","n/a",IF(BA$3>(A1stdlife+$E60),(Input!$I$151*(1+rvanilla)^0.5)-SUM($I60:AZ60),(Input!$I$151*(1+rvanilla)^0.5)/A1stdlife)) -> 1.593846356 | BB60: =IF(A1stdlife="n/a","n/a",IF(BB$3>(A1stdlife+$E60),(Input!$I$151*(1+rvanilla)^0.5)-SUM($I60:BA60),(Input!$I$151*(1+rvanilla)^0.5)/A1stdlife)) -> 1.593846356 | BC60: =IF(A1stdlife="n/a","n/a",IF(BC$3>(A1stdlife+$E60),(Input!$I$151*(1+rvanilla)^0.5)-SUM($I60:BB60),(Input!$I$151*(1+rvanilla)^0.5)/A1stdlife)) -> 1.593846356 | BD60: =IF(A1stdlife="n/a","n/a",IF(BD$3>(A1stdlife+$E60),(Input!$I$151*(1+rvanilla)^0.5)-SUM($I60:BC60),(Input!$I$151*(1+rvanilla)^0.5)/A1stdlife)) -> 1.593846356 | BE60: =IF(A1stdlife="n/a","n/a",IF(BE$3>(A1stdlife+$E60),(Input!$I$151*(1+rvanilla)^0.5)-SUM($I60:BD60),(Input!$I$151*(1+rvanilla)^0.5)/A1stdlife)) -> 1.593846356 | BF60: =IF(A1stdlife="n/a","n/a",IF(BF$3>(A1stdlife+$E60),(Input!$I$151*(1+rvanilla)^0.5)-SUM($I60:BE60),(Input!$I$151*(1+rvanilla)^0.5)/A1stdlife)) -> 1.593846356 | BG60: =IF(A1stdlife="n/a","n/a",IF(BG$3>(A1stdlife+$E60),(Input!$I$151*(1+rvanilla)^0.5)-SUM($I60:BF60),(Input!$I$151*(1+rvanilla)^0.5)/A1stdlife)) -> 1.593846356 | BH60: =IF(A1stdlife="n/a","n/a",IF(BH$3>(A1stdlife+$E60),(Input!$I$151*(1+rvanilla)^0.5)-SUM($I60:BG60),(Input!$I$151*(1+rvanilla)^0.5)/A1stdlife)) -> 1.593846356 | BI60: =IF(A1stdlife="n/a","n/a",IF(BI$3>(A1stdlife+$E60),(Input!$I$151*(1+rvanilla)^0.5)-SUM($I60:BH60),(Input!$I$151*(1+rvanilla)^0.5)/A1stdlife)) -> 1.593846356
E61: 4 | K61: =IF(A1stdlife="n/a","n/a",IF(K$3>(A1stdlife+$E61),(Input!$J$151*(1+rvanilla)^0.5)-SUM($J61:J61),(Input!$J$151*(1+rvanilla)^0.5)/A1stdlife)) -> 1.716568434 | L61: =IF(A1stdlife="n/a","n/a",IF(L$3>(A1stdlife+$E61),(Input!$J$151*(1+rvanilla)^0.5)-SUM($J61:K61),(Input!$J$151*(1+rvanilla)^0.5)/A1stdlife)) -> 1.716568434 | M61: =IF(A1stdlife="n/a","n/a",IF(M$3>(A1stdlife+$E61),(Input!$J$151*(1+rvanilla)^0.5)-SUM($J61:L61),(Input!$J$151*(1+rvanilla)^0.5)/A1stdlife)) -> 1.716568434 | N61: =IF(A1stdlife="n/a","n/a",IF(N$3>(A1stdlife+$E61),(Input!$J$151*(1+rvanilla)^0.5)-SUM($J61:M61),(Input!$J$151*(1+rvanilla)^0.5)/A1stdlife)) -> 1.716568434 | O61: =IF(A1stdlife="n/a","n/a",IF(O$3>(A1stdlife+$E61),(Input!$J$151*(1+rvanilla)^0.5)-SUM($J61:N61),(Input!$J$151*(1+rvanilla)^0.5)/A1stdlife)) -> 1.716568434 | P61: =IF(A1stdlife="n/a","n/a",IF(P$3>(A1stdlife+$E61),(Input!$J$151*(1+rvanilla)^0.5)-SUM($J61:O61),(Input!$J$151*(1+rvanilla)^0.5)/A1stdlife)) -> 1.716568434 | Q61: =IF(A1stdlife="n/a","n/a",IF(Q$3>(A1stdlife+$E61),(Input!$J$151*(1+rvanilla)^0.5)-SUM($J61:P61),(Input!$J$151*(1+rvanilla)^0.5)/A1stdlife)) -> 1.716568434 | R61: =IF(A1stdlife="n/a","n/a",IF(R$3>(A1stdlife+$E61),(Input!$J$151*(1+rvanilla)^0.5)-SUM($J61:Q61),(Input!$J$151*(1+rvanilla)^0.5)/A1stdlife)) -> 1.716568434 | S61: =IF(A1stdlife="n/a","n/a",IF(S$3>(A1stdlife+$E61),(Input!$J$151*(1+rvanilla)^0.5)-SUM($J61:R61),(Input!$J$151*(1+rvanilla)^0.5)/A1stdlife)) -> 1.716568434 | T61: =IF(A1stdlife="n/a","n/a",IF(T$3>(A1stdlife+$E61),(Input!$J$151*(1+rvanilla)^0.5)-SUM($J61:S61),(Input!$J$151*(1+rvanilla)^0.5)/A1stdlife)) -> 1.716568434 | U61: =IF(A1stdlife="n/a","n/a",IF(U$3>(A1stdlife+$E61),(Input!$J$151*(1+rvanilla)^0.5)-SUM($J61:T61),(Input!$J$151*(1+rvanilla)^0.5)/A1stdlife)) -> 1.716568434 | V61: =IF(A1stdlife="n/a","n/a",IF(V$3>(A1stdlife+$E61),(Input!$J$151*(1+rvanilla)^0.5)-SUM($J61:U61),(Input!$J$151*(1+rvanilla)^0.5)/A1stdlife)) -> 1.716568434 | W61: =IF(A1stdlife="n/a","n/a",IF(W$3>(A1stdlife+$E61),(Input!$J$151*(1+rvanilla)^0.5)-SUM($J61:V61),(Input!$J$151*(1+rvanilla)^0.5)/A1stdlife)) -> 1.716568434 | X61: =IF(A1stdlife="n/a","n/a",IF(X$3>(A1stdlife+$E61),(Input!$J$151*(1+rvanilla)^0.5)-SUM($J61:W61),(Input!$J$151*(1+rvanilla)^0.5)/A1stdlife)) -> 1.716568434 | Y61: =IF(A1stdlife="n/a","n/a",IF(Y$3>(A1stdlife+$E61),(Input!$J$151*(1+rvanilla)^0.5)-SUM($J61:X61),(Input!$J$151*(1+rvanilla)^0.5)/A1stdlife)) -> 1.716568434 | Z61: =IF(A1stdlife="n/a","n/a",IF(Z$3>(A1stdlife+$E61),(Input!$J$151*(1+rvanilla)^0.5)-SUM($J61:Y61),(Input!$J$151*(1+rvanilla)^0.5)/A1stdlife)) -> 1.716568434 | AA61: =IF(A1stdlife="n/a","n/a",IF(AA$3>(A1stdlife+$E61),(Input!$J$151*(1+rvanilla)^0.5)-SUM($J61:Z61),(Input!$J$151*(1+rvanilla)^0.5)/A1stdlife)) -> 1.716568434 | AB61: =IF(A1stdlife="n/a","n/a",IF(AB$3>(A1stdlife+$E61),(Input!$J$151*(1+rvanilla)^0.5)-SUM($J61:AA61),(Input!$J$151*(1+rvanilla)^0.5)/A1stdlife)) -> 1.716568434 | AC61: =IF(A1stdlife="n/a","n/a",IF(AC$3>(A1stdlife+$E61),(Input!$J$151*(1+rvanilla)^0.5)-SUM($J61:AB61),(Input!$J$151*(1+rvanilla)^0.5)/A1stdlife)) -> 1.716568434 | AD61: =IF(A1stdlife="n/a","n/a",IF(AD$3>(A1stdlife+$E61),(Input!$J$151*(1+rvanilla)^0.5)-SUM($J61:AC61),(Input!$J$151*(1+rvanilla)^0.5)/A1stdlife)) -> 1.716568434 | AE61: =IF(A1stdlife="n/a","n/a",IF(AE$3>(A1stdlife+$E61),(Input!$J$151*(1+rvanilla)^0.5)-SUM($J61:AD61),(Input!$J$151*(1+rvanilla)^0.5)/A1stdlife)) -> 1.716568434 | AF61: =IF(A1stdlife="n/a","n/a",IF(AF$3>(A1stdlife+$E61),(Input!$J$151*(1+rvanilla)^0.5)-SUM($J61:AE61),(Input!$J$151*(1+rvanilla)^0.5)/A1stdlife)) -> 1.716568434 | AG61: =IF(A1stdlife="n/a","n/a",IF(AG$3>(A1stdlife+$E61),(Input!$J$151*(1+rvanilla)^0.5)-SUM($J61:AF61),(Input!$J$151*(1+rvanilla)^0.5)/A1stdlife)) -> 1.716568434 | AH61: =IF(A1stdlife="n/a","n/a",IF(AH$3>(A1stdlife+$E61),(Input!$J$151*(1+rvanilla)^0.5)-SUM($J61:AG61),(Input!$J$151*(1+rvanilla)^0.5)/A1stdlife)) -> 1.716568434 | AI61: =IF(A1stdlife="n/a","n/a",IF(AI$3>(A1stdlife+$E61),(Input!$J$151*(1+rvanilla)^0.5)-SUM($J61:AH61),(Input!$J$151*(1+rvanilla)^0.5)/A1stdlife)) -> 1.716568434 | AJ61: =IF(A1stdlife="n/a","n/a",IF(AJ$3>(A1stdlife+$E61),(Input!$J$151*(1+rvanilla)^0.5)-SUM($J61:AI61),(Input!$J$151*(1+rvanilla)^0.5)/A1stdlife)) -> 1.716568434 | AK61: =IF(A1stdlife="n/a","n/a",IF(AK$3>(A1stdlife+$E61),(Input!$J$151*(1+rvanilla)^0.5)-SUM($J61:AJ61),(Input!$J$151*(1+rvanilla)^0.5)/A1stdlife)) -> 1.716568434 | AL61: =IF(A1stdlife="n/a","n/a",IF(AL$3>(A1stdlife+$E61),(Input!$J$151*(1+rvanilla)^0.5)-SUM($J61:AK61),(Input!$J$151*(1+rvanilla)^0.5)/A1stdlife)) -> 1.716568434 | AM61: =IF(A1stdlife="n/a","n/a",IF(AM$3>(A1stdlife+$E61),(Input!$J$151*(1+rvanilla)^0.5)-SUM($J61:AL61),(Input!$J$151*(1+rvanilla)^0.5)/A1stdlife)) -> 1.716568434 | AN61: =IF(A1stdlife="n/a","n/a",IF(AN$3>(A1stdlife+$E61),(Input!$J$151*(1+rvanilla)^0.5)-SUM($J61:AM61),(Input!$J$151*(1+rvanilla)^0.5)/A1stdlife)) -> 1.716568434 | AO61: =IF(A1stdlife="n/a","n/a",IF(AO$3>(A1stdlife+$E61),(Input!$J$151*(1+rvanilla)^0.5)-SUM($J61:AN61),(Input!$J$151*(1+rvanilla)^0.5)/A1stdlife)) -> 1.716568434 | AP61: =IF(A1stdlife="n/a","n/a",IF(AP$3>(A1stdlife+$E61),(Input!$J$151*(1+rvanilla)^0.5)-SUM($J61:AO61),(Input!$J$151*(1+rvanilla)^0.5)/A1stdlife)) -> 1.716568434 | AQ61: =IF(A1stdlife="n/a","n/a",IF(AQ$3>(A1stdlife+$E61),(Input!$J$151*(1+rvanilla)^0.5)-SUM($J61:AP61),(Input!$J$151*(1+rvanilla)^0.5)/A1stdlife)) -> 1.716568434 | AR61: =IF(A1stdlife="n/a","n/a",IF(AR$3>(A1stdlife+$E61),(Input!$J$151*(1+rvanilla)^0.5)-SUM($J61:AQ61),(Input!$J$151*(1+rvanilla)^0.5)/A1stdlife)) -> 1.716568434 | AS61: =IF(A1stdlife="n/a","n/a",IF(AS$3>(A1stdlife+$E61),(Input!$J$151*(1+rvanilla)^0.5)-SUM($J61:AR61),(Input!$J$151*(1+rvanilla)^0.5)/A1stdlife)) -> 1.716568434 | AT61: =IF(A1stdlife="n/a","n/a",IF(AT$3>(A1stdlife+$E61),(Input!$J$151*(1+rvanilla)^0.5)-SUM($J61:AS61),(Input!$J$151*(1+rvanilla)^0.5)/A1stdlife)) -> 1.716568434 | AU61: =IF(A1stdlife="n/a","n/a",IF(AU$3>(A1stdlife+$E61),(Input!$J$151*(1+rvanilla)^0.5)-SUM($J61:AT61),(Input!$J$151*(1+rvanilla)^0.5)/A1stdlife)) -> 1.716568434 | AV61: =IF(A1stdlife="n/a","n/a",IF(AV$3>(A1stdlife+$E61),(Input!$J$151*(1+rvanilla)^0.5)-SUM($J61:AU61),(Input!$J$151*(1+rvanilla)^0.5)/A1stdlife)) -> 1.716568434 | AW61: =IF(A1stdlife="n/a","n/a",IF(AW$3>(A1stdlife+$E61),(Input!$J$151*(1+rvanilla)^0.5)-SUM($J61:AV61),(Input!$J$151*(1+rvanilla)^0.5)/A1stdlife)) -> 1.716568434 | AX61: =IF(A1stdlife="n/a","n/a",IF(AX$3>(A1stdlife+$E61),(Input!$J$151*(1+rvanilla)^0.5)-SUM($J61:AW61),(Input!$J$151*(1+rvanilla)^0.5)/A1stdlife)) -> 1.716568434 | AY61: =IF(A1stdlife="n/a","n/a",IF(AY$3>(A1stdlife+$E61),(Input!$J$151*(1+rvanilla)^0.5)-SUM($J61:AX61),(Input!$J$151*(1+rvanilla)^0.5)/A1stdlife)) -> 1.716568434 | AZ61: =IF(A1stdlife="n/a","n/a",IF(AZ$3>(A1stdlife+$E61),(Input!$J$151*(1+rvanilla)^0.5)-SUM($J61:AY61),(Input!$J$151*(1+rvanilla)^0.5)/A1stdlife)) -> 1.716568434 | BA61: =IF(A1stdlife="n/a","n/a",IF(BA$3>(A1stdlife+$E61),(Input!$J$151*(1+rvanilla)^0.5)-SUM($J61:AZ61),(Input!$J$151*(1+rvanilla)^0.5)/A1stdlife)) -> 1.716568434 | BB61: =IF(A1stdlife="n/a","n/a",IF(BB$3>(A1stdlife+$E61),(Input!$J$151*(1+rvanilla)^0.5)-SUM($J61:BA61),(Input!$J$151*(1+rvanilla)^0.5)/A1stdlife)) -> 1.716568434 | BC61: =IF(A1stdlife="n/a","n/a",IF(BC$3>(A1stdlife+$E61),(Input!$J$151*(1+rvanilla)^0.5)-SUM($J61:BB61),(Input!$J$151*(1+rvanilla)^0.5)/A1stdlife)) -> 1.716568434 | BD61: =IF(A1stdlife="n/a","n/a",IF(BD$3>(A1stdlife+$E61),(Input!$J$151*(1+rvanilla)^0.5)-SUM($J61:BC61),(Input!$J$151*(1+rvanilla)^0.5)/A1stdlife)) -> 1.716568434 | BE61: =IF(A1stdlife="n/a","n/a",IF(BE$3>(A1stdlife+$E61),(Input!$J$151*(1+rvanilla)^0.5)-SUM($J61:BD61),(Input!$J$151*(1+rvanilla)^0.5)/A1stdlife)) -> 1.716568434 | BF61: =IF(A1stdlife="n/a","n/a",IF(BF$3>(A1stdlife+$E61),(Input!$J$151*(1+rvanilla)^0.5)-SUM($J61:BE61),(Input!$J$151*(1+rvanilla)^0.5)/A1stdlife)) -> 1.716568434 | BG61: =IF(A1stdlife="n/a","n/a",IF(BG$3>(A1stdlife+$E61),(Input!$J$151*(1+rvanilla)^0.5)-SUM($J61:BF61),(Input!$J$151*(1+rvanilla)^0.5)/A1stdlife)) -> 1.716568434 | BH61: =IF(A1stdlife="n/a","n/a",IF(BH$3>(A1stdlife+$E61),(Input!$J$151*(1+rvanilla)^0.5)-SUM($J61:BG61),(Input!$J$151*(1+rvanilla)^0.5)/A1stdlife)) -> 1.716568434 | BI61: =IF(A1stdlife="n/a","n/a",IF(BI$3>(A1stdlife+$E61),(Input!$J$151*(1+rvanilla)^0.5)-SUM($J61:BH61),(Input!$J$151*(1+rvanilla)^0.5)/A1stdlife)) -> 1.716568434
E62: 5 | L62: =IF(A1stdlife="n/a","n/a",IF(L$3>(A1stdlife+$E62),(Input!$K$151*(1+rvanilla)^0.5)-SUM($K62:K62),(Input!$K$151*(1+rvanilla)^0.5)/A1stdlife)) -> 1.522390332 | M62: =IF(A1stdlife="n/a","n/a",IF(M$3>(A1stdlife+$E62),(Input!$K$151*(1+rvanilla)^0.5)-SUM($K62:L62),(Input!$K$151*(1+rvanilla)^0.5)/A1stdlife)) -> 1.522390332 | N62: =IF(A1stdlife="n/a","n/a",IF(N$3>(A1stdlife+$E62),(Input!$K$151*(1+rvanilla)^0.5)-SUM($K62:M62),(Input!$K$151*(1+rvanilla)^0.5)/A1stdlife)) -> 1.522390332 | O62: =IF(A1stdlife="n/a","n/a",IF(O$3>(A1stdlife+$E62),(Input!$K$151*(1+rvanilla)^0.5)-SUM($K62:N62),(Input!$K$151*(1+rvanilla)^0.5)/A1stdlife)) -> 1.522390332 | P62: =IF(A1stdlife="n/a","n/a",IF(P$3>(A1stdlife+$E62),(Input!$K$151*(1+rvanilla)^0.5)-SUM($K62:O62),(Input!$K$151*(1+rvanilla)^0.5)/A1stdlife)) -> 1.522390332 | Q62: =IF(A1stdlife="n/a","n/a",IF(Q$3>(A1stdlife+$E62),(Input!$K$151*(1+rvanilla)^0.5)-SUM($K62:P62),(Input!$K$151*(1+rvanilla)^0.5)/A1stdlife)) -> 1.522390332 | R62: =IF(A1stdlife="n/a","n/a",IF(R$3>(A1stdlife+$E62),(Input!$K$151*(1+rvanilla)^0.5)-SUM($K62:Q62),(Input!$K$151*(1+rvanilla)^0.5)/A1stdlife)) -> 1.522390332 | S62: =IF(A1stdlife="n/a","n/a",IF(S$3>(A1stdlife+$E62),(Input!$K$151*(1+rvanilla)^0.5)-SUM($K62:R62),(Input!$K$151*(1+rvanilla)^0.5)/A1stdlife)) -> 1.522390332 | T62: =IF(A1stdlife="n/a","n/a",IF(T$3>(A1stdlife+$E62),(Input!$K$151*(1+rvanilla)^0.5)-SUM($K62:S62),(Input!$K$151*(1+rvanilla)^0.5)/A1stdlife)) -> 1.522390332 | U62: =IF(A1stdlife="n/a","n/a",IF(U$3>(A1stdlife+$E62),(Input!$K$151*(1+rvanilla)^0.5)-SUM($K62:T62),(Input!$K$151*(1+rvanilla)^0.5)/A1stdlife)) -> 1.522390332 | V62: =IF(A1stdlife="n/a","n/a",IF(V$3>(A1stdlife+$E62),(Input!$K$151*(1+rvanilla)^0.5)-SUM($K62:U62),(Input!$K$151*(1+rvanilla)^0.5)/A1stdlife)) -> 1.522390332 | W62: =IF(A1stdlife="n/a","n/a",IF(W$3>(A1stdlife+$E62),(Input!$K$151*(1+rvanilla)^0.5)-SUM($K62:V62),(Input!$K$151*(1+rvanilla)^0.5)/A1stdlife)) -> 1.522390332 | X62: =IF(A1stdlife="n/a","n/a",IF(X$3>(A1stdlife+$E62),(Input!$K$151*(1+rvanilla)^0.5)-SUM($K62:W62),(Input!$K$151*(1+rvanilla)^0.5)/A1stdlife)) -> 1.522390332 | Y62: =IF(A1stdlife="n/a","n/a",IF(Y$3>(A1stdlife+$E62),(Input!$K$151*(1+rvanilla)^0.5)-SUM($K62:X62),(Input!$K$151*(1+rvanilla)^0.5)/A1stdlife)) -> 1.522390332 | Z62: =IF(A1stdlife="n/a","n/a",IF(Z$3>(A1stdlife+$E62),(Input!$K$151*(1+rvanilla)^0.5)-SUM($K62:Y62),(Input!$K$151*(1+rvanilla)^0.5)/A1stdlife)) -> 1.522390332 | AA62: =IF(A1stdlife="n/a","n/a",IF(AA$3>(A1stdlife+$E62),(Input!$K$151*(1+rvanilla)^0.5)-SUM($K62:Z62),(Input!$K$151*(1+rvanilla)^0.5)/A1stdlife)) -> 1.522390332 | AB62: =IF(A1stdlife="n/a","n/a",IF(AB$3>(A1stdlife+$E62),(Input!$K$151*(1+rvanilla)^0.5)-SUM($K62:AA62),(Input!$K$151*(1+rvanilla)^0.5)/A1stdlife)) -> 1.522390332 | AC62: =IF(A1stdlife="n/a","n/a",IF(AC$3>(A1stdlife+$E62),(Input!$K$151*(1+rvanilla)^0.5)-SUM($K62:AB62),(Input!$K$151*(1+rvanilla)^0.5)/A1stdlife)) -> 1.522390332 | AD62: =IF(A1stdlife="n/a","n/a",IF(AD$3>(A1stdlife+$E62),(Input!$K$151*(1+rvanilla)^0.5)-SUM($K62:AC62),(Input!$K$151*(1+rvanilla)^0.5)/A1stdlife)) -> 1.522390332 | AE62: =IF(A1stdlife="n/a","n/a",IF(AE$3>(A1stdlife+$E62),(Input!$K$151*(1+rvanilla)^0.5)-SUM($K62:AD62),(Input!$K$151*(1+rvanilla)^0.5)/A1stdlife)) -> 1.522390332 | AF62: =IF(A1stdlife="n/a","n/a",IF(AF$3>(A1stdlife+$E62),(Input!$K$151*(1+rvanilla)^0.5)-SUM($K62:AE62),(Input!$K$151*(1+rvanilla)^0.5)/A1stdlife)) -> 1.522390332 | AG62: =IF(A1stdlife="n/a","n/a",IF(AG$3>(A1stdlife+$E62),(Input!$K$151*(1+rvanilla)^0.5)-SUM($K62:AF62),(Input!$K$151*(1+rvanilla)^0.5)/A1stdlife)) -> 1.522390332 | AH62: =IF(A1stdlife="n/a","n/a",IF(AH$3>(A1stdlife+$E62),(Input!$K$151*(1+rvanilla)^0.5)-SUM($K62:AG62),(Input!$K$151*(1+rvanilla)^0.5)/A1stdlife)) -> 1.522390332 | AI62: =IF(A1stdlife="n/a","n/a",IF(AI$3>(A1stdlife+$E62),(Input!$K$151*(1+rvanilla)^0.5)-SUM($K62:AH62),(Input!$K$151*(1+rvanilla)^0.5)/A1stdlife)) -> 1.522390332 | AJ62: =IF(A1stdlife="n/a","n/a",IF(AJ$3>(A1stdlife+$E62),(Input!$K$151*(1+rvanilla)^0.5)-SUM($K62:AI62),(Input!$K$151*(1+rvanilla)^0.5)/A1stdlife)) -> 1.522390332 | AK62: =IF(A1stdlife="n/a","n/a",IF(AK$3>(A1stdlife+$E62),(Input!$K$151*(1+rvanilla)^0.5)-SUM($K62:AJ62),(Input!$K$151*(1+rvanilla)^0.5)/A1stdlife)) -> 1.522390332 | AL62: =IF(A1stdlife="n/a","n/a",IF(AL$3>(A1stdlife+$E62),(Input!$K$151*(1+rvanilla)^0.5)-SUM($K62:AK62),(Input!$K$151*(1+rvanilla)^0.5)/A1stdlife)) -> 1.522390332 | AM62: =IF(A1stdlife="n/a","n/a",IF(AM$3>(A1stdlife+$E62),(Input!$K$151*(1+rvanilla)^0.5)-SUM($K62:AL62),(Input!$K$151*(1+rvanilla)^0.5)/A1stdlife)) -> 1.522390332 | AN62: =IF(A1stdlife="n/a","n/a",IF(AN$3>(A1stdlife+$E62),(Input!$K$151*(1+rvanilla)^0.5)-SUM($K62:AM62),(Input!$K$151*(1+rvanilla)^0.5)/A1stdlife)) -> 1.522390332 | AO62: =IF(A1stdlife="n/a","n/a",IF(AO$3>(A1stdlife+$E62),(Input!$K$151*(1+rvanilla)^0.5)-SUM($K62:AN62),(Input!$K$151*(1+rvanilla)^0.5)/A1stdlife)) -> 1.522390332 | AP62: =IF(A1stdlife="n/a","n/a",IF(AP$3>(A1stdlife+$E62),(Input!$K$151*(1+rvanilla)^0.5)-SUM($K62:AO62),(Input!$K$151*(1+rvanilla)^0.5)/A1stdlife)) -> 1.522390332 | AQ62: =IF(A1stdlife="n/a","n/a",IF(AQ$3>(A1stdlife+$E62),(Input!$K$151*(1+rvanilla)^0.5)-SUM($K62:AP62),(Input!$K$151*(1+rvanilla)^0.5)/A1stdlife)) -> 1.522390332 | AR62: =IF(A1stdlife="n/a","n/a",IF(AR$3>(A1stdlife+$E62),(Input!$K$151*(1+rvanilla)^0.5)-SUM($K62:AQ62),(Input!$K$151*(1+rvanilla)^0.5)/A1stdlife)) -> 1.522390332 | AS62: =IF(A1stdlife="n/a","n/a",IF(AS$3>(A1stdlife+$E62),(Input!$K$151*(1+rvanilla)^0.5)-SUM($K62:AR62),(Input!$K$151*(1+rvanilla)^0.5)/A1stdlife)) -> 1.522390332 | AT62: =IF(A1stdlife="n/a","n/a",IF(AT$3>(A1stdlife+$E62),(Input!$K$151*(1+rvanilla)^0.5)-SUM($K62:AS62),(Input!$K$151*(1+rvanilla)^0.5)/A1stdlife)) -> 1.522390332 | AU62: =IF(A1stdlife="n/a","n/a",IF(AU$3>(A1stdlife+$E62),(Input!$K$151*(1+rvanilla)^0.5)-SUM($K62:AT62),(Input!$K$151*(1+rvanilla)^0.5)/A1stdlife)) -> 1.522390332 | AV62: =IF(A1stdlife="n/a","n/a",IF(AV$3>(A1stdlife+$E62),(Input!$K$151*(1+rvanilla)^0.5)-SUM($K62:AU62),(Input!$K$151*(1+rvanilla)^0.5)/A1stdlife)) -> 1.522390332 | AW62: =IF(A1stdlife="n/a","n/a",IF(AW$3>(A1stdlife+$E62),(Input!$K$151*(1+rvanilla)^0.5)-SUM($K62:AV62),(Input!$K$151*(1+rvanilla)^0.5)/A1stdlife)) -> 1.522390332 | AX62: =IF(A1stdlife="n/a","n/a",IF(AX$3>(A1stdlife+$E62),(Input!$K$151*(1+rvanilla)^0.5)-SUM($K62:AW62),(Input!$K$151*(1+rvanilla)^0.5)/A1stdlife)) -> 1.522390332 | AY62: =IF(A1stdlife="n/a","n/a",IF(AY$3>(A1stdlife+$E62),(Input!$K$151*(1+rvanilla)^0.5)-SUM($K62:AX62),(Input!$K$151*(1+rvanilla)^0.5)/A1stdlife)) -> 1.522390332 | AZ62: =IF(A1stdlife="n/a","n/a",IF(AZ$3>(A1stdlife+$E62),(Input!$K$151*(1+rvanilla)^0.5)-SUM($K62:AY62),(Input!$K$151*(1+rvanilla)^0.5)/A1stdlife)) -> 1.522390332 | BA62: =IF(A1stdlife="n/a","n/a",IF(BA$3>(A1stdlife+$E62),(Input!$K$151*(1+rvanilla)^0.5)-SUM($K62:AZ62),(Input!$K$151*(1+rvanilla)^0.5)/A1stdlife)) -> 1.522390332 | BB62: =IF(A1stdlife="n/a","n/a",IF(BB$3>(A1stdlife+$E62),(Input!$K$151*(1+rvanilla)^0.5)-SUM($K62:BA62),(Input!$K$151*(1+rvanilla)^0.5)/A1stdlife)) -> 1.522390332 | BC62: =IF(A1stdlife="n/a","n/a",IF(BC$3>(A1stdlife+$E62),(Input!$K$151*(1+rvanilla)^0.5)-SUM($K62:BB62),(Input!$K$151*(1+rvanilla)^0.5)/A1stdlife)) -> 1.522390332 | BD62: =IF(A1stdlife="n/a","n/a",IF(BD$3>(A1stdlife+$E62),(Input!$K$151*(1+rvanilla)^0.5)-SUM($K62:BC62),(Input!$K$151*(1+rvanilla)^0.5)/A1stdlife)) -> 1.522390332 | BE62: =IF(A1stdlife="n/a","n/a",IF(BE$3>(A1stdlife+$E62),(Input!$K$151*(1+rvanilla)^0.5)-SUM($K62:BD62),(Input!$K$151*(1+rvanilla)^0.5)/A1stdlife)) -> 1.522390332 | BF62: =IF(A1stdlife="n/a","n/a",IF(BF$3>(A1stdlife+$E62),(Input!$K$151*(1+rvanilla)^0.5)-SUM($K62:BE62),(Input!$K$151*(1+rvanilla)^0.5)/A1stdlife)) -> 1.522390332 | BG62: =IF(A1stdlife="n/a","n/a",IF(BG$3>(A1stdlife+$E62),(Input!$K$151*(1+rvanilla)^0.5)-SUM($K62:BF62),(Input!$K$151*(1+rvanilla)^0.5)/A1stdlife)) -> 1.522390332 | BH62: =IF(A1stdlife="n/a","n/a",IF(BH$3>(A1stdlife+$E62),(Input!$K$151*(1+rvanilla)^0.5)-SUM($K62:BG62),(Input!$K$151*(1+rvanilla)^0.5)/A1stdlife)) -> 1.522390332 | BI62: =IF(A1stdlife="n/a","n/a",IF(BI$3>(A1stdlife+$E62),(Input!$K$151*(1+rvanilla)^0.5)-SUM($K62:BH62),(Input!$K$151*(1+rvanilla)^0.5)/A1stdlife)) -> 1.522390332
E63: 6 | M63: =IF(A1stdlife="n/a","n/a",IF(M$3>(A1stdlife+$E63),(Input!$L$151*(1+rvanilla)^0.5)-SUM($L63:L63),(Input!$L$151*(1+rvanilla)^0.5)/A1stdlife)) -> 0 | N63: =IF(A1stdlife="n/a","n/a",IF(N$3>(A1stdlife+$E63),(Input!$L$151*(1+rvanilla)^0.5)-SUM($L63:M63),(Input!$L$151*(1+rvanilla)^0.5)/A1stdlife)) -> 0 | O63: =IF(A1stdlife="n/a","n/a",IF(O$3>(A1stdlife+$E63),(Input!$L$151*(1+rvanilla)^0.5)-SUM($L63:N63),(Input!$L$151*(1+rvanilla)^0.5)/A1stdlife)) -> 0 | P63: =IF(A1stdlife="n/a","n/a",IF(P$3>(A1stdlife+$E63),(Input!$L$151*(1+rvanilla)^0.5)-SUM($L63:O63),(Input!$L$151*(1+rvanilla)^0.5)/A1stdlife)) -> 0 | Q63: =IF(A1stdlife="n/a","n/a",IF(Q$3>(A1stdlife+$E63),(Input!$L$151*(1+rvanilla)^0.5)-SUM($L63:P63),(Input!$L$151*(1+rvanilla)^0.5)/A1stdlife)) -> 0 | R63: =IF(A1stdlife="n/a","n/a",IF(R$3>(A1stdlife+$E63),(Input!$L$151*(1+rvanilla)^0.5)-SUM($L63:Q63),(Input!$L$151*(1+rvanilla)^0.5)/A1stdlife)) -> 0 | S63: =IF(A1stdlife="n/a","n/a",IF(S$3>(A1stdlife+$E63),(Input!$L$151*(1+rvanilla)^0.5)-SUM($L63:R63),(Input!$L$151*(1+rvanilla)^0.5)/A1stdlife)) -> 0 | T63: =IF(A1stdlife="n/a","n/a",IF(T$3>(A1stdlife+$E63),(Input!$L$151*(1+rvanilla)^0.5)-SUM($L63:S63),(Input!$L$151*(1+rvanilla)^0.5)/A1stdlife)) -> 0 | U63: =IF(A1stdlife="n/a","n/a",IF(U$3>(A1stdlife+$E63),(Input!$L$151*(1+rvanilla)^0.5)-SUM($L63:T63),(Input!$L$151*(1+rvanilla)^0.5)/A1stdlife)) -> 0 | V63: =IF(A1stdlife="n/a","n/a",IF(V$3>(A1stdlife+$E63),(Input!$L$151*(1+rvanilla)^0.5)-SUM($L63:U63),(Input!$L$151*(1+rvanilla)^0.5)/A1stdlife)) -> 0 | W63: =IF(A1stdlife="n/a","n/a",IF(W$3>(A1stdlife+$E63),(Input!$L$151*(1+rvanilla)^0.5)-SUM($L63:V63),(Input!$L$151*(1+rvanilla)^0.5)/A1stdlife)) -> 0 | X63: =IF(A1stdlife="n/a","n/a",IF(X$3>(A1stdlife+$E63),(Input!$L$151*(1+rvanilla)^0.5)-SUM($L63:W63),(Input!$L$151*(1+rvanilla)^0.5)/A1stdlife)) -> 0 | Y63: =IF(A1stdlife="n/a","n/a",IF(Y$3>(A1stdlife+$E63),(Input!$L$151*(1+rvanilla)^0.5)-SUM($L63:X63),(Input!$L$151*(1+rvanilla)^0.5)/A1stdlife)) -> 0 | Z63: =IF(A1stdlife="n/a","n/a",IF(Z$3>(A1stdlife+$E63),(Input!$L$151*(1+rvanilla)^0.5)-SUM($L63:Y63),(Input!$L$151*(1+rvanilla)^0.5)/A1stdlife)) -> 0 | AA63: =IF(A1stdlife="n/a","n/a",IF(AA$3>(A1stdlife+$E63),(Input!$L$151*(1+rvanilla)^0.5)-SUM($L63:Z63),(Input!$L$151*(1+rvanilla)^0.5)/A1stdlife)) -> 0 | AB63: =IF(A1stdlife="n/a","n/a",IF(AB$3>(A1stdlife+$E63),(Input!$L$151*(1+rvanilla)^0.5)-SUM($L63:AA63),(Input!$L$151*(1+rvanilla)^0.5)/A1stdlife)) -> 0 | AC63: =IF(A1stdlife="n/a","n/a",IF(AC$3>(A1stdlife+$E63),(Input!$L$151*(1+rvanilla)^0.5)-SUM($L63:AB63),(Input!$L$151*(1+rvanilla)^0.5)/A1stdlife)) -> 0 | AD63: =IF(A1stdlife="n/a","n/a",IF(AD$3>(A1stdlife+$E63),(Input!$L$151*(1+rvanilla)^0.5)-SUM($L63:AC63),(Input!$L$151*(1+rvanilla)^0.5)/A1stdlife)) -> 0 | AE63: =IF(A1stdlife="n/a","n/a",IF(AE$3>(A1stdlife+$E63),(Input!$L$151*(1+rvanilla)^0.5)-SUM($L63:AD63),(Input!$L$151*(1+rvanilla)^0.5)/A1stdlife)) -> 0 | AF63: =IF(A1stdlife="n/a","n/a",IF(AF$3>(A1stdlife+$E63),(Input!$L$151*(1+rvanilla)^0.5)-SUM($L63:AE63),(Input!$L$151*(1+rvanilla)^0.5)/A1stdlife)) -> 0 | AG63: =IF(A1stdlife="n/a","n/a",IF(AG$3>(A1stdlife+$E63),(Input!$L$151*(1+rvanilla)^0.5)-SUM($L63:AF63),(Input!$L$151*(1+rvanilla)^0.5)/A1stdlife)) -> 0 | AH63: =IF(A1stdlife="n/a","n/a",IF(AH$3>(A1stdlife+$E63),(Input!$L$151*(1+rvanilla)^0.5)-SUM($L63:AG63),(Input!$L$151*(1+rvanilla)^0.5)/A1stdlife)) -> 0 | AI63: =IF(A1stdlife="n/a","n/a",IF(AI$3>(A1stdlife+$E63),(Input!$L$151*(1+rvanilla)^0.5)-SUM($L63:AH63),(Input!$L$151*(1+rvanilla)^0.5)/A1stdlife)) -> 0 | AJ63: =IF(A1stdlife="n/a","n/a",IF(AJ$3>(A1stdlife+$E63),(Input!$L$151*(1+rvanilla)^0.5)-SUM($L63:AI63),(Input!$L$151*(1+rvanilla)^0.5)/A1stdlife)) -> 0 | AK63: =IF(A1stdlife="n/a","n/a",IF(AK$3>(A1stdlife+$E63),(Input!$L$151*(1+rvanilla)^0.5)-SUM($L63:AJ63),(Input!$L$151*(1+rvanilla)^0.5)/A1stdlife)) -> 0 | AL63: =IF(A1stdlife="n/a","n/a",IF(AL$3>(A1stdlife+$E63),(Input!$L$151*(1+rvanilla)^0.5)-SUM($L63:AK63),(Input!$L$151*(1+rvanilla)^0.5)/A1stdlife)) -> 0 | AM63: =IF(A1stdlife="n/a","n/a",IF(AM$3>(A1stdlife+$E63),(Input!$L$151*(1+rvanilla)^0.5)-SUM($L63:AL63),(Input!$L$151*(1+rvanilla)^0.5)/A1stdlife)) -> 0 | AN63: =IF(A1stdlife="n/a","n/a",IF(AN$3>(A1stdlife+$E63),(Input!$L$151*(1+rvanilla)^0.5)-SUM($L63:AM63),(Input!$L$151*(1+rvanilla)^0.5)/A1stdlife)) -> 0 | AO63: =IF(A1stdlife="n/a","n/a",IF(AO$3>(A1stdlife+$E63),(Input!$L$151*(1+rvanilla)^0.5)-SUM($L63:AN63),(Input!$L$151*(1+rvanilla)^0.5)/A1stdlife)) -> 0 | AP63: =IF(A1stdlife="n/a","n/a",IF(AP$3>(A1stdlife+$E63),(Input!$L$151*(1+rvanilla)^0.5)-SUM($L63:AO63),(Input!$L$151*(1+rvanilla)^0.5)/A1stdlife)) -> 0 | AQ63: =IF(A1stdlife="n/a","n/a",IF(AQ$3>(A1stdlife+$E63),(Input!$L$151*(1+rvanilla)^0.5)-SUM($L63:AP63),(Input!$L$151*(1+rvanilla)^0.5)/A1stdlife)) -> 0 | AR63: =IF(A1stdlife="n/a","n/a",IF(AR$3>(A1stdlife+$E63),(Input!$L$151*(1+rvanilla)^0.5)-SUM($L63:AQ63),(Input!$L$151*(1+rvanilla)^0.5)/A1stdlife)) -> 0 | AS63: =IF(A1stdlife="n/a","n/a",IF(AS$3>(A1stdlife+$E63),(Input!$L$151*(1+rvanilla)^0.5)-SUM($L63:AR63),(Input!$L$151*(1+rvanilla)^0.5)/A1stdlife)) -> 0 | AT63: =IF(A1stdlife="n/a","n/a",IF(AT$3>(A1stdlife+$E63),(Input!$L$151*(1+rvanilla)^0.5)-SUM($L63:AS63),(Input!$L$151*(1+rvanilla)^0.5)/A1stdlife)) -> 0 | AU63: =IF(A1stdlife="n/a","n/a",IF(AU$3>(A1stdlife+$E63),(Input!$L$151*(1+rvanilla)^0.5)-SUM($L63:AT63),(Input!$L$151*(1+rvanilla)^0.5)/A1stdlife)) -> 0 | AV63: =IF(A1stdlife="n/a","n/a",IF(AV$3>(A1stdlife+$E63),(Input!$L$151*(1+rvanilla)^0.5)-SUM($L63:AU63),(Input!$L$151*(1+rvanilla)^0.5)/A1stdlife)) -> 0 | AW63: =IF(A1stdlife="n/a","n/a",IF(AW$3>(A1stdlife+$E63),(Input!$L$151*(1+rvanilla)^0.5)-SUM($L63:AV63),(Input!$L$151*(1+rvanilla)^0.5)/A1stdlife)) -> 0 | AX63: =IF(A1stdlife="n/a","n/a",IF(AX$3>(A1stdlife+$E63),(Input!$L$151*(1+rvanilla)^0.5)-SUM($L63:AW63),(Input!$L$151*(1+rvanilla)^0.5)/A1stdlife)) -> 0 | AY63: =IF(A1stdlife="n/a","n/a",IF(AY$3>(A1stdlife+$E63),(Input!$L$151*(1+rvanilla)^0.5)-SUM($L63:AX63),(Input!$L$151*(1+rvanilla)^0.5)/A1stdlife)) -> 0 | AZ63: =IF(A1stdlife="n/a","n/a",IF(AZ$3>(A1stdlife+$E63),(Input!$L$151*(1+rvanilla)^0.5)-SUM($L63:AY63),(Input!$L$151*(1+rvanilla)^0.5)/A1stdlife)) -> 0 | BA63: =IF(A1stdlife="n/a","n/a",IF(BA$3>(A1stdlife+$E63),(Input!$L$151*(1+rvanilla)^0.5)-SUM($L63:AZ63),(Input!$L$151*(1+rvanilla)^0.5)/A1stdlife)) -> 0 | BB63: =IF(A1stdlife="n/a","n/a",IF(BB$3>(A1stdlife+$E63),(Input!$L$151*(1+rvanilla)^0.5)-SUM($L63:BA63),(Input!$L$151*(1+rvanilla)^0.5)/A1stdlife)) -> 0 | BC63: =IF(A1stdlife="n/a","n/a",IF(BC$3>(A1stdlife+$E63),(Input!$L$151*(1+rvanilla)^0.5)-SUM($L63:BB63),(Input!$L$151*(1+rvanilla)^0.5)/A1stdlife)) -> 0 | BD63: =IF(A1stdlife="n/a","n/a",IF(BD$3>(A1stdlife+$E63),(Input!$L$151*(1+rvanilla)^0.5)-SUM($L63:BC63),(Input!$L$151*(1+rvanilla)^0.5)/A1stdlife)) -> 0 | BE63: =IF(A1stdlife="n/a","n/a",IF(BE$3>(A1stdlife+$E63),(Input!$L$151*(1+rvanilla)^0.5)-SUM($L63:BD63),(Input!$L$151*(1+rvanilla)^0.5)/A1stdlife)) -> 0 | BF63: =IF(A1stdlife="n/a","n/a",IF(BF$3>(A1stdlife+$E63),(Input!$L$151*(1+rvanilla)^0.5)-SUM($L63:BE63),(Input!$L$151*(1+rvanilla)^0.5)/A1stdlife)) -> 0 | BG63: =IF(A1stdlife="n/a","n/a",IF(BG$3>(A1stdlife+$E63),(Input!$L$151*(1+rvanilla)^0.5)-SUM($L63:BF63),(Input!$L$151*(1+rvanilla)^0.5)/A1stdlife)) -> 0 | BH63: =IF(A1stdlife="n/a","n/a",IF(BH$3>(A1stdlife+$E63),(Input!$L$151*(1+rvanilla)^0.5)-SUM($L63:BG63),(Input!$L$151*(1+rvanilla)^0.5)/A1stdlife)) -> 0 | BI63: =IF(A1stdlife="n/a","n/a",IF(BI$3>(A1stdlife+$E63),(Input!$L$151*(1+rvanilla)^0.5)-SUM($L63:BH63),(Input!$L$151*(1+rvanilla)^0.5)/A1stdlife)) -> 0
E64: 7 | N64: =IF(A1stdlife="n/a","n/a",IF(N$3>(A1stdlife+$E64),(Input!$M$151*(1+rvanilla)^0.5)-SUM($M64:M64),(Input!$M$151*(1+rvanilla)^0.5)/A1stdlife)) -> 0 | O64: =IF(A1stdlife="n/a","n/a",IF(O$3>(A1stdlife+$E64),(Input!$M$151*(1+rvanilla)^0.5)-SUM($M64:N64),(Input!$M$151*(1+rvanilla)^0.5)/A1stdlife)) -> 0 | P64: =IF(A1stdlife="n/a","n/a",IF(P$3>(A1stdlife+$E64),(Input!$M$151*(1+rvanilla)^0.5)-SUM($M64:O64),(Input!$M$151*(1+rvanilla)^0.5)/A1stdlife)) -> 0 | Q64: =IF(A1stdlife="n/a","n/a",IF(Q$3>(A1stdlife+$E64),(Input!$M$151*(1+rvanilla)^0.5)-SUM($M64:P64),(Input!$M$151*(1+rvanilla)^0.5)/A1stdlife)) -> 0 | R64: =IF(A1stdlife="n/a","n/a",IF(R$3>(A1stdlife+$E64),(Input!$M$151*(1+rvanilla)^0.5)-SUM($M64:Q64),(Input!$M$151*(1+rvanilla)^0.5)/A1stdlife)) -> 0 | S64: =IF(A1stdlife="n/a","n/a",IF(S$3>(A1stdlife+$E64),(Input!$M$151*(1+rvanilla)^0.5)-SUM($M64:R64),(Input!$M$151*(1+rvanilla)^0.5)/A1stdlife)) -> 0 | T64: =IF(A1stdlife="n/a","n/a",IF(T$3>(A1stdlife+$E64),(Input!$M$151*(1+rvanilla)^0.5)-SUM($M64:S64),(Input!$M$151*(1+rvanilla)^0.5)/A1stdlife)) -> 0 | U64: =IF(A1stdlife="n/a","n/a",IF(U$3>(A1stdlife+$E64),(Input!$M$151*(1+rvanilla)^0.5)-SUM($M64:T64),(Input!$M$151*(1+rvanilla)^0.5)/A1stdlife)) -> 0 | V64: =IF(A1stdlife="n/a","n/a",IF(V$3>(A1stdlife+$E64),(Input!$M$151*(1+rvanilla)^0.5)-SUM($M64:U64),(Input!$M$151*(1+rvanilla)^0.5)/A1stdlife)) -> 0 | W64: =IF(A1stdlife="n/a","n/a",IF(W$3>(A1stdlife+$E64),(Input!$M$151*(1+rvanilla)^0.5)-SUM($M64:V64),(Input!$M$151*(1+rvanilla)^0.5)/A1stdlife)) -> 0 | X64: =IF(A1stdlife="n/a","n/a",IF(X$3>(A1stdlife+$E64),(Input!$M$151*(1+rvanilla)^0.5)-SUM($M64:W64),(Input!$M$151*(1+rvanilla)^0.5)/A1stdlife)) -> 0 | Y64: =IF(A1stdlife="n/a","n/a",IF(Y$3>(A1stdlife+$E64),(Input!$M$151*(1+rvanilla)^0.5)-SUM($M64:X64),(Input!$M$151*(1+rvanilla)^0.5)/A1stdlife)) -> 0 | Z64: =IF(A1stdlife="n/a","n/a",IF(Z$3>(A1stdlife+$E64),(Input!$M$151*(1+rvanilla)^0.5)-SUM($M64:Y64),(Input!$M$151*(1+rvanilla)^0.5)/A1stdlife)) -> 0 | AA64: =IF(A1stdlife="n/a","n/a",IF(AA$3>(A1stdlife+$E64),(Input!$M$151*(1+rvanilla)^0.5)-SUM($M64:Z64),(Input!$M$151*(1+rvanilla)^0.5)/A1stdlife)) -> 0 | AB64: =IF(A1stdlife="n/a","n/a",IF(AB$3>(A1stdlife+$E64),(Input!$M$151*(1+rvanilla)^0.5)-SUM($M64:AA64),(Input!$M$151*(1+rvanilla)^0.5)/A1stdlife)) -> 0 | AC64: =IF(A1stdlife="n/a","n/a",IF(AC$3>(A1stdlife+$E64),(Input!$M$151*(1+rvanilla)^0.5)-SUM($M64:AB64),(Input!$M$151*(1+rvanilla)^0.5)/A1stdlife)) -> 0 | AD64: =IF(A1stdlife="n/a","n/a",IF(AD$3>(A1stdlife+$E64),(Input!$M$151*(1+rvanilla)^0.5)-SUM($M64:AC64),(Input!$M$151*(1+rvanilla)^0.5)/A1stdlife)) -> 0 | AE64: =IF(A1stdlife="n/a","n/a",IF(AE$3>(A1stdlife+$E64),(Input!$M$151*(1+rvanilla)^0.5)-SUM($M64:AD64),(Input!$M$151*(1+rvanilla)^0.5)/A1stdlife)) -> 0 | AF64: =IF(A1stdlife="n/a","n/a",IF(AF$3>(A1stdlife+$E64),(Input!$M$151*(1+rvanilla)^0.5)-SUM($M64:AE64),(Input!$M$151*(1+rvanilla)^0.5)/A1stdlife)) -> 0 | AG64: =IF(A1stdlife="n/a","n/a",IF(AG$3>(A1stdlife+$E64),(Input!$M$151*(1+rvanilla)^0.5)-SUM($M64:AF64),(Input!$M$151*(1+rvanilla)^0.5)/A1stdlife)) -> 0 | AH64: =IF(A1stdlife="n/a","n/a",IF(AH$3>(A1stdlife+$E64),(Input!$M$151*(1+rvanilla)^0.5)-SUM($M64:AG64),(Input!$M$151*(1+rvanilla)^0.5)/A1stdlife)) -> 0 | AI64: =IF(A1stdlife="n/a","n/a",IF(AI$3>(A1stdlife+$E64),(Input!$M$151*(1+rvanilla)^0.5)-SUM($M64:AH64),(Input!$M$151*(1+rvanilla)^0.5)/A1stdlife)) -> 0 | AJ64: =IF(A1stdlife="n/a","n/a",IF(AJ$3>(A1stdlife+$E64),(Input!$M$151*(1+rvanilla)^0.5)-SUM($M64:AI64),(Input!$M$151*(1+rvanilla)^0.5)/A1stdlife)) -> 0 | AK64: =IF(A1stdlife="n/a","n/a",IF(AK$3>(A1stdlife+$E64),(Input!$M$151*(1+rvanilla)^0.5)-SUM($M64:AJ64),(Input!$M$151*(1+rvanilla)^0.5)/A1stdlife)) -> 0 | AL64: =IF(A1stdlife="n/a","n/a",IF(AL$3>(A1stdlife+$E64),(Input!$M$151*(1+rvanilla)^0.5)-SUM($M64:AK64),(Input!$M$151*(1+rvanilla)^0.5)/A1stdlife)) -> 0 | AM64: =IF(A1stdlife="n/a","n/a",IF(AM$3>(A1stdlife+$E64),(Input!$M$151*(1+rvanilla)^0.5)-SUM($M64:AL64),(Input!$M$151*(1+rvanilla)^0.5)/A1stdlife)) -> 0 | AN64: =IF(A1stdlife="n/a","n/a",IF(AN$3>(A1stdlife+$E64),(Input!$M$151*(1+rvanilla)^0.5)-SUM($M64:AM64),(Input!$M$151*(1+rvanilla)^0.5)/A1stdlife)) -> 0 | AO64: =IF(A1stdlife="n/a","n/a",IF(AO$3>(A1stdlife+$E64),(Input!$M$151*(1+rvanilla)^0.5)-SUM($M64:AN64),(Input!$M$151*(1+rvanilla)^0.5)/A1stdlife)) -> 0 | AP64: =IF(A1stdlife="n/a","n/a",IF(AP$3>(A1stdlife+$E64),(Input!$M$151*(1+rvanilla)^0.5)-SUM($M64:AO64),(Input!$M$151*(1+rvanilla)^0.5)/A1stdlife)) -> 0 | AQ64: =IF(A1stdlife="n/a","n/a",IF(AQ$3>(A1stdlife+$E64),(Input!$M$151*(1+rvanilla)^0.5)-SUM($M64:AP64),(Input!$M$151*(1+rvanilla)^0.5)/A1stdlife)) -> 0 | AR64: =IF(A1stdlife="n/a","n/a",IF(AR$3>(A1stdlife+$E64),(Input!$M$151*(1+rvanilla)^0.5)-SUM($M64:AQ64),(Input!$M$151*(1+rvanilla)^0.5)/A1stdlife)) -> 0 | AS64: =IF(A1stdlife="n/a","n/a",IF(AS$3>(A1stdlife+$E64),(Input!$M$151*(1+rvanilla)^0.5)-SUM($M64:AR64),(Input!$M$151*(1+rvanilla)^0.5)/A1stdlife)) -> 0 | AT64: =IF(A1stdlife="n/a","n/a",IF(AT$3>(A1stdlife+$E64),(Input!$M$151*(1+rvanilla)^0.5)-SUM($M64:AS64),(Input!$M$151*(1+rvanilla)^0.5)/A1stdlife)) -> 0 | AU64: =IF(A1stdlife="n/a","n/a",IF(AU$3>(A1stdlife+$E64),(Input!$M$151*(1+rvanilla)^0.5)-SUM($M64:AT64),(Input!$M$151*(1+rvanilla)^0.5)/A1stdlife)) -> 0 | AV64: =IF(A1stdlife="n/a","n/a",IF(AV$3>(A1stdlife+$E64),(Input!$M$151*(1+rvanilla)^0.5)-SUM($M64:AU64),(Input!$M$151*(1+rvanilla)^0.5)/A1stdlife)) -> 0 | AW64: =IF(A1stdlife="n/a","n/a",IF(AW$3>(A1stdlife+$E64),(Input!$M$151*(1+rvanilla)^0.5)-SUM($M64:AV64),(Input!$M$151*(1+rvanilla)^0.5)/A1stdlife)) -> 0 | AX64: =IF(A1stdlife="n/a","n/a",IF(AX$3>(A1stdlife+$E64),(Input!$M$151*(1+rvanilla)^0.5)-SUM($M64:AW64),(Input!$M$151*(1+rvanilla)^0.5)/A1stdlife)) -> 0 | AY64: =IF(A1stdlife="n/a","n/a",IF(AY$3>(A1stdlife+$E64),(Input!$M$151*(1+rvanilla)^0.5)-SUM($M64:AX64),(Input!$M$151*(1+rvanilla)^0.5)/A1stdlife)) -> 0 | AZ64: =IF(A1stdlife="n/a","n/a",IF(AZ$3>(A1stdlife+$E64),(Input!$M$151*(1+rvanilla)^0.5)-SUM($M64:AY64),(Input!$M$151*(1+rvanilla)^0.5)/A1stdlife)) -> 0 | BA64: =IF(A1stdlife="n/a","n/a",IF(BA$3>(A1stdlife+$E64),(Input!$M$151*(1+rvanilla)^0.5)-SUM($M64:AZ64),(Input!$M$151*(1+rvanilla)^0.5)/A1stdlife)) -> 0 | BB64: =IF(A1stdlife="n/a","n/a",IF(BB$3>(A1stdlife+$E64),(Input!$M$151*(1+rvanilla)^0.5)-SUM($M64:BA64),(Input!$M$151*(1+rvanilla)^0.5)/A1stdlife)) -> 0 | BC64: =IF(A1stdlife="n/a","n/a",IF(BC$3>(A1stdlife+$E64),(Input!$M$151*(1+rvanilla)^0.5)-SUM($M64:BB64),(Input!$M$151*(1+rvanilla)^0.5)/A1stdlife)) -> 0 | BD64: =IF(A1stdlife="n/a","n/a",IF(BD$3>(A1stdlife+$E64),(Input!$M$151*(1+rvanilla)^0.5)-SUM($M64:BC64),(Input!$M$151*(1+rvanilla)^0.5)/A1stdlife)) -> 0 | BE64: =IF(A1stdlife="n/a","n/a",IF(BE$3>(A1stdlife+$E64),(Input!$M$151*(1+rvanilla)^0.5)-SUM($M64:BD64),(Input!$M$151*(1+rvanilla)^0.5)/A1stdlife)) -> 0 | BF64: =IF(A1stdlife="n/a","n/a",IF(BF$3>(A1stdlife+$E64),(Input!$M$151*(1+rvanilla)^0.5)-SUM($M64:BE64),(Input!$M$151*(1+rvanilla)^0.5)/A1stdlife)) -> 0 | BG64: =IF(A1stdlife="n/a","n/a",IF(BG$3>(A1stdlife+$E64),(Input!$M$151*(1+rvanilla)^0.5)-SUM($M64:BF64),(Input!$M$151*(1+rvanilla)^0.5)/A1stdlife)) -> 0 | BH64: =IF(A1stdlife="n/a","n/a",IF(BH$3>(A1stdlife+$E64),(Input!$M$151*(1+rvanilla)^0.5)-SUM($M64:BG64),(Input!$M$151*(1+rvanilla)^0.5)/A1stdlife)) -> 0 | BI64: =IF(A1stdlife="n/a","n/a",IF(BI$3>(A1stdlife+$E64),(Input!$M$151*(1+rvanilla)^0.5)-SUM($M64:BH64),(Input!$M$151*(1+rvanilla)^0.5)/A1stdlife)) -> 0
E65: 8 | O65: =IF(A1stdlife="n/a","n/a",IF(O$3>(A1stdlife+$E65),(Input!$N$151*(1+rvanilla)^0.5)-SUM($N65:N65),(Input!$N$151*(1+rvanilla)^0.5)/A1stdlife)) -> 0 | P65: =IF(A1stdlife="n/a","n/a",IF(P$3>(A1stdlife+$E65),(Input!$N$151*(1+rvanilla)^0.5)-SUM($N65:O65),(Input!$N$151*(1+rvanilla)^0.5)/A1stdlife)) -> 0 | Q65: =IF(A1stdlife="n/a","n/a",IF(Q$3>(A1stdlife+$E65),(Input!$N$151*(1+rvanilla)^0.5)-SUM($N65:P65),(Input!$N$151*(1+rvanilla)^0.5)/A1stdlife)) -> 0 | R65: =IF(A1stdlife="n/a","n/a",IF(R$3>(A1stdlife+$E65),(Input!$N$151*(1+rvanilla)^0.5)-SUM($N65:Q65),(Input!$N$151*(1+rvanilla)^0.5)/A1stdlife)) -> 0 | S65: =IF(A1stdlife="n/a","n/a",IF(S$3>(A1stdlife+$E65),(Input!$N$151*(1+rvanilla)^0.5)-SUM($N65:R65),(Input!$N$151*(1+rvanilla)^0.5)/A1stdlife)) -> 0 | T65: =IF(A1stdlife="n/a","n/a",IF(T$3>(A1stdlife+$E65),(Input!$N$151*(1+rvanilla)^0.5)-SUM($N65:S65),(Input!$N$151*(1+rvanilla)^0.5)/A1stdlife)) -> 0 | U65: =IF(A1stdlife="n/a","n/a",IF(U$3>(A1stdlife+$E65),(Input!$N$151*(1+rvanilla)^0.5)-SUM($N65:T65),(Input!$N$151*(1+rvanilla)^0.5)/A1stdlife)) -> 0 | V65: =IF(A1stdlife="n/a","n/a",IF(V$3>(A1stdlife+$E65),(Input!$N$151*(1+rvanilla)^0.5)-SUM($N65:U65),(Input!$N$151*(1+rvanilla)^0.5)/A1stdlife)) -> 0 | W65: =IF(A1stdlife="n/a","n/a",IF(W$3>(A1stdlife+$E65),(Input!$N$151*(1+rvanilla)^0.5)-SUM($N65:V65),(Input!$N$151*(1+rvanilla)^0.5)/A1stdlife)) -> 0 | X65: =IF(A1stdlife="n/a","n/a",IF(X$3>(A1stdlife+$E65),(Input!$N$151*(1+rvanilla)^0.5)-SUM($N65:W65),(Input!$N$151*(1+rvanilla)^0.5)/A1stdlife)) -> 0 | Y65: =IF(A1stdlife="n/a","n/a",IF(Y$3>(A1stdlife+$E65),(Input!$N$151*(1+rvanilla)^0.5)-SUM($N65:X65),(Input!$N$151*(1+rvanilla)^0.5)/A1stdlife)) -> 0 | Z65: =IF(A1stdlife="n/a","n/a",IF(Z$3>(A1stdlife+$E65),(Input!$N$151*(1+rvanilla)^0.5)-SUM($N65:Y65),(Input!$N$151*(1+rvanilla)^0.5)/A1stdlife)) -> 0 | AA65: =IF(A1stdlife="n/a","n/a",IF(AA$3>(A1stdlife+$E65),(Input!$N$151*(1+rvanilla)^0.5)-SUM($N65:Z65),(Input!$N$151*(1+rvanilla)^0.5)/A1stdlife)) -> 0 | AB65: =IF(A1stdlife="n/a","n/a",IF(AB$3>(A1stdlife+$E65),(Input!$N$151*(1+rvanilla)^0.5)-SUM($N65:AA65),(Input!$N$151*(1+rvanilla)^0.5)/A1stdlife)) -> 0 | AC65: =IF(A1stdlife="n/a","n/a",IF(AC$3>(A1stdlife+$E65),(Input!$N$151*(1+rvanilla)^0.5)-SUM($N65:AB65),(Input!$N$151*(1+rvanilla)^0.5)/A1stdlife)) -> 0 | AD65: =IF(A1stdlife="n/a","n/a",IF(AD$3>(A1stdlife+$E65),(Input!$N$151*(1+rvanilla)^0.5)-SUM($N65:AC65),(Input!$N$151*(1+rvanilla)^0.5)/A1stdlife)) -> 0 | AE65: =IF(A1stdlife="n/a","n/a",IF(AE$3>(A1stdlife+$E65),(Input!$N$151*(1+rvanilla)^0.5)-SUM($N65:AD65),(Input!$N$151*(1+rvanilla)^0.5)/A1stdlife)) -> 0 | AF65: =IF(A1stdlife="n/a","n/a",IF(AF$3>(A1stdlife+$E65),(Input!$N$151*(1+rvanilla)^0.5)-SUM($N65:AE65),(Input!$N$151*(1+rvanilla)^0.5)/A1stdlife)) -> 0 | AG65: =IF(A1stdlife="n/a","n/a",IF(AG$3>(A1stdlife+$E65),(Input!$N$151*(1+rvanilla)^0.5)-SUM($N65:AF65),(Input!$N$151*(1+rvanilla)^0.5)/A1stdlife)) -> 0 | AH65: =IF(A1stdlife="n/a","n/a",IF(AH$3>(A1stdlife+$E65),(Input!$N$151*(1+rvanilla)^0.5)-SUM($N65:AG65),(Input!$N$151*(1+rvanilla)^0.5)/A1stdlife)) -> 0 | AI65: =IF(A1stdlife="n/a","n/a",IF(AI$3>(A1stdlife+$E65),(Input!$N$151*(1+rvanilla)^0.5)-SUM($N65:AH65),(Input!$N$151*(1+rvanilla)^0.5)/A1stdlife)) -> 0 | AJ65: =IF(A1stdlife="n/a","n/a",IF(AJ$3>(A1stdlife+$E65),(Input!$N$151*(1+rvanilla)^0.5)-SUM($N65:AI65),(Input!$N$151*(1+rvanilla)^0.5)/A1stdlife)) -> 0 | AK65: =IF(A1stdlife="n/a","n/a",IF(AK$3>(A1stdlife+$E65),(Input!$N$151*(1+rvanilla)^0.5)-SUM($N65:AJ65),(Input!$N$151*(1+rvanilla)^0.5)/A1stdlife)) -> 0 | AL65: =IF(A1stdlife="n/a","n/a",IF(AL$3>(A1stdlife+$E65),(Input!$N$151*(1+rvanilla)^0.5)-SUM($N65:AK65),(Input!$N$151*(1+rvanilla)^0.5)/A1stdlife)) -> 0 | AM65: =IF(A1stdlife="n/a","n/a",IF(AM$3>(A1stdlife+$E65),(Input!$N$151*(1+rvanilla)^0.5)-SUM($N65:AL65),(Input!$N$151*(1+rvanilla)^0.5)/A1stdlife)) -> 0 | AN65: =IF(A1stdlife="n/a","n/a",IF(AN$3>(A1stdlife+$E65),(Input!$N$151*(1+rvanilla)^0.5)-SUM($N65:AM65),(Input!$N$151*(1+rvanilla)^0.5)/A1stdlife)) -> 0 | AO65: =IF(A1stdlife="n/a","n/a",IF(AO$3>(A1stdlife+$E65),(Input!$N$151*(1+rvanilla)^0.5)-SUM($N65:AN65),(Input!$N$151*(1+rvanilla)^0.5)/A1stdlife)) -> 0 | AP65: =IF(A1stdlife="n/a","n/a",IF(AP$3>(A1stdlife+$E65),(Input!$N$151*(1+rvanilla)^0.5)-SUM($N65:AO65),(Input!$N$151*(1+rvanilla)^0.5)/A1stdlife)) -> 0 | AQ65: =IF(A1stdlife="n/a","n/a",IF(AQ$3>(A1stdlife+$E65),(Input!$N$151*(1+rvanilla)^0.5)-SUM($N65:AP65),(Input!$N$151*(1+rvanilla)^0.5)/A1stdlife)) -> 0 | AR65: =IF(A1stdlife="n/a","n/a",IF(AR$3>(A1stdlife+$E65),(Input!$N$151*(1+rvanilla)^0.5)-SUM($N65:AQ65),(Input!$N$151*(1+rvanilla)^0.5)/A1stdlife)) -> 0 | AS65: =IF(A1stdlife="n/a","n/a",IF(AS$3>(A1stdlife+$E65),(Input!$N$151*(1+rvanilla)^0.5)-SUM($N65:AR65),(Input!$N$151*(1+rvanilla)^0.5)/A1stdlife)) -> 0 | AT65: =IF(A1stdlife="n/a","n/a",IF(AT$3>(A1stdlife+$E65),(Input!$N$151*(1+rvanilla)^0.5)-SUM($N65:AS65),(Input!$N$151*(1+rvanilla)^0.5)/A1stdlife)) -> 0 | AU65: =IF(A1stdlife="n/a","n/a",IF(AU$3>(A1stdlife+$E65),(Input!$N$151*(1+rvanilla)^0.5)-SUM($N65:AT65),(Input!$N$151*(1+rvanilla)^0.5)/A1stdlife)) -> 0 | AV65: =IF(A1stdlife="n/a","n/a",IF(AV$3>(A1stdlife+$E65),(Input!$N$151*(1+rvanilla)^0.5)-SUM($N65:AU65),(Input!$N$151*(1+rvanilla)^0.5)/A1stdlife)) -> 0 | AW65: =IF(A1stdlife="n/a","n/a",IF(AW$3>(A1stdlife+$E65),(Input!$N$151*(1+rvanilla)^0.5)-SUM($N65:AV65),(Input!$N$151*(1+rvanilla)^0.5)/A1stdlife)) -> 0 | AX65: =IF(A1stdlife="n/a","n/a",IF(AX$3>(A1stdlife+$E65),(Input!$N$151*(1+rvanilla)^0.5)-SUM($N65:AW65),(Input!$N$151*(1+rvanilla)^0.5)/A1stdlife)) -> 0 | AY65: =IF(A1stdlife="n/a","n/a",IF(AY$3>(A1stdlife+$E65),(Input!$N$151*(1+rvanilla)^0.5)-SUM($N65:AX65),(Input!$N$151*(1+rvanilla)^0.5)/A1stdlife)) -> 0 | AZ65: =IF(A1stdlife="n/a","n/a",IF(AZ$3>(A1stdlife+$E65),(Input!$N$151*(1+rvanilla)^0.5)-SUM($N65:AY65),(Input!$N$151*(1+rvanilla)^0.5)/A1stdlife)) -> 0 | BA65: =IF(A1stdlife="n/a","n/a",IF(BA$3>(A1stdlife+$E65),(Input!$N$151*(1+rvanilla)^0.5)-SUM($N65:AZ65),(Input!$N$151*(1+rvanilla)^0.5)/A1stdlife)) -> 0 | BB65: =IF(A1stdlife="n/a","n/a",IF(BB$3>(A1stdlife+$E65),(Input!$N$151*(1+rvanilla)^0.5)-SUM($N65:BA65),(Input!$N$151*(1+rvanilla)^0.5)/A1stdlife)) -> 0 | BC65: =IF(A1stdlife="n/a","n/a",IF(BC$3>(A1stdlife+$E65),(Input!$N$151*(1+rvanilla)^0.5)-SUM($N65:BB65),(Input!$N$151*(1+rvanilla)^0.5)/A1stdlife)) -> 0 | BD65: =IF(A1stdlife="n/a","n/a",IF(BD$3>(A1stdlife+$E65),(Input!$N$151*(1+rvanilla)^0.5)-SUM($N65:BC65),(Input!$N$151*(1+rvanilla)^0.5)/A1stdlife)) -> 0 | BE65: =IF(A1stdlife="n/a","n/a",IF(BE$3>(A1stdlife+$E65),(Input!$N$151*(1+rvanilla)^0.5)-SUM($N65:BD65),(Input!$N$151*(1+rvanilla)^0.5)/A1stdlife)) -> 0 | BF65: =IF(A1stdlife="n/a","n/a",IF(BF$3>(A1stdlife+$E65),(Input!$N$151*(1+rvanilla)^0.5)-SUM($N65:BE65),(Input!$N$151*(1+rvanilla)^0.5)/A1stdlife)) -> 0 | BG65: =IF(A1stdlife="n/a","n/a",IF(BG$3>(A1stdlife+$E65),(Input!$N$151*(1+rvanilla)^0.5)-SUM($N65:BF65),(Input!$N$151*(1+rvanilla)^0.5)/A1stdlife)) -> 0 | BH65: =IF(A1stdlife="n/a","n/a",IF(BH$3>(A1stdlife+$E65),(Input!$N$151*(1+rvanilla)^0.5)-SUM($N65:BG65),(Input!$N$151*(1+rvanilla)^0.5)/A1stdlife)) -> 0 | BI65: =IF(A1stdlife="n/a","n/a",IF(BI$3>(A1stdlife+$E65),(Input!$N$151*(1+rvanilla)^0.5)-SUM($N65:BH65),(Input!$N$151*(1+rvanilla)^0.5)/A1stdlife)) -> 0
E66: 9 | P66: =IF(A1stdlife="n/a","n/a",IF(P$3>(A1stdlife+$E66),(Input!$O$151*(1+rvanilla)^0.5)-SUM($O66:O66),(Input!$O$151*(1+rvanilla)^0.5)/A1stdlife)) -> 0 | Q66: =IF(A1stdlife="n/a","n/a",IF(Q$3>(A1stdlife+$E66),(Input!$O$151*(1+rvanilla)^0.5)-SUM($O66:P66),(Input!$O$151*(1+rvanilla)^0.5)/A1stdlife)) -> 0 | R66: =IF(A1stdlife="n/a","n/a",IF(R$3>(A1stdlife+$E66),(Input!$O$151*(1+rvanilla)^0.5)-SUM($O66:Q66),(Input!$O$151*(1+rvanilla)^0.5)/A1stdlife)) -> 0 | S66: =IF(A1stdlife="n/a","n/a",IF(S$3>(A1stdlife+$E66),(Input!$O$151*(1+rvanilla)^0.5)-SUM($O66:R66),(Input!$O$151*(1+rvanilla)^0.5)/A1stdlife)) -> 0 | T66: =IF(A1stdlife="n/a","n/a",IF(T$3>(A1stdlife+$E66),(Input!$O$151*(1+rvanilla)^0.5)-SUM($O66:S66),(Input!$O$151*(1+rvanilla)^0.5)/A1stdlife)) -> 0 | U66: =IF(A1stdlife="n/a","n/a",IF(U$3>(A1stdlife+$E66),(Input!$O$151*(1+rvanilla)^0.5)-SUM($O66:T66),(Input!$O$151*(1+rvanilla)^0.5)/A1stdlife)) -> 0 | V66: =IF(A1stdlife="n/a","n/a",IF(V$3>(A1stdlife+$E66),(Input!$O$151*(1+rvanilla)^0.5)-SUM($O66:U66),(Input!$O$151*(1+rvanilla)^0.5)/A1stdlife)) -> 0 | W66: =IF(A1stdlife="n/a","n/a",IF(W$3>(A1stdlife+$E66),(Input!$O$151*(1+rvanilla)^0.5)-SUM($O66:V66),(Input!$O$151*(1+rvanilla)^0.5)/A1stdlife)) -> 0 | X66: =IF(A1stdlife="n/a","n/a",IF(X$3>(A1stdlife+$E66),(Input!$O$151*(1+rvanilla)^0.5)-SUM($O66:W66),(Input!$O$151*(1+rvanilla)^0.5)/A1stdlife)) -> 0 | Y66: =IF(A1stdlife="n/a","n/a",IF(Y$3>(A1stdlife+$E66),(Input!$O$151*(1+rvanilla)^0.5)-SUM($O66:X66),(Input!$O$151*(1+rvanilla)^0.5)/A1stdlife)) -> 0 | Z66: =IF(A1stdlife="n/a","n/a",IF(Z$3>(A1stdlife+$E66),(Input!$O$151*(1+rvanilla)^0.5)-SUM($O66:Y66),(Input!$O$151*(1+rvanilla)^0.5)/A1stdlife)) -> 0 | AA66: =IF(A1stdlife="n/a","n/a",IF(AA$3>(A1stdlife+$E66),(Input!$O$151*(1+rvanilla)^0.5)-SUM($O66:Z66),(Input!$O$151*(1+rvanilla)^0.5)/A1stdlife)) -> 0 | AB66: =IF(A1stdlife="n/a","n/a",IF(AB$3>(A1stdlife+$E66),(Input!$O$151*(1+rvanilla)^0.5)-SUM($O66:AA66),(Input!$O$151*(1+rvanilla)^0.5)/A1stdlife)) -> 0 | AC66: =IF(A1stdlife="n/a","n/a",IF(AC$3>(A1stdlife+$E66),(Input!$O$151*(1+rvanilla)^0.5)-SUM($O66:AB66),(Input!$O$151*(1+rvanilla)^0.5)/A1stdlife)) -> 0 | AD66: =IF(A1stdlife="n/a","n/a",IF(AD$3>(A1stdlife+$E66),(Input!$O$151*(1+rvanilla)^0.5)-SUM($O66:AC66),(Input!$O$151*(1+rvanilla)^0.5)/A1stdlife)) -> 0 | AE66: =IF(A1stdlife="n/a","n/a",IF(AE$3>(A1stdlife+$E66),(Input!$O$151*(1+rvanilla)^0.5)-SUM($O66:AD66),(Input!$O$151*(1+rvanilla)^0.5)/A1stdlife)) -> 0 | AF66: =IF(A1stdlife="n/a","n/a",IF(AF$3>(A1stdlife+$E66),(Input!$O$151*(1+rvanilla)^0.5)-SUM($O66:AE66),(Input!$O$151*(1+rvanilla)^0.5)/A1stdlife)) -> 0 | AG66: =IF(A1stdlife="n/a","n/a",IF(AG$3>(A1stdlife+$E66),(Input!$O$151*(1+rvanilla)^0.5)-SUM($O66:AF66),(Input!$O$151*(1+rvanilla)^0.5)/A1stdlife)) -> 0 | AH66: =IF(A1stdlife="n/a","n/a",IF(AH$3>(A1stdlife+$E66),(Input!$O$151*(1+rvanilla)^0.5)-SUM($O66:AG66),(Input!$O$151*(1+rvanilla)^0.5)/A1stdlife)) -> 0 | AI66: =IF(A1stdlife="n/a","n/a",IF(AI$3>(A1stdlife+$E66),(Input!$O$151*(1+rvanilla)^0.5)-SUM($O66:AH66),(Input!$O$151*(1+rvanilla)^0.5)/A1stdlife)) -> 0 | AJ66: =IF(A1stdlife="n/a","n/a",IF(AJ$3>(A1stdlife+$E66),(Input!$O$151*(1+rvanilla)^0.5)-SUM($O66:AI66),(Input!$O$151*(1+rvanilla)^0.5)/A1stdlife)) -> 0 | AK66: =IF(A1stdlife="n/a","n/a",IF(AK$3>(A1stdlife+$E66),(Input!$O$151*(1+rvanilla)^0.5)-SUM($O66:AJ66),(Input!$O$151*(1+rvanilla)^0.5)/A1stdlife)) -> 0 | AL66: =IF(A1stdlife="n/a","n/a",IF(AL$3>(A1stdlife+$E66),(Input!$O$151*(1+rvanilla)^0.5)-SUM($O66:AK66),(Input!$O$151*(1+rvanilla)^0.5)/A1stdlife)) -> 0 | AM66: =IF(A1stdlife="n/a","n/a",IF(AM$3>(A1stdlife+$E66),(Input!$O$151*(1+rvanilla)^0.5)-SUM($O66:AL66),(Input!$O$151*(1+rvanilla)^0.5)/A1stdlife)) -> 0 | AN66: =IF(A1stdlife="n/a","n/a",IF(AN$3>(A1stdlife+$E66),(Input!$O$151*(1+rvanilla)^0.5)-SUM($O66:AM66),(Input!$O$151*(1+rvanilla)^0.5)/A1stdlife)) -> 0 | AO66: =IF(A1stdlife="n/a","n/a",IF(AO$3>(A1stdlife+$E66),(Input!$O$151*(1+rvanilla)^0.5)-SUM($O66:AN66),(Input!$O$151*(1+rvanilla)^0.5)/A1stdlife)) -> 0 | AP66: =IF(A1stdlife="n/a","n/a",IF(AP$3>(A1stdlife+$E66),(Input!$O$151*(1+rvanilla)^0.5)-SUM($O66:AO66),(Input!$O$151*(1+rvanilla)^0.5)/A1stdlife)) -> 0 | AQ66: =IF(A1stdlife="n/a","n/a",IF(AQ$3>(A1stdlife+$E66),(Input!$O$151*(1+rvanilla)^0.5)-SUM($O66:AP66),(Input!$O$151*(1+rvanilla)^0.5)/A1stdlife)) -> 0 | AR66: =IF(A1stdlife="n/a","n/a",IF(AR$3>(A1stdlife+$E66),(Input!$O$151*(1+rvanilla)^0.5)-SUM($O66:AQ66),(Input!$O$151*(1+rvanilla)^0.5)/A1stdlife)) -> 0 | AS66: =IF(A1stdlife="n/a","n/a",IF(AS$3>(A1stdlife+$E66),(Input!$O$151*(1+rvanilla)^0.5)-SUM($O66:AR66),(Input!$O$151*(1+rvanilla)^0.5)/A1stdlife)) -> 0 | AT66: =IF(A1stdlife="n/a","n/a",IF(AT$3>(A1stdlife+$E66),(Input!$O$151*(1+rvanilla)^0.5)-SUM($O66:AS66),(Input!$O$151*(1+rvanilla)^0.5)/A1stdlife)) -> 0 | AU66: =IF(A1stdlife="n/a","n/a",IF(AU$3>(A1stdlife+$E66),(Input!$O$151*(1+rvanilla)^0.5)-SUM($O66:AT66),(Input!$O$151*(1+rvanilla)^0.5)/A1stdlife)) -> 0 | AV66: =IF(A1stdlife="n/a","n/a",IF(AV$3>(A1stdlife+$E66),(Input!$O$151*(1+rvanilla)^0.5)-SUM($O66:AU66),(Input!$O$151*(1+rvanilla)^0.5)/A1stdlife)) -> 0 | AW66: =IF(A1stdlife="n/a","n/a",IF(AW$3>(A1stdlife+$E66),(Input!$O$151*(1+rvanilla)^0.5)-SUM($O66:AV66),(Input!$O$151*(1+rvanilla)^0.5)/A1stdlife)) -> 0 | AX66: =IF(A1stdlife="n/a","n/a",IF(AX$3>(A1stdlife+$E66),(Input!$O$151*(1+rvanilla)^0.5)-SUM($O66:AW66),(Input!$O$151*(1+rvanilla)^0.5)/A1stdlife)) -> 0 | AY66: =IF(A1stdlife="n/a","n/a",IF(AY$3>(A1stdlife+$E66),(Input!$O$151*(1+rvanilla)^0.5)-SUM($O66:AX66),(Input!$O$151*(1+rvanilla)^0.5)/A1stdlife)) -> 0 | AZ66: =IF(A1stdlife="n/a","n/a",IF(AZ$3>(A1stdlife+$E66),(Input!$O$151*(1+rvanilla)^0.5)-SUM($O66:AY66),(Input!$O$151*(1+rvanilla)^0.5)/A1stdlife)) -> 0 | BA66: =IF(A1stdlife="n/a","n/a",IF(BA$3>(A1stdlife+$E66),(Input!$O$151*(1+rvanilla)^0.5)-SUM($O66:AZ66),(Input!$O$151*(1+rvanilla)^0.5)/A1stdlife)) -> 0 | BB66: =IF(A1stdlife="n/a","n/a",IF(BB$3>(A1stdlife+$E66),(Input!$O$151*(1+rvanilla)^0.5)-SUM($O66:BA66),(Input!$O$151*(1+rvanilla)^0.5)/A1stdlife)) -> 0 | BC66: =IF(A1stdlife="n/a","n/a",IF(BC$3>(A1stdlife+$E66),(Input!$O$151*(1+rvanilla)^0.5)-SUM($O66:BB66),(Input!$O$151*(1+rvanilla)^0.5)/A1stdlife)) -> 0 | BD66: =IF(A1stdlife="n/a","n/a",IF(BD$3>(A1stdlife+$E66),(Input!$O$151*(1+rvanilla)^0.5)-SUM($O66:BC66),(Input!$O$151*(1+rvanilla)^0.5)/A1stdlife)) -> 0 | BE66: =IF(A1stdlife="n/a","n/a",IF(BE$3>(A1stdlife+$E66),(Input!$O$151*(1+rvanilla)^0.5)-SUM($O66:BD66),(Input!$O$151*(1+rvanilla)^0.5)/A1stdlife)) -> 0 | BF66: =IF(A1stdlife="n/a","n/a",IF(BF$3>(A1stdlife+$E66),(Input!$O$151*(1+rvanilla)^0.5)-SUM($O66:BE66),(Input!$O$151*(1+rvanilla)^0.5)/A1stdlife)) -> 0 | BG66: =IF(A1stdlife="n/a","n/a",IF(BG$3>(A1stdlife+$E66),(Input!$O$151*(1+rvanilla)^0.5)-SUM($O66:BF66),(Input!$O$151*(1+rvanilla)^0.5)/A1stdlife)) -> 0 | BH66: =IF(A1stdlife="n/a","n/a",IF(BH$3>(A1stdlife+$E66),(Input!$O$151*(1+rvanilla)^0.5)-SUM($O66:BG66),(Input!$O$151*(1+rvanilla)^0.5)/A1stdlife)) -> 0 | BI66: =IF(A1stdlife="n/a","n/a",IF(BI$3>(A1stdlife+$E66),(Input!$O$151*(1+rvanilla)^0.5)-SUM($O66:BH66),(Input!$O$151*(1+rvanilla)^0.5)/A1stdlife)) -> 0
E67: 10 | Q67: =IF(A1stdlife="n/a","n/a",IF(Q$3>(A1stdlife+$E67),(Input!$P$151*(1+rvanilla)^0.5)-SUM($P67:P67),(Input!$P$151*(1+rvanilla)^0.5)/A1stdlife)) -> 0 | R67: =IF(A1stdlife="n/a","n/a",IF(R$3>(A1stdlife+$E67),(Input!$P$151*(1+rvanilla)^0.5)-SUM($P67:Q67),(Input!$P$151*(1+rvanilla)^0.5)/A1stdlife)) -> 0 | S67: =IF(A1stdlife="n/a","n/a",IF(S$3>(A1stdlife+$E67),(Input!$P$151*(1+rvanilla)^0.5)-SUM($P67:R67),(Input!$P$151*(1+rvanilla)^0.5)/A1stdlife)) -> 0 | T67: =IF(A1stdlife="n/a","n/a",IF(T$3>(A1stdlife+$E67),(Input!$P$151*(1+rvanilla)^0.5)-SUM($P67:S67),(Input!$P$151*(1+rvanilla)^0.5)/A1stdlife)) -> 0 | U67: =IF(A1stdlife="n/a","n/a",IF(U$3>(A1stdlife+$E67),(Input!$P$151*(1+rvanilla)^0.5)-SUM($P67:T67),(Input!$P$151*(1+rvanilla)^0.5)/A1stdlife)) -> 0 | V67: =IF(A1stdlife="n/a","n/a",IF(V$3>(A1stdlife+$E67),(Input!$P$151*(1+rvanilla)^0.5)-SUM($P67:U67),(Input!$P$151*(1+rvanilla)^0.5)/A1stdlife)) -> 0 | W67: =IF(A1stdlife="n/a","n/a",IF(W$3>(A1stdlife+$E67),(Input!$P$151*(1+rvanilla)^0.5)-SUM($P67:V67),(Input!$P$151*(1+rvanilla)^0.5)/A1stdlife)) -> 0 | X67: =IF(A1stdlife="n/a","n/a",IF(X$3>(A1stdlife+$E67),(Input!$P$151*(1+rvanilla)^0.5)-SUM($P67:W67),(Input!$P$151*(1+rvanilla)^0.5)/A1stdlife)) -> 0 | Y67: =IF(A1stdlife="n/a","n/a",IF(Y$3>(A1stdlife+$E67),(Input!$P$151*(1+rvanilla)^0.5)-SUM($P67:X67),(Input!$P$151*(1+rvanilla)^0.5)/A1stdlife)) -> 0 | Z67: =IF(A1stdlife="n/a","n/a",IF(Z$3>(A1stdlife+$E67),(Input!$P$151*(1+rvanilla)^0.5)-SUM($P67:Y67),(Input!$P$151*(1+rvanilla)^0.5)/A1stdlife)) -> 0 | AA67: =IF(A1stdlife="n/a","n/a",IF(AA$3>(A1stdlife+$E67),(Input!$P$151*(1+rvanilla)^0.5)-SUM($P67:Z67),(Input!$P$151*(1+rvanilla)^0.5)/A1stdlife)) -> 0 | AB67: =IF(A1stdlife="n/a","n/a",IF(AB$3>(A1stdlife+$E67),(Input!$P$151*(1+rvanilla)^0.5)-SUM($P67:AA67),(Input!$P$151*(1+rvanilla)^0.5)/A1stdlife)) -> 0 | AC67: =IF(A1stdlife="n/a","n/a",IF(AC$3>(A1stdlife+$E67),(Input!$P$151*(1+rvanilla)^0.5)-SUM($P67:AB67),(Input!$P$151*(1+rvanilla)^0.5)/A1stdlife)) -> 0 | AD67: =IF(A1stdlife="n/a","n/a",IF(AD$3>(A1stdlife+$E67),(Input!$P$151*(1+rvanilla)^0.5)-SUM($P67:AC67),(Input!$P$151*(1+rvanilla)^0.5)/A1stdlife)) -> 0 | AE67: =IF(A1stdlife="n/a","n/a",IF(AE$3>(A1stdlife+$E67),(Input!$P$151*(1+rvanilla)^0.5)-SUM($P67:AD67),(Input!$P$151*(1+rvanilla)^0.5)/A1stdlife)) -> 0 | AF67: =IF(A1stdlife="n/a","n/a",IF(AF$3>(A1stdlife+$E67),(Input!$P$151*(1+rvanilla)^0.5)-SUM($P67:AE67),(Input!$P$151*(1+rvanilla)^0.5)/A1stdlife)) -> 0 | AG67: =IF(A1stdlife="n/a","n/a",IF(AG$3>(A1stdlife+$E67),(Input!$P$151*(1+rvanilla)^0.5)-SUM($P67:AF67),(Input!$P$151*(1+rvanilla)^0.5)/A1stdlife)) -> 0 | AH67: =IF(A1stdlife="n/a","n/a",IF(AH$3>(A1stdlife+$E67),(Input!$P$151*(1+rvanilla)^0.5)-SUM($P67:AG67),(Input!$P$151*(1+rvanilla)^0.5)/A1stdlife)) -> 0 | AI67: =IF(A1stdlife="n/a","n/a",IF(AI$3>(A1stdlife+$E67),(Input!$P$151*(1+rvanilla)^0.5)-SUM($P67:AH67),(Input!$P$151*(1+rvanilla)^0.5)/A1stdlife)) -> 0 | AJ67: =IF(A1stdlife="n/a","n/a",IF(AJ$3>(A1stdlife+$E67),(Input!$P$151*(1+rvanilla)^0.5)-SUM($P67:AI67),(Input!$P$151*(1+rvanilla)^0.5)/A1stdlife)) -> 0 | AK67: =IF(A1stdlife="n/a","n/a",IF(AK$3>(A1stdlife+$E67),(Input!$P$151*(1+rvanilla)^0.5)-SUM($P67:AJ67),(Input!$P$151*(1+rvanilla)^0.5)/A1stdlife)) -> 0 | AL67: =IF(A1stdlife="n/a","n/a",IF(AL$3>(A1stdlife+$E67),(Input!$P$151*(1+rvanilla)^0.5)-SUM($P67:AK67),(Input!$P$151*(1+rvanilla)^0.5)/A1stdlife)) -> 0 | AM67: =IF(A1stdlife="n/a","n/a",IF(AM$3>(A1stdlife+$E67),(Input!$P$151*(1+rvanilla)^0.5)-SUM($P67:AL67),(Input!$P$151*(1+rvanilla)^0.5)/A1stdlife)) -> 0 | AN67: =IF(A1stdlife="n/a","n/a",IF(AN$3>(A1stdlife+$E67),(Input!$P$151*(1+rvanilla)^0.5)-SUM($P67:AM67),(Input!$P$151*(1+rvanilla)^0.5)/A1stdlife)) -> 0 | AO67: =IF(A1stdlife="n/a","n/a",IF(AO$3>(A1stdlife+$E67),(Input!$P$151*(1+rvanilla)^0.5)-SUM($P67:AN67),(Input!$P$151*(1+rvanilla)^0.5)/A1stdlife)) -> 0 | AP67: =IF(A1stdlife="n/a","n/a",IF(AP$3>(A1stdlife+$E67),(Input!$P$151*(1+rvanilla)^0.5)-SUM($P67:AO67),(Input!$P$151*(1+rvanilla)^0.5)/A1stdlife)) -> 0 | AQ67: =IF(A1stdlife="n/a","n/a",IF(AQ$3>(A1stdlife+$E67),(Input!$P$151*(1+rvanilla)^0.5)-SUM($P67:AP67),(Input!$P$151*(1+rvanilla)^0.5)/A1stdlife)) -> 0 | AR67: =IF(A1stdlife="n/a","n/a",IF(AR$3>(A1stdlife+$E67),(Input!$P$151*(1+rvanilla)^0.5)-SUM($P67:AQ67),(Input!$P$151*(1+rvanilla)^0.5)/A1stdlife)) -> 0 | AS67: =IF(A1stdlife="n/a","n/a",IF(AS$3>(A1stdlife+$E67),(Input!$P$151*(1+rvanilla)^0.5)-SUM($P67:AR67),(Input!$P$151*(1+rvanilla)^0.5)/A1stdlife)) -> 0 | AT67: =IF(A1stdlife="n/a","n/a",IF(AT$3>(A1stdlife+$E67),(Input!$P$151*(1+rvanilla)^0.5)-SUM($P67:AS67),(Input!$P$151*(1+rvanilla)^0.5)/A1stdlife)) -> 0 | AU67: =IF(A1stdlife="n/a","n/a",IF(AU$3>(A1stdlife+$E67),(Input!$P$151*(1+rvanilla)^0.5)-SUM($P67:AT67),(Input!$P$151*(1+rvanilla)^0.5)/A1stdlife)) -> 0 | AV67: =IF(A1stdlife="n/a","n/a",IF(AV$3>(A1stdlife+$E67),(Input!$P$151*(1+rvanilla)^0.5)-SUM($P67:AU67),(Input!$P$151*(1+rvanilla)^0.5)/A1stdlife)) -> 0 | AW67: =IF(A1stdlife="n/a","n/a",IF(AW$3>(A1stdlife+$E67),(Input!$P$151*(1+rvanilla)^0.5)-SUM($P67:AV67),(Input!$P$151*(1+rvanilla)^0.5)/A1stdlife)) -> 0 | AX67: =IF(A1stdlife="n/a","n/a",IF(AX$3>(A1stdlife+$E67),(Input!$P$151*(1+rvanilla)^0.5)-SUM($P67:AW67),(Input!$P$151*(1+rvanilla)^0.5)/A1stdlife)) -> 0 | AY67: =IF(A1stdlife="n/a","n/a",IF(AY$3>(A1stdlife+$E67),(Input!$P$151*(1+rvanilla)^0.5)-SUM($P67:AX67),(Input!$P$151*(1+rvanilla)^0.5)/A1stdlife)) -> 0 | AZ67: =IF(A1stdlife="n/a","n/a",IF(AZ$3>(A1stdlife+$E67),(Input!$P$151*(1+rvanilla)^0.5)-SUM($P67:AY67),(Input!$P$151*(1+rvanilla)^0.5)/A1stdlife)) -> 0 | BA67: =IF(A1stdlife="n/a","n/a",IF(BA$3>(A1stdlife+$E67),(Input!$P$151*(1+rvanilla)^0.5)-SUM($P67:AZ67),(Input!$P$151*(1+rvanilla)^0.5)/A1stdlife)) -> 0 | BB67: =IF(A1stdlife="n/a","n/a",IF(BB$3>(A1stdlife+$E67),(Input!$P$151*(1+rvanilla)^0.5)-SUM($P67:BA67),(Input!$P$151*(1+rvanilla)^0.5)/A1stdlife)) -> 0 | BC67: =IF(A1stdlife="n/a","n/a",IF(BC$3>(A1stdlife+$E67),(Input!$P$151*(1+rvanilla)^0.5)-SUM($P67:BB67),(Input!$P$151*(1+rvanilla)^0.5)/A1stdlife)) -> 0 | BD67: =IF(A1stdlife="n/a","n/a",IF(BD$3>(A1stdlife+$E67),(Input!$P$151*(1+rvanilla)^0.5)-SUM($P67:BC67),(Input!$P$151*(1+rvanilla)^0.5)/A1stdlife)) -> 0 | BE67: =IF(A1stdlife="n/a","n/a",IF(BE$3>(A1stdlife+$E67),(Input!$P$151*(1+rvanilla)^0.5)-SUM($P67:BD67),(Input!$P$151*(1+rvanilla)^0.5)/A1stdlife)) -> 0 | BF67: =IF(A1stdlife="n/a","n/a",IF(BF$3>(A1stdlife+$E67),(Input!$P$151*(1+rvanilla)^0.5)-SUM($P67:BE67),(Input!$P$151*(1+rvanilla)^0.5)/A1stdlife)) -> 0 | BG67: =IF(A1stdlife="n/a","n/a",IF(BG$3>(A1stdlife+$E67),(Input!$P$151*(1+rvanilla)^0.5)-SUM($P67:BF67),(Input!$P$151*(1+rvanilla)^0.5)/A1stdlife)) -> 0 | BH67: =IF(A1stdlife="n/a","n/a",IF(BH$3>(A1stdlife+$E67),(Input!$P$151*(1+rvanilla)^0.5)-SUM($P67:BG67),(Input!$P$151*(1+rvanilla)^0.5)/A1stdlife)) -> 0 | BI67: =IF(A1stdlife="n/a","n/a",IF(BI$3>(A1stdlife+$E67),(Input!$P$151*(1+rvanilla)^0.5)-SUM($P67:BH67),(Input!$P$151*(1+rvanilla)^0.5)/A1stdlife)) -> 0
C68: =Asset1 -> Mains | G68: =SUM(G56:G67) -> 20.48251327 | H68: =SUM(H56:H67) -> 22.02117939 | I68: 23.69016005 | J68: 25.2840064 | K68: 27.00057484 | L68: 28.52296517 | M68: 28.52296517 | N68: 28.52296517 | O68: 28.52296517 | P68: 28.52296517 | Q68: 28.52296517 | R68: 28.52296517 | S68: 28.52296517 | T68: 28.52296517 | U68: 28.52296517 | V68: 28.52296517 | W68: 28.52296517 | X68: 28.52296517 | Y68: 28.52296517 | Z68: 28.52296517 | AA68: 28.52296517 | AB68: 28.52296517 | AC68: 28.52296517 | AD68: 28.52296517 | AE68: 28.52296517 | AF68: 28.52296517 | AG68: 28.52296517 | AH68: 28.52296517 | AI68: 28.52296517 | AJ68: 28.52296517 | AK68: 28.52296517 | AL68: 28.52296517 | AM68: 28.52296517 | AN68: 28.52296517 | AO68: 28.52296517 | AP68: 28.52296517 | AQ68: 28.52296517 | AR68: 28.52296517 | AS68: 28.52296517 | AT68: 28.52296517 | AU68: 28.52296517 | AV68: 28.52296517 | AW68: 28.52296517 | AX68: 28.52296517 | AY68: 28.52296517 | AZ68: 28.52296517 | BA68: 28.52296517 | BB68: 28.52296517 | BC68: 28.52296517 | BD68: 11.03299532 | BE68: 8.040451896 | BF68: 8.040451896 | BG68: 8.040451896 | BH68: 8.040451896 | BI68: 8.040451896
B69: =C81 -> Inlets | D69: Initial Asset Base | G69: =IF(G$3>A2remlife,A2acvalue-SUM($F69:F69),IF(A2remlife="N/A","n/a",A2acvalue/A2remlife)) -> 2.411271017 | H69: =IF(H$3>A2remlife,A2acvalue-SUM($F69:G69),IF(A2remlife="N/A","n/a",A2acvalue/A2remlife)) -> 2.411271017 | I69: =IF(I$3>A2remlife,A2acvalue-SUM($F69:H69),IF(A2remlife="N/A","n/a",A2acvalue/A2remlife)) -> 2.411271017 | J69: =IF(J$3>A2remlife,A2acvalue-SUM($F69:I69),IF(A2remlife="N/A","n/a",A2acvalue/A2remlife)) -> 2.411271017 | K69: =IF(K$3>A2remlife,A2acvalue-SUM($F69:J69),IF(A2remlife="N/A","n/a",A2acvalue/A2remlife)) -> 2.411271017 | L69: =IF(L$3>A2remlife,A2acvalue-SUM($F69:K69),IF(A2remlife="N/A","n/a",A2acvalue/A2remlife)) -> 2.411271017 | M69: =IF(M$3>A2remlife,A2acvalue-SUM($F69:L69),IF(A2remlife="N/A","n/a",A2acvalue/A2remlife)) -> 2.411271017 | N69: =IF(N$3>A2remlife,A2acvalue-SUM($F69:M69),IF(A2remlife="N/A","n/a",A2acvalue/A2remlife)) -> 2.411271017 | O69: =IF(O$3>A2remlife,A2acvalue-SUM($F69:N69),IF(A2remlife="N/A","n/a",A2acvalue/A2remlife)) -> 2.411271017 | P69: =IF(P$3>A2remlife,A2acvalue-SUM($F69:O69),IF(A2remlife="N/A","n/a",A2acvalue/A2remlife)) -> 2.411271017 | Q69: =IF(Q$3>A2remlife,A2acvalue-SUM($F69:P69),IF(A2remlife="N/A","n/a",A2acvalue/A2remlife)) -> 2.411271017 | R69: =IF(R$3>A2remlife,A2acvalue-SUM($F69:Q69),IF(A2remlife="N/A","n/a",A2acvalue/A2remlife)) -> 2.411271017 | S69: =IF(S$3>A2remlife,A2acvalue-SUM($F69:R69),IF(A2remlife="N/A","n/a",A2acvalue/A2remlife)) -> 2.411271017 | T69: =IF(T$3>A2remlife,A2acvalue-SUM($F69:S69),IF(A2remlife="N/A","n/a",A2acvalue/A2remlife)) -> 2.411271017 | U69: =IF(U$3>A2remlife,A2acvalue-SUM($F69:T69),IF(A2remlife="N/A","n/a",A2acvalue/A2remlife)) -> 2.411271017 | V69: =IF(V$3>A2remlife,A2acvalue-SUM($F69:U69),IF(A2remlife="N/A","n/a",A2acvalue/A2remlife)) -> 2.411271017 | W69: =IF(W$3>A2remlife,A2acvalue-SUM($F69:V69),IF(A2remlife="N/A","n/a",A2acvalue/A2remlife)) -> 2.411271017 | X69: =IF(X$3>A2remlife,A2acvalue-SUM($F69:W69),IF(A2remlife="N/A","n/a",A2acvalue/A2remlife)) -> 2.411271017 | Y69: =IF(Y$3>A2remlife,A2acvalue-SUM($F69:X69),IF(A2remlife="N/A","n/a",A2acvalue/A2remlife)) -> 2.411271017 | Z69: =IF(Z$3>A2remlife,A2acvalue-SUM($F69:Y69),IF(A2remlife="N/A","n/a",A2acvalue/A2remlife)) -> 2.411271017 | AA69: =IF(AA$3>A2remlife,A2acvalue-SUM($F69:Z69),IF(A2remlife="N/A","n/a",A2acvalue/A2remlife)) -> 2.411271017 | AB69: =IF(AB$3>A2remlife,A2acvalue-SUM($F69:AA69),IF(A2remlife="N/A","n/a",A2acvalue/A2remlife)) -> 2.411271017 | AC69: =IF(AC$3>A2remlife,A2acvalue-SUM($F69:AB69),IF(A2remlife="N/A","n/a",A2acvalue/A2remlife)) -> 2.411271017 | AD69: =IF(AD$3>A2remlife,A2acvalue-SUM($F69:AC69),IF(A2remlife="N/A","n/a",A2acvalue/A2remlife)) -> 2.411271017 | AE69: =IF(AE$3>A2remlife,A2acvalue-SUM($F69:AD69),IF(A2remlife="N/A","n/a",A2acvalue/A2remlife)) -> 2.411271017 | AF69: =IF(AF$3>A2remlife,A2acvalue-SUM($F69:AE69),IF(A2remlife="N/A","n/a",A2acvalue/A2remlife)) -> 2.411271017 | AG69: =IF(AG$3>A2remlife,A2acvalue-SUM($F69:AF69),IF(A2remlife="N/A","n/a",A2acvalue/A2remlife)) -> 2.411271017 | AH69: =IF(AH$3>A2remlife,A2acvalue-SUM($F69:AG69),IF(A2remlife="N/A","n/a",A2acvalue/A2remlife)) -> 2.411271017 | AI69: =IF(AI$3>A2remlife,A2acvalue-SUM($F69:AH69),IF(A2remlife="N/A","n/a",A2acvalue/A2remlife)) -> 2.411271017 | AJ69: =IF(AJ$3>A2remlife,A2acvalue-SUM($F69:AI69),IF(A2remlife="N/A","n/a",A2acvalue/A2remlife)) -> 2.411271017 | AK69: =IF(AK$3>A2remlife,A2acvalue-SUM($F69:AJ69),IF(A2remlife="N/A","n/a",A2acvalue/A2remlife)) -> 2.411271017 | AL69: =IF(AL$3>A2remlife,A2acvalue-SUM($F69:AK69),IF(A2remlife="N/A","n/a",A2acvalue/A2remlife)) -> 2.411271017 | AM69: =IF(AM$3>A2remlife,A2acvalue-SUM($F69:AL69),IF(A2remlife="N/A","n/a",A2acvalue/A2remlife)) -> 2.411271017 | AN69: =IF(AN$3>A2remlife,A2acvalue-SUM($F69:AM69),IF(A2remlife="N/A","n/a",A2acvalue/A2remlife)) -> 2.411271017 | AO69: =IF(AO$3>A2remlife,A2acvalue-SUM($F69:AN69),IF(A2remlife="N/A","n/a",A2acvalue/A2remlife)) -> 2.411271017 | AP69: =IF(AP$3>A2remlife,A2acvalue-SUM($F69:AO69),IF(A2remlife="N/A","n/a",A2acvalue/A2remlife)) -> 2.411271017 | AQ69: =IF(AQ$3>A2remlife,A2acvalue-SUM($F69:AP69),IF(A2remlife="N/A","n/a",A2acvalue/A2remlife)) -> 2.411271017 | AR69: =IF(AR$3>A2remlife,A2acvalue-SUM($F69:AQ69),IF(A2remlife="N/A","n/a",A2acvalue/A2remlife)) -> 2.411271017 | AS69: =IF(AS$3>A2remlife,A2acvalue-SUM($F69:AR69),IF(A2remlife="N/A","n/a",A2acvalue/A2remlife)) -> 2.411271017 | AT69: =IF(AT$3>A2remlife,A2acvalue-SUM($F69:AS69),IF(A2remlife="N/A","n/a",A2acvalue/A2remlife)) -> 2.411271017 | AU69: =IF(AU$3>A2remlife,A2acvalue-SUM($F69:AT69),IF(A2remlife="N/A","n/a",A2acvalue/A2remlife)) -> 2.411271017 | AV69: =IF(AV$3>A2remlife,A2acvalue-SUM($F69:AU69),IF(A2remlife="N/A","n/a",A2acvalue/A2remlife)) -> 2.411271017 | AW69: =IF(AW$3>A2remlife,A2acvalue-SUM($F69:AV69),IF(A2remlife="N/A","n/a",A2acvalue/A2remlife)) -> 2.411271017 | AX69: =IF(AX$3>A2remlife,A2acvalue-SUM($F69:AW69),IF(A2remlife="N/A","n/a",A2acvalue/A2remlife)) -> 2.411271017 | AY69: =IF(AY$3>A2remlife,A2acvalue-SUM($F69:AX69),IF(A2remlife="N/A","n/a",A2acvalue/A2remlife)) -> 2.411271017 | AZ69: =IF(AZ$3>A2remlife,A2acvalue-SUM($F69:AY69),IF(A2remlife="N/A","n/a",A2acvalue/A2remlife)) -> 2.411271017 | BA69: =IF(BA$3>A2remlife,A2acvalue-SUM($F69:AZ69),IF(A2remlife="N/A","n/a",A2acvalue/A2remlife)) -> 2.411271017 | BB69: =IF(BB$3>A2remlife,A2acvalue-SUM($F69:BA69),IF(A2remlife="N/A","n/a",A2acvalue/A2remlife)) -> 2.411271017 | BC69: =IF(BC$3>A2remlife,A2acvalue-SUM($F69:BB69),IF(A2remlife="N/A","n/a",A2acvalue/A2remlife)) -> 2.411271017 | BD69: =IF(BD$3>A2remlife,A2acvalue-SUM($F69:BC69),IF(A2remlife="N/A","n/a",A2acvalue/A2remlife)) -> 2.411271017 | BE69: =IF(BE$3>A2remlife,A2acvalue-SUM($F69:BD69),IF(A2remlife="N/A","n/a",A2acvalue/A2remlife)) -> 2.411271017 | BF69: =IF(BF$3>A2remlife,A2acvalue-SUM($F69:BE69),IF(A2remlife="N/A","n/a",A2acvalue/A2remlife)) -> 0.1220431587 | BG69: =IF(BG$3>A2remlife,A2acvalue-SUM($F69:BF69),IF(A2remlife="N/A","n/a",A2acvalue/A2remlife)) -> 0 | BH69: =IF(BH$3>A2remlife,A2acvalue-SUM($F69:BG69),IF(A2remlife="N/A","n/a",A2acvalue/A2remlife)) -> 0 | BI69: =IF(BI$3>A2remlife,A2acvalue-SUM($F69:BH69),IF(A2remlife="N/A","n/a",A2acvalue/A2remlife)) -> 0
D70: Capex in year | E70: 0
E71: 1 | H71: =IF(A2stdlife="n/a","n/a",IF(H$3>(A2stdlife+$E71),(Input!$G$152*(1+rvanilla)^0.5)-SUM($G71:G71),(Input!$G$152*(1+rvanilla)^0.5)/A2stdlife)) -> 0.2203018646 | I71: =IF(A2stdlife="n/a","n/a",IF(I$3>(A2stdlife+$E71),(Input!$G$152*(1+rvanilla)^0.5)-SUM($G71:H71),(Input!$G$152*(1+rvanilla)^0.5)/A2stdlife)) -> 0.2203018646 | J71: =IF(A2stdlife="n/a","n/a",IF(J$3>(A2stdlife+$E71),(Input!$G$152*(1+rvanilla)^0.5)-SUM($G71:I71),(Input!$G$152*(1+rvanilla)^0.5)/A2stdlife)) -> 0.2203018646 | K71: =IF(A2stdlife="n/a","n/a",IF(K$3>(A2stdlife+$E71),(Input!$G$152*(1+rvanilla)^0.5)-SUM($G71:J71),(Input!$G$152*(1+rvanilla)^0.5)/A2stdlife)) -> 0.2203018646 | L71: =IF(A2stdlife="n/a","n/a",IF(L$3>(A2stdlife+$E71),(Input!$G$152*(1+rvanilla)^0.5)-SUM($G71:K71),(Input!$G$152*(1+rvanilla)^0.5)/A2stdlife)) -> 0.2203018646 | M71: =IF(A2stdlife="n/a","n/a",IF(M$3>(A2stdlife+$E71),(Input!$G$152*(1+rvanilla)^0.5)-SUM($G71:L71),(Input!$G$152*(1+rvanilla)^0.5)/A2stdlife)) -> 0.2203018646 | N71: =IF(A2stdlife="n/a","n/a",IF(N$3>(A2stdlife+$E71),(Input!$G$152*(1+rvanilla)^0.5)-SUM($G71:M71),(Input!$G$152*(1+rvanilla)^0.5)/A2stdlife)) -> 0.2203018646 | O71: =IF(A2stdlife="n/a","n/a",IF(O$3>(A2stdlife+$E71),(Input!$G$152*(1+rvanilla)^0.5)-SUM($G71:N71),(Input!$G$152*(1+rvanilla)^0.5)/A2stdlife)) -> 0.2203018646 | P71: =IF(A2stdlife="n/a","n/a",IF(P$3>(A2stdlife+$E71),(Input!$G$152*(1+rvanilla)^0.5)-SUM($G71:O71),(Input!$G$152*(1+rvanilla)^0.5)/A2stdlife)) -> 0.2203018646 | Q71: =IF(A2stdlife="n/a","n/a",IF(Q$3>(A2stdlife+$E71),(Input!$G$152*(1+rvanilla)^0.5)-SUM($G71:P71),(Input!$G$152*(1+rvanilla)^0.5)/A2stdlife)) -> 0.2203018646 | R71: =IF(A2stdlife="n/a","n/a",IF(R$3>(A2stdlife+$E71),(Input!$G$152*(1+rvanilla)^0.5)-SUM($G71:Q71),(Input!$G$152*(1+rvanilla)^0.5)/A2stdlife)) -> 0.2203018646 | S71: =IF(A2stdlife="n/a","n/a",IF(S$3>(A2stdlife+$E71),(Input!$G$152*(1+rvanilla)^0.5)-SUM($G71:R71),(Input!$G$152*(1+rvanilla)^0.5)/A2stdlife)) -> 0.2203018646 | T71: =IF(A2stdlife="n/a","n/a",IF(T$3>(A2stdlife+$E71),(Input!$G$152*(1+rvanilla)^0.5)-SUM($G71:S71),(Input!$G$152*(1+rvanilla)^0.5)/A2stdlife)) -> 0.2203018646 | U71: =IF(A2stdlife="n/a","n/a",IF(U$3>(A2stdlife+$E71),(Input!$G$152*(1+rvanilla)^0.5)-SUM($G71:T71),(Input!$G$152*(1+rvanilla)^0.5)/A2stdlife)) -> 0.2203018646 | V71: =IF(A2stdlife="n/a","n/a",IF(V$3>(A2stdlife+$E71),(Input!$G$152*(1+rvanilla)^0.5)-SUM($G71:U71),(Input!$G$152*(1+rvanilla)^0.5)/A2stdlife)) -> 0.2203018646 | W71: =IF(A2stdlife="n/a","n/a",IF(W$3>(A2stdlife+$E71),(Input!$G$152*(1+rvanilla)^0.5)-SUM($G71:V71),(Input!$G$152*(1+rvanilla)^0.5)/A2stdlife)) -> 0.2203018646 | X71: =IF(A2stdlife="n/a","n/a",IF(X$3>(A2stdlife+$E71),(Input!$G$152*(1+rvanilla)^0.5)-SUM($G71:W71),(Input!$G$152*(1+rvanilla)^0.5)/A2stdlife)) -> 0.2203018646 | Y71: =IF(A2stdlife="n/a","n/a",IF(Y$3>(A2stdlife+$E71),(Input!$G$152*(1+rvanilla)^0.5)-SUM($G71:X71),(Input!$G$152*(1+rvanilla)^0.5)/A2stdlife)) -> 0.2203018646 | Z71: =IF(A2stdlife="n/a","n/a",IF(Z$3>(A2stdlife+$E71),(Input!$G$152*(1+rvanilla)^0.5)-SUM($G71:Y71),(Input!$G$152*(1+rvanilla)^0.5)/A2stdlife)) -> 0.2203018646 | AA71: =IF(A2stdlife="n/a","n/a",IF(AA$3>(A2stdlife+$E71),(Input!$G$152*(1+rvanilla)^0.5)-SUM($G71:Z71),(Input!$G$152*(1+rvanilla)^0.5)/A2stdlife)) -> 0.2203018646 | AB71: =IF(A2stdlife="n/a","n/a",IF(AB$3>(A2stdlife+$E71),(Input!$G$152*(1+rvanilla)^0.5)-SUM($G71:AA71),(Input!$G$152*(1+rvanilla)^0.5)/A2stdlife)) -> 0.2203018646 | AC71: =IF(A2stdlife="n/a","n/a",IF(AC$3>(A2stdlife+$E71),(Input!$G$152*(1+rvanilla)^0.5)-SUM($G71:AB71),(Input!$G$152*(1+rvanilla)^0.5)/A2stdlife)) -> 0.2203018646 | AD71: =IF(A2stdlife="n/a","n/a",IF(AD$3>(A2stdlife+$E71),(Input!$G$152*(1+rvanilla)^0.5)-SUM($G71:AC71),(Input!$G$152*(1+rvanilla)^0.5)/A2stdlife)) -> 0.2203018646 | AE71: =IF(A2stdlife="n/a","n/a",IF(AE$3>(A2stdlife+$E71),(Input!$G$152*(1+rvanilla)^0.5)-SUM($G71:AD71),(Input!$G$152*(1+rvanilla)^0.5)/A2stdlife)) -> 0.2203018646 | AF71: =IF(A2stdlife="n/a","n/a",IF(AF$3>(A2stdlife+$E71),(Input!$G$152*(1+rvanilla)^0.5)-SUM($G71:AE71),(Input!$G$152*(1+rvanilla)^0.5)/A2stdlife)) -> 0.2203018646 | AG71: =IF(A2stdlife="n/a","n/a",IF(AG$3>(A2stdlife+$E71),(Input!$G$152*(1+rvanilla)^0.5)-SUM($G71:AF71),(Input!$G$152*(1+rvanilla)^0.5)/A2stdlife)) -> 0.2203018646 | AH71: =IF(A2stdlife="n/a","n/a",IF(AH$3>(A2stdlife+$E71),(Input!$G$152*(1+rvanilla)^0.5)-SUM($G71:AG71),(Input!$G$152*(1+rvanilla)^0.5)/A2stdlife)) -> 0.2203018646 | AI71: =IF(A2stdlife="n/a","n/a",IF(AI$3>(A2stdlife+$E71),(Input!$G$152*(1+rvanilla)^0.5)-SUM($G71:AH71),(Input!$G$152*(1+rvanilla)^0.5)/A2stdlife)) -> 0.2203018646 | AJ71: =IF(A2stdlife="n/a","n/a",IF(AJ$3>(A2stdlife+$E71),(Input!$G$152*(1+rvanilla)^0.5)-SUM($G71:AI71),(Input!$G$152*(1+rvanilla)^0.5)/A2stdlife)) -> 0.2203018646 | AK71: =IF(A2stdlife="n/a","n/a",IF(AK$3>(A2stdlife+$E71),(Input!$G$152*(1+rvanilla)^0.5)-SUM($G71:AJ71),(Input!$G$152*(1+rvanilla)^0.5)/A2stdlife)) -> 0.2203018646 | AL71: =IF(A2stdlife="n/a","n/a",IF(AL$3>(A2stdlife+$E71),(Input!$G$152*(1+rvanilla)^0.5)-SUM($G71:AK71),(Input!$G$152*(1+rvanilla)^0.5)/A2stdlife)) -> 0.2203018646 | AM71: =IF(A2stdlife="n/a","n/a",IF(AM$3>(A2stdlife+$E71),(Input!$G$152*(1+rvanilla)^0.5)-SUM($G71:AL71),(Input!$G$152*(1+rvanilla)^0.5)/A2stdlife)) -> 0.2203018646 | AN71: =IF(A2stdlife="n/a","n/a",IF(AN$3>(A2stdlife+$E71),(Input!$G$152*(1+rvanilla)^0.5)-SUM($G71:AM71),(Input!$G$152*(1+rvanilla)^0.5)/A2stdlife)) -> 0.2203018646 | AO71: =IF(A2stdlife="n/a","n/a",IF(AO$3>(A2stdlife+$E71),(Input!$G$152*(1+rvanilla)^0.5)-SUM($G71:AN71),(Input!$G$152*(1+rvanilla)^0.5)/A2stdlife)) -> 0.2203018646 | AP71: =IF(A2stdlife="n/a","n/a",IF(AP$3>(A2stdlife+$E71),(Input!$G$152*(1+rvanilla)^0.5)-SUM($G71:AO71),(Input!$G$152*(1+rvanilla)^0.5)/A2stdlife)) -> 0.2203018646 | AQ71: =IF(A2stdlife="n/a","n/a",IF(AQ$3>(A2stdlife+$E71),(Input!$G$152*(1+rvanilla)^0.5)-SUM($G71:AP71),(Input!$G$152*(1+rvanilla)^0.5)/A2stdlife)) -> 0.2203018646 | AR71: =IF(A2stdlife="n/a","n/a",IF(AR$3>(A2stdlife+$E71),(Input!$G$152*(1+rvanilla)^0.5)-SUM($G71:AQ71),(Input!$G$152*(1+rvanilla)^0.5)/A2stdlife)) -> 0.2203018646 | AS71: =IF(A2stdlife="n/a","n/a",IF(AS$3>(A2stdlife+$E71),(Input!$G$152*(1+rvanilla)^0.5)-SUM($G71:AR71),(Input!$G$152*(1+rvanilla)^0.5)/A2stdlife)) -> 0.2203018646 | AT71: =IF(A2stdlife="n/a","n/a",IF(AT$3>(A2stdlife+$E71),(Input!$G$152*(1+rvanilla)^0.5)-SUM($G71:AS71),(Input!$G$152*(1+rvanilla)^0.5)/A2stdlife)) -> 0.2203018646 | AU71: =IF(A2stdlife="n/a","n/a",IF(AU$3>(A2stdlife+$E71),(Input!$G$152*(1+rvanilla)^0.5)-SUM($G71:AT71),(Input!$G$152*(1+rvanilla)^0.5)/A2stdlife)) -> 0.2203018646 | AV71: =IF(A2stdlife="n/a","n/a",IF(AV$3>(A2stdlife+$E71),(Input!$G$152*(1+rvanilla)^0.5)-SUM($G71:AU71),(Input!$G$152*(1+rvanilla)^0.5)/A2stdlife)) -> 0.2203018646 | AW71: =IF(A2stdlife="n/a","n/a",IF(AW$3>(A2stdlife+$E71),(Input!$G$152*(1+rvanilla)^0.5)-SUM($G71:AV71),(Input!$G$152*(1+rvanilla)^0.5)/A2stdlife)) -> 0.2203018646 | AX71: =IF(A2stdlife="n/a","n/a",IF(AX$3>(A2stdlife+$E71),(Input!$G$152*(1+rvanilla)^0.5)-SUM($G71:AW71),(Input!$G$152*(1+rvanilla)^0.5)/A2stdlife)) -> 0.2203018646 | AY71: =IF(A2stdlife="n/a","n/a",IF(AY$3>(A2stdlife+$E71),(Input!$G$152*(1+rvanilla)^0.5)-SUM($G71:AX71),(Input!$G$152*(1+rvanilla)^0.5)/A2stdlife)) -> 0.2203018646 | AZ71: =IF(A2stdlife="n/a","n/a",IF(AZ$3>(A2stdlife+$E71),(Input!$G$152*(1+rvanilla)^0.5)-SUM($G71:AY71),(Input!$G$152*(1+rvanilla)^0.5)/A2stdlife)) -> 0.2203018646 | BA71: =IF(A2stdlife="n/a","n/a",IF(BA$3>(A2stdlife+$E71),(Input!$G$152*(1+rvanilla)^0.5)-SUM($G71:AZ71),(Input!$G$152*(1+rvanilla)^0.5)/A2stdlife)) -> 0.2203018646 | BB71: =IF(A2stdlife="n/a","n/a",IF(BB$3>(A2stdlife+$E71),(Input!$G$152*(1+rvanilla)^0.5)-SUM($G71:BA71),(Input!$G$152*(1+rvanilla)^0.5)/A2stdlife)) -> 0.2203018646 | BC71: =IF(A2stdlife="n/a","n/a",IF(BC$3>(A2stdlife+$E71),(Input!$G$152*(1+rvanilla)^0.5)-SUM($G71:BB71),(Input!$G$152*(1+rvanilla)^0.5)/A2stdlife)) -> 0.2203018646 | BD71: =IF(A2stdlife="n/a","n/a",IF(BD$3>(A2stdlife+$E71),(Input!$G$152*(1+rvanilla)^0.5)-SUM($G71:BC71),(Input!$G$152*(1+rvanilla)^0.5)/A2stdlife)) -> 0.2203018646 | BE71: =IF(A2stdlife="n/a","n/a",IF(BE$3>(A2stdlife+$E71),(Input!$G$152*(1+rvanilla)^0.5)-SUM($G71:BD71),(Input!$G$152*(1+rvanilla)^0.5)/A2stdlife)) -> 0.2203018646 | BF71: =IF(A2stdlife="n/a","n/a",IF(BF$3>(A2stdlife+$E71),(Input!$G$152*(1+rvanilla)^0.5)-SUM($G71:BE71),(Input!$G$152*(1+rvanilla)^0.5)/A2stdlife)) -> 0.2203018646 | BG71: =IF(A2stdlife="n/a","n/a",IF(BG$3>(A2stdlife+$E71),(Input!$G$152*(1+rvanilla)^0.5)-SUM($G71:BF71),(Input!$G$152*(1+rvanilla)^0.5)/A2stdlife)) -> 0.2203018646 | BH71: =IF(A2stdlife="n/a","n/a",IF(BH$3>(A2stdlife+$E71),(Input!$G$152*(1+rvanilla)^0.5)-SUM($G71:BG71),(Input!$G$152*(1+rvanilla)^0.5)/A2stdlife)) -> 0.2203018646 | BI71: =IF(A2stdlife="n/a","n/a",IF(BI$3>(A2stdlife+$E71),(Input!$G$152*(1+rvanilla)^0.5)-SUM($G71:BH71),(Input!$G$152*(1+rvanilla)^0.5)/A2stdlife)) -> 0.2203018646
E72: 2 | I72: =IF(A2stdlife="n/a","n/a",IF(I$3>(A2stdlife+$E72),(Input!$H$152*(1+rvanilla)^0.5)-SUM($H72:H72),(Input!$H$152*(1+rvanilla)^0.5)/A2stdlife)) -> 0.218369414 | J72: =IF(A2stdlife="n/a","n/a",IF(J$3>(A2stdlife+$E72),(Input!$H$152*(1+rvanilla)^0.5)-SUM($H72:I72),(Input!$H$152*(1+rvanilla)^0.5)/A2stdlife)) -> 0.218369414 | K72: =IF(A2stdlife="n/a","n/a",IF(K$3>(A2stdlife+$E72),(Input!$H$152*(1+rvanilla)^0.5)-SUM($H72:J72),(Input!$H$152*(1+rvanilla)^0.5)/A2stdlife)) -> 0.218369414 | L72: =IF(A2stdlife="n/a","n/a",IF(L$3>(A2stdlife+$E72),(Input!$H$152*(1+rvanilla)^0.5)-SUM($H72:K72),(Input!$H$152*(1+rvanilla)^0.5)/A2stdlife)) -> 0.218369414 | M72: =IF(A2stdlife="n/a","n/a",IF(M$3>(A2stdlife+$E72),(Input!$H$152*(1+rvanilla)^0.5)-SUM($H72:L72),(Input!$H$152*(1+rvanilla)^0.5)/A2stdlife)) -> 0.218369414 | N72: =IF(A2stdlife="n/a","n/a",IF(N$3>(A2stdlife+$E72),(Input!$H$152*(1+rvanilla)^0.5)-SUM($H72:M72),(Input!$H$152*(1+rvanilla)^0.5)/A2stdlife)) -> 0.218369414 | O72: =IF(A2stdlife="n/a","n/a",IF(O$3>(A2stdlife+$E72),(Input!$H$152*(1+rvanilla)^0.5)-SUM($H72:N72),(Input!$H$152*(1+rvanilla)^0.5)/A2stdlife)) -> 0.218369414 | P72: =IF(A2stdlife="n/a","n/a",IF(P$3>(A2stdlife+$E72),(Input!$H$152*(1+rvanilla)^0.5)-SUM($H72:O72),(Input!$H$152*(1+rvanilla)^0.5)/A2stdlife)) -> 0.218369414 | Q72: =IF(A2stdlife="n/a","n/a",IF(Q$3>(A2stdlife+$E72),(Input!$H$152*(1+rvanilla)^0.5)-SUM($H72:P72),(Input!$H$152*(1+rvanilla)^0.5)/A2stdlife)) -> 0.218369414 | R72: =IF(A2stdlife="n/a","n/a",IF(R$3>(A2stdlife+$E72),(Input!$H$152*(1+rvanilla)^0.5)-SUM($H72:Q72),(Input!$H$152*(1+rvanilla)^0.5)/A2stdlife)) -> 0.218369414 | S72: =IF(A2stdlife="n/a","n/a",IF(S$3>(A2stdlife+$E72),(Input!$H$152*(1+rvanilla)^0.5)-SUM($H72:R72),(Input!$H$152*(1+rvanilla)^0.5)/A2stdlife)) -> 0.218369414 | T72: =IF(A2stdlife="n/a","n/a",IF(T$3>(A2stdlife+$E72),(Input!$H$152*(1+rvanilla)^0.5)-SUM($H72:S72),(Input!$H$152*(1+rvanilla)^0.5)/A2stdlife)) -> 0.218369414 | U72: =IF(A2stdlife="n/a","n/a",IF(U$3>(A2stdlife+$E72),(Input!$H$152*(1+rvanilla)^0.5)-SUM($H72:T72),(Input!$H$152*(1+rvanilla)^0.5)/A2stdlife)) -> 0.218369414 | V72: =IF(A2stdlife="n/a","n/a",IF(V$3>(A2stdlife+$E72),(Input!$H$152*(1+rvanilla)^0.5)-SUM($H72:U72),(Input!$H$152*(1+rvanilla)^0.5)/A2stdlife)) -> 0.218369414 | W72: =IF(A2stdlife="n/a","n/a",IF(W$3>(A2stdlife+$E72),(Input!$H$152*(1+rvanilla)^0.5)-SUM($H72:V72),(Input!$H$152*(1+rvanilla)^0.5)/A2stdlife)) -> 0.218369414 | X72: =IF(A2stdlife="n/a","n/a",IF(X$3>(A2stdlife+$E72),(Input!$H$152*(1+rvanilla)^0.5)-SUM($H72:W72),(Input!$H$152*(1+rvanilla)^0.5)/A2stdlife)) -> 0.218369414 | Y72: =IF(A2stdlife="n/a","n/a",IF(Y$3>(A2stdlife+$E72),(Input!$H$152*(1+rvanilla)^0.5)-SUM($H72:X72),(Input!$H$152*(1+rvanilla)^0.5)/A2stdlife)) -> 0.218369414 | Z72: =IF(A2stdlife="n/a","n/a",IF(Z$3>(A2stdlife+$E72),(Input!$H$152*(1+rvanilla)^0.5)-SUM($H72:Y72),(Input!$H$152*(1+rvanilla)^0.5)/A2stdlife)) -> 0.218369414 | AA72: =IF(A2stdlife="n/a","n/a",IF(AA$3>(A2stdlife+$E72),(Input!$H$152*(1+rvanilla)^0.5)-SUM($H72:Z72),(Input!$H$152*(1+rvanilla)^0.5)/A2stdlife)) -> 0.218369414 | AB72: =IF(A2stdlife="n/a","n/a",IF(AB$3>(A2stdlife+$E72),(Input!$H$152*(1+rvanilla)^0.5)-SUM($H72:AA72),(Input!$H$152*(1+rvanilla)^0.5)/A2stdlife)) -> 0.218369414 | AC72: =IF(A2stdlife="n/a","n/a",IF(AC$3>(A2stdlife+$E72),(Input!$H$152*(1+rvanilla)^0.5)-SUM($H72:AB72),(Input!$H$152*(1+rvanilla)^0.5)/A2stdlife)) -> 0.218369414 | AD72: =IF(A2stdlife="n/a","n/a",IF(AD$3>(A2stdlife+$E72),(Input!$H$152*(1+rvanilla)^0.5)-SUM($H72:AC72),(Input!$H$152*(1+rvanilla)^0.5)/A2stdlife)) -> 0.218369414 | AE72: =IF(A2stdlife="n/a","n/a",IF(AE$3>(A2stdlife+$E72),(Input!$H$152*(1+rvanilla)^0.5)-SUM($H72:AD72),(Input!$H$152*(1+rvanilla)^0.5)/A2stdlife)) -> 0.218369414 | AF72: =IF(A2stdlife="n/a","n/a",IF(AF$3>(A2stdlife+$E72),(Input!$H$152*(1+rvanilla)^0.5)-SUM($H72:AE72),(Input!$H$152*(1+rvanilla)^0.5)/A2stdlife)) -> 0.218369414 | AG72: =IF(A2stdlife="n/a","n/a",IF(AG$3>(A2stdlife+$E72),(Input!$H$152*(1+rvanilla)^0.5)-SUM($H72:AF72),(Input!$H$152*(1+rvanilla)^0.5)/A2stdlife)) -> 0.218369414 | AH72: =IF(A2stdlife="n/a","n/a",IF(AH$3>(A2stdlife+$E72),(Input!$H$152*(1+rvanilla)^0.5)-SUM($H72:AG72),(Input!$H$152*(1+rvanilla)^0.5)/A2stdlife)) -> 0.218369414 | AI72: =IF(A2stdlife="n/a","n/a",IF(AI$3>(A2stdlife+$E72),(Input!$H$152*(1+rvanilla)^0.5)-SUM($H72:AH72),(Input!$H$152*(1+rvanilla)^0.5)/A2stdlife)) -> 0.218369414 | AJ72: =IF(A2stdlife="n/a","n/a",IF(AJ$3>(A2stdlife+$E72),(Input!$H$152*(1+rvanilla)^0.5)-SUM($H72:AI72),(Input!$H$152*(1+rvanilla)^0.5)/A2stdlife)) -> 0.218369414 | AK72: =IF(A2stdlife="n/a","n/a",IF(AK$3>(A2stdlife+$E72),(Input!$H$152*(1+rvanilla)^0.5)-SUM($H72:AJ72),(Input!$H$152*(1+rvanilla)^0.5)/A2stdlife)) -> 0.218369414 | AL72: =IF(A2stdlife="n/a","n/a",IF(AL$3>(A2stdlife+$E72),(Input!$H$152*(1+rvanilla)^0.5)-SUM($H72:AK72),(Input!$H$152*(1+rvanilla)^0.5)/A2stdlife)) -> 0.218369414 | AM72: =IF(A2stdlife="n/a","n/a",IF(AM$3>(A2stdlife+$E72),(Input!$H$152*(1+rvanilla)^0.5)-SUM($H72:AL72),(Input!$H$152*(1+rvanilla)^0.5)/A2stdlife)) -> 0.218369414 | AN72: =IF(A2stdlife="n/a","n/a",IF(AN$3>(A2stdlife+$E72),(Input!$H$152*(1+rvanilla)^0.5)-SUM($H72:AM72),(Input!$H$152*(1+rvanilla)^0.5)/A2stdlife)) -> 0.218369414 | AO72: =IF(A2stdlife="n/a","n/a",IF(AO$3>(A2stdlife+$E72),(Input!$H$152*(1+rvanilla)^0.5)-SUM($H72:AN72),(Input!$H$152*(1+rvanilla)^0.5)/A2stdlife)) -> 0.218369414 | AP72: =IF(A2stdlife="n/a","n/a",IF(AP$3>(A2stdlife+$E72),(Input!$H$152*(1+rvanilla)^0.5)-SUM($H72:AO72),(Input!$H$152*(1+rvanilla)^0.5)/A2stdlife)) -> 0.218369414 | AQ72: =IF(A2stdlife="n/a","n/a",IF(AQ$3>(A2stdlife+$E72),(Input!$H$152*(1+rvanilla)^0.5)-SUM($H72:AP72),(Input!$H$152*(1+rvanilla)^0.5)/A2stdlife)) -> 0.218369414 | AR72: =IF(A2stdlife="n/a","n/a",IF(AR$3>(A2stdlife+$E72),(Input!$H$152*(1+rvanilla)^0.5)-SUM($H72:AQ72),(Input!$H$152*(1+rvanilla)^0.5)/A2stdlife)) -> 0.218369414 | AS72: =IF(A2stdlife="n/a","n/a",IF(AS$3>(A2stdlife+$E72),(Input!$H$152*(1+rvanilla)^0.5)-SUM($H72:AR72),(Input!$H$152*(1+rvanilla)^0.5)/A2stdlife)) -> 0.218369414 | AT72: =IF(A2stdlife="n/a","n/a",IF(AT$3>(A2stdlife+$E72),(Input!$H$152*(1+rvanilla)^0.5)-SUM($H72:AS72),(Input!$H$152*(1+rvanilla)^0.5)/A2stdlife)) -> 0.218369414 | AU72: =IF(A2stdlife="n/a","n/a",IF(AU$3>(A2stdlife+$E72),(Input!$H$152*(1+rvanilla)^0.5)-SUM($H72:AT72),(Input!$H$152*(1+rvanilla)^0.5)/A2stdlife)) -> 0.218369414 | AV72: =IF(A2stdlife="n/a","n/a",IF(AV$3>(A2stdlife+$E72),(Input!$H$152*(1+rvanilla)^0.5)-SUM($H72:AU72),(Input!$H$152*(1+rvanilla)^0.5)/A2stdlife)) -> 0.218369414 | AW72: =IF(A2stdlife="n/a","n/a",IF(AW$3>(A2stdlife+$E72),(Input!$H$152*(1+rvanilla)^0.5)-SUM($H72:AV72),(Input!$H$152*(1+rvanilla)^0.5)/A2stdlife)) -> 0.218369414 | AX72: =IF(A2stdlife="n/a","n/a",IF(AX$3>(A2stdlife+$E72),(Input!$H$152*(1+rvanilla)^0.5)-SUM($H72:AW72),(Input!$H$152*(1+rvanilla)^0.5)/A2stdlife)) -> 0.218369414 | AY72: =IF(A2stdlife="n/a","n/a",IF(AY$3>(A2stdlife+$E72),(Input!$H$152*(1+rvanilla)^0.5)-SUM($H72:AX72),(Input!$H$152*(1+rvanilla)^0.5)/A2stdlife)) -> 0.218369414 | AZ72: =IF(A2stdlife="n/a","n/a",IF(AZ$3>(A2stdlife+$E72),(Input!$H$152*(1+rvanilla)^0.5)-SUM($H72:AY72),(Input!$H$152*(1+rvanilla)^0.5)/A2stdlife)) -> 0.218369414 | BA72: =IF(A2stdlife="n/a","n/a",IF(BA$3>(A2stdlife+$E72),(Input!$H$152*(1+rvanilla)^0.5)-SUM($H72:AZ72),(Input!$H$152*(1+rvanilla)^0.5)/A2stdlife)) -> 0.218369414 | BB72: =IF(A2stdlife="n/a","n/a",IF(BB$3>(A2stdlife+$E72),(Input!$H$152*(1+rvanilla)^0.5)-SUM($H72:BA72),(Input!$H$152*(1+rvanilla)^0.5)/A2stdlife)) -> 0.218369414 | BC72: =IF(A2stdlife="n/a","n/a",IF(BC$3>(A2stdlife+$E72),(Input!$H$152*(1+rvanilla)^0.5)-SUM($H72:BB72),(Input!$H$152*(1+rvanilla)^0.5)/A2stdlife)) -> 0.218369414 | BD72: =IF(A2stdlife="n/a","n/a",IF(BD$3>(A2stdlife+$E72),(Input!$H$152*(1+rvanilla)^0.5)-SUM($H72:BC72),(Input!$H$152*(1+rvanilla)^0.5)/A2stdlife)) -> 0.218369414 | BE72: =IF(A2stdlife="n/a","n/a",IF(BE$3>(A2stdlife+$E72),(Input!$H$152*(1+rvanilla)^0.5)-SUM($H72:BD72),(Input!$H$152*(1+rvanilla)^0.5)/A2stdlife)) -> 0.218369414 | BF72: =IF(A2stdlife="n/a","n/a",IF(BF$3>(A2stdlife+$E72),(Input!$H$152*(1+rvanilla)^0.5)-SUM($H72:BE72),(Input!$H$152*(1+rvanilla)^0.5)/A2stdlife)) -> 0.218369414 | BG72: =IF(A2stdlife="n/a","n/a",IF(BG$3>(A2stdlife+$E72),(Input!$H$152*(1+rvanilla)^0.5)-SUM($H72:BF72),(Input!$H$152*(1+rvanilla)^0.5)/A2stdlife)) -> 0.218369414 | BH72: =IF(A2stdlife="n/a","n/a",IF(BH$3>(A2stdlife+$E72),(Input!$H$152*(1+rvanilla)^0.5)-SUM($H72:BG72),(Input!$H$152*(1+rvanilla)^0.5)/A2stdlife)) -> 0.218369414 | BI72: =IF(A2stdlife="n/a","n/a",IF(BI$3>(A2stdlife+$E72),(Input!$H$152*(1+rvanilla)^0.5)-SUM($H72:BH72),(Input!$H$152*(1+rvanilla)^0.5)/A2stdlife)) -> 0.218369414
E73: 3 | J73: =IF(A2stdlife="n/a","n/a",IF(J$3>(A2stdlife+$E73),(Input!$I$152*(1+rvanilla)^0.5)-SUM($I73:I73),(Input!$I$152*(1+rvanilla)^0.5)/A2stdlife)) -> 0.2238603646 | K73: =IF(A2stdlife="n/a","n/a",IF(K$3>(A2stdlife+$E73),(Input!$I$152*(1+rvanilla)^0.5)-SUM($I73:J73),(Input!$I$152*(1+rvanilla)^0.5)/A2stdlife)) -> 0.2238603646 | L73: =IF(A2stdlife="n/a","n/a",IF(L$3>(A2stdlife+$E73),(Input!$I$152*(1+rvanilla)^0.5)-SUM($I73:K73),(Input!$I$152*(1+rvanilla)^0.5)/A2stdlife)) -> 0.2238603646 | M73: =IF(A2stdlife="n/a","n/a",IF(M$3>(A2stdlife+$E73),(Input!$I$152*(1+rvanilla)^0.5)-SUM($I73:L73),(Input!$I$152*(1+rvanilla)^0.5)/A2stdlife)) -> 0.2238603646 | N73: =IF(A2stdlife="n/a","n/a",IF(N$3>(A2stdlife+$E73),(Input!$I$152*(1+rvanilla)^0.5)-SUM($I73:M73),(Input!$I$152*(1+rvanilla)^0.5)/A2stdlife)) -> 0.2238603646 | O73: =IF(A2stdlife="n/a","n/a",IF(O$3>(A2stdlife+$E73),(Input!$I$152*(1+rvanilla)^0.5)-SUM($I73:N73),(Input!$I$152*(1+rvanilla)^0.5)/A2stdlife)) -> 0.2238603646 | P73: =IF(A2stdlife="n/a","n/a",IF(P$3>(A2stdlife+$E73),(Input!$I$152*(1+rvanilla)^0.5)-SUM($I73:O73),(Input!$I$152*(1+rvanilla)^0.5)/A2stdlife)) -> 0.2238603646 | Q73: =IF(A2stdlife="n/a","n/a",IF(Q$3>(A2stdlife+$E73),(Input!$I$152*(1+rvanilla)^0.5)-SUM($I73:P73),(Input!$I$152*(1+rvanilla)^0.5)/A2stdlife)) -> 0.2238603646 | R73: =IF(A2stdlife="n/a","n/a",IF(R$3>(A2stdlife+$E73),(Input!$I$152*(1+rvanilla)^0.5)-SUM($I73:Q73),(Input!$I$152*(1+rvanilla)^0.5)/A2stdlife)) -> 0.2238603646 | S73: =IF(A2stdlife="n/a","n/a",IF(S$3>(A2stdlife+$E73),(Input!$I$152*(1+rvanilla)^0.5)-SUM($I73:R73),(Input!$I$152*(1+rvanilla)^0.5)/A2stdlife)) -> 0.2238603646 | T73: =IF(A2stdlife="n/a","n/a",IF(T$3>(A2stdlife+$E73),(Input!$I$152*(1+rvanilla)^0.5)-SUM($I73:S73),(Input!$I$152*(1+rvanilla)^0.5)/A2stdlife)) -> 0.2238603646 | U73: =IF(A2stdlife="n/a","n/a",IF(U$3>(A2stdlife+$E73),(Input!$I$152*(1+rvanilla)^0.5)-SUM($I73:T73),(Input!$I$152*(1+rvanilla)^0.5)/A2stdlife)) -> 0.2238603646 | V73: =IF(A2stdlife="n/a","n/a",IF(V$3>(A2stdlife+$E73),(Input!$I$152*(1+rvanilla)^0.5)-SUM($I73:U73),(Input!$I$152*(1+rvanilla)^0.5)/A2stdlife)) -> 0.2238603646 | W73: =IF(A2stdlife="n/a","n/a",IF(W$3>(A2stdlife+$E73),(Input!$I$152*(1+rvanilla)^0.5)-SUM($I73:V73),(Input!$I$152*(1+rvanilla)^0.5)/A2stdlife)) -> 0.2238603646 | X73: =IF(A2stdlife="n/a","n/a",IF(X$3>(A2stdlife+$E73),(Input!$I$152*(1+rvanilla)^0.5)-SUM($I73:W73),(Input!$I$152*(1+rvanilla)^0.5)/A2stdlife)) -> 0.2238603646 | Y73: =IF(A2stdlife="n/a","n/a",IF(Y$3>(A2stdlife+$E73),(Input!$I$152*(1+rvanilla)^0.5)-SUM($I73:X73),(Input!$I$152*(1+rvanilla)^0.5)/A2stdlife)) -> 0.2238603646 | Z73: =IF(A2stdlife="n/a","n/a",IF(Z$3>(A2stdlife+$E73),(Input!$I$152*(1+rvanilla)^0.5)-SUM($I73:Y73),(Input!$I$152*(1+rvanilla)^0.5)/A2stdlife)) -> 0.2238603646 | AA73: =IF(A2stdlife="n/a","n/a",IF(AA$3>(A2stdlife+$E73),(Input!$I$152*(1+rvanilla)^0.5)-SUM($I73:Z73),(Input!$I$152*(1+rvanilla)^0.5)/A2stdlife)) -> 0.2238603646 | AB73: =IF(A2stdlife="n/a","n/a",IF(AB$3>(A2stdlife+$E73),(Input!$I$152*(1+rvanilla)^0.5)-SUM($I73:AA73),(Input!$I$152*(1+rvanilla)^0.5)/A2stdlife)) -> 0.2238603646 | AC73: =IF(A2stdlife="n/a","n/a",IF(AC$3>(A2stdlife+$E73),(Input!$I$152*(1+rvanilla)^0.5)-SUM($I73:AB73),(Input!$I$152*(1+rvanilla)^0.5)/A2stdlife)) -> 0.2238603646 | AD73: =IF(A2stdlife="n/a","n/a",IF(AD$3>(A2stdlife+$E73),(Input!$I$152*(1+rvanilla)^0.5)-SUM($I73:AC73),(Input!$I$152*(1+rvanilla)^0.5)/A2stdlife)) -> 0.2238603646 | AE73: =IF(A2stdlife="n/a","n/a",IF(AE$3>(A2stdlife+$E73),(Input!$I$152*(1+rvanilla)^0.5)-SUM($I73:AD73),(Input!$I$152*(1+rvanilla)^0.5)/A2stdlife)) -> 0.2238603646 | AF73: =IF(A2stdlife="n/a","n/a",IF(AF$3>(A2stdlife+$E73),(Input!$I$152*(1+rvanilla)^0.5)-SUM($I73:AE73),(Input!$I$152*(1+rvanilla)^0.5)/A2stdlife)) -> 0.2238603646 | AG73: =IF(A2stdlife="n/a","n/a",IF(AG$3>(A2stdlife+$E73),(Input!$I$152*(1+rvanilla)^0.5)-SUM($I73:AF73),(Input!$I$152*(1+rvanilla)^0.5)/A2stdlife)) -> 0.2238603646 | AH73: =IF(A2stdlife="n/a","n/a",IF(AH$3>(A2stdlife+$E73),(Input!$I$152*(1+rvanilla)^0.5)-SUM($I73:AG73),(Input!$I$152*(1+rvanilla)^0.5)/A2stdlife)) -> 0.2238603646 | AI73: =IF(A2stdlife="n/a","n/a",IF(AI$3>(A2stdlife+$E73),(Input!$I$152*(1+rvanilla)^0.5)-SUM($I73:AH73),(Input!$I$152*(1+rvanilla)^0.5)/A2stdlife)) -> 0.2238603646 | AJ73: =IF(A2stdlife="n/a","n/a",IF(AJ$3>(A2stdlife+$E73),(Input!$I$152*(1+rvanilla)^0.5)-SUM($I73:AI73),(Input!$I$152*(1+rvanilla)^0.5)/A2stdlife)) -> 0.2238603646 | AK73: =IF(A2stdlife="n/a","n/a",IF(AK$3>(A2stdlife+$E73),(Input!$I$152*(1+rvanilla)^0.5)-SUM($I73:AJ73),(Input!$I$152*(1+rvanilla)^0.5)/A2stdlife)) -> 0.2238603646 | AL73: =IF(A2stdlife="n/a","n/a",IF(AL$3>(A2stdlife+$E73),(Input!$I$152*(1+rvanilla)^0.5)-SUM($I73:AK73),(Input!$I$152*(1+rvanilla)^0.5)/A2stdlife)) -> 0.2238603646 | AM73: =IF(A2stdlife="n/a","n/a",IF(AM$3>(A2stdlife+$E73),(Input!$I$152*(1+rvanilla)^0.5)-SUM($I73:AL73),(Input!$I$152*(1+rvanilla)^0.5)/A2stdlife)) -> 0.2238603646 | AN73: =IF(A2stdlife="n/a","n/a",IF(AN$3>(A2stdlife+$E73),(Input!$I$152*(1+rvanilla)^0.5)-SUM($I73:AM73),(Input!$I$152*(1+rvanilla)^0.5)/A2stdlife)) -> 0.2238603646 | AO73: =IF(A2stdlife="n/a","n/a",IF(AO$3>(A2stdlife+$E73),(Input!$I$152*(1+rvanilla)^0.5)-SUM($I73:AN73),(Input!$I$152*(1+rvanilla)^0.5)/A2stdlife)) -> 0.2238603646 | AP73: =IF(A2stdlife="n/a","n/a",IF(AP$3>(A2stdlife+$E73),(Input!$I$152*(1+rvanilla)^0.5)-SUM($I73:AO73),(Input!$I$152*(1+rvanilla)^0.5)/A2stdlife)) -> 0.2238603646 | AQ73: =IF(A2stdlife="n/a","n/a",IF(AQ$3>(A2stdlife+$E73),(Input!$I$152*(1+rvanilla)^0.5)-SUM($I73:AP73),(Input!$I$152*(1+rvanilla)^0.5)/A2stdlife)) -> 0.2238603646 | AR73: =IF(A2stdlife="n/a","n/a",IF(AR$3>(A2stdlife+$E73),(Input!$I$152*(1+rvanilla)^0.5)-SUM($I73:AQ73),(Input!$I$152*(1+rvanilla)^0.5)/A2stdlife)) -> 0.2238603646 | AS73: =IF(A2stdlife="n/a","n/a",IF(AS$3>(A2stdlife+$E73),(Input!$I$152*(1+rvanilla)^0.5)-SUM($I73:AR73),(Input!$I$152*(1+rvanilla)^0.5)/A2stdlife)) -> 0.2238603646 | AT73: =IF(A2stdlife="n/a","n/a",IF(AT$3>(A2stdlife+$E73),(Input!$I$152*(1+rvanilla)^0.5)-SUM($I73:AS73),(Input!$I$152*(1+rvanilla)^0.5)/A2stdlife)) -> 0.2238603646 | AU73: =IF(A2stdlife="n/a","n/a",IF(AU$3>(A2stdlife+$E73),(Input!$I$152*(1+rvanilla)^0.5)-SUM($I73:AT73),(Input!$I$152*(1+rvanilla)^0.5)/A2stdlife)) -> 0.2238603646 | AV73: =IF(A2stdlife="n/a","n/a",IF(AV$3>(A2stdlife+$E73),(Input!$I$152*(1+rvanilla)^0.5)-SUM($I73:AU73),(Input!$I$152*(1+rvanilla)^0.5)/A2stdlife)) -> 0.2238603646 | AW73: =IF(A2stdlife="n/a","n/a",IF(AW$3>(A2stdlife+$E73),(Input!$I$152*(1+rvanilla)^0.5)-SUM($I73:AV73),(Input!$I$152*(1+rvanilla)^0.5)/A2stdlife)) -> 0.2238603646 | AX73: =IF(A2stdlife="n/a","n/a",IF(AX$3>(A2stdlife+$E73),(Input!$I$152*(1+rvanilla)^0.5)-SUM($I73:AW73),(Input!$I$152*(1+rvanilla)^0.5)/A2stdlife)) -> 0.2238603646 | AY73: =IF(A2stdlife="n/a","n/a",IF(AY$3>(A2stdlife+$E73),(Input!$I$152*(1+rvanilla)^0.5)-SUM($I73:AX73),(Input!$I$152*(1+rvanilla)^0.5)/A2stdlife)) -> 0.2238603646 | AZ73: =IF(A2stdlife="n/a","n/a",IF(AZ$3>(A2stdlife+$E73),(Input!$I$152*(1+rvanilla)^0.5)-SUM($I73:AY73),(Input!$I$152*(1+rvanilla)^0.5)/A2stdlife)) -> 0.2238603646 | BA73: =IF(A2stdlife="n/a","n/a",IF(BA$3>(A2stdlife+$E73),(Input!$I$152*(1+rvanilla)^0.5)-SUM($I73:AZ73),(Input!$I$152*(1+rvanilla)^0.5)/A2stdlife)) -> 0.2238603646 | BB73: =IF(A2stdlife="n/a","n/a",IF(BB$3>(A2stdlife+$E73),(Input!$I$152*(1+rvanilla)^0.5)-SUM($I73:BA73),(Input!$I$152*(1+rvanilla)^0.5)/A2stdlife)) -> 0.2238603646 | BC73: =IF(A2stdlife="n/a","n/a",IF(BC$3>(A2stdlife+$E73),(Input!$I$152*(1+rvanilla)^0.5)-SUM($I73:BB73),(Input!$I$152*(1+rvanilla)^0.5)/A2stdlife)) -> 0.2238603646 | BD73: =IF(A2stdlife="n/a","n/a",IF(BD$3>(A2stdlife+$E73),(Input!$I$152*(1+rvanilla)^0.5)-SUM($I73:BC73),(Input!$I$152*(1+rvanilla)^0.5)/A2stdlife)) -> 0.2238603646 | BE73: =IF(A2stdlife="n/a","n/a",IF(BE$3>(A2stdlife+$E73),(Input!$I$152*(1+rvanilla)^0.5)-SUM($I73:BD73),(Input!$I$152*(1+rvanilla)^0.5)/A2stdlife)) -> 0.2238603646 | BF73: =IF(A2stdlife="n/a","n/a",IF(BF$3>(A2stdlife+$E73),(Input!$I$152*(1+rvanilla)^0.5)-SUM($I73:BE73),(Input!$I$152*(1+rvanilla)^0.5)/A2stdlife)) -> 0.2238603646 | BG73: =IF(A2stdlife="n/a","n/a",IF(BG$3>(A2stdlife+$E73),(Input!$I$152*(1+rvanilla)^0.5)-SUM($I73:BF73),(Input!$I$152*(1+rvanilla)^0.5)/A2stdlife)) -> 0.2238603646 | BH73: =IF(A2stdlife="n/a","n/a",IF(BH$3>(A2stdlife+$E73),(Input!$I$152*(1+rvanilla)^0.5)-SUM($I73:BG73),(Input!$I$152*(1+rvanilla)^0.5)/A2stdlife)) -> 0.2238603646 | BI73: =IF(A2stdlife="n/a","n/a",IF(BI$3>(A2stdlife+$E73),(Input!$I$152*(1+rvanilla)^0.5)-SUM($I73:BH73),(Input!$I$152*(1+rvanilla)^0.5)/A2stdlife)) -> 0.2238603646
E74: 4 | K74: =IF(A2stdlife="n/a","n/a",IF(K$3>(A2stdlife+$E74),(Input!$J$152*(1+rvanilla)^0.5)-SUM($J74:J74),(Input!$J$152*(1+rvanilla)^0.5)/A2stdlife)) -> 0.2297748762 | L74: =IF(A2stdlife="n/a","n/a",IF(L$3>(A2stdlife+$E74),(Input!$J$152*(1+rvanilla)^0.5)-SUM($J74:K74),(Input!$J$152*(1+rvanilla)^0.5)/A2stdlife)) -> 0.2297748762 | M74: =IF(A2stdlife="n/a","n/a",IF(M$3>(A2stdlife+$E74),(Input!$J$152*(1+rvanilla)^0.5)-SUM($J74:L74),(Input!$J$152*(1+rvanilla)^0.5)/A2stdlife)) -> 0.2297748762 | N74: =IF(A2stdlife="n/a","n/a",IF(N$3>(A2stdlife+$E74),(Input!$J$152*(1+rvanilla)^0.5)-SUM($J74:M74),(Input!$J$152*(1+rvanilla)^0.5)/A2stdlife)) -> 0.2297748762 | O74: =IF(A2stdlife="n/a","n/a",IF(O$3>(A2stdlife+$E74),(Input!$J$152*(1+rvanilla)^0.5)-SUM($J74:N74),(Input!$J$152*(1+rvanilla)^0.5)/A2stdlife)) -> 0.2297748762 | P74: =IF(A2stdlife="n/a","n/a",IF(P$3>(A2stdlife+$E74),(Input!$J$152*(1+rvanilla)^0.5)-SUM($J74:O74),(Input!$J$152*(1+rvanilla)^0.5)/A2stdlife)) -> 0.2297748762 | Q74: =IF(A2stdlife="n/a","n/a",IF(Q$3>(A2stdlife+$E74),(Input!$J$152*(1+rvanilla)^0.5)-SUM($J74:P74),(Input!$J$152*(1+rvanilla)^0.5)/A2stdlife)) -> 0.2297748762 | R74: =IF(A2stdlife="n/a","n/a",IF(R$3>(A2stdlife+$E74),(Input!$J$152*(1+rvanilla)^0.5)-SUM($J74:Q74),(Input!$J$152*(1+rvanilla)^0.5)/A2stdlife)) -> 0.2297748762 | S74: =IF(A2stdlife="n/a","n/a",IF(S$3>(A2stdlife+$E74),(Input!$J$152*(1+rvanilla)^0.5)-SUM($J74:R74),(Input!$J$152*(1+rvanilla)^0.5)/A2stdlife)) -> 0.2297748762 | T74: =IF(A2stdlife="n/a","n/a",IF(T$3>(A2stdlife+$E74),(Input!$J$152*(1+rvanilla)^0.5)-SUM($J74:S74),(Input!$J$152*(1+rvanilla)^0.5)/A2stdlife)) -> 0.2297748762 | U74: =IF(A2stdlife="n/a","n/a",IF(U$3>(A2stdlife+$E74),(Input!$J$152*(1+rvanilla)^0.5)-SUM($J74:T74),(Input!$J$152*(1+rvanilla)^0.5)/A2stdlife)) -> 0.2297748762 | V74: =IF(A2stdlife="n/a","n/a",IF(V$3>(A2stdlife+$E74),(Input!$J$152*(1+rvanilla)^0.5)-SUM($J74:U74),(Input!$J$152*(1+rvanilla)^0.5)/A2stdlife)) -> 0.2297748762 | W74: =IF(A2stdlife="n/a","n/a",IF(W$3>(A2stdlife+$E74),(Input!$J$152*(1+rvanilla)^0.5)-SUM($J74:V74),(Input!$J$152*(1+rvanilla)^0.5)/A2stdlife)) -> 0.2297748762 | X74: =IF(A2stdlife="n/a","n/a",IF(X$3>(A2stdlife+$E74),(Input!$J$152*(1+rvanilla)^0.5)-SUM($J74:W74),(Input!$J$152*(1+rvanilla)^0.5)/A2stdlife)) -> 0.2297748762 | Y74: =IF(A2stdlife="n/a","n/a",IF(Y$3>(A2stdlife+$E74),(Input!$J$152*(1+rvanilla)^0.5)-SUM($J74:X74),(Input!$J$152*(1+rvanilla)^0.5)/A2stdlife)) -> 0.2297748762 | Z74: =IF(A2stdlife="n/a","n/a",IF(Z$3>(A2stdlife+$E74),(Input!$J$152*(1+rvanilla)^0.5)-SUM($J74:Y74),(Input!$J$152*(1+rvanilla)^0.5)/A2stdlife)) -> 0.2297748762 | AA74: =IF(A2stdlife="n/a","n/a",IF(AA$3>(A2stdlife+$E74),(Input!$J$152*(1+rvanilla)^0.5)-SUM($J74:Z74),(Input!$J$152*(1+rvanilla)^0.5)/A2stdlife)) -> 0.2297748762 | AB74: =IF(A2stdlife="n/a","n/a",IF(AB$3>(A2stdlife+$E74),(Input!$J$152*(1+rvanilla)^0.5)-SUM($J74:AA74),(Input!$J$152*(1+rvanilla)^0.5)/A2stdlife)) -> 0.2297748762 | AC74: =IF(A2stdlife="n/a","n/a",IF(AC$3>(A2stdlife+$E74),(Input!$J$152*(1+rvanilla)^0.5)-SUM($J74:AB74),(Input!$J$152*(1+rvanilla)^0.5)/A2stdlife)) -> 0.2297748762 | AD74: =IF(A2stdlife="n/a","n/a",IF(AD$3>(A2stdlife+$E74),(Input!$J$152*(1+rvanilla)^0.5)-SUM($J74:AC74),(Input!$J$152*(1+rvanilla)^0.5)/A2stdlife)) -> 0.2297748762 | AE74: =IF(A2stdlife="n/a","n/a",IF(AE$3>(A2stdlife+$E74),(Input!$J$152*(1+rvanilla)^0.5)-SUM($J74:AD74),(Input!$J$152*(1+rvanilla)^0.5)/A2stdlife)) -> 0.2297748762 | AF74: =IF(A2stdlife="n/a","n/a",IF(AF$3>(A2stdlife+$E74),(Input!$J$152*(1+rvanilla)^0.5)-SUM($J74:AE74),(Input!$J$152*(1+rvanilla)^0.5)/A2stdlife)) -> 0.2297748762 | AG74: =IF(A2stdlife="n/a","n/a",IF(AG$3>(A2stdlife+$E74),(Input!$J$152*(1+rvanilla)^0.5)-SUM($J74:AF74),(Input!$J$152*(1+rvanilla)^0.5)/A2stdlife)) -> 0.2297748762 | AH74: =IF(A2stdlife="n/a","n/a",IF(AH$3>(A2stdlife+$E74),(Input!$J$152*(1+rvanilla)^0.5)-SUM($J74:AG74),(Input!$J$152*(1+rvanilla)^0.5)/A2stdlife)) -> 0.2297748762 | AI74: =IF(A2stdlife="n/a","n/a",IF(AI$3>(A2stdlife+$E74),(Input!$J$152*(1+rvanilla)^0.5)-SUM($J74:AH74),(Input!$J$152*(1+rvanilla)^0.5)/A2stdlife)) -> 0.2297748762 | AJ74: =IF(A2stdlife="n/a","n/a",IF(AJ$3>(A2stdlife+$E74),(Input!$J$152*(1+rvanilla)^0.5)-SUM($J74:AI74),(Input!$J$152*(1+rvanilla)^0.5)/A2stdlife)) -> 0.2297748762 | AK74: =IF(A2stdlife="n/a","n/a",IF(AK$3>(A2stdlife+$E74),(Input!$J$152*(1+rvanilla)^0.5)-SUM($J74:AJ74),(Input!$J$152*(1+rvanilla)^0.5)/A2stdlife)) -> 0.2297748762 | AL74: =IF(A2stdlife="n/a","n/a",IF(AL$3>(A2stdlife+$E74),(Input!$J$152*(1+rvanilla)^0.5)-SUM($J74:AK74),(Input!$J$152*(1+rvanilla)^0.5)/A2stdlife)) -> 0.2297748762 | AM74: =IF(A2stdlife="n/a","n/a",IF(AM$3>(A2stdlife+$E74),(Input!$J$152*(1+rvanilla)^0.5)-SUM($J74:AL74),(Input!$J$152*(1+rvanilla)^0.5)/A2stdlife)) -> 0.2297748762 | AN74: =IF(A2stdlife="n/a","n/a",IF(AN$3>(A2stdlife+$E74),(Input!$J$152*(1+rvanilla)^0.5)-SUM($J74:AM74),(Input!$J$152*(1+rvanilla)^0.5)/A2stdlife)) -> 0.2297748762 | AO74: =IF(A2stdlife="n/a","n/a",IF(AO$3>(A2stdlife+$E74),(Input!$J$152*(1+rvanilla)^0.5)-SUM($J74:AN74),(Input!$J$152*(1+rvanilla)^0.5)/A2stdlife)) -> 0.2297748762 | AP74: =IF(A2stdlife="n/a","n/a",IF(AP$3>(A2stdlife+$E74),(Input!$J$152*(1+rvanilla)^0.5)-SUM($J74:AO74),(Input!$J$152*(1+rvanilla)^0.5)/A2stdlife)) -> 0.2297748762 | AQ74: =IF(A2stdlife="n/a","n/a",IF(AQ$3>(A2stdlife+$E74),(Input!$J$152*(1+rvanilla)^0.5)-SUM($J74:AP74),(Input!$J$152*(1+rvanilla)^0.5)/A2stdlife)) -> 0.2297748762 | AR74: =IF(A2stdlife="n/a","n/a",IF(AR$3>(A2stdlife+$E74),(Input!$J$152*(1+rvanilla)^0.5)-SUM($J74:AQ74),(Input!$J$152*(1+rvanilla)^0.5)/A2stdlife)) -> 0.2297748762 | AS74: =IF(A2stdlife="n/a","n/a",IF(AS$3>(A2stdlife+$E74),(Input!$J$152*(1+rvanilla)^0.5)-SUM($J74:AR74),(Input!$J$152*(1+rvanilla)^0.5)/A2stdlife)) -> 0.2297748762 | AT74: =IF(A2stdlife="n/a","n/a",IF(AT$3>(A2stdlife+$E74),(Input!$J$152*(1+rvanilla)^0.5)-SUM($J74:AS74),(Input!$J$152*(1+rvanilla)^0.5)/A2stdlife)) -> 0.2297748762 | AU74: =IF(A2stdlife="n/a","n/a",IF(AU$3>(A2stdlife+$E74),(Input!$J$152*(1+rvanilla)^0.5)-SUM($J74:AT74),(Input!$J$152*(1+rvanilla)^0.5)/A2stdlife)) -> 0.2297748762 | AV74: =IF(A2stdlife="n/a","n/a",IF(AV$3>(A2stdlife+$E74),(Input!$J$152*(1+rvanilla)^0.5)-SUM($J74:AU74),(Input!$J$152*(1+rvanilla)^0.5)/A2stdlife)) -> 0.2297748762 | AW74: =IF(A2stdlife="n/a","n/a",IF(AW$3>(A2stdlife+$E74),(Input!$J$152*(1+rvanilla)^0.5)-SUM($J74:AV74),(Input!$J$152*(1+rvanilla)^0.5)/A2stdlife)) -> 0.2297748762 | AX74: =IF(A2stdlife="n/a","n/a",IF(AX$3>(A2stdlife+$E74),(Input!$J$152*(1+rvanilla)^0.5)-SUM($J74:AW74),(Input!$J$152*(1+rvanilla)^0.5)/A2stdlife)) -> 0.2297748762 | AY74: =IF(A2stdlife="n/a","n/a",IF(AY$3>(A2stdlife+$E74),(Input!$J$152*(1+rvanilla)^0.5)-SUM($J74:AX74),(Input!$J$152*(1+rvanilla)^0.5)/A2stdlife)) -> 0.2297748762 | AZ74: =IF(A2stdlife="n/a","n/a",IF(AZ$3>(A2stdlife+$E74),(Input!$J$152*(1+rvanilla)^0.5)-SUM($J74:AY74),(Input!$J$152*(1+rvanilla)^0.5)/A2stdlife)) -> 0.2297748762 | BA74: =IF(A2stdlife="n/a","n/a",IF(BA$3>(A2stdlife+$E74),(Input!$J$152*(1+rvanilla)^0.5)-SUM($J74:AZ74),(Input!$J$152*(1+rvanilla)^0.5)/A2stdlife)) -> 0.2297748762 | BB74: =IF(A2stdlife="n/a","n/a",IF(BB$3>(A2stdlife+$E74),(Input!$J$152*(1+rvanilla)^0.5)-SUM($J74:BA74),(Input!$J$152*(1+rvanilla)^0.5)/A2stdlife)) -> 0.2297748762 | BC74: =IF(A2stdlife="n/a","n/a",IF(BC$3>(A2stdlife+$E74),(Input!$J$152*(1+rvanilla)^0.5)-SUM($J74:BB74),(Input!$J$152*(1+rvanilla)^0.5)/A2stdlife)) -> 0.2297748762 | BD74: =IF(A2stdlife="n/a","n/a",IF(BD$3>(A2stdlife+$E74),(Input!$J$152*(1+rvanilla)^0.5)-SUM($J74:BC74),(Input!$J$152*(1+rvanilla)^0.5)/A2stdlife)) -> 0.2297748762 | BE74: =IF(A2stdlife="n/a","n/a",IF(BE$3>(A2stdlife+$E74),(Input!$J$152*(1+rvanilla)^0.5)-SUM($J74:BD74),(Input!$J$152*(1+rvanilla)^0.5)/A2stdlife)) -> 0.2297748762 | BF74: =IF(A2stdlife="n/a","n/a",IF(BF$3>(A2stdlife+$E74),(Input!$J$152*(1+rvanilla)^0.5)-SUM($J74:BE74),(Input!$J$152*(1+rvanilla)^0.5)/A2stdlife)) -> 0.2297748762 | BG74: =IF(A2stdlife="n/a","n/a",IF(BG$3>(A2stdlife+$E74),(Input!$J$152*(1+rvanilla)^0.5)-SUM($J74:BF74),(Input!$J$152*(1+rvanilla)^0.5)/A2stdlife)) -> 0.2297748762 | BH74: =IF(A2stdlife="n/a","n/a",IF(BH$3>(A2stdlife+$E74),(Input!$J$152*(1+rvanilla)^0.5)-SUM($J74:BG74),(Input!$J$152*(1+rvanilla)^0.5)/A2stdlife)) -> 0.2297748762 | BI74: =IF(A2stdlife="n/a","n/a",IF(BI$3>(A2stdlife+$E74),(Input!$J$152*(1+rvanilla)^0.5)-SUM($J74:BH74),(Input!$J$152*(1+rvanilla)^0.5)/A2stdlife)) -> 0.2297748762
E75: 5 | L75: =IF(A2stdlife="n/a","n/a",IF(L$3>(A2stdlife+$E75),(Input!$K$152*(1+rvanilla)^0.5)-SUM($K75:K75),(Input!$K$152*(1+rvanilla)^0.5)/A2stdlife)) -> 0.2284713692 | M75: =IF(A2stdlife="n/a","n/a",IF(M$3>(A2stdlife+$E75),(Input!$K$152*(1+rvanilla)^0.5)-SUM($K75:L75),(Input!$K$152*(1+rvanilla)^0.5)/A2stdlife)) -> 0.2284713692 | N75: =IF(A2stdlife="n/a","n/a",IF(N$3>(A2stdlife+$E75),(Input!$K$152*(1+rvanilla)^0.5)-SUM($K75:M75),(Input!$K$152*(1+rvanilla)^0.5)/A2stdlife)) -> 0.2284713692 | O75: =IF(A2stdlife="n/a","n/a",IF(O$3>(A2stdlife+$E75),(Input!$K$152*(1+rvanilla)^0.5)-SUM($K75:N75),(Input!$K$152*(1+rvanilla)^0.5)/A2stdlife)) -> 0.2284713692 | P75: =IF(A2stdlife="n/a","n/a",IF(P$3>(A2stdlife+$E75),(Input!$K$152*(1+rvanilla)^0.5)-SUM($K75:O75),(Input!$K$152*(1+rvanilla)^0.5)/A2stdlife)) -> 0.2284713692 | Q75: =IF(A2stdlife="n/a","n/a",IF(Q$3>(A2stdlife+$E75),(Input!$K$152*(1+rvanilla)^0.5)-SUM($K75:P75),(Input!$K$152*(1+rvanilla)^0.5)/A2stdlife)) -> 0.2284713692 | R75: =IF(A2stdlife="n/a","n/a",IF(R$3>(A2stdlife+$E75),(Input!$K$152*(1+rvanilla)^0.5)-SUM($K75:Q75),(Input!$K$152*(1+rvanilla)^0.5)/A2stdlife)) -> 0.2284713692 | S75: =IF(A2stdlife="n/a","n/a",IF(S$3>(A2stdlife+$E75),(Input!$K$152*(1+rvanilla)^0.5)-SUM($K75:R75),(Input!$K$152*(1+rvanilla)^0.5)/A2stdlife)) -> 0.2284713692 | T75: =IF(A2stdlife="n/a","n/a",IF(T$3>(A2stdlife+$E75),(Input!$K$152*(1+rvanilla)^0.5)-SUM($K75:S75),(Input!$K$152*(1+rvanilla)^0.5)/A2stdlife)) -> 0.2284713692 | U75: =IF(A2stdlife="n/a","n/a",IF(U$3>(A2stdlife+$E75),(Input!$K$152*(1+rvanilla)^0.5)-SUM($K75:T75),(Input!$K$152*(1+rvanilla)^0.5)/A2stdlife)) -> 0.2284713692 | V75: =IF(A2stdlife="n/a","n/a",IF(V$3>(A2stdlife+$E75),(Input!$K$152*(1+rvanilla)^0.5)-SUM($K75:U75),(Input!$K$152*(1+rvanilla)^0.5)/A2stdlife)) -> 0.2284713692 | W75: =IF(A2stdlife="n/a","n/a",IF(W$3>(A2stdlife+$E75),(Input!$K$152*(1+rvanilla)^0.5)-SUM($K75:V75),(Input!$K$152*(1+rvanilla)^0.5)/A2stdlife)) -> 0.2284713692 | X75: =IF(A2stdlife="n/a","n/a",IF(X$3>(A2stdlife+$E75),(Input!$K$152*(1+rvanilla)^0.5)-SUM($K75:W75),(Input!$K$152*(1+rvanilla)^0.5)/A2stdlife)) -> 0.2284713692 | Y75: =IF(A2stdlife="n/a","n/a",IF(Y$3>(A2stdlife+$E75),(Input!$K$152*(1+rvanilla)^0.5)-SUM($K75:X75),(Input!$K$152*(1+rvanilla)^0.5)/A2stdlife)) -> 0.2284713692 | Z75: =IF(A2stdlife="n/a","n/a",IF(Z$3>(A2stdlife+$E75),(Input!$K$152*(1+rvanilla)^0.5)-SUM($K75:Y75),(Input!$K$152*(1+rvanilla)^0.5)/A2stdlife)) -> 0.2284713692 | AA75: =IF(A2stdlife="n/a","n/a",IF(AA$3>(A2stdlife+$E75),(Input!$K$152*(1+rvanilla)^0.5)-SUM($K75:Z75),(Input!$K$152*(1+rvanilla)^0.5)/A2stdlife)) -> 0.2284713692 | AB75: =IF(A2stdlife="n/a","n/a",IF(AB$3>(A2stdlife+$E75),(Input!$K$152*(1+rvanilla)^0.5)-SUM($K75:AA75),(Input!$K$152*(1+rvanilla)^0.5)/A2stdlife)) -> 0.2284713692 | AC75: =IF(A2stdlife="n/a","n/a",IF(AC$3>(A2stdlife+$E75),(Input!$K$152*(1+rvanilla)^0.5)-SUM($K75:AB75),(Input!$K$152*(1+rvanilla)^0.5)/A2stdlife)) -> 0.2284713692 | AD75: =IF(A2stdlife="n/a","n/a",IF(AD$3>(A2stdlife+$E75),(Input!$K$152*(1+rvanilla)^0.5)-SUM($K75:AC75),(Input!$K$152*(1+rvanilla)^0.5)/A2stdlife)) -> 0.2284713692 | AE75: =IF(A2stdlife="n/a","n/a",IF(AE$3>(A2stdlife+$E75),(Input!$K$152*(1+rvanilla)^0.5)-SUM($K75:AD75),(Input!$K$152*(1+rvanilla)^0.5)/A2stdlife)) -> 0.2284713692 | AF75: =IF(A2stdlife="n/a","n/a",IF(AF$3>(A2stdlife+$E75),(Input!$K$152*(1+rvanilla)^0.5)-SUM($K75:AE75),(Input!$K$152*(1+rvanilla)^0.5)/A2stdlife)) -> 0.2284713692 | AG75: =IF(A2stdlife="n/a","n/a",IF(AG$3>(A2stdlife+$E75),(Input!$K$152*(1+rvanilla)^0.5)-SUM($K75:AF75),(Input!$K$152*(1+rvanilla)^0.5)/A2stdlife)) -> 0.2284713692 | AH75: =IF(A2stdlife="n/a","n/a",IF(AH$3>(A2stdlife+$E75),(Input!$K$152*(1+rvanilla)^0.5)-SUM($K75:AG75),(Input!$K$152*(1+rvanilla)^0.5)/A2stdlife)) -> 0.2284713692 | AI75: =IF(A2stdlife="n/a","n/a",IF(AI$3>(A2stdlife+$E75),(Input!$K$152*(1+rvanilla)^0.5)-SUM($K75:AH75),(Input!$K$152*(1+rvanilla)^0.5)/A2stdlife)) -> 0.2284713692 | AJ75: =IF(A2stdlife="n/a","n/a",IF(AJ$3>(A2stdlife+$E75),(Input!$K$152*(1+rvanilla)^0.5)-SUM($K75:AI75),(Input!$K$152*(1+rvanilla)^0.5)/A2stdlife)) -> 0.2284713692 | AK75: =IF(A2stdlife="n/a","n/a",IF(AK$3>(A2stdlife+$E75),(Input!$K$152*(1+rvanilla)^0.5)-SUM($K75:AJ75),(Input!$K$152*(1+rvanilla)^0.5)/A2stdlife)) -> 0.2284713692 | AL75: =IF(A2stdlife="n/a","n/a",IF(AL$3>(A2stdlife+$E75),(Input!$K$152*(1+rvanilla)^0.5)-SUM($K75:AK75),(Input!$K$152*(1+rvanilla)^0.5)/A2stdlife)) -> 0.2284713692 | AM75: =IF(A2stdlife="n/a","n/a",IF(AM$3>(A2stdlife+$E75),(Input!$K$152*(1+rvanilla)^0.5)-SUM($K75:AL75),(Input!$K$152*(1+rvanilla)^0.5)/A2stdlife)) -> 0.2284713692 | AN75: =IF(A2stdlife="n/a","n/a",IF(AN$3>(A2stdlife+$E75),(Input!$K$152*(1+rvanilla)^0.5)-SUM($K75:AM75),(Input!$K$152*(1+rvanilla)^0.5)/A2stdlife)) -> 0.2284713692 | AO75: =IF(A2stdlife="n/a","n/a",IF(AO$3>(A2stdlife+$E75),(Input!$K$152*(1+rvanilla)^0.5)-SUM($K75:AN75),(Input!$K$152*(1+rvanilla)^0.5)/A2stdlife)) -> 0.2284713692 | AP75: =IF(A2stdlife="n/a","n/a",IF(AP$3>(A2stdlife+$E75),(Input!$K$152*(1+rvanilla)^0.5)-SUM($K75:AO75),(Input!$K$152*(1+rvanilla)^0.5)/A2stdlife)) -> 0.2284713692 | AQ75: =IF(A2stdlife="n/a","n/a",IF(AQ$3>(A2stdlife+$E75),(Input!$K$152*(1+rvanilla)^0.5)-SUM($K75:AP75),(Input!$K$152*(1+rvanilla)^0.5)/A2stdlife)) -> 0.2284713692 | AR75: =IF(A2stdlife="n/a","n/a",IF(AR$3>(A2stdlife+$E75),(Input!$K$152*(1+rvanilla)^0.5)-SUM($K75:AQ75),(Input!$K$152*(1+rvanilla)^0.5)/A2stdlife)) -> 0.2284713692 | AS75: =IF(A2stdlife="n/a","n/a",IF(AS$3>(A2stdlife+$E75),(Input!$K$152*(1+rvanilla)^0.5)-SUM($K75:AR75),(Input!$K$152*(1+rvanilla)^0.5)/A2stdlife)) -> 0.2284713692 | AT75: =IF(A2stdlife="n/a","n/a",IF(AT$3>(A2stdlife+$E75),(Input!$K$152*(1+rvanilla)^0.5)-SUM($K75:AS75),(Input!$K$152*(1+rvanilla)^0.5)/A2stdlife)) -> 0.2284713692 | AU75: =IF(A2stdlife="n/a","n/a",IF(AU$3>(A2stdlife+$E75),(Input!$K$152*(1+rvanilla)^0.5)-SUM($K75:AT75),(Input!$K$152*(1+rvanilla)^0.5)/A2stdlife)) -> 0.2284713692 | AV75: =IF(A2stdlife="n/a","n/a",IF(AV$3>(A2stdlife+$E75),(Input!$K$152*(1+rvanilla)^0.5)-SUM($K75:AU75),(Input!$K$152*(1+rvanilla)^0.5)/A2stdlife)) -> 0.2284713692 | AW75: =IF(A2stdlife="n/a","n/a",IF(AW$3>(A2stdlife+$E75),(Input!$K$152*(1+rvanilla)^0.5)-SUM($K75:AV75),(Input!$K$152*(1+rvanilla)^0.5)/A2stdlife)) -> 0.2284713692 | AX75: =IF(A2stdlife="n/a","n/a",IF(AX$3>(A2stdlife+$E75),(Input!$K$152*(1+rvanilla)^0.5)-SUM($K75:AW75),(Input!$K$152*(1+rvanilla)^0.5)/A2stdlife)) -> 0.2284713692 | AY75: =IF(A2stdlife="n/a","n/a",IF(AY$3>(A2stdlife+$E75),(Input!$K$152*(1+rvanilla)^0.5)-SUM($K75:AX75),(Input!$K$152*(1+rvanilla)^0.5)/A2stdlife)) -> 0.2284713692 | AZ75: =IF(A2stdlife="n/a","n/a",IF(AZ$3>(A2stdlife+$E75),(Input!$K$152*(1+rvanilla)^0.5)-SUM($K75:AY75),(Input!$K$152*(1+rvanilla)^0.5)/A2stdlife)) -> 0.2284713692 | BA75: =IF(A2stdlife="n/a","n/a",IF(BA$3>(A2stdlife+$E75),(Input!$K$152*(1+rvanilla)^0.5)-SUM($K75:AZ75),(Input!$K$152*(1+rvanilla)^0.5)/A2stdlife)) -> 0.2284713692 | BB75: =IF(A2stdlife="n/a","n/a",IF(BB$3>(A2stdlife+$E75),(Input!$K$152*(1+rvanilla)^0.5)-SUM($K75:BA75),(Input!$K$152*(1+rvanilla)^0.5)/A2stdlife)) -> 0.2284713692 | BC75: =IF(A2stdlife="n/a","n/a",IF(BC$3>(A2stdlife+$E75),(Input!$K$152*(1+rvanilla)^0.5)-SUM($K75:BB75),(Input!$K$152*(1+rvanilla)^0.5)/A2stdlife)) -> 0.2284713692 | BD75: =IF(A2stdlife="n/a","n/a",IF(BD$3>(A2stdlife+$E75),(Input!$K$152*(1+rvanilla)^0.5)-SUM($K75:BC75),(Input!$K$152*(1+rvanilla)^0.5)/A2stdlife)) -> 0.2284713692 | BE75: =IF(A2stdlife="n/a","n/a",IF(BE$3>(A2stdlife+$E75),(Input!$K$152*(1+rvanilla)^0.5)-SUM($K75:BD75),(Input!$K$152*(1+rvanilla)^0.5)/A2stdlife)) -> 0.2284713692 | BF75: =IF(A2stdlife="n/a","n/a",IF(BF$3>(A2stdlife+$E75),(Input!$K$152*(1+rvanilla)^0.5)-SUM($K75:BE75),(Input!$K$152*(1+rvanilla)^0.5)/A2stdlife)) -> 0.2284713692 | BG75: =IF(A2stdlife="n/a","n/a",IF(BG$3>(A2stdlife+$E75),(Input!$K$152*(1+rvanilla)^0.5)-SUM($K75:BF75),(Input!$K$152*(1+rvanilla)^0.5)/A2stdlife)) -> 0.2284713692 | BH75: =IF(A2stdlife="n/a","n/a",IF(BH$3>(A2stdlife+$E75),(Input!$K$152*(1+rvanilla)^0.5)-SUM($K75:BG75),(Input!$K$152*(1+rvanilla)^0.5)/A2stdlife)) -> 0.2284713692 | BI75: =IF(A2stdlife="n/a","n/a",IF(BI$3>(A2stdlife+$E75),(Input!$K$152*(1+rvanilla)^0.5)-SUM($K75:BH75),(Input!$K$152*(1+rvanilla)^0.5)/A2stdlife)) -> 0.2284713692
E76: 6 | M76: =IF(A2stdlife="n/a","n/a",IF(M$3>(A2stdlife+$E76),(Input!$L$152*(1+rvanilla)^0.5)-SUM($L76:L76),(Input!$L$152*(1+rvanilla)^0.5)/A2stdlife)) -> 0 | N76: =IF(A2stdlife="n/a","n/a",IF(N$3>(A2stdlife+$E76),(Input!$L$152*(1+rvanilla)^0.5)-SUM($L76:M76),(Input!$L$152*(1+rvanilla)^0.5)/A2stdlife)) -> 0 | O76: =IF(A2stdlife="n/a","n/a",IF(O$3>(A2stdlife+$E76),(Input!$L$152*(1+rvanilla)^0.5)-SUM($L76:N76),(Input!$L$152*(1+rvanilla)^0.5)/A2stdlife)) -> 0 | P76: =IF(A2stdlife="n/a","n/a",IF(P$3>(A2stdlife+$E76),(Input!$L$152*(1+rvanilla)^0.5)-SUM($L76:O76),(Input!$L$152*(1+rvanilla)^0.5)/A2stdlife)) -> 0 | Q76: =IF(A2stdlife="n/a","n/a",IF(Q$3>(A2stdlife+$E76),(Input!$L$152*(1+rvanilla)^0.5)-SUM($L76:P76),(Input!$L$152*(1+rvanilla)^0.5)/A2stdlife)) -> 0 | R76: =IF(A2stdlife="n/a","n/a",IF(R$3>(A2stdlife+$E76),(Input!$L$152*(1+rvanilla)^0.5)-SUM($L76:Q76),(Input!$L$152*(1+rvanilla)^0.5)/A2stdlife)) -> 0 | S76: =IF(A2stdlife="n/a","n/a",IF(S$3>(A2stdlife+$E76),(Input!$L$152*(1+rvanilla)^0.5)-SUM($L76:R76),(Input!$L$152*(1+rvanilla)^0.5)/A2stdlife)) -> 0 | T76: =IF(A2stdlife="n/a","n/a",IF(T$3>(A2stdlife+$E76),(Input!$L$152*(1+rvanilla)^0.5)-SUM($L76:S76),(Input!$L$152*(1+rvanilla)^0.5)/A2stdlife)) -> 0 | U76: =IF(A2stdlife="n/a","n/a",IF(U$3>(A2stdlife+$E76),(Input!$L$152*(1+rvanilla)^0.5)-SUM($L76:T76),(Input!$L$152*(1+rvanilla)^0.5)/A2stdlife)) -> 0 | V76: =IF(A2stdlife="n/a","n/a",IF(V$3>(A2stdlife+$E76),(Input!$L$152*(1+rvanilla)^0.5)-SUM($L76:U76),(Input!$L$152*(1+rvanilla)^0.5)/A2stdlife)) -> 0 | W76: =IF(A2stdlife="n/a","n/a",IF(W$3>(A2stdlife+$E76),(Input!$L$152*(1+rvanilla)^0.5)-SUM($L76:V76),(Input!$L$152*(1+rvanilla)^0.5)/A2stdlife)) -> 0 | X76: =IF(A2stdlife="n/a","n/a",IF(X$3>(A2stdlife+$E76),(Input!$L$152*(1+rvanilla)^0.5)-SUM($L76:W76),(Input!$L$152*(1+rvanilla)^0.5)/A2stdlife)) -> 0 | Y76: =IF(A2stdlife="n/a","n/a",IF(Y$3>(A2stdlife+$E76),(Input!$L$152*(1+rvanilla)^0.5)-SUM($L76:X76),(Input!$L$152*(1+rvanilla)^0.5)/A2stdlife)) -> 0 | Z76: =IF(A2stdlife="n/a","n/a",IF(Z$3>(A2stdlife+$E76),(Input!$L$152*(1+rvanilla)^0.5)-SUM($L76:Y76),(Input!$L$152*(1+rvanilla)^0.5)/A2stdlife)) -> 0 | AA76: =IF(A2stdlife="n/a","n/a",IF(AA$3>(A2stdlife+$E76),(Input!$L$152*(1+rvanilla)^0.5)-SUM($L76:Z76),(Input!$L$152*(1+rvanilla)^0.5)/A2stdlife)) -> 0 | AB76: =IF(A2stdlife="n/a","n/a",IF(AB$3>(A2stdlife+$E76),(Input!$L$152*(1+rvanilla)^0.5)-SUM($L76:AA76),(Input!$L$152*(1+rvanilla)^0.5)/A2stdlife)) -> 0 | AC76: =IF(A2stdlife="n/a","n/a",IF(AC$3>(A2stdlife+$E76),(Input!$L$152*(1+rvanilla)^0.5)-SUM($L76:AB76),(Input!$L$152*(1+rvanilla)^0.5)/A2stdlife)) -> 0 | AD76: =IF(A2stdlife="n/a","n/a",IF(AD$3>(A2stdlife+$E76),(Input!$L$152*(1+rvanilla)^0.5)-SUM($L76:AC76),(Input!$L$152*(1+rvanilla)^0.5)/A2stdlife)) -> 0 | AE76: =IF(A2stdlife="n/a","n/a",IF(AE$3>(A2stdlife+$E76),(Input!$L$152*(1+rvanilla)^0.5)-SUM($L76:AD76),(Input!$L$152*(1+rvanilla)^0.5)/A2stdlife)) -> 0 | AF76: =IF(A2stdlife="n/a","n/a",IF(AF$3>(A2stdlife+$E76),(Input!$L$152*(1+rvanilla)^0.5)-SUM($L76:AE76),(Input!$L$152*(1+rvanilla)^0.5)/A2stdlife)) -> 0 | AG76: =IF(A2stdlife="n/a","n/a",IF(AG$3>(A2stdlife+$E76),(Input!$L$152*(1+rvanilla)^0.5)-SUM($L76:AF76),(Input!$L$152*(1+rvanilla)^0.5)/A2stdlife)) -> 0 | AH76: =IF(A2stdlife="n/a","n/a",IF(AH$3>(A2stdlife+$E76),(Input!$L$152*(1+rvanilla)^0.5)-SUM($L76:AG76),(Input!$L$152*(1+rvanilla)^0.5)/A2stdlife)) -> 0 | AI76: =IF(A2stdlife="n/a","n/a",IF(AI$3>(A2stdlife+$E76),(Input!$L$152*(1+rvanilla)^0.5)-SUM($L76:AH76),(Input!$L$152*(1+rvanilla)^0.5)/A2stdlife)) -> 0 | AJ76: =IF(A2stdlife="n/a","n/a",IF(AJ$3>(A2stdlife+$E76),(Input!$L$152*(1+rvanilla)^0.5)-SUM($L76:AI76),(Input!$L$152*(1+rvanilla)^0.5)/A2stdlife)) -> 0 | AK76: =IF(A2stdlife="n/a","n/a",IF(AK$3>(A2stdlife+$E76),(Input!$L$152*(1+rvanilla)^0.5)-SUM($L76:AJ76),(Input!$L$152*(1+rvanilla)^0.5)/A2stdlife)) -> 0 | AL76: =IF(A2stdlife="n/a","n/a",IF(AL$3>(A2stdlife+$E76),(Input!$L$152*(1+rvanilla)^0.5)-SUM($L76:AK76),(Input!$L$152*(1+rvanilla)^0.5)/A2stdlife)) -> 0 | AM76: =IF(A2stdlife="n/a","n/a",IF(AM$3>(A2stdlife+$E76),(Input!$L$152*(1+rvanilla)^0.5)-SUM($L76:AL76),(Input!$L$152*(1+rvanilla)^0.5)/A2stdlife)) -> 0 | AN76: =IF(A2stdlife="n/a","n/a",IF(AN$3>(A2stdlife+$E76),(Input!$L$152*(1+rvanilla)^0.5)-SUM($L76:AM76),(Input!$L$152*(1+rvanilla)^0.5)/A2stdlife)) -> 0 | AO76: =IF(A2stdlife="n/a","n/a",IF(AO$3>(A2stdlife+$E76),(Input!$L$152*(1+rvanilla)^0.5)-SUM($L76:AN76),(Input!$L$152*(1+rvanilla)^0.5)/A2stdlife)) -> 0 | AP76: =IF(A2stdlife="n/a","n/a",IF(AP$3>(A2stdlife+$E76),(Input!$L$152*(1+rvanilla)^0.5)-SUM($L76:AO76),(Input!$L$152*(1+rvanilla)^0.5)/A2stdlife)) -> 0 | AQ76: =IF(A2stdlife="n/a","n/a",IF(AQ$3>(A2stdlife+$E76),(Input!$L$152*(1+rvanilla)^0.5)-SUM($L76:AP76),(Input!$L$152*(1+rvanilla)^0.5)/A2stdlife)) -> 0 | AR76: =IF(A2stdlife="n/a","n/a",IF(AR$3>(A2stdlife+$E76),(Input!$L$152*(1+rvanilla)^0.5)-SUM($L76:AQ76),(Input!$L$152*(1+rvanilla)^0.5)/A2stdlife)) -> 0 | AS76: =IF(A2stdlife="n/a","n/a",IF(AS$3>(A2stdlife+$E76),(Input!$L$152*(1+rvanilla)^0.5)-SUM($L76:AR76),(Input!$L$152*(1+rvanilla)^0.5)/A2stdlife)) -> 0 | AT76: =IF(A2stdlife="n/a","n/a",IF(AT$3>(A2stdlife+$E76),(Input!$L$152*(1+rvanilla)^0.5)-SUM($L76:AS76),(Input!$L$152*(1+rvanilla)^0.5)/A2stdlife)) -> 0 | AU76: =IF(A2stdlife="n/a","n/a",IF(AU$3>(A2stdlife+$E76),(Input!$L$152*(1+rvanilla)^0.5)-SUM($L76:AT76),(Input!$L$152*(1+rvanilla)^0.5)/A2stdlife)) -> 0 | AV76: =IF(A2stdlife="n/a","n/a",IF(AV$3>(A2stdlife+$E76),(Input!$L$152*(1+rvanilla)^0.5)-SUM($L76:AU76),(Input!$L$152*(1+rvanilla)^0.5)/A2stdlife)) -> 0 | AW76: =IF(A2stdlife="n/a","n/a",IF(AW$3>(A2stdlife+$E76),(Input!$L$152*(1+rvanilla)^0.5)-SUM($L76:AV76),(Input!$L$152*(1+rvanilla)^0.5)/A2stdlife)) -> 0 | AX76: =IF(A2stdlife="n/a","n/a",IF(AX$3>(A2stdlife+$E76),(Input!$L$152*(1+rvanilla)^0.5)-SUM($L76:AW76),(Input!$L$152*(1+rvanilla)^0.5)/A2stdlife)) -> 0 | AY76: =IF(A2stdlife="n/a","n/a",IF(AY$3>(A2stdlife+$E76),(Input!$L$152*(1+rvanilla)^0.5)-SUM($L76:AX76),(Input!$L$152*(1+rvanilla)^0.5)/A2stdlife)) -> 0 | AZ76: =IF(A2stdlife="n/a","n/a",IF(AZ$3>(A2stdlife+$E76),(Input!$L$152*(1+rvanilla)^0.5)-SUM($L76:AY76),(Input!$L$152*(1+rvanilla)^0.5)/A2stdlife)) -> 0 | BA76: =IF(A2stdlife="n/a","n/a",IF(BA$3>(A2stdlife+$E76),(Input!$L$152*(1+rvanilla)^0.5)-SUM($L76:AZ76),(Input!$L$152*(1+rvanilla)^0.5)/A2stdlife)) -> 0 | BB76: =IF(A2stdlife="n/a","n/a",IF(BB$3>(A2stdlife+$E76),(Input!$L$152*(1+rvanilla)^0.5)-SUM($L76:BA76),(Input!$L$152*(1+rvanilla)^0.5)/A2stdlife)) -> 0 | BC76: =IF(A2stdlife="n/a","n/a",IF(BC$3>(A2stdlife+$E76),(Input!$L$152*(1+rvanilla)^0.5)-SUM($L76:BB76),(Input!$L$152*(1+rvanilla)^0.5)/A2stdlife)) -> 0 | BD76: =IF(A2stdlife="n/a","n/a",IF(BD$3>(A2stdlife+$E76),(Input!$L$152*(1+rvanilla)^0.5)-SUM($L76:BC76),(Input!$L$152*(1+rvanilla)^0.5)/A2stdlife)) -> 0 | BE76: =IF(A2stdlife="n/a","n/a",IF(BE$3>(A2stdlife+$E76),(Input!$L$152*(1+rvanilla)^0.5)-SUM($L76:BD76),(Input!$L$152*(1+rvanilla)^0.5)/A2stdlife)) -> 0 | BF76: =IF(A2stdlife="n/a","n/a",IF(BF$3>(A2stdlife+$E76),(Input!$L$152*(1+rvanilla)^0.5)-SUM($L76:BE76),(Input!$L$152*(1+rvanilla)^0.5)/A2stdlife)) -> 0 | BG76: =IF(A2stdlife="n/a","n/a",IF(BG$3>(A2stdlife+$E76),(Input!$L$152*(1+rvanilla)^0.5)-SUM($L76:BF76),(Input!$L$152*(1+rvanilla)^0.5)/A2stdlife)) -> 0 | BH76: =IF(A2stdlife="n/a","n/a",IF(BH$3>(A2stdlife+$E76),(Input!$L$152*(1+rvanilla)^0.5)-SUM($L76:BG76),(Input!$L$152*(1+rvanilla)^0.5)/A2stdlife)) -> 0 | BI76: =IF(A2stdlife="n/a","n/a",IF(BI$3>(A2stdlife+$E76),(Input!$L$152*(1+rvanilla)^0.5)-SUM($L76:BH76),(Input!$L$152*(1+rvanilla)^0.5)/A2stdlife)) -> 0
E77: 7 | N77: =IF(A2stdlife="n/a","n/a",IF(N$3>(A2stdlife+$E77),(Input!$M$152*(1+rvanilla)^0.5)-SUM($M77:M77),(Input!$M$152*(1+rvanilla)^0.5)/A2stdlife)) -> 0 | O77: =IF(A2stdlife="n/a","n/a",IF(O$3>(A2stdlife+$E77),(Input!$M$152*(1+rvanilla)^0.5)-SUM($M77:N77),(Input!$M$152*(1+rvanilla)^0.5)/A2stdlife)) -> 0 | P77: =IF(A2stdlife="n/a","n/a",IF(P$3>(A2stdlife+$E77),(Input!$M$152*(1+rvanilla)^0.5)-SUM($M77:O77),(Input!$M$152*(1+rvanilla)^0.5)/A2stdlife)) -> 0 | Q77: =IF(A2stdlife="n/a","n/a",IF(Q$3>(A2stdlife+$E77),(Input!$M$152*(1+rvanilla)^0.5)-SUM($M77:P77),(Input!$M$152*(1+rvanilla)^0.5)/A2stdlife)) -> 0 | R77: =IF(A2stdlife="n/a","n/a",IF(R$3>(A2stdlife+$E77),(Input!$M$152*(1+rvanilla)^0.5)-SUM($M77:Q77),(Input!$M$152*(1+rvanilla)^0.5)/A2stdlife)) -> 0 | S77: =IF(A2stdlife="n/a","n/a",IF(S$3>(A2stdlife+$E77),(Input!$M$152*(1+rvanilla)^0.5)-SUM($M77:R77),(Input!$M$152*(1+rvanilla)^0.5)/A2stdlife)) -> 0 | T77: =IF(A2stdlife="n/a","n/a",IF(T$3>(A2stdlife+$E77),(Input!$M$152*(1+rvanilla)^0.5)-SUM($M77:S77),(Input!$M$152*(1+rvanilla)^0.5)/A2stdlife)) -> 0 | U77: =IF(A2stdlife="n/a","n/a",IF(U$3>(A2stdlife+$E77),(Input!$M$152*(1+rvanilla)^0.5)-SUM($M77:T77),(Input!$M$152*(1+rvanilla)^0.5)/A2stdlife)) -> 0 | V77: =IF(A2stdlife="n/a","n/a",IF(V$3>(A2stdlife+$E77),(Input!$M$152*(1+rvanilla)^0.5)-SUM($M77:U77),(Input!$M$152*(1+rvanilla)^0.5)/A2stdlife)) -> 0 | W77: =IF(A2stdlife="n/a","n/a",IF(W$3>(A2stdlife+$E77),(Input!$M$152*(1+rvanilla)^0.5)-SUM($M77:V77),(Input!$M$152*(1+rvanilla)^0.5)/A2stdlife)) -> 0 | X77: =IF(A2stdlife="n/a","n/a",IF(X$3>(A2stdlife+$E77),(Input!$M$152*(1+rvanilla)^0.5)-SUM($M77:W77),(Input!$M$152*(1+rvanilla)^0.5)/A2stdlife)) -> 0 | Y77: =IF(A2stdlife="n/a","n/a",IF(Y$3>(A2stdlife+$E77),(Input!$M$152*(1+rvanilla)^0.5)-SUM($M77:X77),(Input!$M$152*(1+rvanilla)^0.5)/A2stdlife)) -> 0 | Z77: =IF(A2stdlife="n/a","n/a",IF(Z$3>(A2stdlife+$E77),(Input!$M$152*(1+rvanilla)^0.5)-SUM($M77:Y77),(Input!$M$152*(1+rvanilla)^0.5)/A2stdlife)) -> 0 | AA77: =IF(A2stdlife="n/a","n/a",IF(AA$3>(A2stdlife+$E77),(Input!$M$152*(1+rvanilla)^0.5)-SUM($M77:Z77),(Input!$M$152*(1+rvanilla)^0.5)/A2stdlife)) -> 0 | AB77: =IF(A2stdlife="n/a","n/a",IF(AB$3>(A2stdlife+$E77),(Input!$M$152*(1+rvanilla)^0.5)-SUM($M77:AA77),(Input!$M$152*(1+rvanilla)^0.5)/A2stdlife)) -> 0 | AC77: =IF(A2stdlife="n/a","n/a",IF(AC$3>(A2stdlife+$E77),(Input!$M$152*(1+rvanilla)^0.5)-SUM($M77:AB77),(Input!$M$152*(1+rvanilla)^0.5)/A2stdlife)) -> 0 | AD77: =IF(A2stdlife="n/a","n/a",IF(AD$3>(A2stdlife+$E77),(Input!$M$152*(1+rvanilla)^0.5)-SUM($M77:AC77),(Input!$M$152*(1+rvanilla)^0.5)/A2stdlife)) -> 0 | AE77: =IF(A2stdlife="n/a","n/a",IF(AE$3>(A2stdlife+$E77),(Input!$M$152*(1+rvanilla)^0.5)-SUM($M77:AD77),(Input!$M$152*(1+rvanilla)^0.5)/A2stdlife)) -> 0 | AF77: =IF(A2stdlife="n/a","n/a",IF(AF$3>(A2stdlife+$E77),(Input!$M$152*(1+rvanilla)^0.5)-SUM($M77:AE77),(Input!$M$152*(1+rvanilla)^0.5)/A2stdlife)) -> 0 | AG77: =IF(A2stdlife="n/a","n/a",IF(AG$3>(A2stdlife+$E77),(Input!$M$152*(1+rvanilla)^0.5)-SUM($M77:AF77),(Input!$M$152*(1+rvanilla)^0.5)/A2stdlife)) -> 0 | AH77: =IF(A2stdlife="n/a","n/a",IF(AH$3>(A2stdlife+$E77),(Input!$M$152*(1+rvanilla)^0.5)-SUM($M77:AG77),(Input!$M$152*(1+rvanilla)^0.5)/A2stdlife)) -> 0 | AI77: =IF(A2stdlife="n/a","n/a",IF(AI$3>(A2stdlife+$E77),(Input!$M$152*(1+rvanilla)^0.5)-SUM($M77:AH77),(Input!$M$152*(1+rvanilla)^0.5)/A2stdlife)) -> 0 | AJ77: =IF(A2stdlife="n/a","n/a",IF(AJ$3>(A2stdlife+$E77),(Input!$M$152*(1+rvanilla)^0.5)-SUM($M77:AI77),(Input!$M$152*(1+rvanilla)^0.5)/A2stdlife)) -> 0 | AK77: =IF(A2stdlife="n/a","n/a",IF(AK$3>(A2stdlife+$E77),(Input!$M$152*(1+rvanilla)^0.5)-SUM($M77:AJ77),(Input!$M$152*(1+rvanilla)^0.5)/A2stdlife)) -> 0 | AL77: =IF(A2stdlife="n/a","n/a",IF(AL$3>(A2stdlife+$E77),(Input!$M$152*(1+rvanilla)^0.5)-SUM($M77:AK77),(Input!$M$152*(1+rvanilla)^0.5)/A2stdlife)) -> 0 | AM77: =IF(A2stdlife="n/a","n/a",IF(AM$3>(A2stdlife+$E77),(Input!$M$152*(1+rvanilla)^0.5)-SUM($M77:AL77),(Input!$M$152*(1+rvanilla)^0.5)/A2stdlife)) -> 0 | AN77: =IF(A2stdlife="n/a","n/a",IF(AN$3>(A2stdlife+$E77),(Input!$M$152*(1+rvanilla)^0.5)-SUM($M77:AM77),(Input!$M$152*(1+rvanilla)^0.5)/A2stdlife)) -> 0 | AO77: =IF(A2stdlife="n/a","n/a",IF(AO$3>(A2stdlife+$E77),(Input!$M$152*(1+rvanilla)^0.5)-SUM($M77:AN77),(Input!$M$152*(1+rvanilla)^0.5)/A2stdlife)) -> 0 | AP77: =IF(A2stdlife="n/a","n/a",IF(AP$3>(A2stdlife+$E77),(Input!$M$152*(1+rvanilla)^0.5)-SUM($M77:AO77),(Input!$M$152*(1+rvanilla)^0.5)/A2stdlife)) -> 0 | AQ77: =IF(A2stdlife="n/a","n/a",IF(AQ$3>(A2stdlife+$E77),(Input!$M$152*(1+rvanilla)^0.5)-SUM($M77:AP77),(Input!$M$152*(1+rvanilla)^0.5)/A2stdlife)) -> 0 | AR77: =IF(A2stdlife="n/a","n/a",IF(AR$3>(A2stdlife+$E77),(Input!$M$152*(1+rvanilla)^0.5)-SUM($M77:AQ77),(Input!$M$152*(1+rvanilla)^0.5)/A2stdlife)) -> 0 | AS77: =IF(A2stdlife="n/a","n/a",IF(AS$3>(A2stdlife+$E77),(Input!$M$152*(1+rvanilla)^0.5)-SUM($M77:AR77),(Input!$M$152*(1+rvanilla)^0.5)/A2stdlife)) -> 0 | AT77: =IF(A2stdlife="n/a","n/a",IF(AT$3>(A2stdlife+$E77),(Input!$M$152*(1+rvanilla)^0.5)-SUM($M77:AS77),(Input!$M$152*(1+rvanilla)^0.5)/A2stdlife)) -> 0 | AU77: =IF(A2stdlife="n/a","n/a",IF(AU$3>(A2stdlife+$E77),(Input!$M$152*(1+rvanilla)^0.5)-SUM($M77:AT77),(Input!$M$152*(1+rvanilla)^0.5)/A2stdlife)) -> 0 | AV77: =IF(A2stdlife="n/a","n/a",IF(AV$3>(A2stdlife+$E77),(Input!$M$152*(1+rvanilla)^0.5)-SUM($M77:AU77),(Input!$M$152*(1+rvanilla)^0.5)/A2stdlife)) -> 0 | AW77: =IF(A2stdlife="n/a","n/a",IF(AW$3>(A2stdlife+$E77),(Input!$M$152*(1+rvanilla)^0.5)-SUM($M77:AV77),(Input!$M$152*(1+rvanilla)^0.5)/A2stdlife)) -> 0 | AX77: =IF(A2stdlife="n/a","n/a",IF(AX$3>(A2stdlife+$E77),(Input!$M$152*(1+rvanilla)^0.5)-SUM($M77:AW77),(Input!$M$152*(1+rvanilla)^0.5)/A2stdlife)) -> 0 | AY77: =IF(A2stdlife="n/a","n/a",IF(AY$3>(A2stdlife+$E77),(Input!$M$152*(1+rvanilla)^0.5)-SUM($M77:AX77),(Input!$M$152*(1+rvanilla)^0.5)/A2stdlife)) -> 0 | AZ77: =IF(A2stdlife="n/a","n/a",IF(AZ$3>(A2stdlife+$E77),(Input!$M$152*(1+rvanilla)^0.5)-SUM($M77:AY77),(Input!$M$152*(1+rvanilla)^0.5)/A2stdlife)) -> 0 | BA77: =IF(A2stdlife="n/a","n/a",IF(BA$3>(A2stdlife+$E77),(Input!$M$152*(1+rvanilla)^0.5)-SUM($M77:AZ77),(Input!$M$152*(1+rvanilla)^0.5)/A2stdlife)) -> 0 | BB77: =IF(A2stdlife="n/a","n/a",IF(BB$3>(A2stdlife+$E77),(Input!$M$152*(1+rvanilla)^0.5)-SUM($M77:BA77),(Input!$M$152*(1+rvanilla)^0.5)/A2stdlife)) -> 0 | BC77: =IF(A2stdlife="n/a","n/a",IF(BC$3>(A2stdlife+$E77),(Input!$M$152*(1+rvanilla)^0.5)-SUM($M77:BB77),(Input!$M$152*(1+rvanilla)^0.5)/A2stdlife)) -> 0 | BD77: =IF(A2stdlife="n/a","n/a",IF(BD$3>(A2stdlife+$E77),(Input!$M$152*(1+rvanilla)^0.5)-SUM($M77:BC77),(Input!$M$152*(1+rvanilla)^0.5)/A2stdlife)) -> 0 | BE77: =IF(A2stdlife="n/a","n/a",IF(BE$3>(A2stdlife+$E77),(Input!$M$152*(1+rvanilla)^0.5)-SUM($M77:BD77),(Input!$M$152*(1+rvanilla)^0.5)/A2stdlife)) -> 0 | BF77: =IF(A2stdlife="n/a","n/a",IF(BF$3>(A2stdlife+$E77),(Input!$M$152*(1+rvanilla)^0.5)-SUM($M77:BE77),(Input!$M$152*(1+rvanilla)^0.5)/A2stdlife)) -> 0 | BG77: =IF(A2stdlife="n/a","n/a",IF(BG$3>(A2stdlife+$E77),(Input!$M$152*(1+rvanilla)^0.5)-SUM($M77:BF77),(Input!$M$152*(1+rvanilla)^0.5)/A2stdlife)) -> 0 | BH77: =IF(A2stdlife="n/a","n/a",IF(BH$3>(A2stdlife+$E77),(Input!$M$152*(1+rvanilla)^0.5)-SUM($M77:BG77),(Input!$M$152*(1+rvanilla)^0.5)/A2stdlife)) -> 0 | BI77: =IF(A2stdlife="n/a","n/a",IF(BI$3>(A2stdlife+$E77),(Input!$M$152*(1+rvanilla)^0.5)-SUM($M77:BH77),(Input!$M$152*(1+rvanilla)^0.5)/A2stdlife)) -> 0
E78: 8 | O78: =IF(A2stdlife="n/a","n/a",IF(O$3>(A2stdlife+$E78),(Input!$N$152*(1+rvanilla)^0.5)-SUM($N78:N78),(Input!$N$152*(1+rvanilla)^0.5)/A2stdlife)) -> 0 | P78: =IF(A2stdlife="n/a","n/a",IF(P$3>(A2stdlife+$E78),(Input!$N$152*(1+rvanilla)^0.5)-SUM($N78:O78),(Input!$N$152*(1+rvanilla)^0.5)/A2stdlife)) -> 0 | Q78: =IF(A2stdlife="n/a","n/a",IF(Q$3>(A2stdlife+$E78),(Input!$N$152*(1+rvanilla)^0.5)-SUM($N78:P78),(Input!$N$152*(1+rvanilla)^0.5)/A2stdlife)) -> 0 | R78: =IF(A2stdlife="n/a","n/a",IF(R$3>(A2stdlife+$E78),(Input!$N$152*(1+rvanilla)^0.5)-SUM($N78:Q78),(Input!$N$152*(1+rvanilla)^0.5)/A2stdlife)) -> 0 | S78: =IF(A2stdlife="n/a","n/a",IF(S$3>(A2stdlife+$E78),(Input!$N$152*(1+rvanilla)^0.5)-SUM($N78:R78),(Input!$N$152*(1+rvanilla)^0.5)/A2stdlife)) -> 0 | T78: =IF(A2stdlife="n/a","n/a",IF(T$3>(A2stdlife+$E78),(Input!$N$152*(1+rvanilla)^0.5)-SUM($N78:S78),(Input!$N$152*(1+rvanilla)^0.5)/A2stdlife)) -> 0 | U78: =IF(A2stdlife="n/a","n/a",IF(U$3>(A2stdlife+$E78),(Input!$N$152*(1+rvanilla)^0.5)-SUM($N78:T78),(Input!$N$152*(1+rvanilla)^0.5)/A2stdlife)) -> 0 | V78: =IF(A2stdlife="n/a","n/a",IF(V$3>(A2stdlife+$E78),(Input!$N$152*(1+rvanilla)^0.5)-SUM($N78:U78),(Input!$N$152*(1+rvanilla)^0.5)/A2stdlife)) -> 0 | W78: =IF(A2stdlife="n/a","n/a",IF(W$3>(A2stdlife+$E78),(Input!$N$152*(1+rvanilla)^0.5)-SUM($N78:V78),(Input!$N$152*(1+rvanilla)^0.5)/A2stdlife)) -> 0 | X78: =IF(A2stdlife="n/a","n/a",IF(X$3>(A2stdlife+$E78),(Input!$N$152*(1+rvanilla)^0.5)-SUM($N78:W78),(Input!$N$152*(1+rvanilla)^0.5)/A2stdlife)) -> 0 | Y78: =IF(A2stdlife="n/a","n/a",IF(Y$3>(A2stdlife+$E78),(Input!$N$152*(1+rvanilla)^0.5)-SUM($N78:X78),(Input!$N$152*(1+rvanilla)^0.5)/A2stdlife)) -> 0 | Z78: =IF(A2stdlife="n/a","n/a",IF(Z$3>(A2stdlife+$E78),(Input!$N$152*(1+rvanilla)^0.5)-SUM($N78:Y78),(Input!$N$152*(1+rvanilla)^0.5)/A2stdlife)) -> 0 | AA78: =IF(A2stdlife="n/a","n/a",IF(AA$3>(A2stdlife+$E78),(Input!$N$152*(1+rvanilla)^0.5)-SUM($N78:Z78),(Input!$N$152*(1+rvanilla)^0.5)/A2stdlife)) -> 0 | AB78: =IF(A2stdlife="n/a","n/a",IF(AB$3>(A2stdlife+$E78),(Input!$N$152*(1+rvanilla)^0.5)-SUM($N78:AA78),(Input!$N$152*(1+rvanilla)^0.5)/A2stdlife)) -> 0 | AC78: =IF(A2stdlife="n/a","n/a",IF(AC$3>(A2stdlife+$E78),(Input!$N$152*(1+rvanilla)^0.5)-SUM($N78:AB78),(Input!$N$152*(1+rvanilla)^0.5)/A2stdlife)) -> 0 | AD78: =IF(A2stdlife="n/a","n/a",IF(AD$3>(A2stdlife+$E78),(Input!$N$152*(1+rvanilla)^0.5)-SUM($N78:AC78),(Input!$N$152*(1+rvanilla)^0.5)/A2stdlife)) -> 0 | AE78: =IF(A2stdlife="n/a","n/a",IF(AE$3>(A2stdlife+$E78),(Input!$N$152*(1+rvanilla)^0.5)-SUM($N78:AD78),(Input!$N$152*(1+rvanilla)^0.5)/A2stdlife)) -> 0 | AF78: =IF(A2stdlife="n/a","n/a",IF(AF$3>(A2stdlife+$E78),(Input!$N$152*(1+rvanilla)^0.5)-SUM($N78:AE78),(Input!$N$152*(1+rvanilla)^0.5)/A2stdlife)) -> 0 | AG78: =IF(A2stdlife="n/a","n/a",IF(AG$3>(A2stdlife+$E78),(Input!$N$152*(1+rvanilla)^0.5)-SUM($N78:AF78),(Input!$N$152*(1+rvanilla)^0.5)/A2stdlife)) -> 0 | AH78: =IF(A2stdlife="n/a","n/a",IF(AH$3>(A2stdlife+$E78),(Input!$N$152*(1+rvanilla)^0.5)-SUM($N78:AG78),(Input!$N$152*(1+rvanilla)^0.5)/A2stdlife)) -> 0 | AI78: =IF(A2stdlife="n/a","n/a",IF(AI$3>(A2stdlife+$E78),(Input!$N$152*(1+rvanilla)^0.5)-SUM($N78:AH78),(Input!$N$152*(1+rvanilla)^0.5)/A2stdlife)) -> 0 | AJ78: =IF(A2stdlife="n/a","n/a",IF(AJ$3>(A2stdlife+$E78),(Input!$N$152*(1+rvanilla)^0.5)-SUM($N78:AI78),(Input!$N$152*(1+rvanilla)^0.5)/A2stdlife)) -> 0 | AK78: =IF(A2stdlife="n/a","n/a",IF(AK$3>(A2stdlife+$E78),(Input!$N$152*(1+rvanilla)^0.5)-SUM($N78:AJ78),(Input!$N$152*(1+rvanilla)^0.5)/A2stdlife)) -> 0 | AL78: =IF(A2stdlife="n/a","n/a",IF(AL$3>(A2stdlife+$E78),(Input!$N$152*(1+rvanilla)^0.5)-SUM($N78:AK78),(Input!$N$152*(1+rvanilla)^0.5)/A2stdlife)) -> 0 | AM78: =IF(A2stdlife="n/a","n/a",IF(AM$3>(A2stdlife+$E78),(Input!$N$152*(1+rvanilla)^0.5)-SUM($N78:AL78),(Input!$N$152*(1+rvanilla)^0.5)/A2stdlife)) -> 0 | AN78: =IF(A2stdlife="n/a","n/a",IF(AN$3>(A2stdlife+$E78),(Input!$N$152*(1+rvanilla)^0.5)-SUM($N78:AM78),(Input!$N$152*(1+rvanilla)^0.5)/A2stdlife)) -> 0 | AO78: =IF(A2stdlife="n/a","n/a",IF(AO$3>(A2stdlife+$E78),(Input!$N$152*(1+rvanilla)^0.5)-SUM($N78:AN78),(Input!$N$152*(1+rvanilla)^0.5)/A2stdlife)) -> 0 | AP78: =IF(A2stdlife="n/a","n/a",IF(AP$3>(A2stdlife+$E78),(Input!$N$152*(1+rvanilla)^0.5)-SUM($N78:AO78),(Input!$N$152*(1+rvanilla)^0.5)/A2stdlife)) -> 0 | AQ78: =IF(A2stdlife="n/a","n/a",IF(AQ$3>(A2stdlife+$E78),(Input!$N$152*(1+rvanilla)^0.5)-SUM($N78:AP78),(Input!$N$152*(1+rvanilla)^0.5)/A2stdlife)) -> 0 | AR78: =IF(A2stdlife="n/a","n/a",IF(AR$3>(A2stdlife+$E78),(Input!$N$152*(1+rvanilla)^0.5)-SUM($N78:AQ78),(Input!$N$152*(1+rvanilla)^0.5)/A2stdlife)) -> 0 | AS78: =IF(A2stdlife="n/a","n/a",IF(AS$3>(A2stdlife+$E78),(Input!$N$152*(1+rvanilla)^0.5)-SUM($N78:AR78),(Input!$N$152*(1+rvanilla)^0.5)/A2stdlife)) -> 0 | AT78: =IF(A2stdlife="n/a","n/a",IF(AT$3>(A2stdlife+$E78),(Input!$N$152*(1+rvanilla)^0.5)-SUM($N78:AS78),(Input!$N$152*(1+rvanilla)^0.5)/A2stdlife)) -> 0 | AU78: =IF(A2stdlife="n/a","n/a",IF(AU$3>(A2stdlife+$E78),(Input!$N$152*(1+rvanilla)^0.5)-SUM($N78:AT78),(Input!$N$152*(1+rvanilla)^0.5)/A2stdlife)) -> 0 | AV78: =IF(A2stdlife="n/a","n/a",IF(AV$3>(A2stdlife+$E78),(Input!$N$152*(1+rvanilla)^0.5)-SUM($N78:AU78),(Input!$N$152*(1+rvanilla)^0.5)/A2stdlife)) -> 0 | AW78: =IF(A2stdlife="n/a","n/a",IF(AW$3>(A2stdlife+$E78),(Input!$N$152*(1+rvanilla)^0.5)-SUM($N78:AV78),(Input!$N$152*(1+rvanilla)^0.5)/A2stdlife)) -> 0 | AX78: =IF(A2stdlife="n/a","n/a",IF(AX$3>(A2stdlife+$E78),(Input!$N$152*(1+rvanilla)^0.5)-SUM($N78:AW78),(Input!$N$152*(1+rvanilla)^0.5)/A2stdlife)) -> 0 | AY78: =IF(A2stdlife="n/a","n/a",IF(AY$3>(A2stdlife+$E78),(Input!$N$152*(1+rvanilla)^0.5)-SUM($N78:AX78),(Input!$N$152*(1+rvanilla)^0.5)/A2stdlife)) -> 0 | AZ78: =IF(A2stdlife="n/a","n/a",IF(AZ$3>(A2stdlife+$E78),(Input!$N$152*(1+rvanilla)^0.5)-SUM($N78:AY78),(Input!$N$152*(1+rvanilla)^0.5)/A2stdlife)) -> 0 | BA78: =IF(A2stdlife="n/a","n/a",IF(BA$3>(A2stdlife+$E78),(Input!$N$152*(1+rvanilla)^0.5)-SUM($N78:AZ78),(Input!$N$152*(1+rvanilla)^0.5)/A2stdlife)) -> 0 | BB78: =IF(A2stdlife="n/a","n/a",IF(BB$3>(A2stdlife+$E78),(Input!$N$152*(1+rvanilla)^0.5)-SUM($N78:BA78),(Input!$N$152*(1+rvanilla)^0.5)/A2stdlife)) -> 0 | BC78: =IF(A2stdlife="n/a","n/a",IF(BC$3>(A2stdlife+$E78),(Input!$N$152*(1+rvanilla)^0.5)-SUM($N78:BB78),(Input!$N$152*(1+rvanilla)^0.5)/A2stdlife)) -> 0 | BD78: =IF(A2stdlife="n/a","n/a",IF(BD$3>(A2stdlife+$E78),(Input!$N$152*(1+rvanilla)^0.5)-SUM($N78:BC78),(Input!$N$152*(1+rvanilla)^0.5)/A2stdlife)) -> 0 | BE78: =IF(A2stdlife="n/a","n/a",IF(BE$3>(A2stdlife+$E78),(Input!$N$152*(1+rvanilla)^0.5)-SUM($N78:BD78),(Input!$N$152*(1+rvanilla)^0.5)/A2stdlife)) -> 0 | BF78: =IF(A2stdlife="n/a","n/a",IF(BF$3>(A2stdlife+$E78),(Input!$N$152*(1+rvanilla)^0.5)-SUM($N78:BE78),(Input!$N$152*(1+rvanilla)^0.5)/A2stdlife)) -> 0 | BG78: =IF(A2stdlife="n/a","n/a",IF(BG$3>(A2stdlife+$E78),(Input!$N$152*(1+rvanilla)^0.5)-SUM($N78:BF78),(Input!$N$152*(1+rvanilla)^0.5)/A2stdlife)) -> 0 | BH78: =IF(A2stdlife="n/a","n/a",IF(BH$3>(A2stdlife+$E78),(Input!$N$152*(1+rvanilla)^0.5)-SUM($N78:BG78),(Input!$N$152*(1+rvanilla)^0.5)/A2stdlife)) -> 0 | BI78: =IF(A2stdlife="n/a","n/a",IF(BI$3>(A2stdlife+$E78),(Input!$N$152*(1+rvanilla)^0.5)-SUM($N78:BH78),(Input!$N$152*(1+rvanilla)^0.5)/A2stdlife)) -> 0
E79: 9 | P79: =IF(A2stdlife="n/a","n/a",IF(P$3>(A2stdlife+$E79),(Input!$O$152*(1+rvanilla)^0.5)-SUM($O79:O79),(Input!$O$152*(1+rvanilla)^0.5)/A2stdlife)) -> 0 | Q79: =IF(A2stdlife="n/a","n/a",IF(Q$3>(A2stdlife+$E79),(Input!$O$152*(1+rvanilla)^0.5)-SUM($O79:P79),(Input!$O$152*(1+rvanilla)^0.5)/A2stdlife)) -> 0 | R79: =IF(A2stdlife="n/a","n/a",IF(R$3>(A2stdlife+$E79),(Input!$O$152*(1+rvanilla)^0.5)-SUM($O79:Q79),(Input!$O$152*(1+rvanilla)^0.5)/A2stdlife)) -> 0 | S79: =IF(A2stdlife="n/a","n/a",IF(S$3>(A2stdlife+$E79),(Input!$O$152*(1+rvanilla)^0.5)-SUM($O79:R79),(Input!$O$152*(1+rvanilla)^0.5)/A2stdlife)) -> 0 | T79: =IF(A2stdlife="n/a","n/a",IF(T$3>(A2stdlife+$E79),(Input!$O$152*(1+rvanilla)^0.5)-SUM($O79:S79),(Input!$O$152*(1+rvanilla)^0.5)/A2stdlife)) -> 0 | U79: =IF(A2stdlife="n/a","n/a",IF(U$3>(A2stdlife+$E79),(Input!$O$152*(1+rvanilla)^0.5)-SUM($O79:T79),(Input!$O$152*(1+rvanilla)^0.5)/A2stdlife)) -> 0 | V79: =IF(A2stdlife="n/a","n/a",IF(V$3>(A2stdlife+$E79),(Input!$O$152*(1+rvanilla)^0.5)-SUM($O79:U79),(Input!$O$152*(1+rvanilla)^0.5)/A2stdlife)) -> 0 | W79: =IF(A2stdlife="n/a","n/a",IF(W$3>(A2stdlife+$E79),(Input!$O$152*(1+rvanilla)^0.5)-SUM($O79:V79),(Input!$O$152*(1+rvanilla)^0.5)/A2stdlife)) -> 0 | X79: =IF(A2stdlife="n/a","n/a",IF(X$3>(A2stdlife+$E79),(Input!$O$152*(1+rvanilla)^0.5)-SUM($O79:W79),(Input!$O$152*(1+rvanilla)^0.5)/A2stdlife)) -> 0 | Y79: =IF(A2stdlife="n/a","n/a",IF(Y$3>(A2stdlife+$E79),(Input!$O$152*(1+rvanilla)^0.5)-SUM($O79:X79),(Input!$O$152*(1+rvanilla)^0.5)/A2stdlife)) -> 0 | Z79: =IF(A2stdlife="n/a","n/a",IF(Z$3>(A2stdlife+$E79),(Input!$O$152*(1+rvanilla)^0.5)-SUM($O79:Y79),(Input!$O$152*(1+rvanilla)^0.5)/A2stdlife)) -> 0 | AA79: =IF(A2stdlife="n/a","n/a",IF(AA$3>(A2stdlife+$E79),(Input!$O$152*(1+rvanilla)^0.5)-SUM($O79:Z79),(Input!$O$152*(1+rvanilla)^0.5)/A2stdlife)) -> 0 | AB79: =IF(A2stdlife="n/a","n/a",IF(AB$3>(A2stdlife+$E79),(Input!$O$152*(1+rvanilla)^0.5)-SUM($O79:AA79),(Input!$O$152*(1+rvanilla)^0.5)/A2stdlife)) -> 0 | AC79: =IF(A2stdlife="n/a","n/a",IF(AC$3>(A2stdlife+$E79),(Input!$O$152*(1+rvanilla)^0.5)-SUM($O79:AB79),(Input!$O$152*(1+rvanilla)^0.5)/A2stdlife)) -> 0 | AD79: =IF(A2stdlife="n/a","n/a",IF(AD$3>(A2stdlife+$E79),(Input!$O$152*(1+rvanilla)^0.5)-SUM($O79:AC79),(Input!$O$152*(1+rvanilla)^0.5)/A2stdlife)) -> 0 | AE79: =IF(A2stdlife="n/a","n/a",IF(AE$3>(A2stdlife+$E79),(Input!$O$152*(1+rvanilla)^0.5)-SUM($O79:AD79),(Input!$O$152*(1+rvanilla)^0.5)/A2stdlife)) -> 0 | AF79: =IF(A2stdlife="n/a","n/a",IF(AF$3>(A2stdlife+$E79),(Input!$O$152*(1+rvanilla)^0.5)-SUM($O79:AE79),(Input!$O$152*(1+rvanilla)^0.5)/A2stdlife)) -> 0 | AG79: =IF(A2stdlife="n/a","n/a",IF(AG$3>(A2stdlife+$E79),(Input!$O$152*(1+rvanilla)^0.5)-SUM($O79:AF79),(Input!$O$152*(1+rvanilla)^0.5)/A2stdlife)) -> 0 | AH79: =IF(A2stdlife="n/a","n/a",IF(AH$3>(A2stdlife+$E79),(Input!$O$152*(1+rvanilla)^0.5)-SUM($O79:AG79),(Input!$O$152*(1+rvanilla)^0.5)/A2stdlife)) -> 0 | AI79: =IF(A2stdlife="n/a","n/a",IF(AI$3>(A2stdlife+$E79),(Input!$O$152*(1+rvanilla)^0.5)-SUM($O79:AH79),(Input!$O$152*(1+rvanilla)^0.5)/A2stdlife)) -> 0 | AJ79: =IF(A2stdlife="n/a","n/a",IF(AJ$3>(A2stdlife+$E79),(Input!$O$152*(1+rvanilla)^0.5)-SUM($O79:AI79),(Input!$O$152*(1+rvanilla)^0.5)/A2stdlife)) -> 0 | AK79: =IF(A2stdlife="n/a","n/a",IF(AK$3>(A2stdlife+$E79),(Input!$O$152*(1+rvanilla)^0.5)-SUM($O79:AJ79),(Input!$O$152*(1+rvanilla)^0.5)/A2stdlife)) -> 0 | AL79: =IF(A2stdlife="n/a","n/a",IF(AL$3>(A2stdlife+$E79),(Input!$O$152*(1+rvanilla)^0.5)-SUM($O79:AK79),(Input!$O$152*(1+rvanilla)^0.5)/A2stdlife)) -> 0 | AM79: =IF(A2stdlife="n/a","n/a",IF(AM$3>(A2stdlife+$E79),(Input!$O$152*(1+rvanilla)^0.5)-SUM($O79:AL79),(Input!$O$152*(1+rvanilla)^0.5)/A2stdlife)) -> 0 | AN79: =IF(A2stdlife="n/a","n/a",IF(AN$3>(A2stdlife+$E79),(Input!$O$152*(1+rvanilla)^0.5)-SUM($O79:AM79),(Input!$O$152*(1+rvanilla)^0.5)/A2stdlife)) -> 0 | AO79: =IF(A2stdlife="n/a","n/a",IF(AO$3>(A2stdlife+$E79),(Input!$O$152*(1+rvanilla)^0.5)-SUM($O79:AN79),(Input!$O$152*(1+rvanilla)^0.5)/A2stdlife)) -> 0 | AP79: =IF(A2stdlife="n/a","n/a",IF(AP$3>(A2stdlife+$E79),(Input!$O$152*(1+rvanilla)^0.5)-SUM($O79:AO79),(Input!$O$152*(1+rvanilla)^0.5)/A2stdlife)) -> 0 | AQ79: =IF(A2stdlife="n/a","n/a",IF(AQ$3>(A2stdlife+$E79),(Input!$O$152*(1+rvanilla)^0.5)-SUM($O79:AP79),(Input!$O$152*(1+rvanilla)^0.5)/A2stdlife)) -> 0 | AR79: =IF(A2stdlife="n/a","n/a",IF(AR$3>(A2stdlife+$E79),(Input!$O$152*(1+rvanilla)^0.5)-SUM($O79:AQ79),(Input!$O$152*(1+rvanilla)^0.5)/A2stdlife)) -> 0 | AS79: =IF(A2stdlife="n/a","n/a",IF(AS$3>(A2stdlife+$E79),(Input!$O$152*(1+rvanilla)^0.5)-SUM($O79:AR79),(Input!$O$152*(1+rvanilla)^0.5)/A2stdlife)) -> 0 | AT79: =IF(A2stdlife="n/a","n/a",IF(AT$3>(A2stdlife+$E79),(Input!$O$152*(1+rvanilla)^0.5)-SUM($O79:AS79),(Input!$O$152*(1+rvanilla)^0.5)/A2stdlife)) -> 0 | AU79: =IF(A2stdlife="n/a","n/a",IF(AU$3>(A2stdlife+$E79),(Input!$O$152*(1+rvanilla)^0.5)-SUM($O79:AT79),(Input!$O$152*(1+rvanilla)^0.5)/A2stdlife)) -> 0 | AV79: =IF(A2stdlife="n/a","n/a",IF(AV$3>(A2stdlife+$E79),(Input!$O$152*(1+rvanilla)^0.5)-SUM($O79:AU79),(Input!$O$152*(1+rvanilla)^0.5)/A2stdlife)) -> 0 | AW79: =IF(A2stdlife="n/a","n/a",IF(AW$3>(A2stdlife+$E79),(Input!$O$152*(1+rvanilla)^0.5)-SUM($O79:AV79),(Input!$O$152*(1+rvanilla)^0.5)/A2stdlife)) -> 0 | AX79: =IF(A2stdlife="n/a","n/a",IF(AX$3>(A2stdlife+$E79),(Input!$O$152*(1+rvanilla)^0.5)-SUM($O79:AW79),(Input!$O$152*(1+rvanilla)^0.5)/A2stdlife)) -> 0 | AY79: =IF(A2stdlife="n/a","n/a",IF(AY$3>(A2stdlife+$E79),(Input!$O$152*(1+rvanilla)^0.5)-SUM($O79:AX79),(Input!$O$152*(1+rvanilla)^0.5)/A2stdlife)) -> 0 | AZ79: =IF(A2stdlife="n/a","n/a",IF(AZ$3>(A2stdlife+$E79),(Input!$O$152*(1+rvanilla)^0.5)-SUM($O79:AY79),(Input!$O$152*(1+rvanilla)^0.5)/A2stdlife)) -> 0 | BA79: =IF(A2stdlife="n/a","n/a",IF(BA$3>(A2stdlife+$E79),(Input!$O$152*(1+rvanilla)^0.5)-SUM($O79:AZ79),(Input!$O$152*(1+rvanilla)^0.5)/A2stdlife)) -> 0 | BB79: =IF(A2stdlife="n/a","n/a",IF(BB$3>(A2stdlife+$E79),(Input!$O$152*(1+rvanilla)^0.5)-SUM($O79:BA79),(Input!$O$152*(1+rvanilla)^0.5)/A2stdlife)) -> 0 | BC79: =IF(A2stdlife="n/a","n/a",IF(BC$3>(A2stdlife+$E79),(Input!$O$152*(1+rvanilla)^0.5)-SUM($O79:BB79),(Input!$O$152*(1+rvanilla)^0.5)/A2stdlife)) -> 0 | BD79: =IF(A2stdlife="n/a","n/a",IF(BD$3>(A2stdlife+$E79),(Input!$O$152*(1+rvanilla)^0.5)-SUM($O79:BC79),(Input!$O$152*(1+rvanilla)^0.5)/A2stdlife)) -> 0 | BE79: =IF(A2stdlife="n/a","n/a",IF(BE$3>(A2stdlife+$E79),(Input!$O$152*(1+rvanilla)^0.5)-SUM($O79:BD79),(Input!$O$152*(1+rvanilla)^0.5)/A2stdlife)) -> 0 | BF79: =IF(A2stdlife="n/a","n/a",IF(BF$3>(A2stdlife+$E79),(Input!$O$152*(1+rvanilla)^0.5)-SUM($O79:BE79),(Input!$O$152*(1+rvanilla)^0.5)/A2stdlife)) -> 0 | BG79: =IF(A2stdlife="n/a","n/a",IF(BG$3>(A2stdlife+$E79),(Input!$O$152*(1+rvanilla)^0.5)-SUM($O79:BF79),(Input!$O$152*(1+rvanilla)^0.5)/A2stdlife)) -> 0 | BH79: =IF(A2stdlife="n/a","n/a",IF(BH$3>(A2stdlife+$E79),(Input!$O$152*(1+rvanilla)^0.5)-SUM($O79:BG79),(Input!$O$152*(1+rvanilla)^0.5)/A2stdlife)) -> 0 | BI79: =IF(A2stdlife="n/a","n/a",IF(BI$3>(A2stdlife+$E79),(Input!$O$152*(1+rvanilla)^0.5)-SUM($O79:BH79),(Input!$O$152*(1+rvanilla)^0.5)/A2stdlife)) -> 0
E80: 10 | Q80: =IF(A2stdlife="n/a","n/a",IF(Q$3>(A2stdlife+$E80),(Input!$P$152*(1+rvanilla)^0.5)-SUM($P80:P80),(Input!$P$152*(1+rvanilla)^0.5)/A2stdlife)) -> 0 | R80: =IF(A2stdlife="n/a","n/a",IF(R$3>(A2stdlife+$E80),(Input!$P$152*(1+rvanilla)^0.5)-SUM($P80:Q80),(Input!$P$152*(1+rvanilla)^0.5)/A2stdlife)) -> 0 | S80: =IF(A2stdlife="n/a","n/a",IF(S$3>(A2stdlife+$E80),(Input!$P$152*(1+rvanilla)^0.5)-SUM($P80:R80),(Input!$P$152*(1+rvanilla)^0.5)/A2stdlife)) -> 0 | T80: =IF(A2stdlife="n/a","n/a",IF(T$3>(A2stdlife+$E80),(Input!$P$152*(1+rvanilla)^0.5)-SUM($P80:S80),(Input!$P$152*(1+rvanilla)^0.5)/A2stdlife)) -> 0 | U80: =IF(A2stdlife="n/a","n/a",IF(U$3>(A2stdlife+$E80),(Input!$P$152*(1+rvanilla)^0.5)-SUM($P80:T80),(Input!$P$152*(1+rvanilla)^0.5)/A2stdlife)) -> 0 | V80: =IF(A2stdlife="n/a","n/a",IF(V$3>(A2stdlife+$E80),(Input!$P$152*(1+rvanilla)^0.5)-SUM($P80:U80),(Input!$P$152*(1+rvanilla)^0.5)/A2stdlife)) -> 0 | W80: =IF(A2stdlife="n/a","n/a",IF(W$3>(A2stdlife+$E80),(Input!$P$152*(1+rvanilla)^0.5)-SUM($P80:V80),(Input!$P$152*(1+rvanilla)^0.5)/A2stdlife)) -> 0 | X80: =IF(A2stdlife="n/a","n/a",IF(X$3>(A2stdlife+$E80),(Input!$P$152*(1+rvanilla)^0.5)-SUM($P80:W80),(Input!$P$152*(1+rvanilla)^0.5)/A2stdlife)) -> 0 | Y80: =IF(A2stdlife="n/a","n/a",IF(Y$3>(A2stdlife+$E80),(Input!$P$152*(1+rvanilla)^0.5)-SUM($P80:X80),(Input!$P$152*(1+rvanilla)^0.5)/A2stdlife)) -> 0 | Z80: =IF(A2stdlife="n/a","n/a",IF(Z$3>(A2stdlife+$E80),(Input!$P$152*(1+rvanilla)^0.5)-SUM($P80:Y80),(Input!$P$152*(1+rvanilla)^0.5)/A2stdlife)) -> 0 | AA80: =IF(A2stdlife="n/a","n/a",IF(AA$3>(A2stdlife+$E80),(Input!$P$152*(1+rvanilla)^0.5)-SUM($P80:Z80),(Input!$P$152*(1+rvanilla)^0.5)/A2stdlife)) -> 0 | AB80: =IF(A2stdlife="n/a","n/a",IF(AB$3>(A2stdlife+$E80),(Input!$P$152*(1+rvanilla)^0.5)-SUM($P80:AA80),(Input!$P$152*(1+rvanilla)^0.5)/A2stdlife)) -> 0 | AC80: =IF(A2stdlife="n/a","n/a",IF(AC$3>(A2stdlife+$E80),(Input!$P$152*(1+rvanilla)^0.5)-SUM($P80:AB80),(Input!$P$152*(1+rvanilla)^0.5)/A2stdlife)) -> 0 | AD80: =IF(A2stdlife="n/a","n/a",IF(AD$3>(A2stdlife+$E80),(Input!$P$152*(1+rvanilla)^0.5)-SUM($P80:AC80),(Input!$P$152*(1+rvanilla)^0.5)/A2stdlife)) -> 0 | AE80: =IF(A2stdlife="n/a","n/a",IF(AE$3>(A2stdlife+$E80),(Input!$P$152*(1+rvanilla)^0.5)-SUM($P80:AD80),(Input!$P$152*(1+rvanilla)^0.5)/A2stdlife)) -> 0 | AF80: =IF(A2stdlife="n/a","n/a",IF(AF$3>(A2stdlife+$E80),(Input!$P$152*(1+rvanilla)^0.5)-SUM($P80:AE80),(Input!$P$152*(1+rvanilla)^0.5)/A2stdlife)) -> 0 | AG80: =IF(A2stdlife="n/a","n/a",IF(AG$3>(A2stdlife+$E80),(Input!$P$152*(1+rvanilla)^0.5)-SUM($P80:AF80),(Input!$P$152*(1+rvanilla)^0.5)/A2stdlife)) -> 0 | AH80: =IF(A2stdlife="n/a","n/a",IF(AH$3>(A2stdlife+$E80),(Input!$P$152*(1+rvanilla)^0.5)-SUM($P80:AG80),(Input!$P$152*(1+rvanilla)^0.5)/A2stdlife)) -> 0 | AI80: =IF(A2stdlife="n/a","n/a",IF(AI$3>(A2stdlife+$E80),(Input!$P$152*(1+rvanilla)^0.5)-SUM($P80:AH80),(Input!$P$152*(1+rvanilla)^0.5)/A2stdlife)) -> 0 | AJ80: =IF(A2stdlife="n/a","n/a",IF(AJ$3>(A2stdlife+$E80),(Input!$P$152*(1+rvanilla)^0.5)-SUM($P80:AI80),(Input!$P$152*(1+rvanilla)^0.5)/A2stdlife)) -> 0 | AK80: =IF(A2stdlife="n/a","n/a",IF(AK$3>(A2stdlife+$E80),(Input!$P$152*(1+rvanilla)^0.5)-SUM($P80:AJ80),(Input!$P$152*(1+rvanilla)^0.5)/A2stdlife)) -> 0 | AL80: =IF(A2stdlife="n/a","n/a",IF(AL$3>(A2stdlife+$E80),(Input!$P$152*(1+rvanilla)^0.5)-SUM($P80:AK80),(Input!$P$152*(1+rvanilla)^0.5)/A2stdlife)) -> 0 | AM80: =IF(A2stdlife="n/a","n/a",IF(AM$3>(A2stdlife+$E80),(Input!$P$152*(1+rvanilla)^0.5)-SUM($P80:AL80),(Input!$P$152*(1+rvanilla)^0.5)/A2stdlife)) -> 0 | AN80: =IF(A2stdlife="n/a","n/a",IF(AN$3>(A2stdlife+$E80),(Input!$P$152*(1+rvanilla)^0.5)-SUM($P80:AM80),(Input!$P$152*(1+rvanilla)^0.5)/A2stdlife)) -> 0 | AO80: =IF(A2stdlife="n/a","n/a",IF(AO$3>(A2stdlife+$E80),(Input!$P$152*(1+rvanilla)^0.5)-SUM($P80:AN80),(Input!$P$152*(1+rvanilla)^0.5)/A2stdlife)) -> 0 | AP80: =IF(A2stdlife="n/a","n/a",IF(AP$3>(A2stdlife+$E80),(Input!$P$152*(1+rvanilla)^0.5)-SUM($P80:AO80),(Input!$P$152*(1+rvanilla)^0.5)/A2stdlife)) -> 0 | AQ80: =IF(A2stdlife="n/a","n/a",IF(AQ$3>(A2stdlife+$E80),(Input!$P$152*(1+rvanilla)^0.5)-SUM($P80:AP80),(Input!$P$152*(1+rvanilla)^0.5)/A2stdlife)) -> 0 | AR80: =IF(A2stdlife="n/a","n/a",IF(AR$3>(A2stdlife+$E80),(Input!$P$152*(1+rvanilla)^0.5)-SUM($P80:AQ80),(Input!$P$152*(1+rvanilla)^0.5)/A2stdlife)) -> 0 | AS80: =IF(A2stdlife="n/a","n/a",IF(AS$3>(A2stdlife+$E80),(Input!$P$152*(1+rvanilla)^0.5)-SUM($P80:AR80),(Input!$P$152*(1+rvanilla)^0.5)/A2stdlife)) -> 0 | AT80: =IF(A2stdlife="n/a","n/a",IF(AT$3>(A2stdlife+$E80),(Input!$P$152*(1+rvanilla)^0.5)-SUM($P80:AS80),(Input!$P$152*(1+rvanilla)^0.5)/A2stdlife)) -> 0 | AU80: =IF(A2stdlife="n/a","n/a",IF(AU$3>(A2stdlife+$E80),(Input!$P$152*(1+rvanilla)^0.5)-SUM($P80:AT80),(Input!$P$152*(1+rvanilla)^0.5)/A2stdlife)) -> 0 | AV80: =IF(A2stdlife="n/a","n/a",IF(AV$3>(A2stdlife+$E80),(Input!$P$152*(1+rvanilla)^0.5)-SUM($P80:AU80),(Input!$P$152*(1+rvanilla)^0.5)/A2stdlife)) -> 0 | AW80: =IF(A2stdlife="n/a","n/a",IF(AW$3>(A2stdlife+$E80),(Input!$P$152*(1+rvanilla)^0.5)-SUM($P80:AV80),(Input!$P$152*(1+rvanilla)^0.5)/A2stdlife)) -> 0 | AX80: =IF(A2stdlife="n/a","n/a",IF(AX$3>(A2stdlife+$E80),(Input!$P$152*(1+rvanilla)^0.5)-SUM($P80:AW80),(Input!$P$152*(1+rvanilla)^0.5)/A2stdlife)) -> 0 | AY80: =IF(A2stdlife="n/a","n/a",IF(AY$3>(A2stdlife+$E80),(Input!$P$152*(1+rvanilla)^0.5)-SUM($P80:AX80),(Input!$P$152*(1+rvanilla)^0.5)/A2stdlife)) -> 0 | AZ80: =IF(A2stdlife="n/a","n/a",IF(AZ$3>(A2stdlife+$E80),(Input!$P$152*(1+rvanilla)^0.5)-SUM($P80:AY80),(Input!$P$152*(1+rvanilla)^0.5)/A2stdlife)) -> 0 | BA80: =IF(A2stdlife="n/a","n/a",IF(BA$3>(A2stdlife+$E80),(Input!$P$152*(1+rvanilla)^0.5)-SUM($P80:AZ80),(Input!$P$152*(1+rvanilla)^0.5)/A2stdlife)) -> 0 | BB80: =IF(A2stdlife="n/a","n/a",IF(BB$3>(A2stdlife+$E80),(Input!$P$152*(1+rvanilla)^0.5)-SUM($P80:BA80),(Input!$P$152*(1+rvanilla)^0.5)/A2stdlife)) -> 0 | BC80: =IF(A2stdlife="n/a","n/a",IF(BC$3>(A2stdlife+$E80),(Input!$P$152*(1+rvanilla)^0.5)-SUM($P80:BB80),(Input!$P$152*(1+rvanilla)^0.5)/A2stdlife)) -> 0 | BD80: =IF(A2stdlife="n/a","n/a",IF(BD$3>(A2stdlife+$E80),(Input!$P$152*(1+rvanilla)^0.5)-SUM($P80:BC80),(Input!$P$152*(1+rvanilla)^0.5)/A2stdlife)) -> 0 | BE80: =IF(A2stdlife="n/a","n/a",IF(BE$3>(A2stdlife+$E80),(Input!$P$152*(1+rvanilla)^0.5)-SUM($P80:BD80),(Input!$P$152*(1+rvanilla)^0.5)/A2stdlife)) -> 0 | BF80: =IF(A2stdlife="n/a","n/a",IF(BF$3>(A2stdlife+$E80),(Input!$P$152*(1+rvanilla)^0.5)-SUM($P80:BE80),(Input!$P$152*(1+rvanilla)^0.5)/A2stdlife)) -> 0 | BG80: =IF(A2stdlife="n/a","n/a",IF(BG$3>(A2stdlife+$E80),(Input!$P$152*(1+rvanilla)^0.5)-SUM($P80:BF80),(Input!$P$152*(1+rvanilla)^0.5)/A2stdlife)) -> 0 | BH80: =IF(A2stdlife="n/a","n/a",IF(BH$3>(A2stdlife+$E80),(Input!$P$152*(1+rvanilla)^0.5)-SUM($P80:BG80),(Input!$P$152*(1+rvanilla)^0.5)/A2stdlife)) -> 0 | BI80: =IF(A2stdlife="n/a","n/a",IF(BI$3>(A2stdlife+$E80),(Input!$P$152*(1+rvanilla)^0.5)-SUM($P80:BH80),(Input!$P$152*(1+rvanilla)^0.5)/A2stdlife)) -> 0
C81: =Asset2 -> Inlets | G81: =SUM(G69:G80) -> 2.411271017 | H81: =SUM(H69:H80) -> 2.631572881 | I81: 2.849942295 | J81: 3.07380266 | K81: 3.303577536 | L81: 3.532048905 | M81: 3.532048905 | N81: 3.532048905 | O81: 3.532048905 | P81: 3.532048905 | Q81: 3.532048905 | R81: 3.532048905 | S81: 3.532048905 | T81: 3.532048905 | U81: 3.532048905 | V81: 3.532048905 | W81: 3.532048905 | X81: 3.532048905 | Y81: 3.532048905 | Z81: 3.532048905 | AA81: 3.532048905 | AB81: 3.532048905 | AC81: 3.532048905 | AD81: 3.532048905 | AE81: 3.532048905 | AF81: 3.532048905 | AG81: 3.532048905 | AH81: 3.532048905 | AI81: 3.532048905 | AJ81: 3.532048905 | AK81: 3.532048905 | AL81: 3.532048905 | AM81: 3.532048905 | AN81: 3.532048905 | AO81: 3.532048905 | AP81: 3.532048905 | AQ81: 3.532048905 | AR81: 3.532048905 | AS81: 3.532048905 | AT81: 3.532048905 | AU81: 3.532048905 | AV81: 3.532048905 | AW81: 3.532048905 | AX81: 3.532048905 | AY81: 3.532048905 | AZ81: 3.532048905 | BA81: 3.532048905 | BB81: 3.532048905 | BC81: 3.532048905 | BD81: 3.532048905 | BE81: 3.532048905 | BF81: 1.242821047 | BG81: 1.120777889 | BH81: 1.120777889 | BI81: 1.120777889
B82: =C94 -> Meters | D82: Initial Asset Base | G82: =IF(G$3>A3remlife,A3acvalue-SUM($F82:F82),IF(A3remlife="N/A","n/a",A3acvalue/A3remlife)) -> 8.087640164 | H82: =IF(H$3>A3remlife,A3acvalue-SUM($F82:G82),IF(A3remlife="N/A","n/a",A3acvalue/A3remlife)) -> 8.087640164 | I82: =IF(I$3>A3remlife,A3acvalue-SUM($F82:H82),IF(A3remlife="N/A","n/a",A3acvalue/A3remlife)) -> 8.087640164 | J82: =IF(J$3>A3remlife,A3acvalue-SUM($F82:I82),IF(A3remlife="N/A","n/a",A3acvalue/A3remlife)) -> 8.087640164 | K82: =IF(K$3>A3remlife,A3acvalue-SUM($F82:J82),IF(A3remlife="N/A","n/a",A3acvalue/A3remlife)) -> 8.087640164 | L82: =IF(L$3>A3remlife,A3acvalue-SUM($F82:K82),IF(A3remlife="N/A","n/a",A3acvalue/A3remlife)) -> 8.087640164 | M82: =IF(M$3>A3remlife,A3acvalue-SUM($F82:L82),IF(A3remlife="N/A","n/a",A3acvalue/A3remlife)) -> 8.087640164 | N82: =IF(N$3>A3remlife,A3acvalue-SUM($F82:M82),IF(A3remlife="N/A","n/a",A3acvalue/A3remlife)) -> 3.53851597 | O82: =IF(O$3>A3remlife,A3acvalue-SUM($F82:N82),IF(A3remlife="N/A","n/a",A3acvalue/A3remlife)) -> 0 | P82: =IF(P$3>A3remlife,A3acvalue-SUM($F82:O82),IF(A3remlife="N/A","n/a",A3acvalue/A3remlife)) -> 0 | Q82: =IF(Q$3>A3remlife,A3acvalue-SUM($F82:P82),IF(A3remlife="N/A","n/a",A3acvalue/A3remlife)) -> 0 | R82: =IF(R$3>A3remlife,A3acvalue-SUM($F82:Q82),IF(A3remlife="N/A","n/a",A3acvalue/A3remlife)) -> 0 | S82: =IF(S$3>A3remlife,A3acvalue-SUM($F82:R82),IF(A3remlife="N/A","n/a",A3acvalue/A3remlife)) -> 0 | T82: =IF(T$3>A3remlife,A3acvalue-SUM($F82:S82),IF(A3remlife="N/A","n/a",A3acvalue/A3remlife)) -> 0 | U82: =IF(U$3>A3remlife,A3acvalue-SUM($F82:T82),IF(A3remlife="N/A","n/a",A3acvalue/A3remlife)) -> 0 | V82: =IF(V$3>A3remlife,A3acvalue-SUM($F82:U82),IF(A3remlife="N/A","n/a",A3acvalue/A3remlife)) -> 0 | W82: =IF(W$3>A3remlife,A3acvalue-SUM($F82:V82),IF(A3remlife="N/A","n/a",A3acvalue/A3remlife)) -> 0 | X82: =IF(X$3>A3remlife,A3acvalue-SUM($F82:W82),IF(A3remlife="N/A","n/a",A3acvalue/A3remlife)) -> 0 | Y82: =IF(Y$3>A3remlife,A3acvalue-SUM($F82:X82),IF(A3remlife="N/A","n/a",A3acvalue/A3remlife)) -> 0 | Z82: =IF(Z$3>A3remlife,A3acvalue-SUM($F82:Y82),IF(A3remlife="N/A","n/a",A3acvalue/A3remlife)) -> 0 | AA82: =IF(AA$3>A3remlife,A3acvalue-SUM($F82:Z82),IF(A3remlife="N/A","n/a",A3acvalue/A3remlife)) -> 0 | AB82: =IF(AB$3>A3remlife,A3acvalue-SUM($F82:AA82),IF(A3remlife="N/A","n/a",A3acvalue/A3remlife)) -> 0 | AC82: =IF(AC$3>A3remlife,A3acvalue-SUM($F82:AB82),IF(A3remlife="N/A","n/a",A3acvalue/A3remlife)) -> 0 | AD82: =IF(AD$3>A3remlife,A3acvalue-SUM($F82:AC82),IF(A3remlife="N/A","n/a",A3acvalue/A3remlife)) -> 0 | AE82: =IF(AE$3>A3remlife,A3acvalue-SUM($F82:AD82),IF(A3remlife="N/A","n/a",A3acvalue/A3remlife)) -> 0 | AF82: =IF(AF$3>A3remlife,A3acvalue-SUM($F82:AE82),IF(A3remlife="N/A","n/a",A3acvalue/A3remlife)) -> 0 | AG82: =IF(AG$3>A3remlife,A3acvalue-SUM($F82:AF82),IF(A3remlife="N/A","n/a",A3acvalue/A3remlife)) -> 0 | AH82: =IF(AH$3>A3remlife,A3acvalue-SUM($F82:AG82),IF(A3remlife="N/A","n/a",A3acvalue/A3remlife)) -> 0 | AI82: =IF(AI$3>A3remlife,A3acvalue-SUM($F82:AH82),IF(A3remlife="N/A","n/a",A3acvalue/A3remlife)) -> 0 | AJ82: =IF(AJ$3>A3remlife,A3acvalue-SUM($F82:AI82),IF(A3remlife="N/A","n/a",A3acvalue/A3remlife)) -> 0 | AK82: =IF(AK$3>A3remlife,A3acvalue-SUM($F82:AJ82),IF(A3remlife="N/A","n/a",A3acvalue/A3remlife)) -> 0 | AL82: =IF(AL$3>A3remlife,A3acvalue-SUM($F82:AK82),IF(A3remlife="N/A","n/a",A3acvalue/A3remlife)) -> 0 | AM82: =IF(AM$3>A3remlife,A3acvalue-SUM($F82:AL82),IF(A3remlife="N/A","n/a",A3acvalue/A3remlife)) -> 0 | AN82: =IF(AN$3>A3remlife,A3acvalue-SUM($F82:AM82),IF(A3remlife="N/A","n/a",A3acvalue/A3remlife)) -> 0 | AO82: =IF(AO$3>A3remlife,A3acvalue-SUM($F82:AN82),IF(A3remlife="N/A","n/a",A3acvalue/A3remlife)) -> 0 | AP82: =IF(AP$3>A3remlife,A3acvalue-SUM($F82:AO82),IF(A3remlife="N/A","n/a",A3acvalue/A3remlife)) -> 0 | AQ82: =IF(AQ$3>A3remlife,A3acvalue-SUM($F82:AP82),IF(A3remlife="N/A","n/a",A3acvalue/A3remlife)) -> 0 | AR82: =IF(AR$3>A3remlife,A3acvalue-SUM($F82:AQ82),IF(A3remlife="N/A","n/a",A3acvalue/A3remlife)) -> 0 | AS82: =IF(AS$3>A3remlife,A3acvalue-SUM($F82:AR82),IF(A3remlife="N/A","n/a",A3acvalue/A3remlife)) -> 0 | AT82: =IF(AT$3>A3remlife,A3acvalue-SUM($F82:AS82),IF(A3remlife="N/A","n/a",A3acvalue/A3remlife)) -> 0 | AU82: =IF(AU$3>A3remlife,A3acvalue-SUM($F82:AT82),IF(A3remlife="N/A","n/a",A3acvalue/A3remlife)) -> 0 | AV82: =IF(AV$3>A3remlife,A3acvalue-SUM($F82:AU82),IF(A3remlife="N/A","n/a",A3acvalue/A3remlife)) -> 0 | AW82: =IF(AW$3>A3remlife,A3acvalue-SUM($F82:AV82),IF(A3remlife="N/A","n/a",A3acvalue/A3remlife)) -> 0 | AX82: =IF(AX$3>A3remlife,A3acvalue-SUM($F82:AW82),IF(A3remlife="N/A","n/a",A3acvalue/A3remlife)) -> 0 | AY82: =IF(AY$3>A3remlife,A3acvalue-SUM($F82:AX82),IF(A3remlife="N/A","n/a",A3acvalue/A3remlife)) -> 0 | AZ82: =IF(AZ$3>A3remlife,A3acvalue-SUM($F82:AY82),IF(A3remlife="N/A","n/a",A3acvalue/A3remlife)) -> 0 | BA82: =IF(BA$3>A3remlife,A3acvalue-SUM($F82:AZ82),IF(A3remlife="N/A","n/a",A3acvalue/A3remlife)) -> 0 | BB82: =IF(BB$3>A3remlife,A3acvalue-SUM($F82:BA82),IF(A3remlife="N/A","n/a",A3acvalue/A3remlife)) -> 0 | BC82: =IF(BC$3>A3remlife,A3acvalue-SUM($F82:BB82),IF(A3remlife="N/A","n/a",A3acvalue/A3remlife)) -> 0 | BD82: =IF(BD$3>A3remlife,A3acvalue-SUM($F82:BC82),IF(A3remlife="N/A","n/a",A3acvalue/A3remlife)) -> 0 | BE82: =IF(BE$3>A3remlife,A3acvalue-SUM($F82:BD82),IF(A3remlife="N/A","n/a",A3acvalue/A3remlife)) -> 0 | BF82: =IF(BF$3>A3remlife,A3acvalue-SUM($F82:BE82),IF(A3remlife="N/A","n/a",A3acvalue/A3remlife)) -> 0 | BG82: =IF(BG$3>A3remlife,A3acvalue-SUM($F82:BF82),IF(A3remlife="N/A","n/a",A3acvalue/A3remlife)) -> 0 | BH82: =IF(BH$3>A3remlife,A3acvalue-SUM($F82:BG82),IF(A3remlife="N/A","n/a",A3acvalue/A3remlife)) -> 0 | BI82: =IF(BI$3>A3remlife,A3acvalue-SUM($F82:BH82),IF(A3remlife="N/A","n/a",A3acvalue/A3remlife)) -> 0
D83: Capex in year | E83: 0
E84: 1 | H84: =IF(A3stdlife="n/a","n/a",IF(H$3>(A3stdlife+$E84),(Input!$G$153*(1+rvanilla)^0.5)-SUM($G84:G84),(Input!$G$153*(1+rvanilla)^0.5)/A3stdlife)) -> 0.5739954816 | I84: =IF(A3stdlife="n/a","n/a",IF(I$3>(A3stdlife+$E84),(Input!$G$153*(1+rvanilla)^0.5)-SUM($G84:H84),(Input!$G$153*(1+rvanilla)^0.5)/A3stdlife)) -> 0.5739954816 | J84: =IF(A3stdlife="n/a","n/a",IF(J$3>(A3stdlife+$E84),(Input!$G$153*(1+rvanilla)^0.5)-SUM($G84:I84),(Input!$G$153*(1+rvanilla)^0.5)/A3stdlife)) -> 0.5739954816 | K84: =IF(A3stdlife="n/a","n/a",IF(K$3>(A3stdlife+$E84),(Input!$G$153*(1+rvanilla)^0.5)-SUM($G84:J84),(Input!$G$153*(1+rvanilla)^0.5)/A3stdlife)) -> 0.5739954816 | L84: =IF(A3stdlife="n/a","n/a",IF(L$3>(A3stdlife+$E84),(Input!$G$153*(1+rvanilla)^0.5)-SUM($G84:K84),(Input!$G$153*(1+rvanilla)^0.5)/A3stdlife)) -> 0.5739954816 | M84: =IF(A3stdlife="n/a","n/a",IF(M$3>(A3stdlife+$E84),(Input!$G$153*(1+rvanilla)^0.5)-SUM($G84:L84),(Input!$G$153*(1+rvanilla)^0.5)/A3stdlife)) -> 0.5739954816 | N84: =IF(A3stdlife="n/a","n/a",IF(N$3>(A3stdlife+$E84),(Input!$G$153*(1+rvanilla)^0.5)-SUM($G84:M84),(Input!$G$153*(1+rvanilla)^0.5)/A3stdlife)) -> 0.5739954816 | O84: =IF(A3stdlife="n/a","n/a",IF(O$3>(A3stdlife+$E84),(Input!$G$153*(1+rvanilla)^0.5)-SUM($G84:N84),(Input!$G$153*(1+rvanilla)^0.5)/A3stdlife)) -> 0.5739954816 | P84: =IF(A3stdlife="n/a","n/a",IF(P$3>(A3stdlife+$E84),(Input!$G$153*(1+rvanilla)^0.5)-SUM($G84:O84),(Input!$G$153*(1+rvanilla)^0.5)/A3stdlife)) -> 0.5739954816 | Q84: =IF(A3stdlife="n/a","n/a",IF(Q$3>(A3stdlife+$E84),(Input!$G$153*(1+rvanilla)^0.5)-SUM($G84:P84),(Input!$G$153*(1+rvanilla)^0.5)/A3stdlife)) -> 0.5739954816 | R84: =IF(A3stdlife="n/a","n/a",IF(R$3>(A3stdlife+$E84),(Input!$G$153*(1+rvanilla)^0.5)-SUM($G84:Q84),(Input!$G$153*(1+rvanilla)^0.5)/A3stdlife)) -> 0.5739954816 | S84: =IF(A3stdlife="n/a","n/a",IF(S$3>(A3stdlife+$E84),(Input!$G$153*(1+rvanilla)^0.5)-SUM($G84:R84),(Input!$G$153*(1+rvanilla)^0.5)/A3stdlife)) -> 0.5739954816 | T84: =IF(A3stdlife="n/a","n/a",IF(T$3>(A3stdlife+$E84),(Input!$G$153*(1+rvanilla)^0.5)-SUM($G84:S84),(Input!$G$153*(1+rvanilla)^0.5)/A3stdlife)) -> 0.5739954816 | U84: =IF(A3stdlife="n/a","n/a",IF(U$3>(A3stdlife+$E84),(Input!$G$153*(1+rvanilla)^0.5)-SUM($G84:T84),(Input!$G$153*(1+rvanilla)^0.5)/A3stdlife)) -> 0.5739954816 | V84: =IF(A3stdlife="n/a","n/a",IF(V$3>(A3stdlife+$E84),(Input!$G$153*(1+rvanilla)^0.5)-SUM($G84:U84),(Input!$G$153*(1+rvanilla)^0.5)/A3stdlife)) -> 0.5739954816 | W84: =IF(A3stdlife="n/a","n/a",IF(W$3>(A3stdlife+$E84),(Input!$G$153*(1+rvanilla)^0.5)-SUM($G84:V84),(Input!$G$153*(1+rvanilla)^0.5)/A3stdlife)) -> 3.552713679e-15 | X84: =IF(A3stdlife="n/a","n/a",IF(X$3>(A3stdlife+$E84),(Input!$G$153*(1+rvanilla)^0.5)-SUM($G84:W84),(Input!$G$153*(1+rvanilla)^0.5)/A3stdlife)) -> 0 | Y84: =IF(A3stdlife="n/a","n/a",IF(Y$3>(A3stdlife+$E84),(Input!$G$153*(1+rvanilla)^0.5)-SUM($G84:X84),(Input!$G$153*(1+rvanilla)^0.5)/A3stdlife)) -> 0 | Z84: =IF(A3stdlife="n/a","n/a",IF(Z$3>(A3stdlife+$E84),(Input!$G$153*(1+rvanilla)^0.5)-SUM($G84:Y84),(Input!$G$153*(1+rvanilla)^0.5)/A3stdlife)) -> 0 | AA84: =IF(A3stdlife="n/a","n/a",IF(AA$3>(A3stdlife+$E84),(Input!$G$153*(1+rvanilla)^0.5)-SUM($G84:Z84),(Input!$G$153*(1+rvanilla)^0.5)/A3stdlife)) -> 0 | AB84: =IF(A3stdlife="n/a","n/a",IF(AB$3>(A3stdlife+$E84),(Input!$G$153*(1+rvanilla)^0.5)-SUM($G84:AA84),(Input!$G$153*(1+rvanilla)^0.5)/A3stdlife)) -> 0 | AC84: =IF(A3stdlife="n/a","n/a",IF(AC$3>(A3stdlife+$E84),(Input!$G$153*(1+rvanilla)^0.5)-SUM($G84:AB84),(Input!$G$153*(1+rvanilla)^0.5)/A3stdlife)) -> 0 | AD84: =IF(A3stdlife="n/a","n/a",IF(AD$3>(A3stdlife+$E84),(Input!$G$153*(1+rvanilla)^0.5)-SUM($G84:AC84),(Input!$G$153*(1+rvanilla)^0.5)/A3stdlife)) -> 0 | AE84: =IF(A3stdlife="n/a","n/a",IF(AE$3>(A3stdlife+$E84),(Input!$G$153*(1+rvanilla)^0.5)-SUM($G84:AD84),(Input!$G$153*(1+rvanilla)^0.5)/A3stdlife)) -> 0 | AF84: =IF(A3stdlife="n/a","n/a",IF(AF$3>(A3stdlife+$E84),(Input!$G$153*(1+rvanilla)^0.5)-SUM($G84:AE84),(Input!$G$153*(1+rvanilla)^0.5)/A3stdlife)) -> 0 | AG84: =IF(A3stdlife="n/a","n/a",IF(AG$3>(A3stdlife+$E84),(Input!$G$153*(1+rvanilla)^0.5)-SUM($G84:AF84),(Input!$G$153*(1+rvanilla)^0.5)/A3stdlife)) -> 0 | AH84: =IF(A3stdlife="n/a","n/a",IF(AH$3>(A3stdlife+$E84),(Input!$G$153*(1+rvanilla)^0.5)-SUM($G84:AG84),(Input!$G$153*(1+rvanilla)^0.5)/A3stdlife)) -> 0 | AI84: =IF(A3stdlife="n/a","n/a",IF(AI$3>(A3stdlife+$E84),(Input!$G$153*(1+rvanilla)^0.5)-SUM($G84:AH84),(Input!$G$153*(1+rvanilla)^0.5)/A3stdlife)) -> 0 | AJ84: =IF(A3stdlife="n/a","n/a",IF(AJ$3>(A3stdlife+$E84),(Input!$G$153*(1+rvanilla)^0.5)-SUM($G84:AI84),(Input!$G$153*(1+rvanilla)^0.5)/A3stdlife)) -> 0 | AK84: =IF(A3stdlife="n/a","n/a",IF(AK$3>(A3stdlife+$E84),(Input!$G$153*(1+rvanilla)^0.5)-SUM($G84:AJ84),(Input!$G$153*(1+rvanilla)^0.5)/A3stdlife)) -> 0 | AL84: =IF(A3stdlife="n/a","n/a",IF(AL$3>(A3stdlife+$E84),(Input!$G$153*(1+rvanilla)^0.5)-SUM($G84:AK84),(Input!$G$153*(1+rvanilla)^0.5)/A3stdlife)) -> 0 | AM84: =IF(A3stdlife="n/a","n/a",IF(AM$3>(A3stdlife+$E84),(Input!$G$153*(1+rvanilla)^0.5)-SUM($G84:AL84),(Input!$G$153*(1+rvanilla)^0.5)/A3stdlife)) -> 0 | AN84: =IF(A3stdlife="n/a","n/a",IF(AN$3>(A3stdlife+$E84),(Input!$G$153*(1+rvanilla)^0.5)-SUM($G84:AM84),(Input!$G$153*(1+rvanilla)^0.5)/A3stdlife)) -> 0 | AO84: =IF(A3stdlife="n/a","n/a",IF(AO$3>(A3stdlife+$E84),(Input!$G$153*(1+rvanilla)^0.5)-SUM($G84:AN84),(Input!$G$153*(1+rvanilla)^0.5)/A3stdlife)) -> 0 | AP84: =IF(A3stdlife="n/a","n/a",IF(AP$3>(A3stdlife+$E84),(Input!$G$153*(1+rvanilla)^0.5)-SUM($G84:AO84),(Input!$G$153*(1+rvanilla)^0.5)/A3stdlife)) -> 0 | AQ84: =IF(A3stdlife="n/a","n/a",IF(AQ$3>(A3stdlife+$E84),(Input!$G$153*(1+rvanilla)^0.5)-SUM($G84:AP84),(Input!$G$153*(1+rvanilla)^0.5)/A3stdlife)) -> 0 | AR84: =IF(A3stdlife="n/a","n/a",IF(AR$3>(A3stdlife+$E84),(Input!$G$153*(1+rvanilla)^0.5)-SUM($G84:AQ84),(Input!$G$153*(1+rvanilla)^0.5)/A3stdlife)) -> 0 | AS84: =IF(A3stdlife="n/a","n/a",IF(AS$3>(A3stdlife+$E84),(Input!$G$153*(1+rvanilla)^0.5)-SUM($G84:AR84),(Input!$G$153*(1+rvanilla)^0.5)/A3stdlife)) -> 0 | AT84: =IF(A3stdlife="n/a","n/a",IF(AT$3>(A3stdlife+$E84),(Input!$G$153*(1+rvanilla)^0.5)-SUM($G84:AS84),(Input!$G$153*(1+rvanilla)^0.5)/A3stdlife)) -> 0 | AU84: =IF(A3stdlife="n/a","n/a",IF(AU$3>(A3stdlife+$E84),(Input!$G$153*(1+rvanilla)^0.5)-SUM($G84:AT84),(Input!$G$153*(1+rvanilla)^0.5)/A3stdlife)) -> 0 | AV84: =IF(A3stdlife="n/a","n/a",IF(AV$3>(A3stdlife+$E84),(Input!$G$153*(1+rvanilla)^0.5)-SUM($G84:AU84),(Input!$G$153*(1+rvanilla)^0.5)/A3stdlife)) -> 0 | AW84: =IF(A3stdlife="n/a","n/a",IF(AW$3>(A3stdlife+$E84),(Input!$G$153*(1+rvanilla)^0.5)-SUM($G84:AV84),(Input!$G$153*(1+rvanilla)^0.5)/A3stdlife)) -> 0 | AX84: =IF(A3stdlife="n/a","n/a",IF(AX$3>(A3stdlife+$E84),(Input!$G$153*(1+rvanilla)^0.5)-SUM($G84:AW84),(Input!$G$153*(1+rvanilla)^0.5)/A3stdlife)) -> 0 | AY84: =IF(A3stdlife="n/a","n/a",IF(AY$3>(A3stdlife+$E84),(Input!$G$153*(1+rvanilla)^0.5)-SUM($G84:AX84),(Input!$G$153*(1+rvanilla)^0.5)/A3stdlife)) -> 0 | AZ84: =IF(A3stdlife="n/a","n/a",IF(AZ$3>(A3stdlife+$E84),(Input!$G$153*(1+rvanilla)^0.5)-SUM($G84:AY84),(Input!$G$153*(1+rvanilla)^0.5)/A3stdlife)) -> 0 | BA84: =IF(A3stdlife="n/a","n/a",IF(BA$3>(A3stdlife+$E84),(Input!$G$153*(1+rvanilla)^0.5)-SUM($G84:AZ84),(Input!$G$153*(1+rvanilla)^0.5)/A3stdlife)) -> 0 | BB84: =IF(A3stdlife="n/a","n/a",IF(BB$3>(A3stdlife+$E84),(Input!$G$153*(1+rvanilla)^0.5)-SUM($G84:BA84),(Input!$G$153*(1+rvanilla)^0.5)/A3stdlife)) -> 0 | BC84: =IF(A3stdlife="n/a","n/a",IF(BC$3>(A3stdlife+$E84),(Input!$G$153*(1+rvanilla)^0.5)-SUM($G84:BB84),(Input!$G$153*(1+rvanilla)^0.5)/A3stdlife)) -> 0 | BD84: =IF(A3stdlife="n/a","n/a",IF(BD$3>(A3stdlife+$E84),(Input!$G$153*(1+rvanilla)^0.5)-SUM($G84:BC84),(Input!$G$153*(1+rvanilla)^0.5)/A3stdlife)) -> 0 | BE84: =IF(A3stdlife="n/a","n/a",IF(BE$3>(A3stdlife+$E84),(Input!$G$153*(1+rvanilla)^0.5)-SUM($G84:BD84),(Input!$G$153*(1+rvanilla)^0.5)/A3stdlife)) -> 0 | BF84: =IF(A3stdlife="n/a","n/a",IF(BF$3>(A3stdlife+$E84),(Input!$G$153*(1+rvanilla)^0.5)-SUM($G84:BE84),(Input!$G$153*(1+rvanilla)^0.5)/A3stdlife)) -> 0 | BG84: =IF(A3stdlife="n/a","n/a",IF(BG$3>(A3stdlife+$E84),(Input!$G$153*(1+rvanilla)^0.5)-SUM($G84:BF84),(Input!$G$153*(1+rvanilla)^0.5)/A3stdlife)) -> 0 | BH84: =IF(A3stdlife="n/a","n/a",IF(BH$3>(A3stdlife+$E84),(Input!$G$153*(1+rvanilla)^0.5)-SUM($G84:BG84),(Input!$G$153*(1+rvanilla)^0.5)/A3stdlife)) -> 0 | BI84: =IF(A3stdlife="n/a","n/a",IF(BI$3>(A3stdlife+$E84),(Input!$G$153*(1+rvanilla)^0.5)-SUM($G84:BH84),(Input!$G$153*(1+rvanilla)^0.5)/A3stdlife)) -> 0
E85: 2 | I85: =IF(A3stdlife="n/a","n/a",IF(I$3>(A3stdlife+$E85),(Input!$H$153*(1+rvanilla)^0.5)-SUM($H85:H85),(Input!$H$153*(1+rvanilla)^0.5)/A3stdlife)) -> 0.5733446359 | J85: =IF(A3stdlife="n/a","n/a",IF(J$3>(A3stdlife+$E85),(Input!$H$153*(1+rvanilla)^0.5)-SUM($H85:I85),(Input!$H$153*(1+rvanilla)^0.5)/A3stdlife)) -> 0.5733446359 | K85: =IF(A3stdlife="n/a","n/a",IF(K$3>(A3stdlife+$E85),(Input!$H$153*(1+rvanilla)^0.5)-SUM($H85:J85),(Input!$H$153*(1+rvanilla)^0.5)/A3stdlife)) -> 0.5733446359 | L85: =IF(A3stdlife="n/a","n/a",IF(L$3>(A3stdlife+$E85),(Input!$H$153*(1+rvanilla)^0.5)-SUM($H85:K85),(Input!$H$153*(1+rvanilla)^0.5)/A3stdlife)) -> 0.5733446359 | M85: =IF(A3stdlife="n/a","n/a",IF(M$3>(A3stdlife+$E85),(Input!$H$153*(1+rvanilla)^0.5)-SUM($H85:L85),(Input!$H$153*(1+rvanilla)^0.5)/A3stdlife)) -> 0.5733446359 | N85: =IF(A3stdlife="n/a","n/a",IF(N$3>(A3stdlife+$E85),(Input!$H$153*(1+rvanilla)^0.5)-SUM($H85:M85),(Input!$H$153*(1+rvanilla)^0.5)/A3stdlife)) -> 0.5733446359 | O85: =IF(A3stdlife="n/a","n/a",IF(O$3>(A3stdlife+$E85),(Input!$H$153*(1+rvanilla)^0.5)-SUM($H85:N85),(Input!$H$153*(1+rvanilla)^0.5)/A3stdlife)) -> 0.5733446359 | P85: =IF(A3stdlife="n/a","n/a",IF(P$3>(A3stdlife+$E85),(Input!$H$153*(1+rvanilla)^0.5)-SUM($H85:O85),(Input!$H$153*(1+rvanilla)^0.5)/A3stdlife)) -> 0.5733446359 | Q85: =IF(A3stdlife="n/a","n/a",IF(Q$3>(A3stdlife+$E85),(Input!$H$153*(1+rvanilla)^0.5)-SUM($H85:P85),(Input!$H$153*(1+rvanilla)^0.5)/A3stdlife)) -> 0.5733446359 | R85: =IF(A3stdlife="n/a","n/a",IF(R$3>(A3stdlife+$E85),(Input!$H$153*(1+rvanilla)^0.5)-SUM($H85:Q85),(Input!$H$153*(1+rvanilla)^0.5)/A3stdlife)) -> 0.5733446359 | S85: =IF(A3stdlife="n/a","n/a",IF(S$3>(A3stdlife+$E85),(Input!$H$153*(1+rvanilla)^0.5)-SUM($H85:R85),(Input!$H$153*(1+rvanilla)^0.5)/A3stdlife)) -> 0.5733446359 | T85: =IF(A3stdlife="n/a","n/a",IF(T$3>(A3stdlife+$E85),(Input!$H$153*(1+rvanilla)^0.5)-SUM($H85:S85),(Input!$H$153*(1+rvanilla)^0.5)/A3stdlife)) -> 0.5733446359 | U85: =IF(A3stdlife="n/a","n/a",IF(U$3>(A3stdlife+$E85),(Input!$H$153*(1+rvanilla)^0.5)-SUM($H85:T85),(Input!$H$153*(1+rvanilla)^0.5)/A3stdlife)) -> 0.5733446359 | V85: =IF(A3stdlife="n/a","n/a",IF(V$3>(A3stdlife+$E85),(Input!$H$153*(1+rvanilla)^0.5)-SUM($H85:U85),(Input!$H$153*(1+rvanilla)^0.5)/A3stdlife)) -> 0.5733446359 | W85: =IF(A3stdlife="n/a","n/a",IF(W$3>(A3stdlife+$E85),(Input!$H$153*(1+rvanilla)^0.5)-SUM($H85:V85),(Input!$H$153*(1+rvanilla)^0.5)/A3stdlife)) -> 0.5733446359 | X85: =IF(A3stdlife="n/a","n/a",IF(X$3>(A3stdlife+$E85),(Input!$H$153*(1+rvanilla)^0.5)-SUM($H85:W85),(Input!$H$153*(1+rvanilla)^0.5)/A3stdlife)) -> 0 | Y85: =IF(A3stdlife="n/a","n/a",IF(Y$3>(A3stdlife+$E85),(Input!$H$153*(1+rvanilla)^0.5)-SUM($H85:X85),(Input!$H$153*(1+rvanilla)^0.5)/A3stdlife)) -> 0 | Z85: =IF(A3stdlife="n/a","n/a",IF(Z$3>(A3stdlife+$E85),(Input!$H$153*(1+rvanilla)^0.5)-SUM($H85:Y85),(Input!$H$153*(1+rvanilla)^0.5)/A3stdlife)) -> 0 | AA85: =IF(A3stdlife="n/a","n/a",IF(AA$3>(A3stdlife+$E85),(Input!$H$153*(1+rvanilla)^0.5)-SUM($H85:Z85),(Input!$H$153*(1+rvanilla)^0.5)/A3stdlife)) -> 0 | AB85: =IF(A3stdlife="n/a","n/a",IF(AB$3>(A3stdlife+$E85),(Input!$H$153*(1+rvanilla)^0.5)-SUM($H85:AA85),(Input!$H$153*(1+rvanilla)^0.5)/A3stdlife)) -> 0 | AC85: =IF(A3stdlife="n/a","n/a",IF(AC$3>(A3stdlife+$E85),(Input!$H$153*(1+rvanilla)^0.5)-SUM($H85:AB85),(Input!$H$153*(1+rvanilla)^0.5)/A3stdlife)) -> 0 | AD85: =IF(A3stdlife="n/a","n/a",IF(AD$3>(A3stdlife+$E85),(Input!$H$153*(1+rvanilla)^0.5)-SUM($H85:AC85),(Input!$H$153*(1+rvanilla)^0.5)/A3stdlife)) -> 0 | AE85: =IF(A3stdlife="n/a","n/a",IF(AE$3>(A3stdlife+$E85),(Input!$H$153*(1+rvanilla)^0.5)-SUM($H85:AD85),(Input!$H$153*(1+rvanilla)^0.5)/A3stdlife)) -> 0 | AF85: =IF(A3stdlife="n/a","n/a",IF(AF$3>(A3stdlife+$E85),(Input!$H$153*(1+rvanilla)^0.5)-SUM($H85:AE85),(Input!$H$153*(1+rvanilla)^0.5)/A3stdlife)) -> 0 | AG85: =IF(A3stdlife="n/a","n/a",IF(AG$3>(A3stdlife+$E85),(Input!$H$153*(1+rvanilla)^0.5)-SUM($H85:AF85),(Input!$H$153*(1+rvanilla)^0.5)/A3stdlife)) -> 0 | AH85: =IF(A3stdlife="n/a","n/a",IF(AH$3>(A3stdlife+$E85),(Input!$H$153*(1+rvanilla)^0.5)-SUM($H85:AG85),(Input!$H$153*(1+rvanilla)^0.5)/A3stdlife)) -> 0 | AI85: =IF(A3stdlife="n/a","n/a",IF(AI$3>(A3stdlife+$E85),(Input!$H$153*(1+rvanilla)^0.5)-SUM($H85:AH85),(Input!$H$153*(1+rvanilla)^0.5)/A3stdlife)) -> 0 | AJ85: =IF(A3stdlife="n/a","n/a",IF(AJ$3>(A3stdlife+$E85),(Input!$H$153*(1+rvanilla)^0.5)-SUM($H85:AI85),(Input!$H$153*(1+rvanilla)^0.5)/A3stdlife)) -> 0 | AK85: =IF(A3stdlife="n/a","n/a",IF(AK$3>(A3stdlife+$E85),(Input!$H$153*(1+rvanilla)^0.5)-SUM($H85:AJ85),(Input!$H$153*(1+rvanilla)^0.5)/A3stdlife)) -> 0 | AL85: =IF(A3stdlife="n/a","n/a",IF(AL$3>(A3stdlife+$E85),(Input!$H$153*(1+rvanilla)^0.5)-SUM($H85:AK85),(Input!$H$153*(1+rvanilla)^0.5)/A3stdlife)) -> 0 | AM85: =IF(A3stdlife="n/a","n/a",IF(AM$3>(A3stdlife+$E85),(Input!$H$153*(1+rvanilla)^0.5)-SUM($H85:AL85),(Input!$H$153*(1+rvanilla)^0.5)/A3stdlife)) -> 0 | AN85: =IF(A3stdlife="n/a","n/a",IF(AN$3>(A3stdlife+$E85),(Input!$H$153*(1+rvanilla)^0.5)-SUM($H85:AM85),(Input!$H$153*(1+rvanilla)^0.5)/A3stdlife)) -> 0 | AO85: =IF(A3stdlife="n/a","n/a",IF(AO$3>(A3stdlife+$E85),(Input!$H$153*(1+rvanilla)^0.5)-SUM($H85:AN85),(Input!$H$153*(1+rvanilla)^0.5)/A3stdlife)) -> 0 | AP85: =IF(A3stdlife="n/a","n/a",IF(AP$3>(A3stdlife+$E85),(Input!$H$153*(1+rvanilla)^0.5)-SUM($H85:AO85),(Input!$H$153*(1+rvanilla)^0.5)/A3stdlife)) -> 0 | AQ85: =IF(A3stdlife="n/a","n/a",IF(AQ$3>(A3stdlife+$E85),(Input!$H$153*(1+rvanilla)^0.5)-SUM($H85:AP85),(Input!$H$153*(1+rvanilla)^0.5)/A3stdlife)) -> 0 | AR85: =IF(A3stdlife="n/a","n/a",IF(AR$3>(A3stdlife+$E85),(Input!$H$153*(1+rvanilla)^0.5)-SUM($H85:AQ85),(Input!$H$153*(1+rvanilla)^0.5)/A3stdlife)) -> 0 | AS85: =IF(A3stdlife="n/a","n/a",IF(AS$3>(A3stdlife+$E85),(Input!$H$153*(1+rvanilla)^0.5)-SUM($H85:AR85),(Input!$H$153*(1+rvanilla)^0.5)/A3stdlife)) -> 0 | AT85: =IF(A3stdlife="n/a","n/a",IF(AT$3>(A3stdlife+$E85),(Input!$H$153*(1+rvanilla)^0.5)-SUM($H85:AS85),(Input!$H$153*(1+rvanilla)^0.5)/A3stdlife)) -> 0 | AU85: =IF(A3stdlife="n/a","n/a",IF(AU$3>(A3stdlife+$E85),(Input!$H$153*(1+rvanilla)^0.5)-SUM($H85:AT85),(Input!$H$153*(1+rvanilla)^0.5)/A3stdlife)) -> 0 | AV85: =IF(A3stdlife="n/a","n/a",IF(AV$3>(A3stdlife+$E85),(Input!$H$153*(1+rvanilla)^0.5)-SUM($H85:AU85),(Input!$H$153*(1+rvanilla)^0.5)/A3stdlife)) -> 0 | AW85: =IF(A3stdlife="n/a","n/a",IF(AW$3>(A3stdlife+$E85),(Input!$H$153*(1+rvanilla)^0.5)-SUM($H85:AV85),(Input!$H$153*(1+rvanilla)^0.5)/A3stdlife)) -> 0 | AX85: =IF(A3stdlife="n/a","n/a",IF(AX$3>(A3stdlife+$E85),(Input!$H$153*(1+rvanilla)^0.5)-SUM($H85:AW85),(Input!$H$153*(1+rvanilla)^0.5)/A3stdlife)) -> 0 | AY85: =IF(A3stdlife="n/a","n/a",IF(AY$3>(A3stdlife+$E85),(Input!$H$153*(1+rvanilla)^0.5)-SUM($H85:AX85),(Input!$H$153*(1+rvanilla)^0.5)/A3stdlife)) -> 0 | AZ85: =IF(A3stdlife="n/a","n/a",IF(AZ$3>(A3stdlife+$E85),(Input!$H$153*(1+rvanilla)^0.5)-SUM($H85:AY85),(Input!$H$153*(1+rvanilla)^0.5)/A3stdlife)) -> 0 | BA85: =IF(A3stdlife="n/a","n/a",IF(BA$3>(A3stdlife+$E85),(Input!$H$153*(1+rvanilla)^0.5)-SUM($H85:AZ85),(Input!$H$153*(1+rvanilla)^0.5)/A3stdlife)) -> 0 | BB85: =IF(A3stdlife="n/a","n/a",IF(BB$3>(A3stdlife+$E85),(Input!$H$153*(1+rvanilla)^0.5)-SUM($H85:BA85),(Input!$H$153*(1+rvanilla)^0.5)/A3stdlife)) -> 0 | BC85: =IF(A3stdlife="n/a","n/a",IF(BC$3>(A3stdlife+$E85),(Input!$H$153*(1+rvanilla)^0.5)-SUM($H85:BB85),(Input!$H$153*(1+rvanilla)^0.5)/A3stdlife)) -> 0 | BD85: =IF(A3stdlife="n/a","n/a",IF(BD$3>(A3stdlife+$E85),(Input!$H$153*(1+rvanilla)^0.5)-SUM($H85:BC85),(Input!$H$153*(1+rvanilla)^0.5)/A3stdlife)) -> 0 | BE85: =IF(A3stdlife="n/a","n/a",IF(BE$3>(A3stdlife+$E85),(Input!$H$153*(1+rvanilla)^0.5)-SUM($H85:BD85),(Input!$H$153*(1+rvanilla)^0.5)/A3stdlife)) -> 0 | BF85: =IF(A3stdlife="n/a","n/a",IF(BF$3>(A3stdlife+$E85),(Input!$H$153*(1+rvanilla)^0.5)-SUM($H85:BE85),(Input!$H$153*(1+rvanilla)^0.5)/A3stdlife)) -> 0 | BG85: =IF(A3stdlife="n/a","n/a",IF(BG$3>(A3stdlife+$E85),(Input!$H$153*(1+rvanilla)^0.5)-SUM($H85:BF85),(Input!$H$153*(1+rvanilla)^0.5)/A3stdlife)) -> 0 | BH85: =IF(A3stdlife="n/a","n/a",IF(BH$3>(A3stdlife+$E85),(Input!$H$153*(1+rvanilla)^0.5)-SUM($H85:BG85),(Input!$H$153*(1+rvanilla)^0.5)/A3stdlife)) -> 0 | BI85: =IF(A3stdlife="n/a","n/a",IF(BI$3>(A3stdlife+$E85),(Input!$H$153*(1+rvanilla)^0.5)-SUM($H85:BH85),(Input!$H$153*(1+rvanilla)^0.5)/A3stdlife)) -> 0
E86: 3 | J86: =IF(A3stdlife="n/a","n/a",IF(J$3>(A3stdlife+$E86),(Input!$I$153*(1+rvanilla)^0.5)-SUM($I86:I86),(Input!$I$153*(1+rvanilla)^0.5)/A3stdlife)) -> 0.5641960573 | K86: =IF(A3stdlife="n/a","n/a",IF(K$3>(A3stdlife+$E86),(Input!$I$153*(1+rvanilla)^0.5)-SUM($I86:J86),(Input!$I$153*(1+rvanilla)^0.5)/A3stdlife)) -> 0.5641960573 | L86: =IF(A3stdlife="n/a","n/a",IF(L$3>(A3stdlife+$E86),(Input!$I$153*(1+rvanilla)^0.5)-SUM($I86:K86),(Input!$I$153*(1+rvanilla)^0.5)/A3stdlife)) -> 0.5641960573 | M86: =IF(A3stdlife="n/a","n/a",IF(M$3>(A3stdlife+$E86),(Input!$I$153*(1+rvanilla)^0.5)-SUM($I86:L86),(Input!$I$153*(1+rvanilla)^0.5)/A3stdlife)) -> 0.5641960573 | N86: =IF(A3stdlife="n/a","n/a",IF(N$3>(A3stdlife+$E86),(Input!$I$153*(1+rvanilla)^0.5)-SUM($I86:M86),(Input!$I$153*(1+rvanilla)^0.5)/A3stdlife)) -> 0.5641960573 | O86: =IF(A3stdlife="n/a","n/a",IF(O$3>(A3stdlife+$E86),(Input!$I$153*(1+rvanilla)^0.5)-SUM($I86:N86),(Input!$I$153*(1+rvanilla)^0.5)/A3stdlife)) -> 0.5641960573 | P86: =IF(A3stdlife="n/a","n/a",IF(P$3>(A3stdlife+$E86),(Input!$I$153*(1+rvanilla)^0.5)-SUM($I86:O86),(Input!$I$153*(1+rvanilla)^0.5)/A3stdlife)) -> 0.5641960573 | Q86: =IF(A3stdlife="n/a","n/a",IF(Q$3>(A3stdlife+$E86),(Input!$I$153*(1+rvanilla)^0.5)-SUM($I86:P86),(Input!$I$153*(1+rvanilla)^0.5)/A3stdlife)) -> 0.5641960573 | R86: =IF(A3stdlife="n/a","n/a",IF(R$3>(A3stdlife+$E86),(Input!$I$153*(1+rvanilla)^0.5)-SUM($I86:Q86),(Input!$I$153*(1+rvanilla)^0.5)/A3stdlife)) -> 0.5641960573 | S86: =IF(A3stdlife="n/a","n/a",IF(S$3>(A3stdlife+$E86),(Input!$I$153*(1+rvanilla)^0.5)-SUM($I86:R86),(Input!$I$153*(1+rvanilla)^0.5)/A3stdlife)) -> 0.5641960573 | T86: =IF(A3stdlife="n/a","n/a",IF(T$3>(A3stdlife+$E86),(Input!$I$153*(1+rvanilla)^0.5)-SUM($I86:S86),(Input!$I$153*(1+rvanilla)^0.5)/A3stdlife)) -> 0.5641960573 | U86: =IF(A3stdlife="n/a","n/a",IF(U$3>(A3stdlife+$E86),(Input!$I$153*(1+rvanilla)^0.5)-SUM($I86:T86),(Input!$I$153*(1+rvanilla)^0.5)/A3stdlife)) -> 0.5641960573 | V86: =IF(A3stdlife="n/a","n/a",IF(V$3>(A3stdlife+$E86),(Input!$I$153*(1+rvanilla)^0.5)-SUM($I86:U86),(Input!$I$153*(1+rvanilla)^0.5)/A3stdlife)) -> 0.5641960573 | W86: =IF(A3stdlife="n/a","n/a",IF(W$3>(A3stdlife+$E86),(Input!$I$153*(1+rvanilla)^0.5)-SUM($I86:V86),(Input!$I$153*(1+rvanilla)^0.5)/A3stdlife)) -> 0.5641960573 | X86: =IF(A3stdlife="n/a","n/a",IF(X$3>(A3stdlife+$E86),(Input!$I$153*(1+rvanilla)^0.5)-SUM($I86:W86),(Input!$I$153*(1+rvanilla)^0.5)/A3stdlife)) -> 0.5641960573 | Y86: =IF(A3stdlife="n/a","n/a",IF(Y$3>(A3stdlife+$E86),(Input!$I$153*(1+rvanilla)^0.5)-SUM($I86:X86),(Input!$I$153*(1+rvanilla)^0.5)/A3stdlife)) -> 3.552713679e-15 | Z86: =IF(A3stdlife="n/a","n/a",IF(Z$3>(A3stdlife+$E86),(Input!$I$153*(1+rvanilla)^0.5)-SUM($I86:Y86),(Input!$I$153*(1+rvanilla)^0.5)/A3stdlife)) -> 0 | AA86: =IF(A3stdlife="n/a","n/a",IF(AA$3>(A3stdlife+$E86),(Input!$I$153*(1+rvanilla)^0.5)-SUM($I86:Z86),(Input!$I$153*(1+rvanilla)^0.5)/A3stdlife)) -> 0 | AB86: =IF(A3stdlife="n/a","n/a",IF(AB$3>(A3stdlife+$E86),(Input!$I$153*(1+rvanilla)^0.5)-SUM($I86:AA86),(Input!$I$153*(1+rvanilla)^0.5)/A3stdlife)) -> 0 | AC86: =IF(A3stdlife="n/a","n/a",IF(AC$3>(A3stdlife+$E86),(Input!$I$153*(1+rvanilla)^0.5)-SUM($I86:AB86),(Input!$I$153*(1+rvanilla)^0.5)/A3stdlife)) -> 0 | AD86: =IF(A3stdlife="n/a","n/a",IF(AD$3>(A3stdlife+$E86),(Input!$I$153*(1+rvanilla)^0.5)-SUM($I86:AC86),(Input!$I$153*(1+rvanilla)^0.5)/A3stdlife)) -> 0 | AE86: =IF(A3stdlife="n/a","n/a",IF(AE$3>(A3stdlife+$E86),(Input!$I$153*(1+rvanilla)^0.5)-SUM($I86:AD86),(Input!$I$153*(1+rvanilla)^0.5)/A3stdlife)) -> 0 | AF86: =IF(A3stdlife="n/a","n/a",IF(AF$3>(A3stdlife+$E86),(Input!$I$153*(1+rvanilla)^0.5)-SUM($I86:AE86),(Input!$I$153*(1+rvanilla)^0.5)/A3stdlife)) -> 0 | AG86: =IF(A3stdlife="n/a","n/a",IF(AG$3>(A3stdlife+$E86),(Input!$I$153*(1+rvanilla)^0.5)-SUM($I86:AF86),(Input!$I$153*(1+rvanilla)^0.5)/A3stdlife)) -> 0 | AH86: =IF(A3stdlife="n/a","n/a",IF(AH$3>(A3stdlife+$E86),(Input!$I$153*(1+rvanilla)^0.5)-SUM($I86:AG86),(Input!$I$153*(1+rvanilla)^0.5)/A3stdlife)) -> 0 | AI86: =IF(A3stdlife="n/a","n/a",IF(AI$3>(A3stdlife+$E86),(Input!$I$153*(1+rvanilla)^0.5)-SUM($I86:AH86),(Input!$I$153*(1+rvanilla)^0.5)/A3stdlife)) -> 0 | AJ86: =IF(A3stdlife="n/a","n/a",IF(AJ$3>(A3stdlife+$E86),(Input!$I$153*(1+rvanilla)^0.5)-SUM($I86:AI86),(Input!$I$153*(1+rvanilla)^0.5)/A3stdlife)) -> 0 | AK86: =IF(A3stdlife="n/a","n/a",IF(AK$3>(A3stdlife+$E86),(Input!$I$153*(1+rvanilla)^0.5)-SUM($I86:AJ86),(Input!$I$153*(1+rvanilla)^0.5)/A3stdlife)) -> 0 | AL86: =IF(A3stdlife="n/a","n/a",IF(AL$3>(A3stdlife+$E86),(Input!$I$153*(1+rvanilla)^0.5)-SUM($I86:AK86),(Input!$I$153*(1+rvanilla)^0.5)/A3stdlife)) -> 0 | AM86: =IF(A3stdlife="n/a","n/a",IF(AM$3>(A3stdlife+$E86),(Input!$I$153*(1+rvanilla)^0.5)-SUM($I86:AL86),(Input!$I$153*(1+rvanilla)^0.5)/A3stdlife)) -> 0 | AN86: =IF(A3stdlife="n/a","n/a",IF(AN$3>(A3stdlife+$E86),(Input!$I$153*(1+rvanilla)^0.5)-SUM($I86:AM86),(Input!$I$153*(1+rvanilla)^0.5)/A3stdlife)) -> 0 | AO86: =IF(A3stdlife="n/a","n/a",IF(AO$3>(A3stdlife+$E86),(Input!$I$153*(1+rvanilla)^0.5)-SUM($I86:AN86),(Input!$I$153*(1+rvanilla)^0.5)/A3stdlife)) -> 0 | AP86: =IF(A3stdlife="n/a","n/a",IF(AP$3>(A3stdlife+$E86),(Input!$I$153*(1+rvanilla)^0.5)-SUM($I86:AO86),(Input!$I$153*(1+rvanilla)^0.5)/A3stdlife)) -> 0 | AQ86: =IF(A3stdlife="n/a","n/a",IF(AQ$3>(A3stdlife+$E86),(Input!$I$153*(1+rvanilla)^0.5)-SUM($I86:AP86),(Input!$I$153*(1+rvanilla)^0.5)/A3stdlife)) -> 0 | AR86: =IF(A3stdlife="n/a","n/a",IF(AR$3>(A3stdlife+$E86),(Input!$I$153*(1+rvanilla)^0.5)-SUM($I86:AQ86),(Input!$I$153*(1+rvanilla)^0.5)/A3stdlife)) -> 0 | AS86: =IF(A3stdlife="n/a","n/a",IF(AS$3>(A3stdlife+$E86),(Input!$I$153*(1+rvanilla)^0.5)-SUM($I86:AR86),(Input!$I$153*(1+rvanilla)^0.5)/A3stdlife)) -> 0 | AT86: =IF(A3stdlife="n/a","n/a",IF(AT$3>(A3stdlife+$E86),(Input!$I$153*(1+rvanilla)^0.5)-SUM($I86:AS86),(Input!$I$153*(1+rvanilla)^0.5)/A3stdlife)) -> 0 | AU86: =IF(A3stdlife="n/a","n/a",IF(AU$3>(A3stdlife+$E86),(Input!$I$153*(1+rvanilla)^0.5)-SUM($I86:AT86),(Input!$I$153*(1+rvanilla)^0.5)/A3stdlife)) -> 0 | AV86: =IF(A3stdlife="n/a","n/a",IF(AV$3>(A3stdlife+$E86),(Input!$I$153*(1+rvanilla)^0.5)-SUM($I86:AU86),(Input!$I$153*(1+rvanilla)^0.5)/A3stdlife)) -> 0 | AW86: =IF(A3stdlife="n/a","n/a",IF(AW$3>(A3stdlife+$E86),(Input!$I$153*(1+rvanilla)^0.5)-SUM($I86:AV86),(Input!$I$153*(1+rvanilla)^0.5)/A3stdlife)) -> 0 | AX86: =IF(A3stdlife="n/a","n/a",IF(AX$3>(A3stdlife+$E86),(Input!$I$153*(1+rvanilla)^0.5)-SUM($I86:AW86),(Input!$I$153*(1+rvanilla)^0.5)/A3stdlife)) -> 0 | AY86: =IF(A3stdlife="n/a","n/a",IF(AY$3>(A3stdlife+$E86),(Input!$I$153*(1+rvanilla)^0.5)-SUM($I86:AX86),(Input!$I$153*(1+rvanilla)^0.5)/A3stdlife)) -> 0 | AZ86: =IF(A3stdlife="n/a","n/a",IF(AZ$3>(A3stdlife+$E86),(Input!$I$153*(1+rvanilla)^0.5)-SUM($I86:AY86),(Input!$I$153*(1+rvanilla)^0.5)/A3stdlife)) -> 0 | BA86: =IF(A3stdlife="n/a","n/a",IF(BA$3>(A3stdlife+$E86),(Input!$I$153*(1+rvanilla)^0.5)-SUM($I86:AZ86),(Input!$I$153*(1+rvanilla)^0.5)/A3stdlife)) -> 0 | BB86: =IF(A3stdlife="n/a","n/a",IF(BB$3>(A3stdlife+$E86),(Input!$I$153*(1+rvanilla)^0.5)-SUM($I86:BA86),(Input!$I$153*(1+rvanilla)^0.5)/A3stdlife)) -> 0 | BC86: =IF(A3stdlife="n/a","n/a",IF(BC$3>(A3stdlife+$E86),(Input!$I$153*(1+rvanilla)^0.5)-SUM($I86:BB86),(Input!$I$153*(1+rvanilla)^0.5)/A3stdlife)) -> 0 | BD86: =IF(A3stdlife="n/a","n/a",IF(BD$3>(A3stdlife+$E86),(Input!$I$153*(1+rvanilla)^0.5)-SUM($I86:BC86),(Input!$I$153*(1+rvanilla)^0.5)/A3stdlife)) -> 0 | BE86: =IF(A3stdlife="n/a","n/a",IF(BE$3>(A3stdlife+$E86),(Input!$I$153*(1+rvanilla)^0.5)-SUM($I86:BD86),(Input!$I$153*(1+rvanilla)^0.5)/A3stdlife)) -> 0 | BF86: =IF(A3stdlife="n/a","n/a",IF(BF$3>(A3stdlife+$E86),(Input!$I$153*(1+rvanilla)^0.5)-SUM($I86:BE86),(Input!$I$153*(1+rvanilla)^0.5)/A3stdlife)) -> 0 | BG86: =IF(A3stdlife="n/a","n/a",IF(BG$3>(A3stdlife+$E86),(Input!$I$153*(1+rvanilla)^0.5)-SUM($I86:BF86),(Input!$I$153*(1+rvanilla)^0.5)/A3stdlife)) -> 0 | BH86: =IF(A3stdlife="n/a","n/a",IF(BH$3>(A3stdlife+$E86),(Input!$I$153*(1+rvanilla)^0.5)-SUM($I86:BG86),(Input!$I$153*(1+rvanilla)^0.5)/A3stdlife)) -> 0 | BI86: =IF(A3stdlife="n/a","n/a",IF(BI$3>(A3stdlife+$E86),(Input!$I$153*(1+rvanilla)^0.5)-SUM($I86:BH86),(Input!$I$153*(1+rvanilla)^0.5)/A3stdlife)) -> 0
E87: 4 | K87: =IF(A3stdlife="n/a","n/a",IF(K$3>(A3stdlife+$E87),(Input!$J$153*(1+rvanilla)^0.5)-SUM($J87:J87),(Input!$J$153*(1+rvanilla)^0.5)/A3stdlife)) -> 0.5268311053 | L87: =IF(A3stdlife="n/a","n/a",IF(L$3>(A3stdlife+$E87),(Input!$J$153*(1+rvanilla)^0.5)-SUM($J87:K87),(Input!$J$153*(1+rvanilla)^0.5)/A3stdlife)) -> 0.5268311053 | M87: =IF(A3stdlife="n/a","n/a",IF(M$3>(A3stdlife+$E87),(Input!$J$153*(1+rvanilla)^0.5)-SUM($J87:L87),(Input!$J$153*(1+rvanilla)^0.5)/A3stdlife)) -> 0.5268311053 | N87: =IF(A3stdlife="n/a","n/a",IF(N$3>(A3stdlife+$E87),(Input!$J$153*(1+rvanilla)^0.5)-SUM($J87:M87),(Input!$J$153*(1+rvanilla)^0.5)/A3stdlife)) -> 0.5268311053 | O87: =IF(A3stdlife="n/a","n/a",IF(O$3>(A3stdlife+$E87),(Input!$J$153*(1+rvanilla)^0.5)-SUM($J87:N87),(Input!$J$153*(1+rvanilla)^0.5)/A3stdlife)) -> 0.5268311053 | P87: =IF(A3stdlife="n/a","n/a",IF(P$3>(A3stdlife+$E87),(Input!$J$153*(1+rvanilla)^0.5)-SUM($J87:O87),(Input!$J$153*(1+rvanilla)^0.5)/A3stdlife)) -> 0.5268311053 | Q87: =IF(A3stdlife="n/a","n/a",IF(Q$3>(A3stdlife+$E87),(Input!$J$153*(1+rvanilla)^0.5)-SUM($J87:P87),(Input!$J$153*(1+rvanilla)^0.5)/A3stdlife)) -> 0.5268311053 | R87: =IF(A3stdlife="n/a","n/a",IF(R$3>(A3stdlife+$E87),(Input!$J$153*(1+rvanilla)^0.5)-SUM($J87:Q87),(Input!$J$153*(1+rvanilla)^0.5)/A3stdlife)) -> 0.5268311053 | S87: =IF(A3stdlife="n/a","n/a",IF(S$3>(A3stdlife+$E87),(Input!$J$153*(1+rvanilla)^0.5)-SUM($J87:R87),(Input!$J$153*(1+rvanilla)^0.5)/A3stdlife)) -> 0.5268311053 | T87: =IF(A3stdlife="n/a","n/a",IF(T$3>(A3stdlife+$E87),(Input!$J$153*(1+rvanilla)^0.5)-SUM($J87:S87),(Input!$J$153*(1+rvanilla)^0.5)/A3stdlife)) -> 0.5268311053 | U87: =IF(A3stdlife="n/a","n/a",IF(U$3>(A3stdlife+$E87),(Input!$J$153*(1+rvanilla)^0.5)-SUM($J87:T87),(Input!$J$153*(1+rvanilla)^0.5)/A3stdlife)) -> 0.5268311053 | V87: =IF(A3stdlife="n/a","n/a",IF(V$3>(A3stdlife+$E87),(Input!$J$153*(1+rvanilla)^0.5)-SUM($J87:U87),(Input!$J$153*(1+rvanilla)^0.5)/A3stdlife)) -> 0.5268311053 | W87: =IF(A3stdlife="n/a","n/a",IF(W$3>(A3stdlife+$E87),(Input!$J$153*(1+rvanilla)^0.5)-SUM($J87:V87),(Input!$J$153*(1+rvanilla)^0.5)/A3stdlife)) -> 0.5268311053 | X87: =IF(A3stdlife="n/a","n/a",IF(X$3>(A3stdlife+$E87),(Input!$J$153*(1+rvanilla)^0.5)-SUM($J87:W87),(Input!$J$153*(1+rvanilla)^0.5)/A3stdlife)) -> 0.5268311053 | Y87: =IF(A3stdlife="n/a","n/a",IF(Y$3>(A3stdlife+$E87),(Input!$J$153*(1+rvanilla)^0.5)-SUM($J87:X87),(Input!$J$153*(1+rvanilla)^0.5)/A3stdlife)) -> 0.5268311053 | Z87: =IF(A3stdlife="n/a","n/a",IF(Z$3>(A3stdlife+$E87),(Input!$J$153*(1+rvanilla)^0.5)-SUM($J87:Y87),(Input!$J$153*(1+rvanilla)^0.5)/A3stdlife)) -> -2.664535259e-15 | AA87: =IF(A3stdlife="n/a","n/a",IF(AA$3>(A3stdlife+$E87),(Input!$J$153*(1+rvanilla)^0.5)-SUM($J87:Z87),(Input!$J$153*(1+rvanilla)^0.5)/A3stdlife)) -> 0 | AB87: =IF(A3stdlife="n/a","n/a",IF(AB$3>(A3stdlife+$E87),(Input!$J$153*(1+rvanilla)^0.5)-SUM($J87:AA87),(Input!$J$153*(1+rvanilla)^0.5)/A3stdlife)) -> 0 | AC87: =IF(A3stdlife="n/a","n/a",IF(AC$3>(A3stdlife+$E87),(Input!$J$153*(1+rvanilla)^0.5)-SUM($J87:AB87),(Input!$J$153*(1+rvanilla)^0.5)/A3stdlife)) -> 0 | AD87: =IF(A3stdlife="n/a","n/a",IF(AD$3>(A3stdlife+$E87),(Input!$J$153*(1+rvanilla)^0.5)-SUM($J87:AC87),(Input!$J$153*(1+rvanilla)^0.5)/A3stdlife)) -> 0 | AE87: =IF(A3stdlife="n/a","n/a",IF(AE$3>(A3stdlife+$E87),(Input!$J$153*(1+rvanilla)^0.5)-SUM($J87:AD87),(Input!$J$153*(1+rvanilla)^0.5)/A3stdlife)) -> 0 | AF87: =IF(A3stdlife="n/a","n/a",IF(AF$3>(A3stdlife+$E87),(Input!$J$153*(1+rvanilla)^0.5)-SUM($J87:AE87),(Input!$J$153*(1+rvanilla)^0.5)/A3stdlife)) -> 0 | AG87: =IF(A3stdlife="n/a","n/a",IF(AG$3>(A3stdlife+$E87),(Input!$J$153*(1+rvanilla)^0.5)-SUM($J87:AF87),(Input!$J$153*(1+rvanilla)^0.5)/A3stdlife)) -> 0 | AH87: =IF(A3stdlife="n/a","n/a",IF(AH$3>(A3stdlife+$E87),(Input!$J$153*(1+rvanilla)^0.5)-SUM($J87:AG87),(Input!$J$153*(1+rvanilla)^0.5)/A3stdlife)) -> 0 | AI87: =IF(A3stdlife="n/a","n/a",IF(AI$3>(A3stdlife+$E87),(Input!$J$153*(1+rvanilla)^0.5)-SUM($J87:AH87),(Input!$J$153*(1+rvanilla)^0.5)/A3stdlife)) -> 0 | AJ87: =IF(A3stdlife="n/a","n/a",IF(AJ$3>(A3stdlife+$E87),(Input!$J$153*(1+rvanilla)^0.5)-SUM($J87:AI87),(Input!$J$153*(1+rvanilla)^0.5)/A3stdlife)) -> 0 | AK87: =IF(A3stdlife="n/a","n/a",IF(AK$3>(A3stdlife+$E87),(Input!$J$153*(1+rvanilla)^0.5)-SUM($J87:AJ87),(Input!$J$153*(1+rvanilla)^0.5)/A3stdlife)) -> 0 | AL87: =IF(A3stdlife="n/a","n/a",IF(AL$3>(A3stdlife+$E87),(Input!$J$153*(1+rvanilla)^0.5)-SUM($J87:AK87),(Input!$J$153*(1+rvanilla)^0.5)/A3stdlife)) -> 0 | AM87: =IF(A3stdlife="n/a","n/a",IF(AM$3>(A3stdlife+$E87),(Input!$J$153*(1+rvanilla)^0.5)-SUM($J87:AL87),(Input!$J$153*(1+rvanilla)^0.5)/A3stdlife)) -> 0 | AN87: =IF(A3stdlife="n/a","n/a",IF(AN$3>(A3stdlife+$E87),(Input!$J$153*(1+rvanilla)^0.5)-SUM($J87:AM87),(Input!$J$153*(1+rvanilla)^0.5)/A3stdlife)) -> 0 | AO87: =IF(A3stdlife="n/a","n/a",IF(AO$3>(A3stdlife+$E87),(Input!$J$153*(1+rvanilla)^0.5)-SUM($J87:AN87),(Input!$J$153*(1+rvanilla)^0.5)/A3stdlife)) -> 0 | AP87: =IF(A3stdlife="n/a","n/a",IF(AP$3>(A3stdlife+$E87),(Input!$J$153*(1+rvanilla)^0.5)-SUM($J87:AO87),(Input!$J$153*(1+rvanilla)^0.5)/A3stdlife)) -> 0 | AQ87: =IF(A3stdlife="n/a","n/a",IF(AQ$3>(A3stdlife+$E87),(Input!$J$153*(1+rvanilla)^0.5)-SUM($J87:AP87),(Input!$J$153*(1+rvanilla)^0.5)/A3stdlife)) -> 0 | AR87: =IF(A3stdlife="n/a","n/a",IF(AR$3>(A3stdlife+$E87),(Input!$J$153*(1+rvanilla)^0.5)-SUM($J87:AQ87),(Input!$J$153*(1+rvanilla)^0.5)/A3stdlife)) -> 0 | AS87: =IF(A3stdlife="n/a","n/a",IF(AS$3>(A3stdlife+$E87),(Input!$J$153*(1+rvanilla)^0.5)-SUM($J87:AR87),(Input!$J$153*(1+rvanilla)^0.5)/A3stdlife)) -> 0 | AT87: =IF(A3stdlife="n/a","n/a",IF(AT$3>(A3stdlife+$E87),(Input!$J$153*(1+rvanilla)^0.5)-SUM($J87:AS87),(Input!$J$153*(1+rvanilla)^0.5)/A3stdlife)) -> 0 | AU87: =IF(A3stdlife="n/a","n/a",IF(AU$3>(A3stdlife+$E87),(Input!$J$153*(1+rvanilla)^0.5)-SUM($J87:AT87),(Input!$J$153*(1+rvanilla)^0.5)/A3stdlife)) -> 0 | AV87: =IF(A3stdlife="n/a","n/a",IF(AV$3>(A3stdlife+$E87),(Input!$J$153*(1+rvanilla)^0.5)-SUM($J87:AU87),(Input!$J$153*(1+rvanilla)^0.5)/A3stdlife)) -> 0 | AW87: =IF(A3stdlife="n/a","n/a",IF(AW$3>(A3stdlife+$E87),(Input!$J$153*(1+rvanilla)^0.5)-SUM($J87:AV87),(Input!$J$153*(1+rvanilla)^0.5)/A3stdlife)) -> 0 | AX87: =IF(A3stdlife="n/a","n/a",IF(AX$3>(A3stdlife+$E87),(Input!$J$153*(1+rvanilla)^0.5)-SUM($J87:AW87),(Input!$J$153*(1+rvanilla)^0.5)/A3stdlife)) -> 0 | AY87: =IF(A3stdlife="n/a","n/a",IF(AY$3>(A3stdlife+$E87),(Input!$J$153*(1+rvanilla)^0.5)-SUM($J87:AX87),(Input!$J$153*(1+rvanilla)^0.5)/A3stdlife)) -> 0 | AZ87: =IF(A3stdlife="n/a","n/a",IF(AZ$3>(A3stdlife+$E87),(Input!$J$153*(1+rvanilla)^0.5)-SUM($J87:AY87),(Input!$J$153*(1+rvanilla)^0.5)/A3stdlife)) -> 0 | BA87: =IF(A3stdlife="n/a","n/a",IF(BA$3>(A3stdlife+$E87),(Input!$J$153*(1+rvanilla)^0.5)-SUM($J87:AZ87),(Input!$J$153*(1+rvanilla)^0.5)/A3stdlife)) -> 0 | BB87: =IF(A3stdlife="n/a","n/a",IF(BB$3>(A3stdlife+$E87),(Input!$J$153*(1+rvanilla)^0.5)-SUM($J87:BA87),(Input!$J$153*(1+rvanilla)^0.5)/A3stdlife)) -> 0 | BC87: =IF(A3stdlife="n/a","n/a",IF(BC$3>(A3stdlife+$E87),(Input!$J$153*(1+rvanilla)^0.5)-SUM($J87:BB87),(Input!$J$153*(1+rvanilla)^0.5)/A3stdlife)) -> 0 | BD87: =IF(A3stdlife="n/a","n/a",IF(BD$3>(A3stdlife+$E87),(Input!$J$153*(1+rvanilla)^0.5)-SUM($J87:BC87),(Input!$J$153*(1+rvanilla)^0.5)/A3stdlife)) -> 0 | BE87: =IF(A3stdlife="n/a","n/a",IF(BE$3>(A3stdlife+$E87),(Input!$J$153*(1+rvanilla)^0.5)-SUM($J87:BD87),(Input!$J$153*(1+rvanilla)^0.5)/A3stdlife)) -> 0 | BF87: =IF(A3stdlife="n/a","n/a",IF(BF$3>(A3stdlife+$E87),(Input!$J$153*(1+rvanilla)^0.5)-SUM($J87:BE87),(Input!$J$153*(1+rvanilla)^0.5)/A3stdlife)) -> 0 | BG87: =IF(A3stdlife="n/a","n/a",IF(BG$3>(A3stdlife+$E87),(Input!$J$153*(1+rvanilla)^0.5)-SUM($J87:BF87),(Input!$J$153*(1+rvanilla)^0.5)/A3stdlife)) -> 0 | BH87: =IF(A3stdlife="n/a","n/a",IF(BH$3>(A3stdlife+$E87),(Input!$J$153*(1+rvanilla)^0.5)-SUM($J87:BG87),(Input!$J$153*(1+rvanilla)^0.5)/A3stdlife)) -> 0 | BI87: =IF(A3stdlife="n/a","n/a",IF(BI$3>(A3stdlife+$E87),(Input!$J$153*(1+rvanilla)^0.5)-SUM($J87:BH87),(Input!$J$153*(1+rvanilla)^0.5)/A3stdlife)) -> 0
E88: 5 | L88: =IF(A3stdlife="n/a","n/a",IF(L$3>(A3stdlife+$E88),(Input!$K$153*(1+rvanilla)^0.5)-SUM($K88:K88),(Input!$K$153*(1+rvanilla)^0.5)/A3stdlife)) -> 0.4624918297 | M88: =IF(A3stdlife="n/a","n/a",IF(M$3>(A3stdlife+$E88),(Input!$K$153*(1+rvanilla)^0.5)-SUM($K88:L88),(Input!$K$153*(1+rvanilla)^0.5)/A3stdlife)) -> 0.4624918297 | N88: =IF(A3stdlife="n/a","n/a",IF(N$3>(A3stdlife+$E88),(Input!$K$153*(1+rvanilla)^0.5)-SUM($K88:M88),(Input!$K$153*(1+rvanilla)^0.5)/A3stdlife)) -> 0.4624918297 | O88: =IF(A3stdlife="n/a","n/a",IF(O$3>(A3stdlife+$E88),(Input!$K$153*(1+rvanilla)^0.5)-SUM($K88:N88),(Input!$K$153*(1+rvanilla)^0.5)/A3stdlife)) -> 0.4624918297 | P88: =IF(A3stdlife="n/a","n/a",IF(P$3>(A3stdlife+$E88),(Input!$K$153*(1+rvanilla)^0.5)-SUM($K88:O88),(Input!$K$153*(1+rvanilla)^0.5)/A3stdlife)) -> 0.4624918297 | Q88: =IF(A3stdlife="n/a","n/a",IF(Q$3>(A3stdlife+$E88),(Input!$K$153*(1+rvanilla)^0.5)-SUM($K88:P88),(Input!$K$153*(1+rvanilla)^0.5)/A3stdlife)) -> 0.4624918297 | R88: =IF(A3stdlife="n/a","n/a",IF(R$3>(A3stdlife+$E88),(Input!$K$153*(1+rvanilla)^0.5)-SUM($K88:Q88),(Input!$K$153*(1+rvanilla)^0.5)/A3stdlife)) -> 0.4624918297 | S88: =IF(A3stdlife="n/a","n/a",IF(S$3>(A3stdlife+$E88),(Input!$K$153*(1+rvanilla)^0.5)-SUM($K88:R88),(Input!$K$153*(1+rvanilla)^0.5)/A3stdlife)) -> 0.4624918297 | T88: =IF(A3stdlife="n/a","n/a",IF(T$3>(A3stdlife+$E88),(Input!$K$153*(1+rvanilla)^0.5)-SUM($K88:S88),(Input!$K$153*(1+rvanilla)^0.5)/A3stdlife)) -> 0.4624918297 | U88: =IF(A3stdlife="n/a","n/a",IF(U$3>(A3stdlife+$E88),(Input!$K$153*(1+rvanilla)^0.5)-SUM($K88:T88),(Input!$K$153*(1+rvanilla)^0.5)/A3stdlife)) -> 0.4624918297 | V88: =IF(A3stdlife="n/a","n/a",IF(V$3>(A3stdlife+$E88),(Input!$K$153*(1+rvanilla)^0.5)-SUM($K88:U88),(Input!$K$153*(1+rvanilla)^0.5)/A3stdlife)) -> 0.4624918297 | W88: =IF(A3stdlife="n/a","n/a",IF(W$3>(A3stdlife+$E88),(Input!$K$153*(1+rvanilla)^0.5)-SUM($K88:V88),(Input!$K$153*(1+rvanilla)^0.5)/A3stdlife)) -> 0.4624918297 | X88: =IF(A3stdlife="n/a","n/a",IF(X$3>(A3stdlife+$E88),(Input!$K$153*(1+rvanilla)^0.5)-SUM($K88:W88),(Input!$K$153*(1+rvanilla)^0.5)/A3stdlife)) -> 0.4624918297 | Y88: =IF(A3stdlife="n/a","n/a",IF(Y$3>(A3stdlife+$E88),(Input!$K$153*(1+rvanilla)^0.5)-SUM($K88:X88),(Input!$K$153*(1+rvanilla)^0.5)/A3stdlife)) -> 0.4624918297 | Z88: =IF(A3stdlife="n/a","n/a",IF(Z$3>(A3stdlife+$E88),(Input!$K$153*(1+rvanilla)^0.5)-SUM($K88:Y88),(Input!$K$153*(1+rvanilla)^0.5)/A3stdlife)) -> 0.4624918297 | AA88: =IF(A3stdlife="n/a","n/a",IF(AA$3>(A3stdlife+$E88),(Input!$K$153*(1+rvanilla)^0.5)-SUM($K88:Z88),(Input!$K$153*(1+rvanilla)^0.5)/A3stdlife)) -> 2.664535259e-15 | AB88: =IF(A3stdlife="n/a","n/a",IF(AB$3>(A3stdlife+$E88),(Input!$K$153*(1+rvanilla)^0.5)-SUM($K88:AA88),(Input!$K$153*(1+rvanilla)^0.5)/A3stdlife)) -> 0 | AC88: =IF(A3stdlife="n/a","n/a",IF(AC$3>(A3stdlife+$E88),(Input!$K$153*(1+rvanilla)^0.5)-SUM($K88:AB88),(Input!$K$153*(1+rvanilla)^0.5)/A3stdlife)) -> 0 | AD88: =IF(A3stdlife="n/a","n/a",IF(AD$3>(A3stdlife+$E88),(Input!$K$153*(1+rvanilla)^0.5)-SUM($K88:AC88),(Input!$K$153*(1+rvanilla)^0.5)/A3stdlife)) -> 0 | AE88: =IF(A3stdlife="n/a","n/a",IF(AE$3>(A3stdlife+$E88),(Input!$K$153*(1+rvanilla)^0.5)-SUM($K88:AD88),(Input!$K$153*(1+rvanilla)^0.5)/A3stdlife)) -> 0 | AF88: =IF(A3stdlife="n/a","n/a",IF(AF$3>(A3stdlife+$E88),(Input!$K$153*(1+rvanilla)^0.5)-SUM($K88:AE88),(Input!$K$153*(1+rvanilla)^0.5)/A3stdlife)) -> 0 | AG88: =IF(A3stdlife="n/a","n/a",IF(AG$3>(A3stdlife+$E88),(Input!$K$153*(1+rvanilla)^0.5)-SUM($K88:AF88),(Input!$K$153*(1+rvanilla)^0.5)/A3stdlife)) -> 0 | AH88: =IF(A3stdlife="n/a","n/a",IF(AH$3>(A3stdlife+$E88),(Input!$K$153*(1+rvanilla)^0.5)-SUM($K88:AG88),(Input!$K$153*(1+rvanilla)^0.5)/A3stdlife)) -> 0 | AI88: =IF(A3stdlife="n/a","n/a",IF(AI$3>(A3stdlife+$E88),(Input!$K$153*(1+rvanilla)^0.5)-SUM($K88:AH88),(Input!$K$153*(1+rvanilla)^0.5)/A3stdlife)) -> 0 | AJ88: =IF(A3stdlife="n/a","n/a",IF(AJ$3>(A3stdlife+$E88),(Input!$K$153*(1+rvanilla)^0.5)-SUM($K88:AI88),(Input!$K$153*(1+rvanilla)^0.5)/A3stdlife)) -> 0 | AK88: =IF(A3stdlife="n/a","n/a",IF(AK$3>(A3stdlife+$E88),(Input!$K$153*(1+rvanilla)^0.5)-SUM($K88:AJ88),(Input!$K$153*(1+rvanilla)^0.5)/A3stdlife)) -> 0 | AL88: =IF(A3stdlife="n/a","n/a",IF(AL$3>(A3stdlife+$E88),(Input!$K$153*(1+rvanilla)^0.5)-SUM($K88:AK88),(Input!$K$153*(1+rvanilla)^0.5)/A3stdlife)) -> 0 | AM88: =IF(A3stdlife="n/a","n/a",IF(AM$3>(A3stdlife+$E88),(Input!$K$153*(1+rvanilla)^0.5)-SUM($K88:AL88),(Input!$K$153*(1+rvanilla)^0.5)/A3stdlife)) -> 0 | AN88: =IF(A3stdlife="n/a","n/a",IF(AN$3>(A3stdlife+$E88),(Input!$K$153*(1+rvanilla)^0.5)-SUM($K88:AM88),(Input!$K$153*(1+rvanilla)^0.5)/A3stdlife)) -> 0 | AO88: =IF(A3stdlife="n/a","n/a",IF(AO$3>(A3stdlife+$E88),(Input!$K$153*(1+rvanilla)^0.5)-SUM($K88:AN88),(Input!$K$153*(1+rvanilla)^0.5)/A3stdlife)) -> 0 | AP88: =IF(A3stdlife="n/a","n/a",IF(AP$3>(A3stdlife+$E88),(Input!$K$153*(1+rvanilla)^0.5)-SUM($K88:AO88),(Input!$K$153*(1+rvanilla)^0.5)/A3stdlife)) -> 0 | AQ88: =IF(A3stdlife="n/a","n/a",IF(AQ$3>(A3stdlife+$E88),(Input!$K$153*(1+rvanilla)^0.5)-SUM($K88:AP88),(Input!$K$153*(1+rvanilla)^0.5)/A3stdlife)) -> 0 | AR88: =IF(A3stdlife="n/a","n/a",IF(AR$3>(A3stdlife+$E88),(Input!$K$153*(1+rvanilla)^0.5)-SUM($K88:AQ88),(Input!$K$153*(1+rvanilla)^0.5)/A3stdlife)) -> 0 | AS88: =IF(A3stdlife="n/a","n/a",IF(AS$3>(A3stdlife+$E88),(Input!$K$153*(1+rvanilla)^0.5)-SUM($K88:AR88),(Input!$K$153*(1+rvanilla)^0.5)/A3stdlife)) -> 0 | AT88: =IF(A3stdlife="n/a","n/a",IF(AT$3>(A3stdlife+$E88),(Input!$K$153*(1+rvanilla)^0.5)-SUM($K88:AS88),(Input!$K$153*(1+rvanilla)^0.5)/A3stdlife)) -> 0 | AU88: =IF(A3stdlife="n/a","n/a",IF(AU$3>(A3stdlife+$E88),(Input!$K$153*(1+rvanilla)^0.5)-SUM($K88:AT88),(Input!$K$153*(1+rvanilla)^0.5)/A3stdlife)) -> 0 | AV88: =IF(A3stdlife="n/a","n/a",IF(AV$3>(A3stdlife+$E88),(Input!$K$153*(1+rvanilla)^0.5)-SUM($K88:AU88),(Input!$K$153*(1+rvanilla)^0.5)/A3stdlife)) -> 0 | AW88: =IF(A3stdlife="n/a","n/a",IF(AW$3>(A3stdlife+$E88),(Input!$K$153*(1+rvanilla)^0.5)-SUM($K88:AV88),(Input!$K$153*(1+rvanilla)^0.5)/A3stdlife)) -> 0 | AX88: =IF(A3stdlife="n/a","n/a",IF(AX$3>(A3stdlife+$E88),(Input!$K$153*(1+rvanilla)^0.5)-SUM($K88:AW88),(Input!$K$153*(1+rvanilla)^0.5)/A3stdlife)) -> 0 | AY88: =IF(A3stdlife="n/a","n/a",IF(AY$3>(A3stdlife+$E88),(Input!$K$153*(1+rvanilla)^0.5)-SUM($K88:AX88),(Input!$K$153*(1+rvanilla)^0.5)/A3stdlife)) -> 0 | AZ88: =IF(A3stdlife="n/a","n/a",IF(AZ$3>(A3stdlife+$E88),(Input!$K$153*(1+rvanilla)^0.5)-SUM($K88:AY88),(Input!$K$153*(1+rvanilla)^0.5)/A3stdlife)) -> 0 | BA88: =IF(A3stdlife="n/a","n/a",IF(BA$3>(A3stdlife+$E88),(Input!$K$153*(1+rvanilla)^0.5)-SUM($K88:AZ88),(Input!$K$153*(1+rvanilla)^0.5)/A3stdlife)) -> 0 | BB88: =IF(A3stdlife="n/a","n/a",IF(BB$3>(A3stdlife+$E88),(Input!$K$153*(1+rvanilla)^0.5)-SUM($K88:BA88),(Input!$K$153*(1+rvanilla)^0.5)/A3stdlife)) -> 0 | BC88: =IF(A3stdlife="n/a","n/a",IF(BC$3>(A3stdlife+$E88),(Input!$K$153*(1+rvanilla)^0.5)-SUM($K88:BB88),(Input!$K$153*(1+rvanilla)^0.5)/A3stdlife)) -> 0 | BD88: =IF(A3stdlife="n/a","n/a",IF(BD$3>(A3stdlife+$E88),(Input!$K$153*(1+rvanilla)^0.5)-SUM($K88:BC88),(Input!$K$153*(1+rvanilla)^0.5)/A3stdlife)) -> 0 | BE88: =IF(A3stdlife="n/a","n/a",IF(BE$3>(A3stdlife+$E88),(Input!$K$153*(1+rvanilla)^0.5)-SUM($K88:BD88),(Input!$K$153*(1+rvanilla)^0.5)/A3stdlife)) -> 0 | BF88: =IF(A3stdlife="n/a","n/a",IF(BF$3>(A3stdlife+$E88),(Input!$K$153*(1+rvanilla)^0.5)-SUM($K88:BE88),(Input!$K$153*(1+rvanilla)^0.5)/A3stdlife)) -> 0 | BG88: =IF(A3stdlife="n/a","n/a",IF(BG$3>(A3stdlife+$E88),(Input!$K$153*(1+rvanilla)^0.5)-SUM($K88:BF88),(Input!$K$153*(1+rvanilla)^0.5)/A3stdlife)) -> 0 | BH88: =IF(A3stdlife="n/a","n/a",IF(BH$3>(A3stdlife+$E88),(Input!$K$153*(1+rvanilla)^0.5)-SUM($K88:BG88),(Input!$K$153*(1+rvanilla)^0.5)/A3stdlife)) -> 0 | BI88: =IF(A3stdlife="n/a","n/a",IF(BI$3>(A3stdlife+$E88),(Input!$K$153*(1+rvanilla)^0.5)-SUM($K88:BH88),(Input!$K$153*(1+rvanilla)^0.5)/A3stdlife)) -> 0
E89: 6 | M89: =IF(A3stdlife="n/a","n/a",IF(M$3>(A3stdlife+$E89),(Input!$L$153*(1+rvanilla)^0.5)-SUM($L89:L89),(Input!$L$153*(1+rvanilla)^0.5)/A3stdlife)) -> 0 | N89: =IF(A3stdlife="n/a","n/a",IF(N$3>(A3stdlife+$E89),(Input!$L$153*(1+rvanilla)^0.5)-SUM($L89:M89),(Input!$L$153*(1+rvanilla)^0.5)/A3stdlife)) -> 0 | O89: =IF(A3stdlife="n/a","n/a",IF(O$3>(A3stdlife+$E89),(Input!$L$153*(1+rvanilla)^0.5)-SUM($L89:N89),(Input!$L$153*(1+rvanilla)^0.5)/A3stdlife)) -> 0 | P89: =IF(A3stdlife="n/a","n/a",IF(P$3>(A3stdlife+$E89),(Input!$L$153*(1+rvanilla)^0.5)-SUM($L89:O89),(Input!$L$153*(1+rvanilla)^0.5)/A3stdlife)) -> 0 | Q89: =IF(A3stdlife="n/a","n/a",IF(Q$3>(A3stdlife+$E89),(Input!$L$153*(1+rvanilla)^0.5)-SUM($L89:P89),(Input!$L$153*(1+rvanilla)^0.5)/A3stdlife)) -> 0 | R89: =IF(A3stdlife="n/a","n/a",IF(R$3>(A3stdlife+$E89),(Input!$L$153*(1+rvanilla)^0.5)-SUM($L89:Q89),(Input!$L$153*(1+rvanilla)^0.5)/A3stdlife)) -> 0 | S89: =IF(A3stdlife="n/a","n/a",IF(S$3>(A3stdlife+$E89),(Input!$L$153*(1+rvanilla)^0.5)-SUM($L89:R89),(Input!$L$153*(1+rvanilla)^0.5)/A3stdlife)) -> 0 | T89: =IF(A3stdlife="n/a","n/a",IF(T$3>(A3stdlife+$E89),(Input!$L$153*(1+rvanilla)^0.5)-SUM($L89:S89),(Input!$L$153*(1+rvanilla)^0.5)/A3stdlife)) -> 0 | U89: =IF(A3stdlife="n/a","n/a",IF(U$3>(A3stdlife+$E89),(Input!$L$153*(1+rvanilla)^0.5)-SUM($L89:T89),(Input!$L$153*(1+rvanilla)^0.5)/A3stdlife)) -> 0 | V89: =IF(A3stdlife="n/a","n/a",IF(V$3>(A3stdlife+$E89),(Input!$L$153*(1+rvanilla)^0.5)-SUM($L89:U89),(Input!$L$153*(1+rvanilla)^0.5)/A3stdlife)) -> 0 | W89: =IF(A3stdlife="n/a","n/a",IF(W$3>(A3stdlife+$E89),(Input!$L$153*(1+rvanilla)^0.5)-SUM($L89:V89),(Input!$L$153*(1+rvanilla)^0.5)/A3stdlife)) -> 0 | X89: =IF(A3stdlife="n/a","n/a",IF(X$3>(A3stdlife+$E89),(Input!$L$153*(1+rvanilla)^0.5)-SUM($L89:W89),(Input!$L$153*(1+rvanilla)^0.5)/A3stdlife)) -> 0 | Y89: =IF(A3stdlife="n/a","n/a",IF(Y$3>(A3stdlife+$E89),(Input!$L$153*(1+rvanilla)^0.5)-SUM($L89:X89),(Input!$L$153*(1+rvanilla)^0.5)/A3stdlife)) -> 0 | Z89: =IF(A3stdlife="n/a","n/a",IF(Z$3>(A3stdlife+$E89),(Input!$L$153*(1+rvanilla)^0.5)-SUM($L89:Y89),(Input!$L$153*(1+rvanilla)^0.5)/A3stdlife)) -> 0 | AA89: =IF(A3stdlife="n/a","n/a",IF(AA$3>(A3stdlife+$E89),(Input!$L$153*(1+rvanilla)^0.5)-SUM($L89:Z89),(Input!$L$153*(1+rvanilla)^0.5)/A3stdlife)) -> 0 | AB89: =IF(A3stdlife="n/a","n/a",IF(AB$3>(A3stdlife+$E89),(Input!$L$153*(1+rvanilla)^0.5)-SUM($L89:AA89),(Input!$L$153*(1+rvanilla)^0.5)/A3stdlife)) -> 0 | AC89: =IF(A3stdlife="n/a","n/a",IF(AC$3>(A3stdlife+$E89),(Input!$L$153*(1+rvanilla)^0.5)-SUM($L89:AB89),(Input!$L$153*(1+rvanilla)^0.5)/A3stdlife)) -> 0 | AD89: =IF(A3stdlife="n/a","n/a",IF(AD$3>(A3stdlife+$E89),(Input!$L$153*(1+rvanilla)^0.5)-SUM($L89:AC89),(Input!$L$153*(1+rvanilla)^0.5)/A3stdlife)) -> 0 | AE89: =IF(A3stdlife="n/a","n/a",IF(AE$3>(A3stdlife+$E89),(Input!$L$153*(1+rvanilla)^0.5)-SUM($L89:AD89),(Input!$L$153*(1+rvanilla)^0.5)/A3stdlife)) -> 0 | AF89: =IF(A3stdlife="n/a","n/a",IF(AF$3>(A3stdlife+$E89),(Input!$L$153*(1+rvanilla)^0.5)-SUM($L89:AE89),(Input!$L$153*(1+rvanilla)^0.5)/A3stdlife)) -> 0 | AG89: =IF(A3stdlife="n/a","n/a",IF(AG$3>(A3stdlife+$E89),(Input!$L$153*(1+rvanilla)^0.5)-SUM($L89:AF89),(Input!$L$153*(1+rvanilla)^0.5)/A3stdlife)) -> 0 | AH89: =IF(A3stdlife="n/a","n/a",IF(AH$3>(A3stdlife+$E89),(Input!$L$153*(1+rvanilla)^0.5)-SUM($L89:AG89),(Input!$L$153*(1+rvanilla)^0.5)/A3stdlife)) -> 0 | AI89: =IF(A3stdlife="n/a","n/a",IF(AI$3>(A3stdlife+$E89),(Input!$L$153*(1+rvanilla)^0.5)-SUM($L89:AH89),(Input!$L$153*(1+rvanilla)^0.5)/A3stdlife)) -> 0 | AJ89: =IF(A3stdlife="n/a","n/a",IF(AJ$3>(A3stdlife+$E89),(Input!$L$153*(1+rvanilla)^0.5)-SUM($L89:AI89),(Input!$L$153*(1+rvanilla)^0.5)/A3stdlife)) -> 0 | AK89: =IF(A3stdlife="n/a","n/a",IF(AK$3>(A3stdlife+$E89),(Input!$L$153*(1+rvanilla)^0.5)-SUM($L89:AJ89),(Input!$L$153*(1+rvanilla)^0.5)/A3stdlife)) -> 0 | AL89: =IF(A3stdlife="n/a","n/a",IF(AL$3>(A3stdlife+$E89),(Input!$L$153*(1+rvanilla)^0.5)-SUM($L89:AK89),(Input!$L$153*(1+rvanilla)^0.5)/A3stdlife)) -> 0 | AM89: =IF(A3stdlife="n/a","n/a",IF(AM$3>(A3stdlife+$E89),(Input!$L$153*(1+rvanilla)^0.5)-SUM($L89:AL89),(Input!$L$153*(1+rvanilla)^0.5)/A3stdlife)) -> 0 | AN89: =IF(A3stdlife="n/a","n/a",IF(AN$3>(A3stdlife+$E89),(Input!$L$153*(1+rvanilla)^0.5)-SUM($L89:AM89),(Input!$L$153*(1+rvanilla)^0.5)/A3stdlife)) -> 0 | AO89: =IF(A3stdlife="n/a","n/a",IF(AO$3>(A3stdlife+$E89),(Input!$L$153*(1+rvanilla)^0.5)-SUM($L89:AN89),(Input!$L$153*(1+rvanilla)^0.5)/A3stdlife)) -> 0 | AP89: =IF(A3stdlife="n/a","n/a",IF(AP$3>(A3stdlife+$E89),(Input!$L$153*(1+rvanilla)^0.5)-SUM($L89:AO89),(Input!$L$153*(1+rvanilla)^0.5)/A3stdlife)) -> 0 | AQ89: =IF(A3stdlife="n/a","n/a",IF(AQ$3>(A3stdlife+$E89),(Input!$L$153*(1+rvanilla)^0.5)-SUM($L89:AP89),(Input!$L$153*(1+rvanilla)^0.5)/A3stdlife)) -> 0 | AR89: =IF(A3stdlife="n/a","n/a",IF(AR$3>(A3stdlife+$E89),(Input!$L$153*(1+rvanilla)^0.5)-SUM($L89:AQ89),(Input!$L$153*(1+rvanilla)^0.5)/A3stdlife)) -> 0 | AS89: =IF(A3stdlife="n/a","n/a",IF(AS$3>(A3stdlife+$E89),(Input!$L$153*(1+rvanilla)^0.5)-SUM($L89:AR89),(Input!$L$153*(1+rvanilla)^0.5)/A3stdlife)) -> 0 | AT89: =IF(A3stdlife="n/a","n/a",IF(AT$3>(A3stdlife+$E89),(Input!$L$153*(1+rvanilla)^0.5)-SUM($L89:AS89),(Input!$L$153*(1+rvanilla)^0.5)/A3stdlife)) -> 0 | AU89: =IF(A3stdlife="n/a","n/a",IF(AU$3>(A3stdlife+$E89),(Input!$L$153*(1+rvanilla)^0.5)-SUM($L89:AT89),(Input!$L$153*(1+rvanilla)^0.5)/A3stdlife)) -> 0 | AV89: =IF(A3stdlife="n/a","n/a",IF(AV$3>(A3stdlife+$E89),(Input!$L$153*(1+rvanilla)^0.5)-SUM($L89:AU89),(Input!$L$153*(1+rvanilla)^0.5)/A3stdlife)) -> 0 | AW89: =IF(A3stdlife="n/a","n/a",IF(AW$3>(A3stdlife+$E89),(Input!$L$153*(1+rvanilla)^0.5)-SUM($L89:AV89),(Input!$L$153*(1+rvanilla)^0.5)/A3stdlife)) -> 0 | AX89: =IF(A3stdlife="n/a","n/a",IF(AX$3>(A3stdlife+$E89),(Input!$L$153*(1+rvanilla)^0.5)-SUM($L89:AW89),(Input!$L$153*(1+rvanilla)^0.5)/A3stdlife)) -> 0 | AY89: =IF(A3stdlife="n/a","n/a",IF(AY$3>(A3stdlife+$E89),(Input!$L$153*(1+rvanilla)^0.5)-SUM($L89:AX89),(Input!$L$153*(1+rvanilla)^0.5)/A3stdlife)) -> 0 | AZ89: =IF(A3stdlife="n/a","n/a",IF(AZ$3>(A3stdlife+$E89),(Input!$L$153*(1+rvanilla)^0.5)-SUM($L89:AY89),(Input!$L$153*(1+rvanilla)^0.5)/A3stdlife)) -> 0 | BA89: =IF(A3stdlife="n/a","n/a",IF(BA$3>(A3stdlife+$E89),(Input!$L$153*(1+rvanilla)^0.5)-SUM($L89:AZ89),(Input!$L$153*(1+rvanilla)^0.5)/A3stdlife)) -> 0 | BB89: =IF(A3stdlife="n/a","n/a",IF(BB$3>(A3stdlife+$E89),(Input!$L$153*(1+rvanilla)^0.5)-SUM($L89:BA89),(Input!$L$153*(1+rvanilla)^0.5)/A3stdlife)) -> 0 | BC89: =IF(A3stdlife="n/a","n/a",IF(BC$3>(A3stdlife+$E89),(Input!$L$153*(1+rvanilla)^0.5)-SUM($L89:BB89),(Input!$L$153*(1+rvanilla)^0.5)/A3stdlife)) -> 0 | BD89: =IF(A3stdlife="n/a","n/a",IF(BD$3>(A3stdlife+$E89),(Input!$L$153*(1+rvanilla)^0.5)-SUM($L89:BC89),(Input!$L$153*(1+rvanilla)^0.5)/A3stdlife)) -> 0 | BE89: =IF(A3stdlife="n/a","n/a",IF(BE$3>(A3stdlife+$E89),(Input!$L$153*(1+rvanilla)^0.5)-SUM($L89:BD89),(Input!$L$153*(1+rvanilla)^0.5)/A3stdlife)) -> 0 | BF89: =IF(A3stdlife="n/a","n/a",IF(BF$3>(A3stdlife+$E89),(Input!$L$153*(1+rvanilla)^0.5)-SUM($L89:BE89),(Input!$L$153*(1+rvanilla)^0.5)/A3stdlife)) -> 0 | BG89: =IF(A3stdlife="n/a","n/a",IF(BG$3>(A3stdlife+$E89),(Input!$L$153*(1+rvanilla)^0.5)-SUM($L89:BF89),(Input!$L$153*(1+rvanilla)^0.5)/A3stdlife)) -> 0 | BH89: =IF(A3stdlife="n/a","n/a",IF(BH$3>(A3stdlife+$E89),(Input!$L$153*(1+rvanilla)^0.5)-SUM($L89:BG89),(Input!$L$153*(1+rvanilla)^0.5)/A3stdlife)) -> 0 | BI89: =IF(A3stdlife="n/a","n/a",IF(BI$3>(A3stdlife+$E89),(Input!$L$153*(1+rvanilla)^0.5)-SUM($L89:BH89),(Input!$L$153*(1+rvanilla)^0.5)/A3stdlife)) -> 0
E90: 7 | N90: =IF(A3stdlife="n/a","n/a",IF(N$3>(A3stdlife+$E90),(Input!$M$153*(1+rvanilla)^0.5)-SUM($M90:M90),(Input!$M$153*(1+rvanilla)^0.5)/A3stdlife)) -> 0 | O90: =IF(A3stdlife="n/a","n/a",IF(O$3>(A3stdlife+$E90),(Input!$M$153*(1+rvanilla)^0.5)-SUM($M90:N90),(Input!$M$153*(1+rvanilla)^0.5)/A3stdlife)) -> 0 | P90: =IF(A3stdlife="n/a","n/a",IF(P$3>(A3stdlife+$E90),(Input!$M$153*(1+rvanilla)^0.5)-SUM($M90:O90),(Input!$M$153*(1+rvanilla)^0.5)/A3stdlife)) -> 0 | Q90: =IF(A3stdlife="n/a","n/a",IF(Q$3>(A3stdlife+$E90),(Input!$M$153*(1+rvanilla)^0.5)-SUM($M90:P90),(Input!$M$153*(1+rvanilla)^0.5)/A3stdlife)) -> 0 | R90: =IF(A3stdlife="n/a","n/a",IF(R$3>(A3stdlife+$E90),(Input!$M$153*(1+rvanilla)^0.5)-SUM($M90:Q90),(Input!$M$153*(1+rvanilla)^0.5)/A3stdlife)) -> 0 | S90: =IF(A3stdlife="n/a","n/a",IF(S$3>(A3stdlife+$E90),(Input!$M$153*(1+rvanilla)^0.5)-SUM($M90:R90),(Input!$M$153*(1+rvanilla)^0.5)/A3stdlife)) -> 0 | T90: =IF(A3stdlife="n/a","n/a",IF(T$3>(A3stdlife+$E90),(Input!$M$153*(1+rvanilla)^0.5)-SUM($M90:S90),(Input!$M$153*(1+rvanilla)^0.5)/A3stdlife)) -> 0 | U90: =IF(A3stdlife="n/a","n/a",IF(U$3>(A3stdlife+$E90),(Input!$M$153*(1+rvanilla)^0.5)-SUM($M90:T90),(Input!$M$153*(1+rvanilla)^0.5)/A3stdlife)) -> 0 | V90: =IF(A3stdlife="n/a","n/a",IF(V$3>(A3stdlife+$E90),(Input!$M$153*(1+rvanilla)^0.5)-SUM($M90:U90),(Input!$M$153*(1+rvanilla)^0.5)/A3stdlife)) -> 0 | W90: =IF(A3stdlife="n/a","n/a",IF(W$3>(A3stdlife+$E90),(Input!$M$153*(1+rvanilla)^0.5)-SUM($M90:V90),(Input!$M$153*(1+rvanilla)^0.5)/A3stdlife)) -> 0 | X90: =IF(A3stdlife="n/a","n/a",IF(X$3>(A3stdlife+$E90),(Input!$M$153*(1+rvanilla)^0.5)-SUM($M90:W90),(Input!$M$153*(1+rvanilla)^0.5)/A3stdlife)) -> 0 | Y90: =IF(A3stdlife="n/a","n/a",IF(Y$3>(A3stdlife+$E90),(Input!$M$153*(1+rvanilla)^0.5)-SUM($M90:X90),(Input!$M$153*(1+rvanilla)^0.5)/A3stdlife)) -> 0 | Z90: =IF(A3stdlife="n/a","n/a",IF(Z$3>(A3stdlife+$E90),(Input!$M$153*(1+rvanilla)^0.5)-SUM($M90:Y90),(Input!$M$153*(1+rvanilla)^0.5)/A3stdlife)) -> 0 | AA90: =IF(A3stdlife="n/a","n/a",IF(AA$3>(A3stdlife+$E90),(Input!$M$153*(1+rvanilla)^0.5)-SUM($M90:Z90),(Input!$M$153*(1+rvanilla)^0.5)/A3stdlife)) -> 0 | AB90: =IF(A3stdlife="n/a","n/a",IF(AB$3>(A3stdlife+$E90),(Input!$M$153*(1+rvanilla)^0.5)-SUM($M90:AA90),(Input!$M$153*(1+rvanilla)^0.5)/A3stdlife)) -> 0 | AC90: =IF(A3stdlife="n/a","n/a",IF(AC$3>(A3stdlife+$E90),(Input!$M$153*(1+rvanilla)^0.5)-SUM($M90:AB90),(Input!$M$153*(1+rvanilla)^0.5)/A3stdlife)) -> 0 | AD90: =IF(A3stdlife="n/a","n/a",IF(AD$3>(A3stdlife+$E90),(Input!$M$153*(1+rvanilla)^0.5)-SUM($M90:AC90),(Input!$M$153*(1+rvanilla)^0.5)/A3stdlife)) -> 0 | AE90: =IF(A3stdlife="n/a","n/a",IF(AE$3>(A3stdlife+$E90),(Input!$M$153*(1+rvanilla)^0.5)-SUM($M90:AD90),(Input!$M$153*(1+rvanilla)^0.5)/A3stdlife)) -> 0 | AF90: =IF(A3stdlife="n/a","n/a",IF(AF$3>(A3stdlife+$E90),(Input!$M$153*(1+rvanilla)^0.5)-SUM($M90:AE90),(Input!$M$153*(1+rvanilla)^0.5)/A3stdlife)) -> 0 | AG90: =IF(A3stdlife="n/a","n/a",IF(AG$3>(A3stdlife+$E90),(Input!$M$153*(1+rvanilla)^0.5)-SUM($M90:AF90),(Input!$M$153*(1+rvanilla)^0.5)/A3stdlife)) -> 0 | AH90: =IF(A3stdlife="n/a","n/a",IF(AH$3>(A3stdlife+$E90),(Input!$M$153*(1+rvanilla)^0.5)-SUM($M90:AG90),(Input!$M$153*(1+rvanilla)^0.5)/A3stdlife)) -> 0 | AI90: =IF(A3stdlife="n/a","n/a",IF(AI$3>(A3stdlife+$E90),(Input!$M$153*(1+rvanilla)^0.5)-SUM($M90:AH90),(Input!$M$153*(1+rvanilla)^0.5)/A3stdlife)) -> 0 | AJ90: =IF(A3stdlife="n/a","n/a",IF(AJ$3>(A3stdlife+$E90),(Input!$M$153*(1+rvanilla)^0.5)-SUM($M90:AI90),(Input!$M$153*(1+rvanilla)^0.5)/A3stdlife)) -> 0 | AK90: =IF(A3stdlife="n/a","n/a",IF(AK$3>(A3stdlife+$E90),(Input!$M$153*(1+rvanilla)^0.5)-SUM($M90:AJ90),(Input!$M$153*(1+rvanilla)^0.5)/A3stdlife)) -> 0 | AL90: =IF(A3stdlife="n/a","n/a",IF(AL$3>(A3stdlife+$E90),(Input!$M$153*(1+rvanilla)^0.5)-SUM($M90:AK90),(Input!$M$153*(1+rvanilla)^0.5)/A3stdlife)) -> 0 | AM90: =IF(A3stdlife="n/a","n/a",IF(AM$3>(A3stdlife+$E90),(Input!$M$153*(1+rvanilla)^0.5)-SUM($M90:AL90),(Input!$M$153*(1+rvanilla)^0.5)/A3stdlife)) -> 0 | AN90: =IF(A3stdlife="n/a","n/a",IF(AN$3>(A3stdlife+$E90),(Input!$M$153*(1+rvanilla)^0.5)-SUM($M90:AM90),(Input!$M$153*(1+rvanilla)^0.5)/A3stdlife)) -> 0 | AO90: =IF(A3stdlife="n/a","n/a",IF(AO$3>(A3stdlife+$E90),(Input!$M$153*(1+rvanilla)^0.5)-SUM($M90:AN90),(Input!$M$153*(1+rvanilla)^0.5)/A3stdlife)) -> 0 | AP90: =IF(A3stdlife="n/a","n/a",IF(AP$3>(A3stdlife+$E90),(Input!$M$153*(1+rvanilla)^0.5)-SUM($M90:AO90),(Input!$M$153*(1+rvanilla)^0.5)/A3stdlife)) -> 0 | AQ90: =IF(A3stdlife="n/a","n/a",IF(AQ$3>(A3stdlife+$E90),(Input!$M$153*(1+rvanilla)^0.5)-SUM($M90:AP90),(Input!$M$153*(1+rvanilla)^0.5)/A3stdlife)) -> 0 | AR90: =IF(A3stdlife="n/a","n/a",IF(AR$3>(A3stdlife+$E90),(Input!$M$153*(1+rvanilla)^0.5)-SUM($M90:AQ90),(Input!$M$153*(1+rvanilla)^0.5)/A3stdlife)) -> 0 | AS90: =IF(A3stdlife="n/a","n/a",IF(AS$3>(A3stdlife+$E90),(Input!$M$153*(1+rvanilla)^0.5)-SUM($M90:AR90),(Input!$M$153*(1+rvanilla)^0.5)/A3stdlife)) -> 0 | AT90: =IF(A3stdlife="n/a","n/a",IF(AT$3>(A3stdlife+$E90),(Input!$M$153*(1+rvanilla)^0.5)-SUM($M90:AS90),(Input!$M$153*(1+rvanilla)^0.5)/A3stdlife)) -> 0 | AU90: =IF(A3stdlife="n/a","n/a",IF(AU$3>(A3stdlife+$E90),(Input!$M$153*(1+rvanilla)^0.5)-SUM($M90:AT90),(Input!$M$153*(1+rvanilla)^0.5)/A3stdlife)) -> 0 | AV90: =IF(A3stdlife="n/a","n/a",IF(AV$3>(A3stdlife+$E90),(Input!$M$153*(1+rvanilla)^0.5)-SUM($M90:AU90),(Input!$M$153*(1+rvanilla)^0.5)/A3stdlife)) -> 0 | AW90: =IF(A3stdlife="n/a","n/a",IF(AW$3>(A3stdlife+$E90),(Input!$M$153*(1+rvanilla)^0.5)-SUM($M90:AV90),(Input!$M$153*(1+rvanilla)^0.5)/A3stdlife)) -> 0 | AX90: =IF(A3stdlife="n/a","n/a",IF(AX$3>(A3stdlife+$E90),(Input!$M$153*(1+rvanilla)^0.5)-SUM($M90:AW90),(Input!$M$153*(1+rvanilla)^0.5)/A3stdlife)) -> 0 | AY90: =IF(A3stdlife="n/a","n/a",IF(AY$3>(A3stdlife+$E90),(Input!$M$153*(1+rvanilla)^0.5)-SUM($M90:AX90),(Input!$M$153*(1+rvanilla)^0.5)/A3stdlife)) -> 0 | AZ90: =IF(A3stdlife="n/a","n/a",IF(AZ$3>(A3stdlife+$E90),(Input!$M$153*(1+rvanilla)^0.5)-SUM($M90:AY90),(Input!$M$153*(1+rvanilla)^0.5)/A3stdlife)) -> 0 | BA90: =IF(A3stdlife="n/a","n/a",IF(BA$3>(A3stdlife+$E90),(Input!$M$153*(1+rvanilla)^0.5)-SUM($M90:AZ90),(Input!$M$153*(1+rvanilla)^0.5)/A3stdlife)) -> 0 | BB90: =IF(A3stdlife="n/a","n/a",IF(BB$3>(A3stdlife+$E90),(Input!$M$153*(1+rvanilla)^0.5)-SUM($M90:BA90),(Input!$M$153*(1+rvanilla)^0.5)/A3stdlife)) -> 0 | BC90: =IF(A3stdlife="n/a","n/a",IF(BC$3>(A3stdlife+$E90),(Input!$M$153*(1+rvanilla)^0.5)-SUM($M90:BB90),(Input!$M$153*(1+rvanilla)^0.5)/A3stdlife)) -> 0 | BD90: =IF(A3stdlife="n/a","n/a",IF(BD$3>(A3stdlife+$E90),(Input!$M$153*(1+rvanilla)^0.5)-SUM($M90:BC90),(Input!$M$153*(1+rvanilla)^0.5)/A3stdlife)) -> 0 | BE90: =IF(A3stdlife="n/a","n/a",IF(BE$3>(A3stdlife+$E90),(Input!$M$153*(1+rvanilla)^0.5)-SUM($M90:BD90),(Input!$M$153*(1+rvanilla)^0.5)/A3stdlife)) -> 0 | BF90: =IF(A3stdlife="n/a","n/a",IF(BF$3>(A3stdlife+$E90),(Input!$M$153*(1+rvanilla)^0.5)-SUM($M90:BE90),(Input!$M$153*(1+rvanilla)^0.5)/A3stdlife)) -> 0 | BG90: =IF(A3stdlife="n/a","n/a",IF(BG$3>(A3stdlife+$E90),(Input!$M$153*(1+rvanilla)^0.5)-SUM($M90:BF90),(Input!$M$153*(1+rvanilla)^0.5)/A3stdlife)) -> 0 | BH90: =IF(A3stdlife="n/a","n/a",IF(BH$3>(A3stdlife+$E90),(Input!$M$153*(1+rvanilla)^0.5)-SUM($M90:BG90),(Input!$M$153*(1+rvanilla)^0.5)/A3stdlife)) -> 0 | BI90: =IF(A3stdlife="n/a","n/a",IF(BI$3>(A3stdlife+$E90),(Input!$M$153*(1+rvanilla)^0.5)-SUM($M90:BH90),(Input!$M$153*(1+rvanilla)^0.5)/A3stdlife)) -> 0
E91: 8 | O91: =IF(A3stdlife="n/a","n/a",IF(O$3>(A3stdlife+$E91),(Input!$N$153*(1+rvanilla)^0.5)-SUM($N91:N91),(Input!$N$153*(1+rvanilla)^0.5)/A3stdlife)) -> 0 | P91: =IF(A3stdlife="n/a","n/a",IF(P$3>(A3stdlife+$E91),(Input!$N$153*(1+rvanilla)^0.5)-SUM($N91:O91),(Input!$N$153*(1+rvanilla)^0.5)/A3stdlife)) -> 0 | Q91: =IF(A3stdlife="n/a","n/a",IF(Q$3>(A3stdlife+$E91),(Input!$N$153*(1+rvanilla)^0.5)-SUM($N91:P91),(Input!$N$153*(1+rvanilla)^0.5)/A3stdlife)) -> 0 | R91: =IF(A3stdlife="n/a","n/a",IF(R$3>(A3stdlife+$E91),(Input!$N$153*(1+rvanilla)^0.5)-SUM($N91:Q91),(Input!$N$153*(1+rvanilla)^0.5)/A3stdlife)) -> 0 | S91: =IF(A3stdlife="n/a","n/a",IF(S$3>(A3stdlife+$E91),(Input!$N$153*(1+rvanilla)^0.5)-SUM($N91:R91),(Input!$N$153*(1+rvanilla)^0.5)/A3stdlife)) -> 0 | T91: =IF(A3stdlife="n/a","n/a",IF(T$3>(A3stdlife+$E91),(Input!$N$153*(1+rvanilla)^0.5)-SUM($N91:S91),(Input!$N$153*(1+rvanilla)^0.5)/A3stdlife)) -> 0 | U91: =IF(A3stdlife="n/a","n/a",IF(U$3>(A3stdlife+$E91),(Input!$N$153*(1+rvanilla)^0.5)-SUM($N91:T91),(Input!$N$153*(1+rvanilla)^0.5)/A3stdlife)) -> 0 | V91: =IF(A3stdlife="n/a","n/a",IF(V$3>(A3stdlife+$E91),(Input!$N$153*(1+rvanilla)^0.5)-SUM($N91:U91),(Input!$N$153*(1+rvanilla)^0.5)/A3stdlife)) -> 0 | W91: =IF(A3stdlife="n/a","n/a",IF(W$3>(A3stdlife+$E91),(Input!$N$153*(1+rvanilla)^0.5)-SUM($N91:V91),(Input!$N$153*(1+rvanilla)^0.5)/A3stdlife)) -> 0 | X91: =IF(A3stdlife="n/a","n/a",IF(X$3>(A3stdlife+$E91),(Input!$N$153*(1+rvanilla)^0.5)-SUM($N91:W91),(Input!$N$153*(1+rvanilla)^0.5)/A3stdlife)) -> 0 | Y91: =IF(A3stdlife="n/a","n/a",IF(Y$3>(A3stdlife+$E91),(Input!$N$153*(1+rvanilla)^0.5)-SUM($N91:X91),(Input!$N$153*(1+rvanilla)^0.5)/A3stdlife)) -> 0 | Z91: =IF(A3stdlife="n/a","n/a",IF(Z$3>(A3stdlife+$E91),(Input!$N$153*(1+rvanilla)^0.5)-SUM($N91:Y91),(Input!$N$153*(1+rvanilla)^0.5)/A3stdlife)) -> 0 | AA91: =IF(A3stdlife="n/a","n/a",IF(AA$3>(A3stdlife+$E91),(Input!$N$153*(1+rvanilla)^0.5)-SUM($N91:Z91),(Input!$N$153*(1+rvanilla)^0.5)/A3stdlife)) -> 0 | AB91: =IF(A3stdlife="n/a","n/a",IF(AB$3>(A3stdlife+$E91),(Input!$N$153*(1+rvanilla)^0.5)-SUM($N91:AA91),(Input!$N$153*(1+rvanilla)^0.5)/A3stdlife)) -> 0 | AC91: =IF(A3stdlife="n/a","n/a",IF(AC$3>(A3stdlife+$E91),(Input!$N$153*(1+rvanilla)^0.5)-SUM($N91:AB91),(Input!$N$153*(1+rvanilla)^0.5)/A3stdlife)) -> 0 | AD91: =IF(A3stdlife="n/a","n/a",IF(AD$3>(A3stdlife+$E91),(Input!$N$153*(1+rvanilla)^0.5)-SUM($N91:AC91),(Input!$N$153*(1+rvanilla)^0.5)/A3stdlife)) -> 0 | AE91: =IF(A3stdlife="n/a","n/a",IF(AE$3>(A3stdlife+$E91),(Input!$N$153*(1+rvanilla)^0.5)-SUM($N91:AD91),(Input!$N$153*(1+rvanilla)^0.5)/A3stdlife)) -> 0 | AF91: =IF(A3stdlife="n/a","n/a",IF(AF$3>(A3stdlife+$E91),(Input!$N$153*(1+rvanilla)^0.5)-SUM($N91:AE91),(Input!$N$153*(1+rvanilla)^0.5)/A3stdlife)) -> 0 | AG91: =IF(A3stdlife="n/a","n/a",IF(AG$3>(A3stdlife+$E91),(Input!$N$153*(1+rvanilla)^0.5)-SUM($N91:AF91),(Input!$N$153*(1+rvanilla)^0.5)/A3stdlife)) -> 0 | AH91: =IF(A3stdlife="n/a","n/a",IF(AH$3>(A3stdlife+$E91),(Input!$N$153*(1+rvanilla)^0.5)-SUM($N91:AG91),(Input!$N$153*(1+rvanilla)^0.5)/A3stdlife)) -> 0 | AI91: =IF(A3stdlife="n/a","n/a",IF(AI$3>(A3stdlife+$E91),(Input!$N$153*(1+rvanilla)^0.5)-SUM($N91:AH91),(Input!$N$153*(1+rvanilla)^0.5)/A3stdlife)) -> 0 | AJ91: =IF(A3stdlife="n/a","n/a",IF(AJ$3>(A3stdlife+$E91),(Input!$N$153*(1+rvanilla)^0.5)-SUM($N91:AI91),(Input!$N$153*(1+rvanilla)^0.5)/A3stdlife)) -> 0 | AK91: =IF(A3stdlife="n/a","n/a",IF(AK$3>(A3stdlife+$E91),(Input!$N$153*(1+rvanilla)^0.5)-SUM($N91:AJ91),(Input!$N$153*(1+rvanilla)^0.5)/A3stdlife)) -> 0 | AL91: =IF(A3stdlife="n/a","n/a",IF(AL$3>(A3stdlife+$E91),(Input!$N$153*(1+rvanilla)^0.5)-SUM($N91:AK91),(Input!$N$153*(1+rvanilla)^0.5)/A3stdlife)) -> 0 | AM91: =IF(A3stdlife="n/a","n/a",IF(AM$3>(A3stdlife+$E91),(Input!$N$153*(1+rvanilla)^0.5)-SUM($N91:AL91),(Input!$N$153*(1+rvanilla)^0.5)/A3stdlife)) -> 0 | AN91: =IF(A3stdlife="n/a","n/a",IF(AN$3>(A3stdlife+$E91),(Input!$N$153*(1+rvanilla)^0.5)-SUM($N91:AM91),(Input!$N$153*(1+rvanilla)^0.5)/A3stdlife)) -> 0 | AO91: =IF(A3stdlife="n/a","n/a",IF(AO$3>(A3stdlife+$E91),(Input!$N$153*(1+rvanilla)^0.5)-SUM($N91:AN91),(Input!$N$153*(1+rvanilla)^0.5)/A3stdlife)) -> 0 | AP91: =IF(A3stdlife="n/a","n/a",IF(AP$3>(A3stdlife+$E91),(Input!$N$153*(1+rvanilla)^0.5)-SUM($N91:AO91),(Input!$N$153*(1+rvanilla)^0.5)/A3stdlife)) -> 0 | AQ91: =IF(A3stdlife="n/a","n/a",IF(AQ$3>(A3stdlife+$E91),(Input!$N$153*(1+rvanilla)^0.5)-SUM($N91:AP91),(Input!$N$153*(1+rvanilla)^0.5)/A3stdlife)) -> 0 | AR91: =IF(A3stdlife="n/a","n/a",IF(AR$3>(A3stdlife+$E91),(Input!$N$153*(1+rvanilla)^0.5)-SUM($N91:AQ91),(Input!$N$153*(1+rvanilla)^0.5)/A3stdlife)) -> 0 | AS91: =IF(A3stdlife="n/a","n/a",IF(AS$3>(A3stdlife+$E91),(Input!$N$153*(1+rvanilla)^0.5)-SUM($N91:AR91),(Input!$N$153*(1+rvanilla)^0.5)/A3stdlife)) -> 0 | AT91: =IF(A3stdlife="n/a","n/a",IF(AT$3>(A3stdlife+$E91),(Input!$N$153*(1+rvanilla)^0.5)-SUM($N91:AS91),(Input!$N$153*(1+rvanilla)^0.5)/A3stdlife)) -> 0 | AU91: =IF(A3stdlife="n/a","n/a",IF(AU$3>(A3stdlife+$E91),(Input!$N$153*(1+rvanilla)^0.5)-SUM($N91:AT91),(Input!$N$153*(1+rvanilla)^0.5)/A3stdlife)) -> 0 | AV91: =IF(A3stdlife="n/a","n/a",IF(AV$3>(A3stdlife+$E91),(Input!$N$153*(1+rvanilla)^0.5)-SUM($N91:AU91),(Input!$N$153*(1+rvanilla)^0.5)/A3stdlife)) -> 0 | AW91: =IF(A3stdlife="n/a","n/a",IF(AW$3>(A3stdlife+$E91),(Input!$N$153*(1+rvanilla)^0.5)-SUM($N91:AV91),(Input!$N$153*(1+rvanilla)^0.5)/A3stdlife)) -> 0 | AX91: =IF(A3stdlife="n/a","n/a",IF(AX$3>(A3stdlife+$E91),(Input!$N$153*(1+rvanilla)^0.5)-SUM($N91:AW91),(Input!$N$153*(1+rvanilla)^0.5)/A3stdlife)) -> 0 | AY91: =IF(A3stdlife="n/a","n/a",IF(AY$3>(A3stdlife+$E91),(Input!$N$153*(1+rvanilla)^0.5)-SUM($N91:AX91),(Input!$N$153*(1+rvanilla)^0.5)/A3stdlife)) -> 0 | AZ91: =IF(A3stdlife="n/a","n/a",IF(AZ$3>(A3stdlife+$E91),(Input!$N$153*(1+rvanilla)^0.5)-SUM($N91:AY91),(Input!$N$153*(1+rvanilla)^0.5)/A3stdlife)) -> 0 | BA91: =IF(A3stdlife="n/a","n/a",IF(BA$3>(A3stdlife+$E91),(Input!$N$153*(1+rvanilla)^0.5)-SUM($N91:AZ91),(Input!$N$153*(1+rvanilla)^0.5)/A3stdlife)) -> 0 | BB91: =IF(A3stdlife="n/a","n/a",IF(BB$3>(A3stdlife+$E91),(Input!$N$153*(1+rvanilla)^0.5)-SUM($N91:BA91),(Input!$N$153*(1+rvanilla)^0.5)/A3stdlife)) -> 0 | BC91: =IF(A3stdlife="n/a","n/a",IF(BC$3>(A3stdlife+$E91),(Input!$N$153*(1+rvanilla)^0.5)-SUM($N91:BB91),(Input!$N$153*(1+rvanilla)^0.5)/A3stdlife)) -> 0 | BD91: =IF(A3stdlife="n/a","n/a",IF(BD$3>(A3stdlife+$E91),(Input!$N$153*(1+rvanilla)^0.5)-SUM($N91:BC91),(Input!$N$153*(1+rvanilla)^0.5)/A3stdlife)) -> 0 | BE91: =IF(A3stdlife="n/a","n/a",IF(BE$3>(A3stdlife+$E91),(Input!$N$153*(1+rvanilla)^0.5)-SUM($N91:BD91),(Input!$N$153*(1+rvanilla)^0.5)/A3stdlife)) -> 0 | BF91: =IF(A3stdlife="n/a","n/a",IF(BF$3>(A3stdlife+$E91),(Input!$N$153*(1+rvanilla)^0.5)-SUM($N91:BE91),(Input!$N$153*(1+rvanilla)^0.5)/A3stdlife)) -> 0 | BG91: =IF(A3stdlife="n/a","n/a",IF(BG$3>(A3stdlife+$E91),(Input!$N$153*(1+rvanilla)^0.5)-SUM($N91:BF91),(Input!$N$153*(1+rvanilla)^0.5)/A3stdlife)) -> 0 | BH91: =IF(A3stdlife="n/a","n/a",IF(BH$3>(A3stdlife+$E91),(Input!$N$153*(1+rvanilla)^0.5)-SUM($N91:BG91),(Input!$N$153*(1+rvanilla)^0.5)/A3stdlife)) -> 0 | BI91: =IF(A3stdlife="n/a","n/a",IF(BI$3>(A3stdlife+$E91),(Input!$N$153*(1+rvanilla)^0.5)-SUM($N91:BH91),(Input!$N$153*(1+rvanilla)^0.5)/A3stdlife)) -> 0
E92: 9 | P92: =IF(A3stdlife="n/a","n/a",IF(P$3>(A3stdlife+$E92),(Input!$O$153*(1+rvanilla)^0.5)-SUM($O92:O92),(Input!$O$153*(1+rvanilla)^0.5)/A3stdlife)) -> 0 | Q92: =IF(A3stdlife="n/a","n/a",IF(Q$3>(A3stdlife+$E92),(Input!$O$153*(1+rvanilla)^0.5)-SUM($O92:P92),(Input!$O$153*(1+rvanilla)^0.5)/A3stdlife)) -> 0 | R92: =IF(A3stdlife="n/a","n/a",IF(R$3>(A3stdlife+$E92),(Input!$O$153*(1+rvanilla)^0.5)-SUM($O92:Q92),(Input!$O$153*(1+rvanilla)^0.5)/A3stdlife)) -> 0 | S92: =IF(A3stdlife="n/a","n/a",IF(S$3>(A3stdlife+$E92),(Input!$O$153*(1+rvanilla)^0.5)-SUM($O92:R92),(Input!$O$153*(1+rvanilla)^0.5)/A3stdlife)) -> 0 | T92: =IF(A3stdlife="n/a","n/a",IF(T$3>(A3stdlife+$E92),(Input!$O$153*(1+rvanilla)^0.5)-SUM($O92:S92),(Input!$O$153*(1+rvanilla)^0.5)/A3stdlife)) -> 0 | U92: =IF(A3stdlife="n/a","n/a",IF(U$3>(A3stdlife+$E92),(Input!$O$153*(1+rvanilla)^0.5)-SUM($O92:T92),(Input!$O$153*(1+rvanilla)^0.5)/A3stdlife)) -> 0 | V92: =IF(A3stdlife="n/a","n/a",IF(V$3>(A3stdlife+$E92),(Input!$O$153*(1+rvanilla)^0.5)-SUM($O92:U92),(Input!$O$153*(1+rvanilla)^0.5)/A3stdlife)) -> 0 | W92: =IF(A3stdlife="n/a","n/a",IF(W$3>(A3stdlife+$E92),(Input!$O$153*(1+rvanilla)^0.5)-SUM($O92:V92),(Input!$O$153*(1+rvanilla)^0.5)/A3stdlife)) -> 0 | X92: =IF(A3stdlife="n/a","n/a",IF(X$3>(A3stdlife+$E92),(Input!$O$153*(1+rvanilla)^0.5)-SUM($O92:W92),(Input!$O$153*(1+rvanilla)^0.5)/A3stdlife)) -> 0 | Y92: =IF(A3stdlife="n/a","n/a",IF(Y$3>(A3stdlife+$E92),(Input!$O$153*(1+rvanilla)^0.5)-SUM($O92:X92),(Input!$O$153*(1+rvanilla)^0.5)/A3stdlife)) -> 0 | Z92: =IF(A3stdlife="n/a","n/a",IF(Z$3>(A3stdlife+$E92),(Input!$O$153*(1+rvanilla)^0.5)-SUM($O92:Y92),(Input!$O$153*(1+rvanilla)^0.5)/A3stdlife)) -> 0 | AA92: =IF(A3stdlife="n/a","n/a",IF(AA$3>(A3stdlife+$E92),(Input!$O$153*(1+rvanilla)^0.5)-SUM($O92:Z92),(Input!$O$153*(1+rvanilla)^0.5)/A3stdlife)) -> 0 | AB92: =IF(A3stdlife="n/a","n/a",IF(AB$3>(A3stdlife+$E92),(Input!$O$153*(1+rvanilla)^0.5)-SUM($O92:AA92),(Input!$O$153*(1+rvanilla)^0.5)/A3stdlife)) -> 0 | AC92: =IF(A3stdlife="n/a","n/a",IF(AC$3>(A3stdlife+$E92),(Input!$O$153*(1+rvanilla)^0.5)-SUM($O92:AB92),(Input!$O$153*(1+rvanilla)^0.5)/A3stdlife)) -> 0 | AD92: =IF(A3stdlife="n/a","n/a",IF(AD$3>(A3stdlife+$E92),(Input!$O$153*(1+rvanilla)^0.5)-SUM($O92:AC92),(Input!$O$153*(1+rvanilla)^0.5)/A3stdlife)) -> 0 | AE92: =IF(A3stdlife="n/a","n/a",IF(AE$3>(A3stdlife+$E92),(Input!$O$153*(1+rvanilla)^0.5)-SUM($O92:AD92),(Input!$O$153*(1+rvanilla)^0.5)/A3stdlife)) -> 0 | AF92: =IF(A3stdlife="n/a","n/a",IF(AF$3>(A3stdlife+$E92),(Input!$O$153*(1+rvanilla)^0.5)-SUM($O92:AE92),(Input!$O$153*(1+rvanilla)^0.5)/A3stdlife)) -> 0 | AG92: =IF(A3stdlife="n/a","n/a",IF(AG$3>(A3stdlife+$E92),(Input!$O$153*(1+rvanilla)^0.5)-SUM($O92:AF92),(Input!$O$153*(1+rvanilla)^0.5)/A3stdlife)) -> 0 | AH92: =IF(A3stdlife="n/a","n/a",IF(AH$3>(A3stdlife+$E92),(Input!$O$153*(1+rvanilla)^0.5)-SUM($O92:AG92),(Input!$O$153*(1+rvanilla)^0.5)/A3stdlife)) -> 0 | AI92: =IF(A3stdlife="n/a","n/a",IF(AI$3>(A3stdlife+$E92),(Input!$O$153*(1+rvanilla)^0.5)-SUM($O92:AH92),(Input!$O$153*(1+rvanilla)^0.5)/A3stdlife)) -> 0 | AJ92: =IF(A3stdlife="n/a","n/a",IF(AJ$3>(A3stdlife+$E92),(Input!$O$153*(1+rvanilla)^0.5)-SUM($O92:AI92),(Input!$O$153*(1+rvanilla)^0.5)/A3stdlife)) -> 0 | AK92: =IF(A3stdlife="n/a","n/a",IF(AK$3>(A3stdlife+$E92),(Input!$O$153*(1+rvanilla)^0.5)-SUM($O92:AJ92),(Input!$O$153*(1+rvanilla)^0.5)/A3stdlife)) -> 0 | AL92: =IF(A3stdlife="n/a","n/a",IF(AL$3>(A3stdlife+$E92),(Input!$O$153*(1+rvanilla)^0.5)-SUM($O92:AK92),(Input!$O$153*(1+rvanilla)^0.5)/A3stdlife)) -> 0 | AM92: =IF(A3stdlife="n/a","n/a",IF(AM$3>(A3stdlife+$E92),(Input!$O$153*(1+rvanilla)^0.5)-SUM($O92:AL92),(Input!$O$153*(1+rvanilla)^0.5)/A3stdlife)) -> 0 | AN92: =IF(A3stdlife="n/a","n/a",IF(AN$3>(A3stdlife+$E92),(Input!$O$153*(1+rvanilla)^0.5)-SUM($O92:AM92),(Input!$O$153*(1+rvanilla)^0.5)/A3stdlife)) -> 0 | AO92: =IF(A3stdlife="n/a","n/a",IF(AO$3>(A3stdlife+$E92),(Input!$O$153*(1+rvanilla)^0.5)-SUM($O92:AN92),(Input!$O$153*(1+rvanilla)^0.5)/A3stdlife)) -> 0 | AP92: =IF(A3stdlife="n/a","n/a",IF(AP$3>(A3stdlife+$E92),(Input!$O$153*(1+rvanilla)^0.5)-SUM($O92:AO92),(Input!$O$153*(1+rvanilla)^0.5)/A3stdlife)) -> 0 | AQ92: =IF(A3stdlife="n/a","n/a",IF(AQ$3>(A3stdlife+$E92),(Input!$O$153*(1+rvanilla)^0.5)-SUM($O92:AP92),(Input!$O$153*(1+rvanilla)^0.5)/A3stdlife)) -> 0 | AR92: =IF(A3stdlife="n/a","n/a",IF(AR$3>(A3stdlife+$E92),(Input!$O$153*(1+rvanilla)^0.5)-SUM($O92:AQ92),(Input!$O$153*(1+rvanilla)^0.5)/A3stdlife)) -> 0 | AS92: =IF(A3stdlife="n/a","n/a",IF(AS$3>(A3stdlife+$E92),(Input!$O$153*(1+rvanilla)^0.5)-SUM($O92:AR92),(Input!$O$153*(1+rvanilla)^0.5)/A3stdlife)) -> 0 | AT92: =IF(A3stdlife="n/a","n/a",IF(AT$3>(A3stdlife+$E92),(Input!$O$153*(1+rvanilla)^0.5)-SUM($O92:AS92),(Input!$O$153*(1+rvanilla)^0.5)/A3stdlife)) -> 0 | AU92: =IF(A3stdlife="n/a","n/a",IF(AU$3>(A3stdlife+$E92),(Input!$O$153*(1+rvanilla)^0.5)-SUM($O92:AT92),(Input!$O$153*(1+rvanilla)^0.5)/A3stdlife)) -> 0 | AV92: =IF(A3stdlife="n/a","n/a",IF(AV$3>(A3stdlife+$E92),(Input!$O$153*(1+rvanilla)^0.5)-SUM($O92:AU92),(Input!$O$153*(1+rvanilla)^0.5)/A3stdlife)) -> 0 | AW92: =IF(A3stdlife="n/a","n/a",IF(AW$3>(A3stdlife+$E92),(Input!$O$153*(1+rvanilla)^0.5)-SUM($O92:AV92),(Input!$O$153*(1+rvanilla)^0.5)/A3stdlife)) -> 0 | AX92: =IF(A3stdlife="n/a","n/a",IF(AX$3>(A3stdlife+$E92),(Input!$O$153*(1+rvanilla)^0.5)-SUM($O92:AW92),(Input!$O$153*(1+rvanilla)^0.5)/A3stdlife)) -> 0 | AY92: =IF(A3stdlife="n/a","n/a",IF(AY$3>(A3stdlife+$E92),(Input!$O$153*(1+rvanilla)^0.5)-SUM($O92:AX92),(Input!$O$153*(1+rvanilla)^0.5)/A3stdlife)) -> 0 | AZ92: =IF(A3stdlife="n/a","n/a",IF(AZ$3>(A3stdlife+$E92),(Input!$O$153*(1+rvanilla)^0.5)-SUM($O92:AY92),(Input!$O$153*(1+rvanilla)^0.5)/A3stdlife)) -> 0 | BA92: =IF(A3stdlife="n/a","n/a",IF(BA$3>(A3stdlife+$E92),(Input!$O$153*(1+rvanilla)^0.5)-SUM($O92:AZ92),(Input!$O$153*(1+rvanilla)^0.5)/A3stdlife)) -> 0 | BB92: =IF(A3stdlife="n/a","n/a",IF(BB$3>(A3stdlife+$E92),(Input!$O$153*(1+rvanilla)^0.5)-SUM($O92:BA92),(Input!$O$153*(1+rvanilla)^0.5)/A3stdlife)) -> 0 | BC92: =IF(A3stdlife="n/a","n/a",IF(BC$3>(A3stdlife+$E92),(Input!$O$153*(1+rvanilla)^0.5)-SUM($O92:BB92),(Input!$O$153*(1+rvanilla)^0.5)/A3stdlife)) -> 0 | BD92: =IF(A3stdlife="n/a","n/a",IF(BD$3>(A3stdlife+$E92),(Input!$O$153*(1+rvanilla)^0.5)-SUM($O92:BC92),(Input!$O$153*(1+rvanilla)^0.5)/A3stdlife)) -> 0 | BE92: =IF(A3stdlife="n/a","n/a",IF(BE$3>(A3stdlife+$E92),(Input!$O$153*(1+rvanilla)^0.5)-SUM($O92:BD92),(Input!$O$153*(1+rvanilla)^0.5)/A3stdlife)) -> 0 | BF92: =IF(A3stdlife="n/a","n/a",IF(BF$3>(A3stdlife+$E92),(Input!$O$153*(1+rvanilla)^0.5)-SUM($O92:BE92),(Input!$O$153*(1+rvanilla)^0.5)/A3stdlife)) -> 0 | BG92: =IF(A3stdlife="n/a","n/a",IF(BG$3>(A3stdlife+$E92),(Input!$O$153*(1+rvanilla)^0.5)-SUM($O92:BF92),(Input!$O$153*(1+rvanilla)^0.5)/A3stdlife)) -> 0 | BH92: =IF(A3stdlife="n/a","n/a",IF(BH$3>(A3stdlife+$E92),(Input!$O$153*(1+rvanilla)^0.5)-SUM($O92:BG92),(Input!$O$153*(1+rvanilla)^0.5)/A3stdlife)) -> 0 | BI92: =IF(A3stdlife="n/a","n/a",IF(BI$3>(A3stdlife+$E92),(Input!$O$153*(1+rvanilla)^0.5)-SUM($O92:BH92),(Input!$O$153*(1+rvanilla)^0.5)/A3stdlife)) -> 0
